{"text_format":"1","workbook":"xlsx","n_sheets":2,"sheets":["彈性課程計畫","學習表現指標"],"not_rendered":{"charts":0,"images":1,"macros":1,"external_links":0,"defined_names":7,"comments":2,"pivot_tables":0},"unopened":[],"bounds":{"document_bytes":16777216,"sheet_cells":100000,"rows_first":2000,"rows_last":500,"rows_between":2000,"halvings":0,"cell_chars":16384,"cell_head_chars":4096},"cells_cut":0,"cells_raw":0,"read":"whole","date_system":"1900"}

{"sheet":"彈性課程計畫","index":0,"n_rows":201,"n_cols":74,"rows_kept":201,"cut":false,"hidden":false,"merged":[[16,6,16,13],[17,6,17,13],[90,2,90,14],[91,2,91,14],[87,2,87,14],[88,2,88,14],[89,2,89,14],[11,6,11,13],[12,6,12,13],[13,6,13,13],[14,6,14,13],[15,6,15,13],[7,2,7,3],[8,6,8,13],[9,6,9,13],[10,6,10,13],[7,4,7,13],[4,2,4,3],[4,12,4,13],[5,2,5,3],[5,12,5,13],[6,2,6,3],[6,4,6,13]]}
["學年度",109,"學期","下","一年級","開課名稱:","A國語文","A",null,null,null,null,20,null,null,null,null,34,null,"學習領域","A國語文","B本土語文","C","D數學","E生活課程","F","G","H健康與體育","I",null,null,"J花漾前鋒","K書海探索家","L國際領航員",null,null,null,null,null,null,null,null,null,null,null,null,null,null,null,null,null,null,null,null,null,null,null,null,null,null,null,null,null,null,null,null,null,null,null,30,34,20,22,22]
["校名:","高雄市岡山區前峰國小",null,null,null,null,null,null,null,null,null,null,null,null,null,null,null,null,null,"跨領域節數D2",{"$f":"SUMIF($E$20:$E$85,$A$104,$J$20:$J$85)","v":0},{"$f":"SUMIF($E$20:$E$85,$A$105,$J$20:$J$85)","v":0},{"$f":"SUMIF($E$20:$E$85,$A$106,$J$20:$J$85)","v":0},{"$f":"SUMIF($E$20:$E$85,$A$107,$J$20:$J$85)","v":0},{"$f":"SUMIF($E$20:$E$85,$A$108,$J$20:$J$85)","v":0},{"$f":"SUMIF($E$20:$E$85,$A$109,$J$20:$J$85)","v":0},{"$f":"SUMIF($E$20:$E$85,$A$110,$J$20:$J$85)","v":0},{"$f":"SUMIF($E$20:$E$85,$A$111,$J$20:$J$85)","v":0},{"$f":"SUMIF($E$20:$E$85,$A$112,$J$20:$J$85)","v":0},null,null,{"$f":"SUMIF($E$20:$E$85,$A$115,$J$20:$J$85)","v":0},{"$f":"SUMIF($E$20:$E$85,$A$116,$J$20:$J$85)","v":0},{"$f":"SUMIF($E$20:$E$85,$A$117,$J$20:$J$85)","v":0},{"$f":"SUMIF($E$20:$E$85,$A$118,$J$20:$J$85)","v":0},{"$f":"SUMIF($E$20:$E$85,$A$119,$J$20:$J$85)","v":0},{"$f":"SUMIF($E$20:$E$85,$A$120,$J$20:$J$85)","v":0},null,null,null,null,null,null,null,null,20,6,0,0,0,0,0,0,0,0,null,null,0,0,0,0,0,0]
["* 號隱藏D2\n&show",null,null,null,null,null,{"$f":"B2&B1&\"學年度\"","v":"高雄市岡山區前峰國小109學年度"}]
[null,"fx",null,null,null,null,"一年級下學期國語文課程計畫"]
[null,null,"教材來源",null,"國語\n( 南一版) 第二冊",null,null,null,null,null,null,"教學節數：","每週6節/共120節"]
[null,null,"設 計 者",null,"一年級教學團隊",null,null,null,null,null,null,"教 學 者","一年級教學團隊"]
["*",null,"課程設計理念",null,"「語文」是學童學習一切學科的基礎，更是學童訓練思維能力、邏輯推理能力及開發智力的重要工具。因此，本版國語文教材除了重視「聽、說、讀、寫、作」基本能力的奠基外，更重視學童思維能力的訓練與情意的培養。\n在課程設計上，採單元活動方式，以主題貫串課程內容，以兒童文學、學童生活經驗及認知發展為基礎，設計與單元主題相關的故事、課文，提供一套有系統的、適合學童學習的聆聽、說話、識字、閱讀、寫作的語文教材。一下安排了「大自然教室」、「我們一起玩」、「有你真好」及「動物同樂會」四個單元主題，每個單元包括一則「聆聽故事」、三課課文、一個「語文天地」以及一篇「閱讀列車」。\n期望透過多元的主題、豐富的內容、由淺入深、螺旋累進逐步加深、加廣的學習架構，協助學童在生活與實作中主動學習，奠定語言運用的基礎及養成良好的品德與生活習慣，並在持續充實學習能力中深化學習，讓學童經由體驗與實踐，發展基本生活知能與社會能力，開發多元智能，培養多方興趣，增進判斷是非與解決問題的能力，以達成十二年國民基本教育「自發」、「互動」及「共好」的理念及「成就每一個孩子――適性揚才、終身學習」的願景。",null,null,null,null,null,null,null,null,null,null,{"$f":"E7","v":"「語文」是學童學習一切學科的基礎，更是學童訓練思維能力、邏輯推理能力及開發智力的重要工具。因此，本版國語文教材除了重視「聽、說、讀、寫、作」基本能力的奠基外，更重視學童思維能力的訓練與情意的培養。\n在課程設計上，採單元活動方式，以主題貫串課程內容，以兒童文學、學童生活經驗及認知發展為基礎，設計與單元主題相關的故事、課文，提供一套有系統的、適合學童學習的聆聽、說話、識字、閱讀、寫作的語文教材。一下安排了「大自然教室」、「我們一起玩」、「有你真好」及「動物同樂會」四個單元主題，每個單元包括一則「聆聽故事」、三課課文、一個「語文天地」以及一篇「閱讀列車」。\n期望透過多元的主題、豐富的內容、由淺入深、螺旋累進逐步加深、加廣的學習架構，協助學童在生活與實作中主動學習，奠定語言運用的基礎及養成良好的品德與生活習慣，並在持續充實學習能力中深化學習，讓學童經由體驗與實踐，發展基本生活知能與社會能力，開發多元智能，培養多方興趣，增進判斷是非與解決問題的能力，以達成十二年國民基本教育「自發」、「互動」及「共好」的理念及「成就每一個孩子――適性揚才、終身學習」的願景。"}]
["*",null,"學期學習目標",null,"1.知道卡片的寫法與用途，並能用卡片表達情意。\n2.能分辨「什麼」、「怎麼」、「為什麼」、「你、您」的用法與運用「一……就……」的句型造句，及運用「過後」表達事件的順序。\n3.能以完整的語句說出故事內容及其所蘊含的意義。\n4.能用適當的語詞描寫情緒，用適當的狀聲詞形容聲音。\n5.能利用「指示代名詞」連結線索，讀懂文章。\n6.能利用文字或繪畫表達心意，從文章和插圖的連結，推測故事的發展。\n7.能知道不同字形的寫字順序，並掌握國字筆畫順序，寫出正確的國字。\n8.能運用「摹聲詞」描述聲音，運用「嘆詞」加強文句的語氣。\n9.能運用生字造詞、運用新詞造出通順的句子。\n10.能運用想像力，讓閱讀變得更有趣，並從閱讀中增進生活的趣味。\n11.能認識童詩的分段和押韻的寫作技巧。\n12.能運用方法認識國字與認識國字的結構。\n13.認識不同語氣的句子，並能加長句子。\n14.認識句號、逗號、問號和驚嘆號\n15.觀察圖片，認識動詞，並能運用適當的動詞描述動作狀態。",null,null,null,null,null,null,null,null,null,null,{"$f":"E8","v":"1.知道卡片的寫法與用途，並能用卡片表達情意。\n2.能分辨「什麼」、「怎麼」、「為什麼」、「你、您」的用法與運用「一……就……」的句型造句，及運用「過後」表達事件的順序。\n3.能以完整的語句說出故事內容及其所蘊含的意義。\n4.能用適當的語詞描寫情緒，用適當的狀聲詞形容聲音。\n5.能利用「指示代名詞」連結線索，讀懂文章。\n6.能利用文字或繪畫表達心意，從文章和插圖的連結，推測故事的發展。\n7.能知道不同字形的寫字順序，並掌握國字筆畫順序，寫出正確的國字。\n8.能運用「摹聲詞」描述聲音，運用「嘆詞」加強文句的語氣。\n9.能運用生字造詞、運用新詞造出通順的句子。\n10.能運用想像力，讓閱讀變得更有趣，並從閱讀中增進生活的趣味。\n11.能認識童詩的分段和押韻的寫作技巧。\n12.能運用方法認識國字與認識國字的結構。\n13.認識不同語氣的句子，並能加長句子。\n14.認識句號、逗號、問號和驚嘆號\n15.觀察圖片，認識動詞，並能運用適當的動詞描述動作狀態。"}]
[null,null,null,null,"▓A1身心素質與自我精進",null,"國-E-A1認識國語文的重要性，培養國語文的興趣，能運用國語文認識自我、表現自我，奠定終身學習的基礎。",null,null,null,null,null,null,null,null,null,{"$f":"SUBSTITUTE(E9,\"▓\",\"□\")","v":"□A1身心素質與自我精進"}]
[null,null,null,null,"□A2系統思考與解決問題",null,null,null,null,null,null,null,null,null,null,null,"□A2系統思考與解決問題",null,null,null,null,null,null,null,null,null,null,null,null,null,null,null,null,null,null,null,null,null,null,null,null,null,null,{"$f":"IF(O10=\"\",\"\",VLOOKUP(LEFT(O10,2),A1到C3,MATCH(RIGHT(O10),A到I,0)+1,FALSE))","v":""},null,"B1A",{"$f":"IF(AT10=\"\",\"\",VLOOKUP(LEFT(AT10,2),A1到C3,MATCH(RIGHT(AT10),A到I,0)+1,FALSE))","v":"國-E-B1理解與運用國語文在日常生活中學習體察他人的感受，並給予適當的回應，以達成溝通及互動的目標。"}]
[null,null,null,null,"□A3規劃執行與創新應變",null,null,null,null,null,null,null,null,null,null,null,"□A3規劃執行與創新應變"]
[null,null,null,null,"▓B1符號運用與溝通表達",null,"國-E-B1理解與運用國語文在日常生活中學習體察他人的感受，並給予適當的回應，以達成溝通及互動的目標。",null,null,null,null,null,null,null,null,null,"□B1符號運用與溝通表達",null,null,null,null,null,null,null,null,null,"B1A"]
[null,null,"12年國教核心素養項目",null,"□B2科技資訊與媒體素養",null,null,null,null,null,null,null,null,null,null,null,"□B2科技資訊與媒體素養",null,null,null,null,null,null,null,null,null,null,null,null,null,null,null,null,null,null,null,null,null,null,null,null,null,null,""]
[null,null,null,null,"□B3藝術涵養與美感素養",null,null,null,null,null,null,null,null,null,null,null,"□B3藝術涵養與美感素養",null,null,null,null,null,null,null,null,null,null,null,null,null,null,null,null,null,null,null,null,null,null,null,null,null,null,""]
[null,null,null,null,"□C1道德實踐與公民意識",null,null,null,null,null,null,null,null,null,null,null,null,null,null,null,null,null,null,null,null,null,null,null,null,null,null,null,null,null,null,null,null,null,null,null,null,null,null,""]
[null,null,null,null,"□C2人際關係與團隊合作",null,null,null,null,null,null,null,null,null,null,null,null,null,null,null,null,null,null,null,null,null,null,null,null,null,null,null,null,null,null,null,null,null,null,null,null,null,null,""]
[null,null,null,null,"□C3多元文化與國際理解",null,null,null,null,null,null,null,null,null,null,null,{"$f":"SUBSTITUTE(E17,\"▓\",\"□\")","v":"□C3多元文化與國際理解"},null,null,null,null,null,null,null,null,null,null,null,null,null,null,null,null,null,null,null,null,null,null,null,null,null,null,""]
["*",null,"核心素養    呼應說明",null,null,null,null,null,null,null,null,null,null,null,null,{"$f":"E18","v":0}]
["部定學習重點轉換校訂課程","領綱核心素養","序號","實施週次D2","校訂領域/跨領域","學習表現","學習內容","單元名稱\n(該週放假併入下週上)","單元名稱節數","跨領域節數","教育工作項目\n(含19項議題)","教學流程簡案","評量方式","教學資源","課程類別"]
[null,"國-E-B1\n國-E-A1",1,"第1週","A國語文","1-Ⅰ-1 養成專心聆聽的習慣，尊重對方的發言。C2/B1\n1-Ⅰ-3 能理解話語、詩歌、故事的訊息，有適切的表情跟肢體語言。C3/B1\n2-Ⅰ-1 以正確發音流利的說出語意完整的話。A1/B1\n2-Ⅰ-2 說出所聽聞的內容。A1/B1\n3-Ⅰ-2 運用注音符號輔助識字，也能利用國字鞏固注音符號的學習。C2/B1\n3-Ⅰ-4 利用注音讀物，學習閱讀，享受閱讀樂趣。A1/B1\n4-Ⅰ-1 認識常用國字至少 1,000 字，使用 700 字。A2/B1\n4-Ⅰ-4 養成良好的書寫姿勢，並保持整潔的書寫習慣。C1/A1\n4-Ⅰ-5  認識基本筆畫、筆順，掌握運筆原則，寫出正確及工整的國字。A3/B1\n5-Ⅰ-1 以適切的速率正確地朗讀文本。A2/B1\n5-Ⅰ-4 了解文本中的重要訊息與觀點。A1/B1\n6-I-2 透過閱讀及觀察，積累寫作材料。B1/A1\n6-I-4 使用仿寫、接寫等技巧寫作。A3/B1","Aa-I-5 標注注音符號的各類文本。\nAb-I-1 1,000 個常用字的字形、字音和字義。\nAb-I-2 700 個常用字的使用。\nAb-I-3 常用字筆畫及部件的空間結構。\nAb-I-5 1,500 個常用語詞的認念。\nAb-I-6 1,000 個常用語詞的使用。\nAc-I-2 簡單的基本句型。\nAd-I-2 篇章的大意。\nAd-I-3 故事、童詩等。\nBa-I-1 順敘法。\nCa-I-1 各類文本中與日常生活相關的文化內涵。","第壹單元大自然教室\n第一課太陽是充電機",6,null,"◎戶外教育\n戶E5理解他人對環境的不同感受，並且樂於分享自身經驗。\n◎能源教育\n能E1認識並了解能源與日常生活的關聯。","1.專心聆聽課文及同學們的發表。\n2.從師生共同討論中，能傾聽別人發表晒太陽的感覺。\n3.從課文情境圖中，能說出「太陽」、「小花」、「青草」、「開心」等語詞。\n4.從課文內容中，引導學生說出晒太陽的感覺，並聯想動物和植物晒太陽的時候，是什麼感覺。\n5.應用注音符號，學習讀寫本課的新詞、生字。\n6.利用注音符號，寫出句子。\n7.注意寫字的姿勢、筆順、字的架構，工整的寫出生字。\n8.能認識「雨」部的字。\n9.能分辨多音字「為」的讀音。\n10.能分辨形近字「太、天」\n11.能明白「充充電」的涵義和重要性。\n12.照樣造句\n‧太陽為小花充充電。\n13.語句寫作\n‧大雨過後，小花開了。","1.筆試\n2.口試\n4.實作\n5.作業","南一電子書",null,{"$f":"F20","v":"1-Ⅰ-1 養成專心聆聽的習慣，尊重對方的發言。C2/B1\n1-Ⅰ-3 能理解話語、詩歌、故事的訊息，有適切的表情跟肢體語言。C3/B1\n2-Ⅰ-1 以正確發音流利的說出語意完整的話。A1/B1\n2-Ⅰ-2 說出所聽聞的內容。A1/B1\n3-Ⅰ-2 運用注音符號輔助識字，也能利用國字鞏固注音符號的學習。C2/B1\n3-Ⅰ-4 利用注音讀物，學習閱讀，享受閱讀樂趣。A1/B1\n4-Ⅰ-1 認識常用國字至少 1,000 字，使用 700 字。A2/B1\n4-Ⅰ-4 養成良好的書寫姿勢，並保持整潔的書寫習慣。C1/A1\n4-Ⅰ-5  認識基本筆畫、筆順，掌握運筆原則，寫出正確及工整的國字。A3/B1\n5-Ⅰ-1 以適切的速率正確地朗讀文本。A2/B1\n5-Ⅰ-4 了解文本中的重要訊息與觀點。A1/B1\n6-I-2 透過閱讀及觀察，積累寫作材料。B1/A1\n6-I-4 使用仿寫、接寫等技巧寫作。A3/B1"},{"$f":"G20","v":"Aa-I-5 標注注音符號的各類文本。\nAb-I-1 1,000 個常用字的字形、字音和字義。\nAb-I-2 700 個常用字的使用。\nAb-I-3 常用字筆畫及部件的空間結構。\nAb-I-5 1,500 個常用語詞的認念。\nAb-I-6 1,000 個常用語詞的使用。\nAc-I-2 簡單的基本句型。\nAd-I-2 篇章的大意。\nAd-I-3 故事、童詩等。\nBa-I-1 順敘法。\nCa-I-1 各類文本中與日常生活相關的文化內涵。"},{"$f":"D20","v":"第1週"}]
[null,"國-E-B1\n國-E-A1",2,"第2週","A國語文","1-Ⅰ-1 養成專心聆聽的習慣，尊重對方的發言。C2/B1\n1-Ⅰ-3 能理解話語、詩歌、故事的訊息，有適切的表情跟肢體語言。C3/B1\n2-Ⅰ-1 以正確發音流利的說出語意完整的話。A1/B1\n2-Ⅰ-2 說出所聽聞的內容。A1/B1\n3-Ⅰ-2 運用注音符號輔助識字，也能利用國字鞏固注音符號的學習。C2/B1\n3-Ⅰ-4 利用注音讀物，學習閱讀，享受閱讀樂趣。A1/B1\n4-Ⅰ-1 認識常用國字至少 1,000 字，使用 700 字。A2/B1\n4-Ⅰ-4 養成良好的書寫姿勢，並保持整潔的書寫習慣。C1/A1\n4-Ⅰ-5  認識基本筆畫、筆順，掌握運筆原則，寫出正確及工整的國字。A3/B1\n5-Ⅰ-1 以適切的速率正確地朗讀文本。A2/B1\n◎5-Ⅰ-3 讀懂與學習階段相符的文本。A1/B1\n6-I-2 透過閱讀及觀察，積累寫作材料。B1/A1\n6-I-4 使用仿寫、接寫等技巧寫作。A3/B1","Aa-I-5 標注注音符號的各類文本。\nAb-I-1 1,000 個常用字的字形、字音和字義。\nAb-I-2 700 個常用字的使用。\nAb-I-3 常用字筆畫及部件的空間結構。\nAb-I-5 1,500 個常用語詞的認念。\nAb-I-6 1,000 個常用語詞的使用。\nAc-I-2 簡單的基本句型。\nAd-I-1 自然段。\nAd-I-2 篇章的大意。\nBa-I-1 順敘法。\nCa-I-1 各類文本中與日常生活相關的文化內涵。","第壹單元大自然教室\n第二課春雨是什麼顏色",6,null,"◎環境教育\n環E1參與戶外學習與自然體驗，覺知自然環的美、平衡、與完整性。\n◎戶外教育\n戶E6豐富自身與環境的互動經驗，培養對生活環境的覺知與敏感，體驗環境處處是美。","1.專心聆聽課文及同學們的發表。\n2.聆聽課文時，能聯想各個動物眼中的景色。\n3.先討論各個動物的居住環境，並引導學生發表為什麼動物對春雨的顏色有不同認知。\n4.應用注音符號，學習讀寫本課的新詞、生字。\n5.利用注音符號，寫出句子。\n6.注意寫字的姿勢、筆順、字的架構，工整的寫出生字。\n7.能認識「目」部的字。\n8.能分辨多音字「著」的讀音。\n9.能知道梅雨和春季的關聯。\n10.能對大自然的現象進行聯想。\n11.短語練習\n‧空中的彩虹。\n12.照樣照句\n(1)春雨是彩色的。\n(2)春雨是什麼顏色？","1.筆試\n2.口試\n4.實作\n5.作業","南一電子書",null,{"$f":"F21","v":"1-Ⅰ-1 養成專心聆聽的習慣，尊重對方的發言。C2/B1\n1-Ⅰ-3 能理解話語、詩歌、故事的訊息，有適切的表情跟肢體語言。C3/B1\n2-Ⅰ-1 以正確發音流利的說出語意完整的話。A1/B1\n2-Ⅰ-2 說出所聽聞的內容。A1/B1\n3-Ⅰ-2 運用注音符號輔助識字，也能利用國字鞏固注音符號的學習。C2/B1\n3-Ⅰ-4 利用注音讀物，學習閱讀，享受閱讀樂趣。A1/B1\n4-Ⅰ-1 認識常用國字至少 1,000 字，使用 700 字。A2/B1\n4-Ⅰ-4 養成良好的書寫姿勢，並保持整潔的書寫習慣。C1/A1\n4-Ⅰ-5  認識基本筆畫、筆順，掌握運筆原則，寫出正確及工整的國字。A3/B1\n5-Ⅰ-1 以適切的速率正確地朗讀文本。A2/B1\n◎5-Ⅰ-3 讀懂與學習階段相符的文本。A1/B1\n6-I-2 透過閱讀及觀察，積累寫作材料。B1/A1\n6-I-4 使用仿寫、接寫等技巧寫作。A3/B1"},{"$f":"G21","v":"Aa-I-5 標注注音符號的各類文本。\nAb-I-1 1,000 個常用字的字形、字音和字義。\nAb-I-2 700 個常用字的使用。\nAb-I-3 常用字筆畫及部件的空間結構。\nAb-I-5 1,500 個常用語詞的認念。\nAb-I-6 1,000 個常用語詞的使用。\nAc-I-2 簡單的基本句型。\nAd-I-1 自然段。\nAd-I-2 篇章的大意。\nBa-I-1 順敘法。\nCa-I-1 各類文本中與日常生活相關的文化內涵。"},{"$f":"D21","v":"第2週"}]
[null,"國-E-B1\n國-E-A1",3,"第3週","A國語文","1-Ⅰ-1 養成專心聆聽的習慣，尊重對方的發言。C2/B1\n1-Ⅰ-3 能理解話語、詩歌、故事的訊息，有適切的表情跟肢體語言。C3/B1\n2-Ⅰ-1 以正確發音流利的說出語意完整的話。A1/B1\n2-Ⅰ-2 說出所聽聞的內容。A1/B1\n3-Ⅰ-2 運用注音符號輔助識字，也能利用國字鞏固注音符號的學習。C2/B1\n3-Ⅰ-4 利用注音讀物，學習閱讀，享受閱讀樂趣。A1/B1\n4-Ⅰ-1 認識常用國字至少 1,000 字，使用 700 字。A2/B1\n4-Ⅰ-4 養成良好的書寫姿勢，並保持整潔的書寫習慣。C1/A1\n4-Ⅰ-5  認識基本筆畫、筆順，掌握運筆原則，寫出正確及工整的國字。A3/B1\n5-Ⅰ-1 以適切的速率正確地朗讀文本。A2/B1\n◎5-Ⅰ-3 讀懂與學習階段相符的文本。A1/B1\n6-I-2 透過閱讀及觀察，積累寫作材料。B1/A1\n6-I-4 使用仿寫、接寫等技巧寫作。A3/B1","Aa-I-5 標注注音符號的各類文本。\nAb-I-1 1,000 個常用字的字形、字音和字義。\nAb-I-2 700 個常用字的使用。\nAb-I-3 常用字筆畫及部件的空間結構。\nAb-I-5 1,500 個常用語詞的認念。\nAb-I-6 1,000 個常用語詞的使用。\nAc-I-2 簡單的基本句型。\nAd-I-2 篇章的大意。\nAd-I-3 故事、童詩等。\nBa-I-1 順敘法。\nCa-I-1 各類文本中與日常生活相關的文化內涵。","第壹單元大自然教室\n第三課山中音樂會",6,null,"◎環境教育\n環E1參與戶外學習與自然體驗，覺知自然環的美、平衡、與完整性。\n◎戶外教育\n戶E7參加學校校外教學活動，認識地方環境，如生態、環保、地質、文化等的戶外學習。","1.專心聆聽課文及同學們的發表。\n2.從師生共同討論中，能傾聽別人發表對山林的印象。\n3.從課文情境圖中，能說出「山」、「小鳥」、「雲」、「小河」等語詞。\n4.從課文內容中，引導學生說出山林中的景物，並用狀聲詞模擬不同景物的聲音。\n5.應用注音符號，學習讀寫本課的新詞、生字。\n6.利用注音符號，寫出句子。\n7.認識生字的字音、部首。\n8.能認識「土」部的字。\n9.能分辨多音字「樂」的讀音。\n10.能分辨形近字「入、人」。\n11.能從課文中想像山林中的場景。\n12.能連結摹聲詞和動物、景物間的關係。\n13.擴寫練習\n‧花朵↓山坡上的花朵↓山坡上的花朵很美麗。\n14.句型練習\n‧要……也要……","1.筆試\n2.口試\n4.實作\n5.作業","南一電子書",null,{"$f":"F22","v":"1-Ⅰ-1 養成專心聆聽的習慣，尊重對方的發言。C2/B1\n1-Ⅰ-3 能理解話語、詩歌、故事的訊息，有適切的表情跟肢體語言。C3/B1\n2-Ⅰ-1 以正確發音流利的說出語意完整的話。A1/B1\n2-Ⅰ-2 說出所聽聞的內容。A1/B1\n3-Ⅰ-2 運用注音符號輔助識字，也能利用國字鞏固注音符號的學習。C2/B1\n3-Ⅰ-4 利用注音讀物，學習閱讀，享受閱讀樂趣。A1/B1\n4-Ⅰ-1 認識常用國字至少 1,000 字，使用 700 字。A2/B1\n4-Ⅰ-4 養成良好的書寫姿勢，並保持整潔的書寫習慣。C1/A1\n4-Ⅰ-5  認識基本筆畫、筆順，掌握運筆原則，寫出正確及工整的國字。A3/B1\n5-Ⅰ-1 以適切的速率正確地朗讀文本。A2/B1\n◎5-Ⅰ-3 讀懂與學習階段相符的文本。A1/B1\n6-I-2 透過閱讀及觀察，積累寫作材料。B1/A1\n6-I-4 使用仿寫、接寫等技巧寫作。A3/B1"},"Aa-I-5 標注注音符號的各類文本。\nAb-I-1 1,000 個常用字的字形、字音和字義。\nAb-I-2 700 個常用字的使用。\nAb-I-3 常用字筆畫及部件的空間結構。\nAb-I-5 1,500 個常用語詞的認念。\nAb-I-6 1,000 個常用語詞的使用。\nAc-I-2 簡單的基本句型。\nAd-I-2 篇章的大意。\nAd-I-3 故事、童詩等。\nBa-I-1 順敘法。\nCa-I-1 各類文本中與日常生活相關的文化內涵。",{"$f":"D22","v":"第3週"}]
[null,"國-E-B1\n",4,"第4週","A國語文","語文\n2-Ⅰ-1 以正確發音流利的說出語意完整的話。A1/B1\n2-Ⅰ-2 說出所聽聞的內容。A1/B1\n4-Ⅰ-2 利用部件、部首或簡單造字原理，輔助識字。A2/B1\n4-Ⅰ-5  認識基本筆畫、筆順，掌握運筆原則，寫出正確及工整的國字。A3/B1\n5-Ⅰ-2 認識常用標點符號。C3/B1","Ab-I-1 1,000 個常用字的字形、字音和字義。\nAb-I-3 常用字筆畫及部件的空間結構。\nAc-I-1 常用標點符號。\nAc-I-2 簡單的基本句型。","語文天地一",6,null,"◎閱讀素養教育\n閱E1認識一般生活情境中需要使用的，以及學習學科知識基礎知識所應具備的字詞彙。","1.知道說話的要點。\n2.知道不同字形的寫字順序。\n3.認識句號和逗號。","1.筆試\n2.口試\n4.實作\n5.作業","南一電子書",null,"語文\n2-Ⅰ-1 以正確發音流利的說出語意完整的話。A1/B1\n2-Ⅰ-2 說出所聽聞的內容。A1/B1\n4-Ⅰ-2 利用部件、部首或簡單造字原理，輔助識字。A2/B1\n4-Ⅰ-5  認識基本筆畫、筆順，掌握運筆原則，寫出正確及工整的國字。A3/B1\n5-Ⅰ-2 認識常用標點符號。C3/B1","Ab-I-1 1,000 個常用字的字形、字音和字義。\nAb-I-3 常用字筆畫及部件的空間結構。\nAc-I-1 常用標點符號。\nAc-I-2 簡單的基本句型。","第4週"]
[null,"國-E-B1\n",5,"第5週","A國語文","1-Ⅰ-1 養成專心聆聽的習慣，尊重對方的發言。C2/B1\n1-Ⅰ-3 能理解話語、詩歌、故事的訊息，有適切的表情跟肢體語言。C3/B1\n2-Ⅰ-2 說出所聽聞的內容。A1/B1\n2-Ⅰ-3 與他人交談時，能適當的提問、合宜的回答，並分享想法。C2/B1\n3-Ⅰ-4 利用注音讀物，學習閱讀，享受閱讀樂趣。A1/B1\n5-Ⅰ-1 以適切的速率正確地朗讀文本。A2/B1\n5-Ⅰ-4 了解文本中的重要訊息與觀點。A1/B1\n5-Ⅰ-6 利用圖像、故事結構等策略，協助文本的理解與內容重述。A1/B1\n5-Ⅰ-7 運用簡單的預測、推論等策略，找出句子和段落明示的因果關係，理解文本內容。A1/B1","Aa-I-5 標注注音符號的各類文本。\nAd-I-2 篇章的大意。\nAd-I-3 故事、童詩等。\nBb-I-3 對物或自然的感受。\nCa-I-1 各類文本中與日常生活相關的文化內涵。","閱讀列車〈雷公公愛拍照〉",6,null,"◎環境教育\n環E1參加戶外學習與自然體驗，覺知自然環境的美、平衡與完整性。\n◎閱讀素養教育\n閱E3熟悉與學科學習相關的文本閱讀策略。\n閱E14喜歡與他人討論、分享自己閱讀的文本。","1.閱讀有趣的童詩，提升聯想能力。\n2.說話的要點。\n3.寫字的順序。\n4.認識標點符號。","1.筆試\n2.口試\n4.實作\n5.作業","南一電子書",null,"1-Ⅰ-1 養成專心聆聽的習慣，尊重對方的發言。C2/B1\n1-Ⅰ-3 能理解話語、詩歌、故事的訊息，有適切的表情跟肢體語言。C3/B1\n2-Ⅰ-2 說出所聽聞的內容。A1/B1\n2-Ⅰ-3 與他人交談時，能適當的提問、合宜的回答，並分享想法。C2/B1\n3-Ⅰ-4 利用注音讀物，學習閱讀，享受閱讀樂趣。A1/B1\n5-Ⅰ-1 以適切的速率正確地朗讀文本。A2/B1\n5-Ⅰ-4 了解文本中的重要訊息與觀點。A1/B1\n5-Ⅰ-6 利用圖像、故事結構等策略，協助文本的理解與內容重述。A1/B1\n5-Ⅰ-7 運用簡單的預測、推論等策略，找出句子和段落明示的因果關係，理解文本內容。A1/B1","Aa-I-5 標注注音符號的各類文本。\nAd-I-2 篇章的大意。\nAd-I-3 故事、童詩等。\nBb-I-3 對物或自然的感受。\nCa-I-1 各類文本中與日常生活相關的文化內涵。","第5週"]
[null,"國-E-B1\n國-E-A1",6,"第6週","A國語文","1-Ⅰ-1 養成專心聆聽的習慣，尊重對方的發言。C2/B1\n1-Ⅰ-3 能理解話語、詩歌、故事的訊息，有適切的表情跟肢體語言。C3/B1\n2-Ⅰ-1 以正確發音流利的說出語意完整的話。A1/B1\n2-Ⅰ-2 說出所聽聞的內容。A1/B1\n3-Ⅰ-2 運用注音符號輔助識字，也能利用國字鞏固注音符號的學習。C2/B1\n3-Ⅰ-4 利用注音讀物，學習閱讀，享受閱讀樂趣。A1/B1\n4-Ⅰ-1 認識常用國字至少 1,000 字，使用 700 字。A2/B1\n4-Ⅰ-4 養成良好的書寫姿勢，並保持整潔的書寫習慣。C1/A1\n4-Ⅰ-5  認識基本筆畫、筆順，掌握運筆原則，寫出正確及工整的國字。A3/B1\n5-Ⅰ-1 以適切的速率正確地朗讀文本。A2/B1\n◎5-Ⅰ-3 讀懂與學習階段相符的文本。A1/B1\n6-I-2 透過閱讀及觀察，積累寫作材料。B1/A1\n6-I-4 使用仿寫、接寫等技巧寫作。A3/B1","Aa-I-5 標注注音符號的各類文本。\nAb-I-1 1,000 個常用字的字形、字音和字義。\nAb-I-2 700 個常用字的使用。\nAb-I-3 常用字筆畫及部件的空間結構。\nAb-I-5 1,500 個常用語詞的認念。\nAb-I-6 1,000 個常用語詞的使用。\nAc-I-2 簡單的基本句型。\nAd-I-2 篇章的大意。\nAd-I-3 故事、童詩等。\nBa-I-1 順敘法。\nCa-I-1 各類文本中與日常生活相關的文化內涵。","第貳單元我們一起玩\n第四課書是我的好朋友",6,null,"◎生涯規畫教育\n涯E4認識自己的特質與興趣。\n◎閱讀素養教育\n閱E12培養喜愛閱讀的態度。\n閱E14喜歡與他人討論、分享自己閱讀的文本。","1.專心聆聽課文及同學的發表。\n2.從師生共同討論中，能說出及傾聽別人發表閱讀的經驗。\n3.從課文情境圖中，能說出「打開」、「書」、「恐龍」、「海豚」、「歡樂」等語詞。\n4.從課文內容中，引導學生說出閱讀書本的經驗和感想。\n5.應用注音符號，學習讀寫本課的新詞、生字。\n6.利用注音符號，寫出句子。\n7.認識生字的字音、部首。\n8.能認識「手」部的字。\n9.能分辨形近字「我、找」、「次、歡」。\n10.能了解書籍帶給人知識和無窮的想像。\n11.能主動閱讀課外書籍。\n12.短語練習\n‧找歡樂\n13.照樣造句\n(1)恐龍陪我去冒險。\n(2)打開書，海豚跳出來。","1.筆試\n2.口試\n4.實作\n5.作業","南一電子書",null,"1-Ⅰ-1 養成專心聆聽的習慣，尊重對方的發言。C2/B1\n1-Ⅰ-3 能理解話語、詩歌、故事的訊息，有適切的表情跟肢體語言。C3/B1\n2-Ⅰ-1 以正確發音流利的說出語意完整的話。A1/B1\n2-Ⅰ-2 說出所聽聞的內容。A1/B1\n3-Ⅰ-2 運用注音符號輔助識字，也能利用國字鞏固注音符號的學習。C2/B1\n3-Ⅰ-4 利用注音讀物，學習閱讀，享受閱讀樂趣。A1/B1\n4-Ⅰ-1 認識常用國字至少 1,000 字，使用 700 字。A2/B1\n4-Ⅰ-4 養成良好的書寫姿勢，並保持整潔的書寫習慣。C1/A1\n4-Ⅰ-5  認識基本筆畫、筆順，掌握運筆原則，寫出正確及工整的國字。A3/B1\n5-Ⅰ-1 以適切的速率正確地朗讀文本。A2/B1\n◎5-Ⅰ-3 讀懂與學習階段相符的文本。A1/B1\n6-I-2 透過閱讀及觀察，積累寫作材料。B1/A1\n6-I-4 使用仿寫、接寫等技巧寫作。A3/B1","Aa-I-5 標注注音符號的各類文本。\nAb-I-1 1,000 個常用字的字形、字音和字義。\nAb-I-2 700 個常用字的使用。\nAb-I-3 常用字筆畫及部件的空間結構。\nAb-I-5 1,500 個常用語詞的認念。\nAb-I-6 1,000 個常用語詞的使用。\nAc-I-2 簡單的基本句型。\nAd-I-2 篇章的大意。\nAd-I-3 故事、童詩等。\nBa-I-1 順敘法。\nCa-I-1 各類文本中與日常生活相關的文化內涵。","第6週"]
[null,"國-E-B1\n國-E-A1",7,"第7週","A國語文","1-Ⅰ-1 養成專心聆聽的習慣，尊重對方的發言。C2/B1\n1-Ⅰ-2 能學習聆聽不同的媒材，說出聆聽的內容。C2/B1\n2-Ⅰ-1 以正確發音流利的說出語意完整的話。A1/B1\n2-Ⅰ-2 說出所聽聞的內容。A1/B1\n3-Ⅰ-2 運用注音符號輔助識字，也能利用國字鞏固注音符號的學習。C2/B1\n3-Ⅰ-4 利用注音讀物，學習閱讀，享受閱讀樂趣。A1/B1\n4-Ⅰ-1 認識常用國字至少 1,000 字，使用 700 字。A2/B1\n4-Ⅰ-4 養成良好的書寫姿勢，並保持整潔的書寫習慣。C1/A1\n4-Ⅰ-5  認識基本筆畫、筆順，掌握運筆原則，寫出正確及工整的國字。A3/B1\n5-Ⅰ-1 以適切的速率正確地朗讀文本。A2/B1\n◎5-Ⅰ-3 讀懂與學習階段相符的文本。A1/B1\n6-I-2 透過閱讀及觀察，積累寫作材料。B1/A1\n6-I-4 使用仿寫、接寫等技巧寫作。A3/B1","Aa-I-5 標注注音符號的各類文本。\nAb-I-1 1,000 個常用字的字形、字音和字義。\nAb-I-2 700 個常用字的使用。\nAb-I-3 常用字筆畫及部件的空間結構。\nAb-I-5 1,500 個常用語詞的認念。\nAb-I-6 1,000 個常用語詞的使用。\nAc-I-2 簡單的基本句型。\nAd-I-1 自然段。\nAd-I-2 篇章的大意。\nBa-I-1 順敘法。\nCa-I-1 各類文本中與日常生活相關的文化內涵。","第貳單元我們一起玩\n第五課風喜歡和我玩",6,null,"◎環境教育\n環E1參與戶外學習與自然體驗，覺知自然環境的美、平衡、與完整性。\n◎能源教育\n能E3認識能源的種類與形式。\n◎安全教育\n安E4探討日常生活應該注意的安全。","1.專心聆聽課文及同學們的發表。\n2.從師生共同討論中，能傾聽別人發表對風的感受。\n3.從課文情境圖中，能說出「風來了」、「草地」、「氣球」、「樹上」等語詞。\n4.從課文內容中，引導學生說出觀察風的經驗，描述當時看見的情景。\n5.應用注音符號，學習讀寫本課的新詞、生字。\n6.利用注音符號，寫出句子。\n7.認識生字的字音、部首。\n8.能認識「木」部的字。\n9.能從課文內容中了解風力強弱的變化。\n10.能感受主角的心情變化。\n11.利用本課生字練習造詞。\n12.照樣造句\n(1)風輕輕吹。\n(2)風「  ㄒㄧㄡ 」的笑著。\n13.句型練習\n‧……可是……\n14.造句練習\n‧突然","1.筆試\n2.口試\n4.實作\n5.作業","南一電子書",null,"1-Ⅰ-1 養成專心聆聽的習慣，尊重對方的發言。C2/B1\n1-Ⅰ-2 能學習聆聽不同的媒材，說出聆聽的內容。C2/B1\n2-Ⅰ-1 以正確發音流利的說出語意完整的話。A1/B1\n2-Ⅰ-2 說出所聽聞的內容。A1/B1\n3-Ⅰ-2 運用注音符號輔助識字，也能利用國字鞏固注音符號的學習。C2/B1\n3-Ⅰ-4 利用注音讀物，學習閱讀，享受閱讀樂趣。A1/B1\n4-Ⅰ-1 認識常用國字至少 1,000 字，使用 700 字。A2/B1\n4-Ⅰ-4 養成良好的書寫姿勢，並保持整潔的書寫習慣。C1/A1\n4-Ⅰ-5  認識基本筆畫、筆順，掌握運筆原則，寫出正確及工整的國字。A3/B1\n5-Ⅰ-1 以適切的速率正確地朗讀文本。A2/B1\n◎5-Ⅰ-3 讀懂與學習階段相符的文本。A1/B1\n6-I-2 透過閱讀及觀察，積累寫作材料。B1/A1\n6-I-4 使用仿寫、接寫等技巧寫作。A3/B1","Aa-I-5 標注注音符號的各類文本。\nAb-I-1 1,000 個常用字的字形、字音和字義。\nAb-I-2 700 個常用字的使用。\nAb-I-3 常用字筆畫及部件的空間結構。\nAb-I-5 1,500 個常用語詞的認念。\nAb-I-6 1,000 個常用語詞的使用。\nAc-I-2 簡單的基本句型。\nAd-I-1 自然段。\nAd-I-2 篇章的大意。\nBa-I-1 順敘法。\nCa-I-1 各類文本中與日常生活相關的文化內涵。","第7週"]
[null,"國-E-B1\n國-E-A1",8,"第8週","A國語文","1-Ⅰ-1 養成專心聆聽的習慣，尊重對方的發言。C2/B1\n1-Ⅰ-3 能理解話語、詩歌、故事的訊息，有適切的表情跟肢體語言。C3/B1\n2-Ⅰ-1 以正確發音流利的說出語意完整的話。A1/B1\n2-Ⅰ-2 說出所聽聞的內容。A1/B1\n3-Ⅰ-2 運用注音符號輔助識字，也能利用國字鞏固注音符號的學習。C2/B1\n3-Ⅰ-4 利用注音讀物，學習閱讀，享受閱讀樂趣。A1/B1\n4-Ⅰ-1 認識常用國字至少 1,000 字，使用 700 字。A2/B1\n4-Ⅰ-4 養成良好的書寫姿勢，並保持整潔的書寫習慣。C1/A1\n4-Ⅰ-5  認識基本筆畫、筆順，掌握運筆原則，寫出正確及工整的國字。A3/B1\n5-Ⅰ-1 以適切的速率正確地朗讀文本。A2/B1\n◎5-Ⅰ-3 讀懂與學習階段相符的文本。A1/B1\n6-I-2 透過閱讀及觀察，積累寫作材料。B1/A1\n6-I-4 使用仿寫、接寫等技巧寫作。A3/B1","Aa-I-5 標注注音符號的各類文本。\nAb-I-1 1,000 個常用字的字形、字音和字義。\nAb-I-2 700 個常用字的使用。\nAb-I-3 常用字筆畫及部件的空間結構。\nAb-I-5 1,500 個常用語詞的認念。\nAb-I-6 1,000 個常用語詞的使用。\nAc-I-2 簡單的基本句型。\nAd-I-2 篇章的大意。\nAd-I-3 故事、童詩等。\nBa-I-1 順敘法。\nCa-I-1 各類文本中與日常生活相關的文化內涵。","第貳單元我們一起玩\n第六課鄰居的小孩",6,null,"◎品德教育\n品E3溝通合作與和諧人際關係。\n◎生涯規畫教育\n涯E7培養良好的人際互動能力。","1.專心聆聽課文及同學們的發表。\n2.從師生共同討論中，能傾聽別人發表與鄰居互動的情形。\n3.從課文情境圖中，能說出「鄰居」、「小孩」、「發現」等語詞。\n4.藉由聆聽師生間的討論，能說出自己交朋的經驗。\n5.應用注音符號，學習讀寫本課的新詞、生字。\n6.利用注音符號，寫出句子。\n7.認識生字的字音、部首。\n8.能認識「心」部的字。\n9.能分辨同音字「道、到」。\n10.能分辨形近字「和、知」。\n11.能分辨「先」、「後」的用法。\n12.能從課文內容中，思考交友的方法。\n13.短語練習\n(1)躲在大門後\n(2)頭縮回去\n14.照樣造句\n‧我好想和他一起玩。\n15.句型練習\n(1)一……就……\n(2)……但是……","1.筆試\n2.口試\n4.實作\n5.作業","南一電子書",null,"1-Ⅰ-1 養成專心聆聽的習慣，尊重對方的發言。C2/B1\n1-Ⅰ-3 能理解話語、詩歌、故事的訊息，有適切的表情跟肢體語言。C3/B1\n2-Ⅰ-1 以正確發音流利的說出語意完整的話。A1/B1\n2-Ⅰ-2 說出所聽聞的內容。A1/B1\n3-Ⅰ-2 運用注音符號輔助識字，也能利用國字鞏固注音符號的學習。C2/B1\n3-Ⅰ-4 利用注音讀物，學習閱讀，享受閱讀樂趣。A1/B1\n4-Ⅰ-1 認識常用國字至少 1,000 字，使用 700 字。A2/B1\n4-Ⅰ-4 養成良好的書寫姿勢，並保持整潔的書寫習慣。C1/A1\n4-Ⅰ-5  認識基本筆畫、筆順，掌握運筆原則，寫出正確及工整的國字。A3/B1\n5-Ⅰ-1 以適切的速率正確地朗讀文本。A2/B1\n◎5-Ⅰ-3 讀懂與學習階段相符的文本。A1/B1\n6-I-2 透過閱讀及觀察，積累寫作材料。B1/A1\n6-I-4 使用仿寫、接寫等技巧寫作。A3/B1","Aa-I-5 標注注音符號的各類文本。\nAb-I-1 1,000 個常用字的字形、字音和字義。\nAb-I-2 700 個常用字的使用。\nAb-I-3 常用字筆畫及部件的空間結構。\nAb-I-5 1,500 個常用語詞的認念。\nAb-I-6 1,000 個常用語詞的使用。\nAc-I-2 簡單的基本句型。\nAd-I-2 篇章的大意。\nAd-I-3 故事、童詩等。\nBa-I-1 順敘法。\nCa-I-1 各類文本中與日常生活相關的文化內涵。","第8週"]
[null,"國-E-B1\n國-E-A1",9,"第9週","A國語文","4-Ⅰ-1 認識常用國字至少 1,000 字，使用 700 字。A2/B1\n5-Ⅰ-8 認識圖書館(室)的功能。C1/B2\n5-Ⅰ-9 喜愛閱讀，並樂於與他人分享閱讀心得。C2/A1","Ab-I-2 700 個常用字的使用。\nAb-I-6 1,000 個常用語詞的使用。\nAc-I-2 簡單的基本句型。\nAc-I-3 基本文句的語氣與意義。","語文天地二",6,null,"◎閱讀素養教育\n閱E1認識一般生活情境中需要使用的，以及學習學科知識基礎知識所應具備的字詞彙。","1.認識有動作的字。\n2.認識語詞。\n3.利用圖書館的方法。","1.筆試\n2.口試\n4.實作\n5.作業","南一電子書",null,"4-Ⅰ-1 認識常用國字至少 1,000 字，使用 700 字。A2/B1\n5-Ⅰ-8 認識圖書館(室)的功能。C1/B2\n5-Ⅰ-9 喜愛閱讀，並樂於與他人分享閱讀心得。C2/A1","Ab-I-2 700 個常用字的使用。\nAb-I-6 1,000 個常用語詞的使用。\nAc-I-2 簡單的基本句型。\nAc-I-3 基本文句的語氣與意義。","第9週"]
[null,"國-E-B1\n國-E-A1",10,"第10週","A國語文","1-Ⅰ-1 養成專心聆聽的習慣，尊重對方的發言。C2/B1\n1-Ⅰ-3 能理解話語、詩歌、故事的訊息，有適切的表情跟肢體語言。C3/B1\n2-Ⅰ-2 說出所聽聞的內容。A1/B1\n2-Ⅰ-3 與他人交談時，能適當的提問、合宜的回答，並分享想法。C2/B1\n3-Ⅰ-4 利用注音讀物，學習閱讀，享受閱讀樂趣。A1/B1\n5-Ⅰ-4 了解文本中的重要訊息與觀點。A1/B1\n5-Ⅰ-6 利用圖像、故事結構等策略，協助文本的理解與內容重述。A1/B1\n5-Ⅰ-7 運用簡單的預測、推論等策略，找出句子和段落明示的因果關係，理解文本內容。A1/B1","Aa-I-5 標注注音符號的各類文本。\nAd-I-1 自然段。\nAd-I-2 篇章的大意。\nAd-I-3 故事、童詩等。\nBa-I-1 順敘法。\nCa-I-1 各類文本中與日常生活相關的文化內涵。","閱讀列車〈長頸鹿的新衣〉",6,null,"◎人權教育\n人E5欣賞、包容個別差異並尊重自己與他人的權利。\n◎閱讀素養教育\n閱E3熟悉與學科學習相關的文本閱讀策略。\n◎海洋教育\n海E1喜歡親水活動，重視水域安全。\n◎品德教育\n品E3溝通合作與和諧人際關係。\n◎生涯規劃教育\n涯E7培養良好的人際互動能力。","1.從故事中體會友誼的珍貴，並學會在他人難過時給予關懷。\n2.認識代表動作的字。\n3.認識詞語。\n4.利用圖書館的方法。","1.筆試\n2.口試\n4.實作\n5.作業","南一電子書",null,"1-Ⅰ-1 養成專心聆聽的習慣，尊重對方的發言。C2/B1\n1-Ⅰ-3 能理解話語、詩歌、故事的訊息，有適切的表情跟肢體語言。C3/B1\n2-Ⅰ-2 說出所聽聞的內容。A1/B1\n2-Ⅰ-3 與他人交談時，能適當的提問、合宜的回答，並分享想法。C2/B1\n3-Ⅰ-4 利用注音讀物，學習閱讀，享受閱讀樂趣。A1/B1\n5-Ⅰ-4 了解文本中的重要訊息與觀點。A1/B1\n5-Ⅰ-6 利用圖像、故事結構等策略，協助文本的理解與內容重述。A1/B1\n5-Ⅰ-7 運用簡單的預測、推論等策略，找出句子和段落明示的因果關係，理解文本內容。A1/B1","Aa-I-5 標注注音符號的各類文本。\nAd-I-1 自然段。\nAd-I-2 篇章的大意。\nAd-I-3 故事、童詩等。\nBa-I-1 順敘法。\nCa-I-1 各類文本中與日常生活相關的文化內涵。","第10週"]
[null,"國-E-B1\n國-E-A1",11,"第11週","A國語文","1-Ⅰ-1 養成專心聆聽的習慣，尊重對方的發言。C2/B1\n1-Ⅰ-3 能理解話語、詩歌、故事的訊息，有適切的表情跟肢體語言。C3/B1\n2-Ⅰ-1 以正確發音流利的說出語意完整的話。A1/B1\n2-Ⅰ-2 說出所聽聞的內容。A1/B1\n3-Ⅰ-2 運用注音符號輔助識字，也能利用國字鞏固注音符號的學習。C2/B1\n3-Ⅰ-4 利用注音讀物，學習閱讀，享受閱讀樂趣。A1/B1\n4-Ⅰ-1 認識常用國字至少 1,000 字，使用 700 字。A2/B1\n4-Ⅰ-4 養成良好的書寫姿勢，並保持整潔的書寫習慣。C1/A1\n4-Ⅰ-5  認識基本筆畫、筆順，掌握運筆原則，寫出正確及工整的國字。A3/B1\n5-Ⅰ-1 以適切的速率正確地朗讀文本。A2/B1\n◎5-Ⅰ-3 讀懂與學習階段相符的文本。A1/B1\n6-I-2 透過閱讀及觀察，積累寫作材料。B1/A1\n6-I-4 使用仿寫、接寫等技巧寫作。A3/B1","Aa-I-5 標注注音符號的各類文本。\nAb-I-1 1,000 個常用字的字形、字音和字義。\nAb-I-2 700 個常用字的使用。\nAb-I-3 常用字筆畫及部件的空間結構。\nAb-I-5 1,500 個常用語詞的認念。\nAb-I-6 1,000 個常用語詞的使用。\nAc-I-2 簡單的基本句型。\nAd-I-3 故事、童詩等。\nBa-I-1 順敘法。\nCa-I-1 各類文本中與日常生活相關的文化內涵。","第參單元有你真好\n第七課畫畫",6,null,"◎科技教育\n科E2了解動手實作的重要性。\n◎家庭教育\n家E6關心及愛護家庭成員。\n◎生涯規畫教育\n涯E2認識不同的生活角色。\n◎品德教育\n品E2孝悌仁愛。\n品E6欣賞感恩。","1.從師生共同討論中，能對送東西給他人的感受與期待。\n2.從課文內容中，引導學生說出送人東西應注意的禮貌。\n3.應用注音符號，學習讀寫本課的新詞、生字。\n4.利用注音符號，寫出句子。\n5.認識生字的字音、部首。\n6.能認識「水」部的字。\n7.能分辨多音字「還」、「漂」。\n8.能認識單位量詞。\n9.能從課文中感受到家人、師生、朋友間的情誼。\n10.能知道「贈予」是件快樂的事。\n11.短語練習\n(1)一張可愛的笑臉\n(2)寫下感謝的話\n12.照樣造句\n‧我愛畫畫。\n13.句型練習\n‧練習「感嘆句」。","1.筆試\n2.口試\n4.實作\n5.作業","南一電子書",null,"1-Ⅰ-1 養成專心聆聽的習慣，尊重對方的發言。C2/B1\n1-Ⅰ-3 能理解話語、詩歌、故事的訊息，有適切的表情跟肢體語言。C3/B1\n2-Ⅰ-1 以正確發音流利的說出語意完整的話。A1/B1\n2-Ⅰ-2 說出所聽聞的內容。A1/B1\n3-Ⅰ-2 運用注音符號輔助識字，也能利用國字鞏固注音符號的學習。C2/B1\n3-Ⅰ-4 利用注音讀物，學習閱讀，享受閱讀樂趣。A1/B1\n4-Ⅰ-1 認識常用國字至少 1,000 字，使用 700 字。A2/B1\n4-Ⅰ-4 養成良好的書寫姿勢，並保持整潔的書寫習慣。C1/A1\n4-Ⅰ-5  認識基本筆畫、筆順，掌握運筆原則，寫出正確及工整的國字。A3/B1\n5-Ⅰ-1 以適切的速率正確地朗讀文本。A2/B1\n◎5-Ⅰ-3 讀懂與學習階段相符的文本。A1/B1\n6-I-2 透過閱讀及觀察，積累寫作材料。B1/A1\n6-I-4 使用仿寫、接寫等技巧寫作。A3/B1","Aa-I-5 標注注音符號的各類文本。\nAb-I-1 1,000 個常用字的字形、字音和字義。\nAb-I-2 700 個常用字的使用。\nAb-I-3 常用字筆畫及部件的空間結構。\nAb-I-5 1,500 個常用語詞的認念。\nAb-I-6 1,000 個常用語詞的使用。\nAc-I-2 簡單的基本句型。\nAd-I-3 故事、童詩等。\nBa-I-1 順敘法。\nCa-I-1 各類文本中與日常生活相關的文化內涵。","第11週"]
[null,"國-E-B1\n國-E-A1",12,"第12週","A國語文","1-Ⅰ-1 養成專心聆聽的習慣，尊重對方的發言。C2/B1\n1-Ⅰ-3 能理解話語、詩歌、故事的訊息，有適切的表情跟肢體語言。C3/B1\n2-Ⅰ-1 以正確發音流利的說出語意完整的話。A1/B1\n2-Ⅰ-2 說出所聽聞的內容。A1/B1\n3-Ⅰ-2 運用注音符號輔助識字，也能利用國字鞏固注音符號的學習。C2/B1\n3-Ⅰ-4 利用注音讀物，學習閱讀，享受閱讀樂趣。A1/B1\n4-Ⅰ-1 認識常用國字至少 1,000 字，使用 700 字。A2/B1\n4-Ⅰ-4 養成良好的書寫姿勢，並保持整潔的書寫習慣。C1/A1\n4-Ⅰ-5  認識基本筆畫、筆順，掌握運筆原則，寫出正確及工整的國字。A3/B1\n5-Ⅰ-1 以適切的速率正確地朗讀文本。A2/B1\n◎5-Ⅰ-3 讀懂與學習階段相符的文本。A1/B1\n6-I-2 透過閱讀及觀察，積累寫作材料。B1/A1\n6-I-4 使用仿寫、接寫等技巧寫作。A3/B1","Ab-I-1 1,000 個常用字的字形、字音和字義。\nAb-I-2 700 個常用字的使用。\nAb-I-3 常用字筆畫及部件的空間結構。\nAb-I-5 1,500 個常用語詞的認念。\nAb-I-6 1,000 個常用語詞的使用。\nAc-I-2 簡單的基本句型。\nAd-I-1 自然段。\nAd-I-2 篇章的大意。\nBa-I-1 順敘法。\nBe-I-2 在人際溝通方面，以書信、卡片等慣用語彙及書寫格式為主。\nCa-I-1 各類文本中與日常生活相關的文化內涵。","第參單元有你真好\n第八課給松鼠的卡片",6,null,"◎環境教育\n環E2覺知生物生命的美與價值，關懷動、植物的生命。\n◎品德教育\n品E6欣賞感恩。\n◎科技教育\n科E4體會動手實作的樂趣，並養成正向的科技態度。","1.專心聆聽課文及同學們的發表。\n2.從課文情境圖中，能說出「卡片」、「秋天」、「松鼠」、「果子」等語詞。\n3.從課文內容中，引導學生說出松鼠的外型或特徵。\n4.應用注音符號，學習讀寫本課的新詞、生字。\n5.利用注音符號，寫出句子。\n6.注意寫字的姿勢、筆順、字的架構，工整的寫出生字。\n7.能認識「口」部的字。\n8.能分辨多音字「長」。\n9.能分辨形近字「很、跟」。\n10.能藉由課文傳達的理念，適時表達感恩的心。\n11.短語練習\n‧吃得飽飽的悠好高興啊\n12.照樣造句\n‧松鼠在樹上跳來跳去，忙著採果子。\n13.句型練習\n‧……然後……","1.筆試\n2.口試\n4.實作\n5.作業","南一電子書",null,"1-Ⅰ-1 養成專心聆聽的習慣，尊重對方的發言。C2/B1\n1-Ⅰ-3 能理解話語、詩歌、故事的訊息，有適切的表情跟肢體語言。C3/B1\n2-Ⅰ-1 以正確發音流利的說出語意完整的話。A1/B1\n2-Ⅰ-2 說出所聽聞的內容。A1/B1\n3-Ⅰ-2 運用注音符號輔助識字，也能利用國字鞏固注音符號的學習。C2/B1\n3-Ⅰ-4 利用注音讀物，學習閱讀，享受閱讀樂趣。A1/B1\n4-Ⅰ-1 認識常用國字至少 1,000 字，使用 700 字。A2/B1\n4-Ⅰ-4 養成良好的書寫姿勢，並保持整潔的書寫習慣。C1/A1\n4-Ⅰ-5  認識基本筆畫、筆順，掌握運筆原則，寫出正確及工整的國字。A3/B1\n5-Ⅰ-1 以適切的速率正確地朗讀文本。A2/B1\n◎5-Ⅰ-3 讀懂與學習階段相符的文本。A1/B1\n6-I-2 透過閱讀及觀察，積累寫作材料。B1/A1\n6-I-4 使用仿寫、接寫等技巧寫作。A3/B1","Ab-I-1 1,000 個常用字的字形、字音和字義。\nAb-I-2 700 個常用字的使用。\nAb-I-3 常用字筆畫及部件的空間結構。\nAb-I-5 1,500 個常用語詞的認念。\nAb-I-6 1,000 個常用語詞的使用。\nAc-I-2 簡單的基本句型。\nAd-I-1 自然段。\nAd-I-2 篇章的大意。\nBa-I-1 順敘法。\nBe-I-2 在人際溝通方面，以書信、卡片等慣用語彙及書寫格式為主。\nCa-I-1 各類文本中與日常生活相關的文化內涵。","第12週"]
[null,"國-E-B1\n國-E-A1",13,"第13週","A國語文","1-Ⅰ-1 養成專心聆聽的習慣，尊重對方的發言。C2/B1\n1-Ⅰ-3 能理解話語、詩歌、故事的訊息，有適切的表情跟肢體語言。C3/B1\n2-Ⅰ-1 以正確發音流利的說出語意完整的話。A1/B1\n2-Ⅰ-2 說出所聽聞的內容。A1/B1\n3-Ⅰ-2 運用注音符號輔助識字，也能利用國字鞏固注音符號的學習。C2/B1\n3-Ⅰ-4 利用注音讀物，學習閱讀，享受閱讀樂趣。A1/B1\n4-Ⅰ-1 認識常用國字至少 1,000 字，使用 700 字。A2/B1\n4-Ⅰ-4 養成良好的書寫姿勢，並保持整潔的書寫習慣。C1/A1\n4-Ⅰ-5  認識基本筆畫、筆順，掌握運筆原則，寫出正確及工整的國字。A3/B1\n5-Ⅰ-1 以適切的速率正確地朗讀文本。A2/B1\n◎5-Ⅰ-3 讀懂與學習階段相符的文本。A1/B1\n6-I-2 透過閱讀及觀察，積累寫作材料。B1/A1\n6-I-4 使用仿寫、接寫等技巧寫作。A3/B1","Aa-I-5 標注注音符號的各類文本。\nAb-I-1 1,000 個常用字的字形、字音和字義。\nAb-I-2 700 個常用字的使用。\nAb-I-3 常用字筆畫及部件的空間結構。\nAb-I-5 1,500 個常用語詞的認念。\nAb-I-6 1,000 個常用語詞的使用。\nAc-I-2 簡單的基本句型。\nAd-I-1 自然段。\nAd-I-2 篇章的大意。\nBa-I-1 順敘法。\nCa-I-1 各類文本中與日常生活相關的文化內涵。","第參單元有你真好\n第九課張奶奶的寶貝",6,null,"◎品德教育\n品E1良好生活習慣與德行。\n品E6欣賞感恩。\n◎戶外教育\n戶E1學生參與校園的環境服務、處室的服務。","1.專心聆聽課文及同學的發表。\n2.從教師的說明中，能了解「志工」是什麼。\n3.從課文情境圖中，能說出「校園」、「奶奶」等語詞。\n4.從師生間的討論中，能說出張奶奶聽到感謝語後的反應。\n5.應用注音符號，學習讀寫本課的新詞、生字。\n6.利用注音符號，寫出句子。\n7.注意寫字的姿勢、筆順、字的架構，工整的寫出生字。\n8.能認識「女」部的字。\n9.能分辨多音字「當」。\n10.能分辨形近字「早、草」。\n11.藉由課文，了解社會上有各種志工。\n12.能了解作者也要「把花草當成寶貝」的用意。\n13.短語練習\n‧在花園裡工作。\n14.照樣造句\n‧學校的花開得好漂亮。\n15.句型練習\n(1)一……就……\n(2)一邊……一邊……","1.筆試\n2.口試\n4.實作\n5.作業","南一電子書",null,"1-Ⅰ-1 養成專心聆聽的習慣，尊重對方的發言。C2/B1\n1-Ⅰ-3 能理解話語、詩歌、故事的訊息，有適切的表情跟肢體語言。C3/B1\n2-Ⅰ-1 以正確發音流利的說出語意完整的話。A1/B1\n2-Ⅰ-2 說出所聽聞的內容。A1/B1\n3-Ⅰ-2 運用注音符號輔助識字，也能利用國字鞏固注音符號的學習。C2/B1\n3-Ⅰ-4 利用注音讀物，學習閱讀，享受閱讀樂趣。A1/B1\n4-Ⅰ-1 認識常用國字至少 1,000 字，使用 700 字。A2/B1\n4-Ⅰ-4 養成良好的書寫姿勢，並保持整潔的書寫習慣。C1/A1\n4-Ⅰ-5  認識基本筆畫、筆順，掌握運筆原則，寫出正確及工整的國字。A3/B1\n5-Ⅰ-1 以適切的速率正確地朗讀文本。A2/B1\n◎5-Ⅰ-3 讀懂與學習階段相符的文本。A1/B1\n6-I-2 透過閱讀及觀察，積累寫作材料。B1/A1\n6-I-4 使用仿寫、接寫等技巧寫作。A3/B1","Aa-I-5 標注注音符號的各類文本。\nAb-I-1 1,000 個常用字的字形、字音和字義。\nAb-I-2 700 個常用字的使用。\nAb-I-3 常用字筆畫及部件的空間結構。\nAb-I-5 1,500 個常用語詞的認念。\nAb-I-6 1,000 個常用語詞的使用。\nAc-I-2 簡單的基本句型。\nAd-I-1 自然段。\nAd-I-2 篇章的大意。\nBa-I-1 順敘法。\nCa-I-1 各類文本中與日常生活相關的文化內涵。","第13週"]
[null,"國-E-B1\n國-E-A1",14,"第14週","A國語文","4-Ⅰ-1 認識常用國字至少 1,000 字，使用 700 字。A2/B1\n◎5-Ⅰ-3 讀懂與學習階段相符的文本。A1/B1\n5-Ⅰ-4 了解文本中的重要訊息與觀點。A1/B1\n5-Ⅰ-5 認識簡易的記敘、抒情及應用文本的特徵。A1/B1\n6-I-6 培養寫作的興趣。C1/A1","Ab-I-2 700 個常用字的使用。\nAb-I-6 1,000 個常用語詞的使用。\nAc-I-2 簡單的基本句型。\nBb-I-1 自我情感的表達。\nBe-I-2 在人際溝通方面，以書信、卡片等慣用語彙及書寫格式為主。","語文天地三",6,null,"◎閱讀素養教育\n閱E1認識一般生活情境中需要使用的，以及學習學科知識基礎知識所應具備的字詞彙。","1.我會寫卡片。\n2.認識標點符號。","1.筆試\n2.口試\n4.實作\n5.作業","南一電子書",null,"4-Ⅰ-1 認識常用國字至少 1,000 字，使用 700 字。A2/B1\n◎5-Ⅰ-3 讀懂與學習階段相符的文本。A1/B1\n5-Ⅰ-4 了解文本中的重要訊息與觀點。A1/B1\n5-Ⅰ-5 認識簡易的記敘、抒情及應用文本的特徵。A1/B1\n6-I-6 培養寫作的興趣。C1/A1","Ab-I-2 700 個常用字的使用。\nAb-I-6 1,000 個常用語詞的使用。\nAc-I-2 簡單的基本句型。\nBb-I-1 自我情感的表達。\nBe-I-2 在人際溝通方面，以書信、卡片等慣用語彙及書寫格式為主。","第14週"]
[null,"國-E-B1\n國-E-A1",15,"第15週","A國語文","1-Ⅰ-1 養成專心聆聽的習慣，尊重對方的發言。C2/B1\n1-Ⅰ-3 能理解話語、詩歌、故事的訊息，有適切的表情跟肢體語言。C3/B1\n2-Ⅰ-2 說出所聽聞的內容。A1/B1\n2-Ⅰ-3 與他人交談時，能適當的提問、合宜的回答，並分享想法。C2/B1\n3-Ⅰ-4 利用注音讀物，學習閱讀，享受閱讀樂趣。A1/B1\n5-Ⅰ-4 了解文本中的重要訊息與觀點。A1/B1\n5-Ⅰ-6 利用圖像、故事結構等策略，協助文本的理解與內容重述。A1/B1\n5-Ⅰ-7 運用簡單的預測、推論等策略，找出句子和段落明示的因果關係，理解文本內容。A1/B1","Aa-I-5 標注注音符號的各類文本。\nAd-I-1 自然段。\nAd-I-2 篇章的大意。\nBa-I-1 順敘法。\nCa-I-1 各類文本中與日常生活相關的文化內涵。","閱讀列車〈樂樂怎麼還沒來〉",6,null,"◎閱讀素養教育\n閱E3熟悉與學科學習相關的文本閱讀策略。\n閱E13願意廣泛接觸不同類型及不同學科主題的文本。\n◎品德教育\n品E1良好的生活習慣與德性。","1.從文章學習閱讀宣導單。\n2.我會寫卡片。\n3.認識標點符號。","1.筆試\n2.口試\n4.實作\n5.作業","南一電子書",null,"1-Ⅰ-1 養成專心聆聽的習慣，尊重對方的發言。C2/B1\n1-Ⅰ-3 能理解話語、詩歌、故事的訊息，有適切的表情跟肢體語言。C3/B1\n2-Ⅰ-2 說出所聽聞的內容。A1/B1\n2-Ⅰ-3 與他人交談時，能適當的提問、合宜的回答，並分享想法。C2/B1\n3-Ⅰ-4 利用注音讀物，學習閱讀，享受閱讀樂趣。A1/B1\n5-Ⅰ-4 了解文本中的重要訊息與觀點。A1/B1\n5-Ⅰ-6 利用圖像、故事結構等策略，協助文本的理解與內容重述。A1/B1\n5-Ⅰ-7 運用簡單的預測、推論等策略，找出句子和段落明示的因果關係，理解文本內容。A1/B1","Aa-I-5 標注注音符號的各類文本。\nAd-I-1 自然段。\nAd-I-2 篇章的大意。\nBa-I-1 順敘法。\nCa-I-1 各類文本中與日常生活相關的文化內涵。","第15週"]
[null,"國-E-B1\n國-E-A1",16,"第16週","A國語文","1-Ⅰ-1 養成專心聆聽的習慣，尊重對方的發言。C2/B1\n1-Ⅰ-3 能理解話語、詩歌、故事的訊息，有適切的表情跟肢體語言。C3/B1\n2-Ⅰ-1 以正確發音流利的說出語意完整的話。A1/B1\n2-Ⅰ-2 說出所聽聞的內容。A1/B1\n3-Ⅰ-2 運用注音符號輔助識字，也能利用國字鞏固注音符號的學習。C2/B1\n3-Ⅰ-4 利用注音讀物，學習閱讀，享受閱讀樂趣。A1/B1\n4-Ⅰ-1 認識常用國字至少 1,000 字，使用 700 字。A2/B1\n4-Ⅰ-4 養成良好的書寫姿勢，並保持整潔的書寫習慣。C1/A1\n4-Ⅰ-5  認識基本筆畫、筆順，掌握運筆原則，寫出正確及工整的國字。A3/B1\n5-Ⅰ-1 以適切的速率正確地朗讀文本。A2/B1\n◎5-Ⅰ-3 讀懂與學習階段相符的文本。A1/B1\n6-I-2 透過閱讀及觀察，積累寫作材料。B1/A1\n6-I-4 使用仿寫、接寫等技巧寫作。A3/B1","Aa-I-5 標注注音符號的各類文本。\nAb-I-1 1,000 個常用字的字形、字音和字義。\nAb-I-2 700 個常用字的使用。\nAb-I-3 常用字筆畫及部件的空間結構。\nAb-I-5 1,500 個常用語詞的認念。\nAb-I-6 1,000 個常用語詞的使用。\nAc-I-2 簡單的基本句型。\nAd-I-2 篇章的大意。\nAd-I-3 故事、童詩等。\nBa-I-1 順敘法。\nCa-I-1 各類文本中與日常生活相關的文化內涵。","第肆單元動物同樂會\n第十課井裡的小青蛙",6,null,"◎品德教育\n品E5謙遜包容。\n◎生涯規畫教育\n涯E1了解個人的自我概念。\n涯E5探索自己的價值觀。","1.從教師的說明中，了解小青蛙的特質。\n2.從課文情境圖中，能說出「青蛙」、「肚子」等語詞。\n3.從課文內容中，引導學生說出本課的涵義。\n4.應用注音符號，學習讀寫本課的新詞、生字。\n5.利用注音符號，寫出句子。\n6.注意寫字的姿勢、筆順、字的架構，工整的寫出生字。\n7.能認識「肉」部的字。\n8.能分辨多音字「覺」、「幾」。\n9.能了解成語「井底之蛙」背後的涵義。\n10.「嘆詞」練習\n11.照樣造句\n‧水井裡，住著一隻小青蛙。\n12.造句練習\n(1)除了\n(2)只有","1.筆試\n2.口試\n4.實作\n5.作業","南一電子書",null,"1-Ⅰ-1 養成專心聆聽的習慣，尊重對方的發言。C2/B1\n1-Ⅰ-3 能理解話語、詩歌、故事的訊息，有適切的表情跟肢體語言。C3/B1\n2-Ⅰ-1 以正確發音流利的說出語意完整的話。A1/B1\n2-Ⅰ-2 說出所聽聞的內容。A1/B1\n3-Ⅰ-2 運用注音符號輔助識字，也能利用國字鞏固注音符號的學習。C2/B1\n3-Ⅰ-4 利用注音讀物，學習閱讀，享受閱讀樂趣。A1/B1\n4-Ⅰ-1 認識常用國字至少 1,000 字，使用 700 字。A2/B1\n4-Ⅰ-4 養成良好的書寫姿勢，並保持整潔的書寫習慣。C1/A1\n4-Ⅰ-5  認識基本筆畫、筆順，掌握運筆原則，寫出正確及工整的國字。A3/B1\n5-Ⅰ-1 以適切的速率正確地朗讀文本。A2/B1\n◎5-Ⅰ-3 讀懂與學習階段相符的文本。A1/B1\n6-I-2 透過閱讀及觀察，積累寫作材料。B1/A1\n6-I-4 使用仿寫、接寫等技巧寫作。A3/B1","Aa-I-5 標注注音符號的各類文本。\nAb-I-1 1,000 個常用字的字形、字音和字義。\nAb-I-2 700 個常用字的使用。\nAb-I-3 常用字筆畫及部件的空間結構。\nAb-I-5 1,500 個常用語詞的認念。\nAb-I-6 1,000 個常用語詞的使用。\nAc-I-2 簡單的基本句型。\nAd-I-2 篇章的大意。\nAd-I-3 故事、童詩等。\nBa-I-1 順敘法。\nCa-I-1 各類文本中與日常生活相關的文化內涵。","第16週"]
[null,"國-E-B1\n國-E-A1",17,"第17週","A國語文","1-Ⅰ-1 養成專心聆聽的習慣，尊重對方的發言。C2/B1\n1-Ⅰ-3 能理解話語、詩歌、故事的訊息，有適切的表情跟肢體語言。C3/B1\n2-Ⅰ-1 以正確發音流利的說出語意完整的話。A1/B1\n2-Ⅰ-2 說出所聽聞的內容。A1/B1\n3-Ⅰ-2 運用注音符號輔助識字，也能利用國字鞏固注音符號的學習。C2/B1\n3-Ⅰ-4 利用注音讀物，學習閱讀，享受閱讀樂趣。A1/B1\n4-Ⅰ-1 認識常用國字至少 1,000 字，使用 700 字。A2/B1\n4-Ⅰ-4 養成良好的書寫姿勢，並保持整潔的書寫習慣。C1/A1\n4-Ⅰ-5  認識基本筆畫、筆順，掌握運筆原則，寫出正確及工整的國字。A3/B1\n5-Ⅰ-1 以適切的速率正確地朗讀文本。A2/B1\n◎5-Ⅰ-3 讀懂與學習階段相符的文本。A1/B1\n6-I-2 透過閱讀及觀察，積累寫作材料。B1/A1\n6-I-4 使用仿寫、接寫等技巧寫作。A3/B1","Aa-I-5 標注注音符號的各類文本。\nAb-I-1 1,000 個常用字的字形、字音和字義。\nAb-I-2 700 個常用字的使用。\nAb-I-3 常用字筆畫及部件的空間結構。\nAb-I-5 1,500 個常用語詞的認念。\nAb-I-6 1,000 個常用語詞的使用。\nAc-I-2 簡單的基本句型。\nAd-I-2 篇章的大意。\nAd-I-3 故事、童詩等。\nBa-I-1 順敘法。\nCa-I-1 各類文本中與日常生活相關的文化內涵。","第肆單元動物同樂會\n第十一課吃星星的小鴨子",6,null,"◎海洋教育\n海E1喜歡親水活動，重視水域安全。\n◎安全教育\n安E2了解危機與安全。\n◎家庭教育\n家E5主動與家人分享。","1.專心聆聽課文內容及老師的提問，並回答問題。\n2.藉由課文中的插圖，說出「星星」、「小鴨子」、「池塘」、等語詞。\n3.從課文內容中，引導學生解答小鴨子的疑惑。\n4.應用注音符號，學習讀寫本課的新詞、生字。\n5.利用注音符號，寫出句子。\n6.注意寫字的姿勢、筆順、字的架構，工整的寫出生字。\n7.能認識「日」部的字。\n8.能分辨形近字「池、地」、「坡、波」。\n9.從課文描述中感受小鴨子的情緒轉變。\n10.短語練習\n‧一圈圈波紋\n11.句子仿作\n(1)我把池塘裡的星星都吃光了。\n(2)星星怎麼還在池塘裡呀？","1.筆試\n2.口試\n4.實作\n5.作業","南一電子書",null,"1-Ⅰ-1 養成專心聆聽的習慣，尊重對方的發言。C2/B1\n1-Ⅰ-3 能理解話語、詩歌、故事的訊息，有適切的表情跟肢體語言。C3/B1\n2-Ⅰ-1 以正確發音流利的說出語意完整的話。A1/B1\n2-Ⅰ-2 說出所聽聞的內容。A1/B1\n3-Ⅰ-2 運用注音符號輔助識字，也能利用國字鞏固注音符號的學習。C2/B1\n3-Ⅰ-4 利用注音讀物，學習閱讀，享受閱讀樂趣。A1/B1\n4-Ⅰ-1 認識常用國字至少 1,000 字，使用 700 字。A2/B1\n4-Ⅰ-4 養成良好的書寫姿勢，並保持整潔的書寫習慣。C1/A1\n4-Ⅰ-5  認識基本筆畫、筆順，掌握運筆原則，寫出正確及工整的國字。A3/B1\n5-Ⅰ-1 以適切的速率正確地朗讀文本。A2/B1\n◎5-Ⅰ-3 讀懂與學習階段相符的文本。A1/B1\n6-I-2 透過閱讀及觀察，積累寫作材料。B1/A1\n6-I-4 使用仿寫、接寫等技巧寫作。A3/B1","Aa-I-5 標注注音符號的各類文本。\nAb-I-1 1,000 個常用字的字形、字音和字義。\nAb-I-2 700 個常用字的使用。\nAb-I-3 常用字筆畫及部件的空間結構。\nAb-I-5 1,500 個常用語詞的認念。\nAb-I-6 1,000 個常用語詞的使用。\nAc-I-2 簡單的基本句型。\nAd-I-2 篇章的大意。\nAd-I-3 故事、童詩等。\nBa-I-1 順敘法。\nCa-I-1 各類文本中與日常生活相關的文化內涵。","第17週"]
[null,"國-E-B1\n國-E-A1",18,"第18週","A國語文","1-Ⅰ-1 養成專心聆聽的習慣，尊重對方的發言。C2/B1\n1-Ⅰ-3 能理解話語、詩歌、故事的訊息，有適切的表情跟肢體語言。C3/B1\n2-Ⅰ-1 以正確發音流利的說出語意完整的話。A1/B1\n2-Ⅰ-2 說出所聽聞的內容。A1/B1\n3-Ⅰ-2 運用注音符號輔助識字，也能利用國字鞏固注音符號的學習。C2/B1\n3-Ⅰ-4 利用注音讀物，學習閱讀，享受閱讀樂趣。A1/B1\n4-Ⅰ-1 認識常用國字至少 1,000 字，使用 700 字。A2/B1\n4-Ⅰ-4 養成良好的書寫姿勢，並保持整潔的書寫習慣。C1/A1\n4-Ⅰ-5  認識基本筆畫、筆順，掌握運筆原則，寫出正確及工整的國字。A3/B1\n5-Ⅰ-1 以適切的速率正確地朗讀文本。A2/B1\n◎5-Ⅰ-3 讀懂與學習階段相符的文本。A1/B1\n6-I-2 透過閱讀及觀察，積累寫作材料。B1/A1\n6-I-4 使用仿寫、接寫等技巧寫作。A3/B1","Aa-I-5 標注注音符號的各類文本。\nAb-I-1 1,000 個常用字的字形、字音和字義。\nAb-I-2 700 個常用字的使用。\nAb-I-5 1,500 個常用語詞的認念。\nAb-I-6 1,000 個常用語詞的使用。\nAc-I-2 簡單的基本句型。\nAd-I-1 自然段。\nAd-I-2 篇章的大意。\nBa-I-1 順敘法。\nCa-I-1 各類文本中與日常生活相關的文化內涵。","第肆單元動物同樂會\n第十二課快樂不止一半",6,null,"◎品德教育\n品E3溝通合作與和諧人際關係。\n◎生涯規畫教育\n涯E7培養良好的人際互動能力。\n◎法治教育\n法E1認識公平。","1.專心聆聽課文內容及老師的提問，並回答問題。\n2.從師生共同討論中，能說出自己的想法以及安靜的傾聽別人發言。\n3.藉由課文中的插圖，說出「羊」、「小豬」、「種田」等語詞。\n4.從課文內容中，引導學生說出分工合作的經驗。\n5.應用注音符號，學習讀寫本課的新詞、生字。\n6.利用注音符號，寫出句子。\n7.注意寫字的姿勢、筆順、字的架構，工整的寫出生字。\n8.能認識「艸」部的字。\n9.能分辨形近字「半、羊」、「田、油、苗」。\n10.從課文中了解朋友間應互相合作、陪伴。\n11.知道「快樂不止一半」的涵義。\n12.照樣造句\n‧小豬吃著甜甜的地瓜。\n13.句型練習\n‧先……再……\n14.造句練習\n‧一起","1.筆試\n2.口試\n4.實作\n5.作業","南一電子書",null,"1-Ⅰ-1 養成專心聆聽的習慣，尊重對方的發言。C2/B1\n1-Ⅰ-3 能理解話語、詩歌、故事的訊息，有適切的表情跟肢體語言。C3/B1\n2-Ⅰ-1 以正確發音流利的說出語意完整的話。A1/B1\n2-Ⅰ-2 說出所聽聞的內容。A1/B1\n3-Ⅰ-2 運用注音符號輔助識字，也能利用國字鞏固注音符號的學習。C2/B1\n3-Ⅰ-4 利用注音讀物，學習閱讀，享受閱讀樂趣。A1/B1\n4-Ⅰ-1 認識常用國字至少 1,000 字，使用 700 字。A2/B1\n4-Ⅰ-4 養成良好的書寫姿勢，並保持整潔的書寫習慣。C1/A1\n4-Ⅰ-5  認識基本筆畫、筆順，掌握運筆原則，寫出正確及工整的國字。A3/B1\n5-Ⅰ-1 以適切的速率正確地朗讀文本。A2/B1\n◎5-Ⅰ-3 讀懂與學習階段相符的文本。A1/B1\n6-I-2 透過閱讀及觀察，積累寫作材料。B1/A1\n6-I-4 使用仿寫、接寫等技巧寫作。A3/B1","Aa-I-5 標注注音符號的各類文本。\nAb-I-1 1,000 個常用字的字形、字音和字義。\nAb-I-2 700 個常用字的使用。\nAb-I-5 1,500 個常用語詞的認念。\nAb-I-6 1,000 個常用語詞的使用。\nAc-I-2 簡單的基本句型。\nAd-I-1 自然段。\nAd-I-2 篇章的大意。\nBa-I-1 順敘法。\nCa-I-1 各類文本中與日常生活相關的文化內涵。","第18週"]
[null,"國-E-B1\n國-E-A1",19,"第19週","A國語文","4-Ⅰ-2 利用部件、部首或簡單造字原理，輔助識字。A2/B1\n4-Ⅰ-5  認識基本筆畫、筆順，掌握運筆原則，寫出正確及工整的國字。A3/B1\n◎5-Ⅰ-3 讀懂與學習階段相符的文本。A1/B1\n5-Ⅰ-4 了解文本中的重要訊息與觀點。A1/B1\n5-Ⅰ-6 利用圖像、故事結構等策略，協助文本的理解與內容重述。A1/B1\n5-Ⅰ-7 運用簡單的預測、推論等策略，找出句子和段落明示的因果關係，理解文本內容。A1/B1\n6-I-4 使用仿寫、接寫等技巧寫作。A3/B1","Ab-I-1 1,000 個常用字的字形、字音和字義。\nAb-I-3 常用字筆畫及部件的空間結構。\nAc-I-2 簡單的基本句型。\nAc-I-3 基本文句的語氣與意義。\nBb-I-1 自我情感的表達。","語文天地四",6,null,"◎閱讀素養教育\n閱E1認識一般生活情境中需要使用的，以及學習學科知識基礎知識所應具備的字詞彙。","1.國字的結構。\n2.我會認字。\n3.念一念。\n4.加長句子。","1.筆試\n2.口試\n4.實作\n5.作業","南一電子書",null,"4-Ⅰ-2 利用部件、部首或簡單造字原理，輔助識字。A2/B1\n4-Ⅰ-5  認識基本筆畫、筆順，掌握運筆原則，寫出正確及工整的國字。A3/B1\n◎5-Ⅰ-3 讀懂與學習階段相符的文本。A1/B1\n5-Ⅰ-4 了解文本中的重要訊息與觀點。A1/B1\n5-Ⅰ-6 利用圖像、故事結構等策略，協助文本的理解與內容重述。A1/B1\n5-Ⅰ-7 運用簡單的預測、推論等策略，找出句子和段落明示的因果關係，理解文本內容。A1/B1\n6-I-4 使用仿寫、接寫等技巧寫作。A3/B1","Ab-I-1 1,000 個常用字的字形、字音和字義。\nAb-I-3 常用字筆畫及部件的空間結構。\nAc-I-2 簡單的基本句型。\nAc-I-3 基本文句的語氣與意義。\nBb-I-1 自我情感的表達。","第19週"]
[null,"國-E-B1\n國-E-A1",20,"第20週","A國語文","1-Ⅰ-1 養成專心聆聽的習慣，尊重對方的發言。C2/B1\n1-Ⅰ-3 能理解話語、詩歌、故事的訊息，有適切的表情跟肢體語言。C3/B1\n2-Ⅰ-2 說出所聽聞的內容。A1/B1\n2-Ⅰ-3 與他人交談時，能適當的提問、合宜的回答，並分享想法。C2/B1\n3-Ⅰ-4 利用注音讀物，學習閱讀，享受閱讀樂趣。A1/B1\n5-Ⅰ-4 了解文本中的重要訊息與觀點。A1/B1\n5-Ⅰ-6 利用圖像、故事結構等策略，協助文本的理解與內容重述。A1/B1\n5-Ⅰ-7 運用簡單的預測、推論等策略，找出句子和段落明示的因果關係，理解文本內容。A1/B1","Aa-I-5 標注注音符號的各類文本。\nAd-I-2 篇章的大意。\nAd-I-3 故事、童詩等。\nBa-I-1 順敘法。\nCa-I-1 各類文本中與日常生活相關的文化內涵。","閱讀列車〈火雞與孔雀〉",6,null,"◎人權教育\n人E5欣賞、包容個別差異並尊重自己與他人的權利。\n人E6覺察個人的偏見，並避免歧視行為的產生。\n◎閱讀素養教育\n閱E3熟悉與學科學習相關的文本閱讀策略。\n閱E13願意廣泛接觸不同類型及不同學科主題的文本。\n◎品德教育\n品E2自尊與愛人。\n◎生涯規劃教育\n涯E6覺察個人的優勢能力。","1.從中體會到相較於外表，內在的涵養更重要。\n2.國字的結構。\n3.我會認字。\n4.念一念。\n5.加長句子。","1.筆試\n2.口試\n4.實作\n5.作業","南一電子書",null,"1-Ⅰ-1 養成專心聆聽的習慣，尊重對方的發言。C2/B1\n1-Ⅰ-3 能理解話語、詩歌、故事的訊息，有適切的表情跟肢體語言。C3/B1\n2-Ⅰ-2 說出所聽聞的內容。A1/B1\n2-Ⅰ-3 與他人交談時，能適當的提問、合宜的回答，並分享想法。C2/B1\n3-Ⅰ-4 利用注音讀物，學習閱讀，享受閱讀樂趣。A1/B1\n5-Ⅰ-4 了解文本中的重要訊息與觀點。A1/B1\n5-Ⅰ-6 利用圖像、故事結構等策略，協助文本的理解與內容重述。A1/B1\n5-Ⅰ-7 運用簡單的預測、推論等策略，找出句子和段落明示的因果關係，理解文本內容。A1/B1","Aa-I-5 標注注音符號的各類文本。\nAd-I-2 篇章的大意。\nAd-I-3 故事、童詩等。\nBa-I-1 順敘法。\nCa-I-1 各類文本中與日常生活相關的文化內涵。","第20週"]
[null,null,null,null,null,null,null,null,null,null,null,null,null,null,null,0,0,0]
[null,null,null,null,null,null,null,null,null,null,null,null,null,null,null,0,0,0]
[null,null,null,null,null,null,null,null,null,null,null,null,null,null,null,0,0,0]
[null,null,null,null,null,null,null,null,null,null,null,null,null,null,null,0,0,0]
[null,null,null,null,null,null,null,null,null,null,null,null,null,null,null,0,0,0]
[null,null,null,null,null,null,null,null,null,null,null,null,null,null,null,0,0,0]
[null,null,null,null,null,null,null,null,null,null,null,null,null,null,null,0,0,0]
[null,null,null,null,null,null,null,null,null,null,null,null,null,null,null,0,0,0]
[null,null,null,null,null,null,null,null,null,null,null,null,null,null,null,0,0,0]
[null,null,null,null,null,null,null,null,null,null,null,null,null,null,null,0,0,0]
[null,null,null,null,null,null,null,null,null,null,null,null,null,null,null,0,0,0]
[null,null,null,null,null,null,null,null,null,null,null,null,null,null,null,0,0,0]
[null,null,null,null,null,null,null,null,null,null,null,null,null,null,null,0,0,0]
[null,null,null,null,null,null,null,null,null,null,null,null,null,null,null,0,0,0]
[null,null,null,null,null,null,null,null,null,null,null,null,null,null,null,0,0,0]
[null,null,null,null,null,null,null,null,null,null,null,null,null,null,null,0,0,0]
[null,null,null,null,null,null,null,null,null,null,null,null,null,null,null,0,0,0]
[null,null,null,null,null,null,null,null,null,null,null,null,null,null,null,0,0,0]
[null,null,null,null,null,null,null,null,null,null,null,null,null,null,null,0,0,0]
[null,null,null,null,null,null,null,null,null,null,null,null,null,null,null,0,0,0]
[null,null,null,null,null,null,null,null,null,null,null,null,null,null,null,0,0,0]
[null,null,null,null,null,null,null,null,null,null,null,null,null,null,null,0,0,0]
[null,null,null,null,null,null,null,null,null,null,null,null,null,null,null,0,0,0]
[null,null,null,null,null,null,null,null,null,null,null,null,null,null,null,0,0,0]
[null,null,null,null,null,null,null,null,null,null,null,null,null,null,null,0,0,0]
[null,null,null,null,null,null,null,null,null,null,null,null,null,null,null,0,0,0]
[null,null,null,null,null,null,null,null,null,null,null,null,null,null,null,0,0,0]
[null,null,null,null,null,null,null,null,null,null,null,null,null,null,null,0,0,0]
[null,null,null,null,null,null,null,null,null,null,null,null,null,null,null,0,0,0]
[null,null,null,null,null,null,null,null,null,null,null,null,null,null,null,0,0,0]
[null,null,null,null,null,null,null,null,null,null,null,null,null,null,null,0,0,0]
[null,null,null,null,null,null,null,null,null,null,null,null,null,null,null,0,0,0]
[null,null,null,null,null,null,null,null,null,null,null,null,null,null,null,0,0,0]
[null,null,null,null,null,null,null,null,null,null,null,null,null,null,null,0,0,0]
[null,null,null,null,null,null,null,null,null,null,null,null,null,null,null,{"$f":"F74","v":0},0,{"$f":"D74","v":0}]
[null,null,null,null,null,null,null,null,null,null,null,null,null,null,null,0,0,{"$f":"D75","v":0}]
[null,null,null,null,null,null,null,null,null,null,null,null,null,null,null,0,0,{"$f":"D76","v":0}]
[null,null,null,null,null,null,null,null,null,null,null,null,null,null,null,0,0,0]
[null,null,null,null,null,null,null,null,null,null,null,null,null,null,null,0,0,0]
[null,null,null,null,null,null,null,null,null,null,null,null,null,null,null,0,0,0]
[null,null,null,null,null,null,null,null,null,null,null,null,null,null,null,0,0,0]
[null,null,null,null,null,null,null,null,null,null,null,null,null,null,null,0,0,0]
[null,null,null,null,null,null,null,null,null,null,null,null,null,null,null,0,0,0]
[null,null,null,null,null,null,null,null,null,null,null,null,null,null,null,0,0,0]
[null,null,null,null,null,null,null,null,null,null,null,null,null,null,null,0,0,0]
[null,null,null,null,null,null,null,null,null,null,null,null,null,null,null,0,0,0]
[null,null,"備註：",null,null,null,null,"上課總節數:",{"$f":"SUM(I20:I85)","v":120},{"$f":"SUM(J20:J85)","v":0},4]
[null,null,"一、本(下)學期上課總日數:92天。"]
[null,null,"二、110年2月28日(日)和平紀念日於3月1日(一)調整放假、110年4月4日(日)兒童節暨清明節於4月2日(五)兒童節調整放假、110年4月5日(一)清明節調整放假、"]
[null,null,"110年6月25日(一)端午節，共放假4天。"]
[]
[]
[]
[]
[]
[null,null,null,null,null,null,null,null,null,null,null,null,"課程類別","節數(I欄)"]
[null,null,null,null,null,null,null,null,null,null,null,null,"a",{"$f":"SUMIF($O$20:$O$85,\"A\",$I$20:$I$85)","v":0}]
[null,null,null,null,null,null,null,null,null,null,null,null,"b",{"$f":"SUMIF($O$20:$O$85,\"B\",$I$20:$I$85)","v":0}]
[null,null,null,null,null,null,null,null,null,null,null,null,"c",{"$f":"SUMIF($O$20:$O$85,\"C\",$I$20:$I$85)","v":0}]
[null,null,null,null,null,null,null,null,null,null,null,null,"d",{"$f":"SUMIF($O$20:$O$85,\"D\",$I$20:$I$85)","v":0}]
[]
[]
[]
[]
["A國語文",null,"A"]
["B本土語文",null,"B"]
["C英語文",null,"C"]
["D數學",null,"D"]
["E生活課程",null,"E"]
["F",null,"F"]
["G",null,"G"]
["H健康與體育",null,"H"]
["I",null,"I"]
["R",null,"R"]
[]
["J花漾前鋒",null,"J"]
["K書海探索家",null,"K"]
["L國際領航員",null,"L"]
[null,null,"M"]
[null,null,"N"]
[null,null,"O"]
[]
[]
["評量方式(可自行橙色空白儲存格)"]
["1.筆試"]
["2.口試"]
["3.表演"]
["4.實作"]
["5.作業"]
["6.報告"]
["7.資料搜集整理"]
["8.鑑賞"]
["9.實踐"]
["10.晤談"]
["11.學生自評"]
["12.同儕互評"]
["13.研究"]
["14.設計製作"]
["15.問卷調查"]
["16.學習札記"]
[]
[]
[]
[]
[]
[]
[]
[]
[]
[]
[]
[]
[]
[]
[]
[]
[]
[]
[]
[]
[]
[]
[]
[]
[]
[]
[]
[]
[]
[]
[]
[]
[]
[]
[]
[]
[]
[]
[]
[]
[]
[]
[]
[]
[]
[]
[]
[]
[]
[]
[]
[]
[]
[]
[]
[]
[]
[]
[]
[]
[23]
[11]

{"sheet":"學習表現指標","index":1,"n_rows":781,"n_cols":92,"rows_kept":781,"cut":false,"hidden":true,"merged":[]}
["12021",null,"低","A","語文",null,null,"B","語文",null,null,"C英語文","語文",null,null,"T(客家語文)","語文",null,null,"U(原住民族語文)","語文",null,null,"V新住民語文","語文",null,null,"D數學","數學",null,null,"G自然科學","自然科學",null,null,"F藝術","藝術",null,null,"I綜合活動","綜合活動",null,null,"E生活/社會","生活/社會",null,null,"H健康與體育","健康與體育",null,null,"R科技","科技",null,null,null,null,null,null,null,null,null,null,null,1,2,3,4,5,6,7,8,9,10,null,null,null,null,"語文","本土語言","英語","數學","生活_社會","藝術與人文","自然與科技","健康與體育","綜合活動","生活","科技","客家語言","原住民語言","新住民語言"]
[null,null,null,"語文","語文",null,null,"本土語文","本土語文",null,null,"英語文","英語文",null,null,"C(客家語文)","C(客家語文)",null,null,"D(原住民族語文)","D(原住民族語文)",null,null,"E新住民語文","E新住民語文",null,null,"數學","數學",null,null,"自然科學","自然科學",null,null,"藝術","藝術",null,null,"綜合活動","綜合活動",null,null,"生活課程","生活課程",null,null,"健康與體育","健康與體育",null,null,"科技","科技",null,null,null,null,null,null,null,null,null,null,null,"各領域編碼說明",null,null,null,null,null,null,null,null,null,null,null,null,null,"A","B","C","D","E","F","G","H","I","J","R","T","U","V"]
[null,null,null,"一二年級","一二年級",null,null,"一二年級","一二年級",null,null,"一二年級","一二年級",null,null,"一二年級","一二年級",null,null,"一二年級","一二年級",null,null,"一二年級","一二年級",null,null,"一二年級","一年級",null,null,"一二年級","一年級",null,null,"一二年級","一年級",null,null,"一二年級","一年級",null,null,"一二年級","一二年級",null,null,"一二年級","一二年級",null,null,"一二年級","一二年級",null,null,null,null,null,null,null,null,null,null,1,"學習表現6類別 ","學習內容次項目類別代號 :",null,null,null,null,null,null,null,null,null,null,"□A1身心素質與自我精進","A1","國-E-A1認識國語文的重要性，培養國語文的興趣，能運用國語文認識自我、表現自我，奠定終身學習的基礎。","閩-E-A1具備認識閩南語文對個人生活的重要性，並能主動學習，進而建立學習閩南語文的能力。 ","英-E-A1具備認真專注的特質及良好的學習習慣，嘗試運用基本的學習策略，精進個人英語文能力。","數-E-A1 能堅持不懈地探索與解決數學問題，具備數學思考能力以及精確與理性溝通時所必需的數學語言，並擁有學習力以成就優質的生涯規畫與發展。2","社-E-A1認識自我在團體中的角色，養成良好的態度與價值觀，並探索自我的發展。","藝-E-A1 參與藝術活動，探索生活美感。 ","自-E-A1 能運用五官，敏銳的觀察周遭環境，保持好奇心、想像力持續探索自然。 ","健體-E-A1  具備良好身體活動與健康生活的習慣，以促進身心健全發展，並認識個人特質，發展運動與保健的潛能。 ","綜-E-A1 認識個人特質，初探生涯發展，覺察生命變化歷程，激發潛能，促進身心健全發展。 ","生活-E-A1 透過自己與外界的 連結，產生自我感 知並能對自己有正 向的看法，進而愛 惜自己，同時透過 對生活事物的探索 與探究，體會與感 受學習的樂趣，並 能主動發現問題及 解決問題，持續學 習。2","科-E-A1具備正確且安全地使用科技產品的知能與行為習慣。 ","客-E-A1具備認識客家語文對個人生活的重要性，並能主動學習，進而建立學習客家語文的能力。 ","原-E-A1具備認識原住民語文對個人生活的重要性，並能主動學習，進而建立學習原住民語文的能力。 ","新-E-A1具備認識新住民語文對個人生活的重要性，並能主動學習，進而建立學習新住民語文的能力。 "]
[null,null,null,"學習表現","學習內容",null,null,"學習表現","學習內容",null,null,"學習表現","學習內容",null,null,"學習表現","學習內容",null,null,"學習表現","學習內容",null,null,"學習表現","學習內容",null,null,"學習表現","學習內容",null,null,"學習表現","學習內容",null,null,"學習表現","學習內容",null,null,"學習表現","學習內容",null,null,"學習表現","學習內容",null,null,"學習表現","學習內容",null,null,"學習表現","學習內容",null,null,null,null,null,null,null,"學習內容","學習表現",null,2,"如1-I-4 第1碼代號1=聆聽","A文字篇章 ","Aa標音符號 ",null,null,null,null,null,null,null,null,null,"□A2系統思考與解決問題 ","A2","國-E-A2透過國語文學習，掌握文本要旨、發展學習及解決問題策略、初探邏輯思維，並透過體驗與實踐，處理日常生活問題。","閩-E-A2具備使用閩南語文進行思考的能力，並用之於日常生活中，以有效處理相關問題。 ","英-E-A2具備理解簡易英語 文 訊 息 的 能力，能運用基本邏輯思考策略提升學習效能。","數-E-A2 具備基本的算術操作能力、並能指認基本的形體與相對關係，在日常生活情境中，用數學表述與解決問題。","社-E-A2關注生活問題及其影響，敏覺居住地方的社會、自然與人文環境變遷，並思考解決方法。","藝-E-A2 認識設計式的思考，理解藝術實踐的意義。 ","自-E-A2 能運用好奇心及想像能力，從觀察、閱讀、思考所得的資訊或數據中，提出適合科學探究的問題或解釋資料，並能依據已知的科學知識、科學概念及探索科學的方法去想像可能發生的事情，以及理解科學事實會有不同的論點、證據或解釋方式。2 ","健體-E-A2  具備探索身體活動與健康生活問題的思考能力，並透過體驗與實踐，處理日常生活中運動與健康的問題。 ","綜-E-A2 探索學習方法，培養思考能力與自律負責的態度，並透過體驗與實踐解決日常生活問題。 ","生活-E-A2 學習各種探究人、 事、物的方法並理 解探究後所獲得的 道理，增進系統思 考與解決問題的能 力。","科-E-A2具備探索問題的能力，並能透過科技工具的體驗與實踐處理日常生活問題。 ","客-E-A2具備使用客家語文進行思考的能力，並用之於日常生活中，以有效處理相關問題。 ","原-E-A2具備使用原住民語文進行思考的能力，並用之於日常生活中，以有效處理相關問題。 ","新-E-A2具備使用新住民語文進行思考的能力，並用之於日常生活中，以有效處理相關問題。 "]
[null,null,null,"1-Ⅰ-1 養成專心聆聽的習慣，尊重對方的發言。C2/B1","Aa-I-1 聲符、韻符、介符的正確發音和寫法。",null,12,"1.聆聽","Aa-Ⅰ-1 文字認讀。",null,12,null,null,null,null,"1.聆聽","Ab-Ⅰ-1 客家語淺易漢字。",null,null,"1-Ⅰ-1 能聽辨母音及子音 。B1","Aa-Ⅰ-1 母音及子音。",null,null,"1-Ⅰ-1樂於參與新住民語文學習活動。B1","◎Aa-Ⅰ-1 新住民語言的發音與語調。",null,null,"n-I-1理解一千以內數的位值結構，據以做為四則運算之基礎。A1/A2","N-1-1一百以內的數：含操作活動。用數表示多少與順序。結合數數、位值表徵、位值表。位值單位「個」和「十」。 位值單位換算。認識 0 的位值意義。\n",null,null,"(無)","(無)",null,null,"(無)","(無)",null,null,"12國教取消","12國教取消",null,null,"1甲 1-I-1 探索並分享對自己及相關人、事、物的感受與想法。A1","甲 A-I-1 生命成長現象的認識。",null,null,"1a-Ⅰ-1 認識基本的健康常識。A2/A1","Aa-Ⅰ-1 不同人生階段成長情形的觀察與描述",null,null,"(尚未建檔)","(尚未建檔)",null,null,null,null,null,null,null,"語文領域-國語文","語文領域-國語文",null,3,"1聆聽 ",null,"Ab字詞 ",null,null,null,null,null,null,null,null,null,"□A3規劃執行與創新應變","A3","國-E-A3運用國語文充實生活經驗，學習有步驟的規劃活動和解決問題，並探索多元知能，培養創新精神，以增進生活適應力。","閩-E-A3具備運用閩南語文來擬訂、討論、執行與分享個人生活計畫，以充實自我生活經驗，增進個人適應社會的能力。 ","(國小無)","數-E-A3 具備轉化現實問題為數學問題的能力，並探索、擬定與執行解決問題計畫，以及從多元、彈性與創新的角度解決數學問題，並能將問題解答轉化運用於現實生活。2","社-E-A3探究人類生活相關議題，規劃學習計畫，並在執行過程中，因應情境變化，持續調整與創新。","藝-E-A3 學習規劃藝術活動，豐富生活經驗。","自-E-A3 具備透過實地操作探究活動探索科學問題的能力，並能初步根據問題特性、資源的有無等因素，規劃簡單步驟，操作適合學習階段的器材儀器、科技設備與資源，進行自然科學實驗。2","健體-E-A3  具備擬定基本的運動與保健計畫及實作能力，並以創新思考方式，因應日常生活情境。","綜-E-A3 規劃、執行學習及生活計畫，運用資源或策略，預防危機、保護自己，並以創新思考方式，因應日常生活情境。 ","生活-E-A3 藉由各種媒介，探 索人、事、物的特性 與關係，同時學習 各種探究人、事、物 的方法、理解道理，並能進行創作、分享及實踐。","科-E-A3具備運用科技規劃與執行計畫的基本概念，並能應用於日常生活。 ","客-E-A3具備運用客家語文來擬訂、討論、執行與分享個人生活計畫，以充實自我生活經驗，增進個人適應社會的能力。 ","原-E-A3具備運用原住民語文來擬訂、討論、執行與分享個人生活計畫，以充實自我生活經驗，增進個人適應社會的能力。 ","新-E-A3具備運用新住民語文來擬訂、討論、執行與分享個人生活計畫，以充實自我生活經驗，增進個人適應社會的能力。 "]
[null,null,null,"1-Ⅰ-2 能學習聆聽不同的媒材，說出聆聽的內容。C2/B1","Aa-I-2 聲調及其正確的標注方式。",null,null,"1-Ⅰ-1 能聽辨閩南語常用字詞的語音差異。B1","◎Ab-Ⅰ-1 語詞運用。",{"$error":"#REF!"},null,null,null,null,null,"1-Ⅰ-1能從日常客家生活語句了解語詞。B1","Ab-Ⅰ-2客家語淺易語詞。",null,null,"1-Ⅰ-2 能聽辨單、雙音節及重音。B1","Aa-Ⅰ-2 書寫系統。 ",null,null,"1-Ⅰ-2樂於和不同語文背景的同學交朋友。B1","◎Aa-Ⅰ-2 新住民語言的聲調標記。",null,null,"n-I-2理解加法和減法的意義，熟練基本加減法並能流暢計算。A1/A2","N-1-2加法和減法：加法和減法的意義與應用。含「添加 型」、「併加型」、「拿走 型」、「比較型」等應用問題。加法和減法算式。\n",null,null,null,null,null,null,null,null,null,null,null,null,null,null,"2甲 1-I-2 覺察每個人均有其獨特性與長處，進而欣賞自己的優點、喜歡自己。A1","甲 A-I-2 事物變化現象的觀察。",null,null,"1a-Ⅰ-2 認識健康的生活習慣。A2/A1","Ba-Ⅰ-1 遊戲場所與上下學情境的覺察與安全須知",null,null,null,null,null,null,null,null,null,null,null,"三四年級","三四年級",null,4,"2口語表達 ",null,"Ac句段 ",null,null,null,null,null,null,null,null,null,"□B1符號運用與溝通表達 ","B1","國-E-B1理解與運用國語文在日常生活中學習體察他人的感受，並給予適當的回應，以達成溝通及互動的目標。","閩-E-B1具備理解與使用閩南語文的基本能力，並能從事表達、溝通，以運用於家庭與學校生活之中。 ","英-E-B1具備入門的聽、說、讀、寫英語文能力。在引導下，能運用所學詞彙及句型進行簡易日常溝通。","數-E-B1  具備日常語言與數字及算術符號之間的轉換能力，並能熟練操作日常使用之度量衡及時間，認識日常經驗中的幾何形體，並能以符號表示公式。2","社-E-B1透過語言、文字及圖像等，理解並解釋人類生活相關資訊，促進與他人溝通。","藝-E-B1 理解藝術符號，以表達情意觀點。 ","自-E-B1 能分析比較、製作圖表、運用簡單數學等方法，整理已有的自然科學資訊或數據，並利用較簡單形式的口語、文字、影像、繪圖或實物、科學名詞、數學公式、模型等，表達探究之過程、發現或成果。2","健體-E-B1  具備運用體育與健康之相關符號知能，能以同理心應用在生 活 中 的 運動、保健與人際溝通上。 ","綜-E-B1 覺察自己的人際溝通方式，學習合宜的互動與溝通技巧，培養同理心，並應用於日常生活。","生活-E-B1 使用適切且多元的 表徵符號，表達自 己的想法、與人溝 通，並能同理與尊 重他人想法。","科-E-B1具備科技表達與運算思維的基本素養，並能運用基礎科技與邏輯符號進行人際溝通與概念表達。 ","客-E-B1具備理解與使用客家語文的基本能力，並能從事表達、溝通，以運用於家庭與學校生活之中。 ","原-E-B1具備理解與使用原住民語文的基本能力，並能從事表達、溝通，以運用於家庭與學校生活之中。 ","新-E-B1具備理解與使用新住民語文的基本能力，並能從事表達、溝通，以運用於家庭與學校生活之中。 "]
[null,null,null,"1-Ⅰ-3 能理解話語、詩歌、故事的訊息，有適切的表情跟肢體語言。C3/B1","Aa-I-3 二拼音和三拼音的拼讀和書寫。",null,null,"1-Ⅰ-2 能聽懂日常生活中閩南語語句並掌握重點。B1","◎Ab-Ⅰ-2 句型運用。",null,null,null,null,null,null,"1-Ⅰ-2 能培養聆聽客家語文的興趣。B1","Ac-Ⅰ-1 客家語淺易生活用語。",null,null,"1-Ⅰ-3 能專注聆聽說話者。B1","Aa-Ⅰ-3 單、雙音節。 ",null,null,"2a-Ⅰ-1 能聽辨新住民語言的字母。B1","◎Aa-Ⅰ-3 新住民語言的字母與拼讀系統。",null,null,"n-I-3應用加法和減法的計算或估算於日常應用解題。A1/A2/A3","N-1-3基本加減法：以操作活動為主。以熟練為目標。指1到10之數與1到10之數的加法，及反向的減法計算。\n",null,null,null,null,null,null,null,null,null,null,null,null,null,null,"3甲 1-I-3 省思自我成長的歷程，體會其意義並知道自己進步的情形與努力的方向。A1","甲 A-I-3 自我省思。",null,null,"1b-Ⅰ-1 舉例說明健康生活情境中適用的健康技能和生活技能。A1/A2","Ba-Ⅰ-2 眼耳鼻傷害事件急救處理",null,null,null,null,null,null,null,null,null,null,null,"學習表現","學習內容",null,5,"3標音符號與運用 ",null,"Ad篇章 ",null,null,null,null,null,null,null,null,null,"□B2科技資訊與媒體素養 ","B2","國-E-B2理解網際網路和資訊科技對學習的重要性，藉以擴展語文學習的範疇，並培養審慎使用各類資訊的能力。","閩-E-B2 具備透過科技、資訊與各類媒體，蒐集閩南語文相關資料，並能認識其正確性，進行整理與運用，以從事閩南語文的學習。 ","英-E-B2 具備使用各種資訊科技與媒材進行自我學習的能力，以增進英語文聽說讀寫綜合應用能力及文化習俗之理解。 ","數-E-B2 具備報讀、製作基本統計圖表之能力。","社-E-B2認識與運用科技、資訊及媒體，並探究其與人類社會價值、信仰及態度的關聯。","藝-E-B2 辨別資訊、科技媒體與藝術的關係。 ","自-E-B2 能了解科技及媒體的運用方式，並從學習活動、日常經驗及科技運用、自然環境、書刊及網路媒體等，察覺問題或獲得有助於探究的資訊。 ","健體-E-B2  具備應用體育與健康相關科技及資訊的基本素養，並理解各類媒體刊載、報導有關體育與健康內容的意義與影響。 ","綜-E-B2 蒐集與分析資源，理解各類媒體內容的意義與影響，用以處理日常生活問題。 ","生活-E-B2 運用生活中隨手可 得的媒材與工具， 透過各種探究事物 的方法及技能，對 訊 息 做 適 切 的 處 理。","科-E-B2具備使用基本科技與資訊工具的能力，並理解科技、資訊與媒體的基礎概念。 ","客-E-B2 具備透過科技、資訊與各類媒體，蒐集客家語文相關資料，並能認識其正確性，進行整理與運用，以從事客家語文的學習。 ","原-E-B2 具備透過科技、資訊與各類媒體，蒐集原住民語文相關資料，並能認識其正確性，進行整理與運用，以從事原住民語文的學習。 ","新-E-B2 具備透過科技、資訊與各類媒體，蒐集新住民語文相關資料，並能認識其正確性，進行整理與運用，以從事新住民語文的學習。 "]
[null,null,null,"2-Ⅰ-1 以正確發音流利的說出語意完整的話。A1/B1","Aa-I-4 結合韻的拼讀和書寫。",null,null,"1-Ⅰ-3 能聽懂所學的閩南語文課文主題、內容並掌握重點。B1","Ac-Ⅰ-1 兒歌念謠。",null,null,null,null,null,null,"1-Ⅰ-3 能透過視聽媒材認識日常生活的客家語詞。B2/B1","Ad-Ⅰ-1 客家語淺易短文。",null,null,"1-Ⅰ-4 能聽懂所學的語詞意義。B1"," Aa-Ⅰ-4 重音。 ",null,null,"2a-Ⅰ-2能聽辨所學習的新住民語言的簡單詞彙。B1","Ab-Ⅰ-1 簡單自我介紹時的新住民語言常用詞彙。\n",null,null,"n-I-7理解長度及其常用單位，並做實測、估測與計算。B1/A1/A2","N-1-4解題：1 元、5 元、10 元、50 元、100 元。以操作活動為主。數錢、換錢、找錢。\n",null,null,null,null,null,null,null,null,null,null,null,null,null,null,"4甲 1-I-4 珍視自己並學習照顧自己的方法，且能適切、安全的行動。A1","甲 C-I-1 事物特性與現象的探究。",null,null,"1c-Ⅰ-1 認識身體活動的基本動作。A2/A1","Bb-Ⅰ-1 常見藥物的使用方法與藥物影響的覺察",null,null,null,null,null,null,null,null,null,null,null,"1-Ⅱ-1 聆聽時能讓對方充分表達意見。C2/B1","Aa-Ⅱ-1 標注注音符號的各類文本。",null,6,"4識字與寫字 ","B文本表述 ","Ba記敘文本 ",null,null,null,null,null,null,null,null,null,"□B3藝術涵養與美感素養","B3","國-E-B3運用多重感官感受文藝之美，體驗生活中的美感事物，並發展藝文創作與欣賞的基本素養。","閩-E-B3具備感知與欣賞閩南語文藝術的美感素養，並能融入於日常生活中。 ","(國小無)","數-E-B3 具備感受藝術作品中的數學形體或式樣的素養。1 ","社-E-B3體驗生活中自然、族群與文化之美，欣賞多元豐富的環境與文化內涵。","藝-E-B3 感知藝術與生活的關聯，以豐富美感經驗。 ","自-E-B3 透過五官原始的感覺，觀察週遭環境的動植物與自然現象，知道如何欣賞美的事物。 ","健體-E-B3  具備運動與健康有關的感知和欣賞的基本素養，促進多元感官的發展，在生活環境中培養運動與健康有關的美感體驗。 ","綜-E-B3 覺察生活美感的多樣性，培養生活環境中的美感體驗，增進生活的豐富性與創意表現。 ","生活-E-B3 感受與體會生活中 人、事、物的真、善 與美，欣賞生活中 美的多元形式與表 現，在創作中覺察 美的元素，逐漸發 展美的敏覺。","科-E-B3了解並欣賞科技在藝術創作上的應用。 ","客-E-B3具備感知與欣賞客家語文藝術的美感素養，並能融入於日常生活中。 ","原-E-B3具備感知與欣賞原住民語文藝術的美感素養，並能融入於日常生活中。 ","新-E-B3具備感知與欣賞新住民語文藝術的美感素養，並能融入於日常生活中。 "]
[null,null,null,"2-Ⅰ-2 說出所聽聞的內容。A1/B1","Aa-I-5 標注注音符號的各類文本。",null,null,"1-Ⅰ-4 能從聆聽中建立主動學習閩南語的興趣與習慣。B1","Ba-Ⅰ-1 身體認識。",null,null,null,null,null,null,"2.說話","Ad-Ⅰ-2 客家語淺易歌謠。",null,null,"1-Ⅰ-5 能聽懂問候語。B1","Ab-Ⅰ-1 語詞的意義。",null,null,"2b-Ⅰ-1 能掌握新住民語言的發音B1","Ab-Ⅰ-2 家庭及學校生活中的新住民語言基本詞彙\n（如：稱謂、數字等）。",null,null,"n-I-9認識時刻與時間常用單位。B1/A2","N-1-5長度（同 S-1-1）：以操作活動為主。初步認識、直接比較、間接比較（含個別單位）。\n",null,null,null,null,null,null,null,null,null,null,null,null,null,null,"5甲 2-I-1 以感官和知覺探索生活，覺察事物及環境的特性。A1","甲 D-I-1 自我與他人關係的認識。",null,null,"1c-Ⅰ-2 認識基本的運動常識。A2/A1","Bb-Ⅰ-2 吸菸與飲酒的危害及拒絕二手菸的方法",null,null,null,null,null,null,null,null,null,null,null,"1-Ⅱ-2 具備聆聽不同媒材的基本能力。C3/B1","Ab-Ⅱ-1 1,800 個常用字的字形、字音和字義。",null,7,"5閱讀 ",null,"Bb抒情文本 ",null,null,null,null,null,null,null,null,null,"□C1道德實踐與公民意識","C1","國-E-C1閱讀各類文本，從中培養是非判斷的能力，以了解自己與所處社會的關係，培養同理心與責任感，關懷自然生態與增進公民意識。2","閩-E-C1具備透過閩南語文的學習，增進與人友善相處的能力，並能主動參與學校及家庭各類活動，培養責任感，落實生活美德與公民意識。 ","(國小無)","數-E-C1 具備立基於證據的態度，建構可行的論述，並發展和他人理性溝通的素養，成為理性反思與道德實踐的公民。1","社-E-C1培養良好的生活習慣，遵守社會規範，參與公共事 務 ， 維 護 人權，關懷自然環境與人類社會的永續發展。","藝-E-C1 識別藝術活動中的社會議題。 ","自-E-C1 培養愛護自然、珍愛生命、惜取資源的關懷心與行動力。 ","健體-E-C1  具備生活中有關運動與健康的道德知識與是 非 判 斷 能力，理解並遵守相關的道德規範，培養公民意識，關懷社會。","綜-E-C1 關懷生態環境與周遭人事物，體驗服務歷程與樂趣，理解並遵守道德規範，培養公民意識。","生活-E-C1 覺察自己、他人和 環境的關係，體會 生活禮儀與團體規 範的意義，學習尊 重他人、愛護生活 環境及關懷生命， 並於生活中實踐，同時能省思自己在團體中所應扮演的角色，在能力所及或與他人合作的情況下，為改善事情而努力或採取改進行動。2","科-E-C1認識科技使用的公民責任，並具備科技應用的倫理規範之知能與實踐力。 ","客-E-C1具備透過客家語文的學習，增進與人友善相處的能力，並能主動參與學校及家庭各類活動，培養責任感，落實生活美德與公民意識。 ","原-E-C1具備透過原住民語文的學習，增進與人友善相處的能力，並能主動參與學校及家庭各類活動，培養責任感，落實生活美德與公民意識。 ","新-E-C1具備透過新住民語文的學習，增進與人友善相處的能力，並能主動參與學校及家庭各類活動，培養責任感，落實生活美德與公民意識。 "]
[null,null,null,"2-Ⅰ-3 與他人交談時，能適當的提問、合宜的回答，並分享想法。C2/B1","Ab-I-1 1,000 個常用字的字形、字音和字義。",null,null,"2.說話","Ba-Ⅰ-2 親屬稱謂。",null,null,null,null,null,null,"2-Ⅰ-1能說出客家文化的生活表徵。C3/B1","Ae-Ⅰ-1 客家語簡易情意表達。",null,null,"1-Ⅰ-6 能聽懂簡易日常生活用語。B1","Ab-Ⅰ-2  數字的大小。 ",null,null,"2b-Ⅰ-2 能說出所學習的新住民語言的簡單詞彙。B1","Ac-Ⅰ-1 簡單自我介紹時的新住民語言常用語句。\n",null,null,"s-I-1從操作活動，初步認識物體與常見幾何形體的幾何特徵。B3/B1/A2","N-1-6日常時間用語：以操作活動為主。簡單日期報讀「幾月幾日」；「明天」、「今 天」、「昨天」；「上午」、「中午」、「下午」、「晚 上」。簡單時刻報讀「整點」 與「半點」。\n",null,null,null,null,null,null,null,null,null,null,null,null,null,null,"6乙 2-I-2 觀察生活中人、事、物的變化，覺知變化的可能因素。A2","甲 D-I-2 情緒調整的學習。",null,null,"1d-Ⅰ-1 描述動作技能基本常識。A2/A1","Bc-Ⅰ-1 各項暖身伸展動作的認識",null,null,null,null,null,null,null,null,null,null,null,"1-Ⅱ-3 聽懂適合程度的詩歌、戲劇，並說出聆聽內容的要點。A2/B1","Ab-Ⅱ-2 1,200 個常用字的使用。",null,8,"6寫作 ",null,"Bc說明文本 ",null,null,null,null,null,null,null,null,null,"□C2人際關係與團隊合作","C2","國-E-C2與他人互動時，能適切運用語文能力表達個人想法，理解與包容不同意見，樂於參與學校及社區活動，體會團隊合作的重要性。2","閩-E-C2具備運用閩南語文的溝通能力，珍愛自己、尊重別人，發揮團隊合作的精神。 ","英-E-C2積極參與課內英語文小組學習活動，培養團隊合作精神。","數-E-C2 具備和他人合作解決問題的素養，並能尊重多元的問題解法，建立良好的互動關係。1","社-E-C2建立良好的人際互動關係，養成尊重差異、關懷他人及團隊合作的態度。","藝-E-C2 透過藝術實踐，學習理解他人感受與團隊合作的能力。 ","自-E-C2 透過探索科學的合作學習，培養與同儕溝通表達、團隊合作及和諧相處的能力。 ","健體-E-C2  具備同理他人感受，在體育活動和健康生活中樂於與人互動，並與團隊成員合作，促進身心健康。 ","綜-E-C2 理解他人感受，樂於與人互動，學習尊重他人，增進人際關係，與團隊成員合作達成團體目標。","生活-E-C2 覺察自己的情緒與 行為表現可能對他 人 和 環 境 有 所 影 響，用合宜的方式 與人友善互動，願 意共同完成工作任 務，展現尊重、溝通 以及合作的技巧。","科-E-C2具備利用科技與他人互動及合作之能力與態度。 ","客-E-C2具備運用客家語文的溝通能力，珍愛自己、尊重別人，發揮團隊合作的精神。 ","原-E-C2具備運用原住民語文的溝通能力，珍愛自己、尊重別人，發揮團隊合作的精神。 ","新-E-C2具備運用新住民語文的溝通能力，珍愛自己、尊重別人，發揮團隊合作的精神。 "]
[null,null,null,"3-Ⅰ-1正確認念、拼讀及書寫注音符號。B1","Ab-I-2 700 個常用字的使用。",null,null,"2-Ⅰ-1 能用閩南語簡單表達對他人的關懷與禮節。C2/B1","Bb-Ⅰ-1 家庭生活。",null,null,null,null,null,null,"2-Ⅰ-2 能表現言說客家語的興趣。B1","Ba-Ⅰ-1 身體認識。",null,null,"1-Ⅰ-7 能聽懂簡易自我介紹。B1","Ac-Ⅰ-1簡易生活用語。",null,null,"2c-Ⅰ-1 能唸出新住民語言的字母。B1","Ac-Ⅰ-2 家庭及學校生活中的新住民語言基本語句\n（如：招呼語、感謝語等）。",null,null,"r-I-1學習數學語言中的運算符號、關係符號、算式約定。B1","S-1-1長度（同 N-1-5）：以操作活動為主。初步認識、直接 比較、間接比較（含個別單 位）。\n",null,null,null,null,null,null,null,null,null,null,null,null,null,null,"7乙 2-I-3 探索生活中的人、事、物，並體會彼此之間會相互影響。A2","甲 E-I-1 生活習慣的養成。",null,null,"2a-Ⅰ-1 發覺影響健康的生活態度與行為。A1/A2","Bd-Ⅰ-1 武術進攻與模仿遊戲",null,null,null,null,null,null,null,null,null,null,null,"1-Ⅱ-4  根據話語情境，分辨內容是否切題，理解主要內容和情感，並與對方互動。A1/C2","◎Ab-Ⅱ-3 常用字部首及部件的表音及表義功能。",null,9,null,null,"Bd議論文本 ",null,null,null,null,null,null,null,null,null,"□C3多元文化與國際理解","C3","國-E-C3閱讀各類文本，培養理解與關心本土及國際事務的基本素 養，以認同自我文化，並能包容、尊重與欣賞多元文化。","閩-E-C3透過閩南語文的學習，培養尊重與包容各種語言與文化多元性的精神。 ","英-E-C3認識國內外主要節慶習俗及風土民情。","數-E-C3 具備理解與關心多元文化或語言的數學表徵的素養，並與自己的語言文化比較。1","社-E-C3了解自我文化， 尊重與欣賞多元文化，關心全球議題。","藝-E-C3 體驗在地及全球藝術與文化的多元性。","自-E-C3 透過環境相關議題的學習，能了解全球自然環境的現況與特性。","健體-E-C3 具備理解與關心本土、國際體育與健康議題的素養，並認識及包容文化的多元性。 ","綜-E-C3 體驗與欣賞在地文化，尊重關懷不同族群，理解並包容文化的多元性。","生活-E-C3 欣賞周遭不同族群 與 文 化 內 涵 的 異 同，體驗與覺察生 活中全球關連的現 象。","科-E-C3 能利用科技理解與關心本土與國際事務，並認識與包容多元文化。 ","客-E-C3透過客家語文的學習，培養尊重與包容各種語言與文化多元性的精神。 ","原-E-C3透過原住民語文的學習，培養尊重與包容各種語言與文化多元性的精神。 ","新-E-C3透過新住民語文的學習，培養尊重與包容各種語言與文化多元性的精神。 "]
[null,null,null,"3-Ⅰ-2 運用注音符號輔助識字，也能利用國字鞏固注音符號的學習。C2/B1","Ab-I-3 常用字筆畫及部件的空間結構。",null,null,"2-Ⅰ-2 能初步運用閩南語表達感受、情緒與需求。B1","Bb-Ⅰ-2 學校生活。",null,null,null,null,null,null,"2-Ⅰ-3 能說出日常生活的客家語詞。B1","Ba-Ⅰ-2 親屬稱謂。",null,null,"1-Ⅰ-8 能聽懂童謠。B1"," Ac-Ⅰ-2  問候語。 ",null,null,"2c-Ⅰ-2 能拼讀新住民語言的簡單詞彙。B1","Ba-Ⅰ-1  與親屬互動時的問候規範（亦包含輩份、性別的因素）。\n",null,null,"r-I-2認識加法和乘法的運算規律。A1/B1","S-1-2形體的操作：以操作活動為主。描繪、複製、拼貼、堆疊。\n",null,null,null,null,null,null,null,null,null,null,null,null,null,null,"8乙 2-I-4 在發現及解決問題的歷程中，學習探索與探究人、事、物的方法。A2","甲 E-I-2 生活規範的實踐。",null,null,"2a-Ⅰ-2 感受健康問題對自己造成的威脅性。C1/A2","Bd-Ⅰ-2 技擊進攻與模仿遊戲",null,null,null,null,null,null,null,null,null,null,null,"2-Ⅱ-1 用清晰語音、適當語速和音量說話。A1/B1","◎Ab-Ⅱ-4 多音字及多義字。",null,10,null,null,"Be應用文本 "]
[null,null,null,"3-Ⅰ-3 運用注音符號表達想法，記錄訊息。A2/B1","Ab-I-4 常用字部首的表義（分類）功能。",null,null,"2-Ⅰ-3 能正確朗讀所學的閩南語課文。B1","◎Bb-Ⅰ-3 數字運用。",null,null,null,null,null,null,"3.閱讀","Bb-Ⅰ-1 簡易表達。",null,null,"1-Ⅰ-9 能聽懂所學的數字。B1","Ba-Ⅰ-1 外在身體部位名稱（如：肚臍）。 ",null,null,"2c-Ⅰ-3 能讀懂所學習新住民語言的簡單詞彙。B1","Ba-Ⅰ-2  與師長及同學互動時的問候規範。",null,null,"d-I-1認識分類的模式，能主動蒐集資料、分類，並做簡單的呈現與說明。B2/B1","R-1-1算式與符號：含加減算式中的數、加號、減號、等號。以說、讀、聽、寫、做檢驗學生的理解。適用於後續階段。\n",null,null,null,null,null,null,null,null,null,null,null,null,null,null,"9乙 2-I-5 運用各種探究事物的方法及技能，對訊息做適切的處理，並養成動手做的習慣。A2","甲 E-I-3 自我行為的檢視與調整。",null,null,"2b-Ⅰ-1 接受健康的生活規範。A2/A1","Ca-Ⅰ-1 生活中健康環境的認識、體驗與感受",null,null,null,null,null,null,null,null,null,null,null,"2-Ⅱ-2 運用適當詞語、正確語法表達想法。A1/B1","Ab-Ⅱ-5 3,000 個常用語詞的認念。",null,11,null,"C文化內涵 ","Ca物質文化 "]
[null,null,null,"3-Ⅰ-4 利用注音讀物，學習閱讀，享受閱讀樂趣。A1/B1","Ab-I-5 1,500 個常用語詞的認念。",null,null,"2-Ⅰ-4 能主動使用閩南語與他人互動。C2/B1","◎Bf-Ⅰ-1 表演藝術。",null,null,null,null,null,null,"3-Ⅰ-1能識讀客家語文日常生活常用語詞。B1","Bb-Ⅰ-2 招呼用語。",null,null,"2-Ⅰ-1 能正確發出母音及子音。B1","Bb-Ⅰ-1 所在部落/社區的名稱。",null,null,"2d-Ⅰ-1 能書寫新住民語言的字母。B1","Bb-Ⅰ-1 與親屬、師長、同學互動時的肢體語言和面部表情（亦包含輩份、性別的因素）。",null,null,"n-I-4理解乘法的意義，熟練十十乘法，並初步進行分裝與平分的除法活動。A2/B1","R-1-2兩數相加的順序不影響其和：加法交換律。可併入其他教學活動。\n",null,null,null,null,null,null,null,null,null,null,null,null,null,null,"10乙 2-I-6 透過探索與探究人、事、物的歷程，了解其中的道理。A2","甲 E-I-4 對他人的感謝與服務。",null,null,"2b-Ⅰ-2 願意養成個人健康習慣。B1/A1","Cb-Ⅰ-1 運動安全常識的認識、運動對身體健康的益處",null,null,null,null,null,null,null,null,null,null,null,"2-Ⅱ-3 把握說話的重點與順序，對談時能做適當的回應。A1/B1","Ab-Ⅱ-6 2,000 個常用語詞的使用。",null,12,null,null,"Cb社群文化 "]
[null,null,null,"4-Ⅰ-1 認識常用國字至少 1,000 字，使用 700 字。A2/B1","Ab-I-6 1,000 個常用語詞的使用。",null,null,"3.閱讀","◎Bf-Ⅰ-2 藝術欣賞。",null,null,null,null,null,null,"3-Ⅰ-2 能養成閱讀客家日用語詞的興趣。B1","Bc-Ⅰ-1 生活起居。",null,null,"2-Ⅰ-2 能正確發出單、雙音節及重音。B1","Bb-Ⅰ-2  部落/社區的故事。 ",null,null,"\n2d-Ⅰ-2 能書寫學習新住民語言的簡單詞彙。B1","\nBb-Ⅰ-2 新住民與親屬、師長、同學互動時的適當手\n勢、坐姿、衣著等。\n",null,null,"n-I-5在具體情境中，解決簡單兩步驟應用問題。B1/A3","D-1-1簡單分類：以操作活動為主。能蒐集、分類、記錄、 呈現日常生活物品，報讀、 說明已處理好之分類。觀察分類的模式，知道同一組資料可有不同的分類方式。\n",null,null,null,null,null,null,null,null,null,null,null,null,null,null,"11丙 3-I-1 願意參與各種學習活動，表現好奇與求知探究之心。A3","乙 A-I-1 生命成長現象的認識。",null,null,"2c-Ⅰ-1 表現尊重的團體互動行為。C1/C2","Cb-Ⅰ-2 班級性體育活動的認識",null,null,null,null,null,null,null,null,null,null,null,"2-Ⅱ-4 樂於參加討論，提供個人的觀點和意見。A1/C2","Ab-Ⅱ-7 國字組成詞彙的構詞規則。",null,13,null,null,"Cc精神文化 "]
[null,null,null,"4-Ⅰ-2 利用部件、部首或簡單造字原理，輔助識字。A2/B1","Ac-I-1 常用標點符號。",null,null,"3-Ⅰ-1 能建立樂意閱讀閩南語文語句和短文的興趣。B1","◎Bg-Ⅰ-1 生活應對。",null,null,null,null,null,null,"4.寫作","Bc-Ⅰ-2 校園生活。",null,null,"2-Ⅰ-3 能說出所學的語詞。B1","Bc-Ⅰ-1 家庭主要成員的稱謂。 ",null,null,"3-Ⅰ-1 能與不同文化背景的人和樂相處。\n\nC2/B1","Bc-Ⅰ-1 新住民原生國的家庭生活環境。\n\n",null,null,"n-I-6認識單位分數。B1/A2","N-2-1一千以內的數：含位值積木操作活動。結合點數、位值表徵、位值表。位值單位「百」。位值單位換算。\n",null,null,null,null,null,null,null,null,null,null,null,null,null,null,"12丙 3-I-2 體認探究事理有各種方法，並且樂於應用。A3","乙 A-I-2 事物變化現象的觀察。",null,null,"2c-Ⅰ-2 表現認真參與的學習態度。A1/B1","Cb-Ⅰ-3 運動活動空間、場域的體驗",null,null,null,null,null,null,null,null,null,null,null,"2-Ⅱ-5 與他人溝通時能注重禮貌，並養成說話負責的態度。A1/C1","Ab-Ⅱ-8 詞類的分辨。",null,14,"A"]
[null,null,null,"4-Ⅰ-3 學習查字典的方法。A2/B1","Ac-I-2 簡單的基本句型。",null,null,"4.寫作","◎Bg-Ⅰ-2 口語表達。",null,null,null,null,null,null,"4-Ⅰ-1能認識客家語文的文字書寫。B1","Be-Ⅰ-1 時間與天氣。",null,null,"2-Ⅰ-4 能說出招呼/問候用語。B1","Be-Ⅰ-1 唸謠及童謠。 ",null,null,"3-Ⅰ-2 樂於參與多元文化活動。B1","Bc-Ⅰ-2新住民原生國的學校生活情境。",null,null,"n-I-8認識容量、重量、面積。B1/A2","N-2-2加減算式與直式計算：用位值理解多位數加減計算 的原理與方法。初期可操 作、橫式、直式等方法並 陳，二年級最後歸結於直 式計算，做為後續更大位 數計算之基礎。直式計算 的基礎為位值概念與基本 加減法，教師須說明直式 計算的合理性。\n",null,null,null,null,null,null,null,null,null,null,null,null,null,null,"13丙 3-I-3 體會學習的樂趣和成就感，主動學習新的事物。A3","乙 B-I-1 自然環境之美的感受。",null,null,"2d-Ⅰ-1 專注觀賞他人的動作表現。B2/B1","Cc-Ⅰ-1 水域休閒運動入門遊戲",null,null,null,null,null,null,null,null,null,null,null,"3-Ⅱ-1 運用注音符號，理解生字新詞，提升閱讀效能。A2/B1","Ab-Ⅱ-9 量詞的運用。",null,15,"A"]
[null,null,null,"4-Ⅰ-4 養成良好的書寫姿勢，並保持整潔的書寫習慣。C1/A1","Ac-I-3 基本文句的語氣與意義。",null,null,"4-Ⅰ-1能認識閩南語文的文字書寫。B1",null,null,null,null,null,null,null,"4-Ⅰ-2 能展現使用客家語文書寫的興趣。B1","Be-Ⅰ-2 生活空間與景物。",null,null,"2-Ⅰ-5 能說出簡易日常生活用語。B1","Bf-Ⅰ-1 漁獵的生活故事。 ",null,null,null,"Bd-Ⅰ-1 新住民原生國的親屬、師長、同學互動方式（包括語言與非語言）與我國的異同。\n",null,null,"n-I-3應用加法和減法的計算或估算於日常應用解題。","N-2-3解題：加減應用問題。加數、被加數、減數、被減數未知之應用解題。連結加與減的關係（R-2-4）。\n",null,null,null,null,null,null,null,null,null,null,null,null,null,null,"14丁 4-I-1 利用各種生活的媒介與素材進行表現與創作，喚起豐富的想像力。B1","乙 B-I-2 社會環境之美的體認。",null,null,"2d-Ⅰ-2 接受並體驗多元性身體活動。C3/A3","Cd-Ⅰ-1 戶外休閒運動入門遊戲",null,null,null,null,null,null,null,null,null,null,null,"3-Ⅱ-2 運用注音符號，檢索資訊，吸收新知。A2/B1","Ab-Ⅱ-10 字辭典的運用。",null,16,"A"]
[null,null,null,"4-Ⅰ-5  認識基本筆畫、筆順，掌握運筆原則，寫出正確及工整的國字。A3/B1","Ad-I-1 自然段。",null,null,null,null,null,null,null,null,null,null,"4-Ⅰ-3 能書寫客家語文常用的淺易語詞。B1","Ca-Ⅰ-1 客家傳統節日。",null,null,"2-Ⅰ-6 能簡易地自我介紹。A1/B1","Bg-Ⅰ-1 常見的農作物名稱。 ",null,null,null,"Bd-Ⅰ-2 新住民原生國的家庭生活環境與我國的異同。",null,null,"r-I-3認識加減互逆，並能應用與解題。A1/A2/A3","N-2-4解題：簡單加減估算。具體生活情境。以百位數估算為主。\n",null,null,null,null,null,null,null,null,null,null,null,null,null,null,"15丁 4-I-2 使用不同的表徵符號進行表現與分享，感受創作的樂趣。B1","乙 C-I-1 事物特性與現象的探究。",null,null,"3a-Ⅰ-1 嘗試練習簡易的健康相關技能。A2/A1","Ce-Ⅰ-1 其他休閒運動入門遊戲",null,null,null,null,null,null,null,null,null,null,null,"4-Ⅱ-1 認識常用國字至少 1,800 字，使用 1,200 字。A2/B1","Ab-Ⅱ-11 筆墨紙硯的使用方法。",null,17]
[null,null,null,"4-Ⅰ-6 能因應需求，感受寫字的溝通功能與樂趣。C1/A1","Ad-I-2 篇章的大意。",null,null,null,null,null,null,null,null,null,null,null,"Cc-Ⅰ-1客家生活飲食。",null,null,"2-Ⅰ-7 能唱誦童謠。B1","Bh-Ⅰ-1 所感知的氣候變化。 ",null,null,null,"\nBd-Ⅰ-3 新住民原生國的學校生活與我國的異同。",null,null,null,"N-2-5解題：100 元、500 元、1000元。以操作活動為主兼及計 算。容許多元策略，協助建 立數感。包含已學習之更小 幣值。\n",null,null,null,null,null,null,null,null,null,null,null,null,null,null,"16丁 4-I-3 運用各種表現與創造的方法與形式，美化生活、增加生活的趣味。B1","乙 C-I-3 探究生活事物的方法與技能。",null,null,"3a-Ⅰ-2 能於引導下，於生活中操作簡易的健康技能。A1/A2","Da-Ⅰ-1 日常生活中衛生習慣的培養",null,null,null,null,null,null,null,null,null,null,null,"4-Ⅱ-2 利用共同部件，擴充識字量。A3/A2","Ab-Ⅱ-12 楷書基本筆畫運筆方法。 ",null,18]
[null,null,null,"5-Ⅰ-1 以適切的速率正確地朗讀文本。A2/B1","Ad-I-3 故事、童詩等。",null,null,null,null,null,null,null,null,null,null,null,null,null,null,"2-Ⅰ-8 能說出所學的數字。B1",null,null,null,null,null,null,null,null,"N-2-6乘法：乘法的意義與應用。在學習乘法過程，逐步發展「倍」的概念，做為統整乘法應用情境的語言。\n",null,null,null,null,null,null,null,null,null,null,null,null,null,null,"17戊 2-I-5 運用各種探究事物的方法及技能，對訊息做適切的處理，並養成動手做的習慣。B2","乙 F-I-1 工作任務理解與工作目標設定的練習。",null,null,"3b-Ⅰ-1 能於引導下，表現簡易的自我調適技能。A2/A1","Da-Ⅰ-2 身體的認識與衛生保健重要性的覺察",null,null,null,null,null,null,null,null,null,null,null,"4-Ⅱ-3  會利用書面或數位方式查字辭典，並能利用字辭典，分辨字詞義。B2/A3","Ab-Ⅱ-13 書法名家故事。",null,19]
[null,null,null,"5-Ⅰ-2 認識常用標點符號。C3/B1","Ba-I-1 順敘法。",null,null,null,null,null,null,null,null,null,null,null,null,null,null,"3-Ⅰ-1 能拼讀母音及子音。B1",null,null,null,null,null,null,null,null,"N-2-7十十乘法：乘除直式計算的基礎，以熟練為目標。\n",null,null,null,null,null,null,null,null,null,null,null,null,null,null,"18己 5-I-1 覺知生活中人、事、物的豐富面貌，建立初步的美感經驗。B3","乙 F-I-2 不同解決問題方法或策略的提出與嘗試。",null,null,"3b-Ⅰ-2 能於引導下，表現簡易的人際溝通互動技能。C2/B1","Db-Ⅰ-1 日常生活中性別角色的觀察",null,null,null,null,null,null,null,null,null,null,null,"4-Ⅱ-4 能分辨形近、音近字詞，並正確使用。A3/A2","Ac-Ⅱ-1 各種標點符號的用法。",null,null,"A","語文"]
[null,null,null,"◎5-Ⅰ-3 讀懂與學習階段相符的文本。A1/B1","Bb-I-1 自我情感的表達。",null,null,null,null,null,null,null,null,null,null,null,null,null,null,"3-Ⅰ-2 能拼讀單、雙音節及重音。B1",null,null,null,null,null,null,null,null,"N-2-8解 題 ： 兩 步 驟 應 用 問 題（加、減、乘）。加減混合、 加與乘、減與乘之應用解 題。不含併式。不含連乘。\n",null,null,null,null,null,null,null,null,null,null,null,null,null,null,"19己 5-I-2 在生活環境中，覺察美的存在。B3","乙 F-I-3 時間分配及做事程序的規劃練習。",null,null,"3b-Ⅰ-3 能於生活中嘗試運用生活技能。B1/A3","Db-Ⅰ-2 身體隱私與身體界線的認識及其危害之求助",null,null,null,null,null,null,null,null,null,null,null,"4-Ⅱ-5 利用字義推論詞義。A3/A2","Ac-Ⅱ-2 各種基本句型。",null,1,"學習表現6類別 ","學習內容次項目類別代號 :"]
[null,null,null,"5-Ⅰ-4 了解文本中的重要訊息與觀點。A1/B1","Bb-I-2 人際交流的情感。",null,null,null,null,null,null,null,null,null,null,null,null,null,null,"3-Ⅰ-3 能讀出所學的語詞。B1",null,null,null,null,null,null,null,null,"N-2-9解題：分裝與平分。以操作活動為主。除法前置經驗。 理解分裝與平分之意義與 方法。引導學生在解題過 程，發現問題和乘法模式的關連。\n",null,null,null,null,null,null,null,null,null,null,null,null,null,null,"20己 5-I-3 理解與欣賞美的多元形式與異同。B3","乙 F-I-4 對自己做事方法或策略的省思與改善。",null,null,"3c-Ⅰ-1 表現基本動作與模仿的能力。B3/A1","Ea-Ⅰ-1 食物的認識、體驗與珍惜",null,null,null,null,null,null,null,null,null,null,null,"4-Ⅱ-6 掌握偏旁變化和間架結構要領書寫正確及工整的硬筆字。A2/B1","Ac-Ⅱ-3 基礎複句的意義。",null,2,"如1-I-4 第1碼代號1=聆聽","A文字篇章 ","Aa標音符號 "]
[null,null,null,"5-Ⅰ-5 認識簡易的記敘、抒情及應用文本的特徵。A1/B1","Bb-I-3 對物或自然的感受。",null,null,null,null,null,null,null,null,null,null,null,null,null,null,"3-Ⅰ-4 能讀出簡易生活用語。B1",null,null,null,null,null,null,null,null,"N-2-10單位分數的認識：從等分配的活動（如摺紙）認識單 部分為全部的「幾分之一」。 知道日常語言「的一半」、「的二分之一」、「的四分之一」的溝通意義。在已等 分割之格圖中，能說明一格 為全部的「幾分之一」。\n",null,null,null,null,null,null,null,null,null,null,null,null,null,null,"21己 5-I-4 對生活周遭人、事、物的美有所感動，願意主動關心與親近。B3","丙 F-I-1 工作任務理解與工作目標設定的練習。",null,null,"3c-Ⅰ-2 表現安全的身體活動行為。A2/A1","Ea-Ⅰ-2 飲食習慣的培養和觀察",null,null,null,null,null,null,null,null,null,null,null,"4-Ⅱ-7 習寫以硬筆字為主，毛筆為輔，掌握楷書筆畫的書寫方法。A3/A2","Ac-Ⅱ-4 各類文句的語氣與意義。",null,3,"1聆聽 ",null,"Ab字詞 "]
[null,null,null,"5-Ⅰ-6 利用圖像、故事結構等策略，協助文本的理解與內容重述。A1/B1","Bb-I-4 直接抒情。",null,null,null,null,null,null,null,null,null,null,null,null,null,null,"3-Ⅰ-5 能朗讀所學的課文。B1",null,null,null,null,null,null,null,null,"N-2-11長度：「公分」、「公尺」。實測、量感、估測與計算。 單位換算。\n",null,null,null,null,null,null,null,null,null,null,null,null,null,null,"22庚 6-I-1 覺察自己可能對生活中的人、事、物產生影響，學習調整情緒與行為。C1","丙 F-I-2 不同解決問題方法或策略的提出與嘗試。",null,null,"3d-Ⅰ-1 應用基本動作常識，處理練習或遊戲問題。A2/A3","Eb-Ⅰ-1 健康安全消費的覺知",null,null,null,null,null,null,null,null,null,null,null,"4-Ⅱ-8 知道古今書法名家的故事。C3/A1","Ad-Ⅱ-1 意義段。",null,4,"2口語表達 ",null,"Ac句段 "]
[null,null,null,"5-Ⅰ-7 運用簡單的預測、推論等策略，找出句子和段落明示的因果關係，理解文本內容。A1/B1","Be-I-1 在生活應用方面，如自我介紹、日記的格式與寫作方法。",null,null,null,null,null,null,null,null,null,null,null,null,null,null,"3-Ⅰ-6 能讀懂簡易問候語。B1",null,null,null,null,null,null,null,null,"N-2-12容量、重量、面積：以操作活動為主。此階段量的教學應包含初步認識、直接比較、間接比較（含個別單位）。不同的量應分不同的單元學習。\n",null,null,null,null,null,null,null,null,null,null,null,null,null,null,"23庚 6-I-2 體會自己分內該做的事，扮演好自己的角色，並身體力行。C1","丙 F-I-3 時間分配及做事程序的規劃練習。",null,null,"4a-Ⅰ-1 能於引導下，使用適切的健康資訊、產品與服務。C1/B2","Fa-Ⅰ-1 認識自己、喜歡自己",null,null,null,null,null,null,null,null,null,null,null,"5-Ⅱ-1 以適切的速率朗讀文本，表現抑揚頓挫與情感。A3/B1","Ad-Ⅱ-2 篇章的大意、主旨與簡單結構。",null,5,"3標音符號與運用 ",null,"Ad篇章 "]
[null,null,null,"5-Ⅰ-8 認識圖書館(室)的功能。C1/B2","Be-I-2 在人際溝通方面，以書信、卡片等慣用語彙及書寫格式為主。",null,null,null,null,null,null,null,null,null,null,null,null,null,null,"3-Ⅰ-7 能讀懂所學的數字。B1",null,null,null,null,null,null,null,null,"N-2-13鐘面的時刻：以操作活動為主。以鐘面時針與分針之位置認識「幾時幾分」。含兩整時時刻之間的整時點數（時間加減的前置經驗）。\n",null,null,null,null,null,null,null,null,null,null,null,null,null,null,"24庚 6-I-3 覺察生活中的規範與禮儀，探究其意義，並願意遵守。C1","丙 F-I-4 對自己做事方法或策略的省思與改善。",null,null,"4a-Ⅰ-2 養成健康的生活習慣。A2/A1","Fa-Ⅰ-2 家人及朋友和諧相處的方式",null,null,null,null,null,null,null,null,null,null,null,"5-Ⅱ-2 理解各種標點符號的用法。A1/B1","Ad-Ⅱ-3 故事、童詩、現代散文等。",null,6,"4識字與寫字 ","B文本表述 ","Ba記敘文本 "]
[null,null,null,"5-Ⅰ-9 喜愛閱讀，並樂於與他人分享閱讀心得。C2/A1","Ca-I-1 各類文本中與日常生活相關的文化內涵。",null,null,null,null,null,null,null,null,null,null,null,null,null,null,"4-Ⅰ-1 能正確寫出書寫符號。B1",null,null,null,null,null,null,null,null,"N-2-14時間：「年」、「月」、「星期」、「日」。理解所列時間單位之關係與約定。\n",null,null,null,null,null,null,null,null,null,null,null,null,null,null,"25庚 6-I-4 關懷生活中的人、事、物，願意提供協助與服務。C1","丁 B-I-1 自然環境之美的感受。",null,null,"4b-Ⅰ-1 發表個人對促進健康的立場。C1/A2","Fa-Ⅰ-3 情緒的體驗與分辨",null,null,null,null,null,null,null,null,null,null,null,"◎5-Ⅱ-3 讀懂與學習階段相符的文本。B3/A2","Ba-Ⅱ-1 記敘文本的結構。",null,7,"5閱讀 ",null,"Bb抒情文本 "]
[null,null,null,"6-I-1 根據表達需要，使用常用標點符號。A2/B1","Cb-I-1 各類文本中的親屬關係、道德倫理、儀式風俗等文化內涵。\n",null,null,null,null,null,null,null,null,null,null,null,null,null,null,"4-Ⅰ-2 能書寫單、雙音節。B1",null,null,null,null,null,null,null,null,"S-2-1物體之幾何特徵：以操作活動為主。進行辨認與描述之活動。藉由實際物體認識 簡單幾何形體（包含平面圖形與立體形體），並連結幾何概念（如長、短、大、小等）。\n",null,null,null,null,null,null,null,null,null,null,null,null,null,null,"26庚 6-I-5 覺察人與環境的依存關係，進而珍惜資源，愛護環境、尊重生命。C1","丁 B-I-2 社會環境之美的體認。",null,null,"4c-Ⅰ-1 認識與身體活動相關資源。B1/B2","Fb-Ⅰ-1 個人的健康自覺與健康行為展現",null,null,null,null,null,null,null,null,null,null,null,"5-Ⅱ-4 掌握句子和段落的意義與主要概念。A3/B1","◎Ba-Ⅱ-2 順敘與倒敘法。",null,8,"6寫作 ",null,"Bc說明文本 "]
[null,null,null,"6-I-2 透過閱讀及觀察，積累寫作材料。B1/A1","Cb-I-2 各類文本中所反映的個人與家庭、鄉里的關係。",null,null,null,null,null,null,null,null,null,null,null,null,null,null,"4-Ⅰ-3 能正確書寫自己的族名。B1",null,null,null,null,null,null,null,null,"S-2-2簡單幾何形體：以操作活動為主。包含平面圖形與立體形體。辨認與描述平面圖形與立體形體的幾何特徵並做分類。\n",null,null,null,null,null,null,null,null,null,null,null,null,null,null,"27辛 7-I-1 以對方能理解的語彙或合宜的方式，表達對人、事、物的觀察與意見。C2","丁 C-I-2 媒材特性與符號表徵的使用。",null,null,"4c-Ⅰ-2 選擇適合個人的身體活動。B3/A3","Fb-Ⅰ-2 兒童常見疾病的預防、照護及醫療經驗",null,null,null,null,null,null,null,null,null,null,null,"5-Ⅱ-5 認識記敘、抒情、說明及應用文本的特徵。A2/B1","◎Bb-Ⅱ-1 自我情感的表達。",null,9,null,null,"Bd議論文本 "]
[null,null,null,"6-I-3 寫出語意完整的句子、主題明確的段落。A3/B1","◎Cc-I-1 各類文本中的藝術、信仰、思想等文化內涵。",null,null,null,null,null,null,null,null,null,null,null,null,null,null,"4-Ⅰ-4 能書寫所學的數字。B1",null,null,null,null,null,null,null,null,"S-2-3直尺操作：測量長度。報讀公分數。指定長度之線段作 圖。\n",null,null,null,null,null,null,null,null,null,null,null,null,null,null,"28辛 7-I-2 傾聽他人的想法，並嘗試用各種方法理解他人所表達的意見。C2","丁 C-I-4 事理的應用與實踐。",null,null,"4d-Ⅰ-1 願意從事規律身體活動。A2/A1","Ga-Ⅰ-1 走、跑、跳與投擲遊戲",null,null,null,null,null,null,null,null,null,null,null,"5-Ⅱ-6 運用適合學習階段的摘要策略，擷取大意。A3/A2","◎Bb-Ⅱ-2 人際交流的情感。",null,10,null,null,"Be應用文本 "]
[null,null,null,"6-I-4 使用仿寫、接寫等技巧寫作。A3/B1",null,null,null,null,null,null,null,null,null,null,null,null,null,null,null,"5-Ⅰ-1 能正確應用 1-10 的數字。B1",null,null,null,null,null,null,null,null,"S-2-4平面圖形的邊長：以操作活動與直尺實測為主。認識特殊幾何圖形的邊長關係。 含周長的計算活動。\n",null,null,null,null,null,null,null,null,null,null,null,null,null,null,"29辛 7-I-3 覺知他人的感受，體會他人的立場及學習體諒他人，並尊重和自己不同觀點的意見。C2","丁 C-I-5 知識與方法的運用、組合與創新。",null,null,"4d-Ⅰ-2 利用學校或社區資源從事身體活動。C3/C1","Gb-Ⅰ-1 游泳池安全與衛生常識",null,null,null,null,null,null,null,null,null,null,null,"5-Ⅱ-7 就文本的觀點，找出支持的理由。A3/A2","Bb-Ⅱ-3 對物或自然的情懷。",null,11,null,"C文化內涵 ","Ca物質文化 "]
[null,null,null,"6-I-5 修改文句的錯誤。A3/B1",null,null,null,null,null,null,null,null,null,null,null,null,null,null,null,"5-Ⅰ-2 能樂於參與原住民族語文的學習活動。C3",null,null,null,null,null,null,null,null,"S-2-5面積：以具體操作為主。初步認識、直接比較、間接比較（含個別單位）。\n",null,null,null,null,null,null,null,null,null,null,null,null,null,null,"30辛 2-I-3 探索生活中的人、事、物，並體會彼此之間會相互影響。C2","丁 F-I-1 工作任務理解與工作目標設定的練習。",null,null,null,"Gb-Ⅰ-2 水中遊戲、水中閉氣與韻律呼吸與藉物漂浮",null,null,null,null,null,null,null,null,null,null,null,"5-Ⅱ-8 運用預測、推論、提問等策略，增進對文本的理解。B1/A2","◎Bb-Ⅱ-4 直接抒情。",null,12,null,null,"Cb社群文化 "]
[null,null,null,"6-I-6 培養寫作的興趣。C1/A1",null,null,null,null,null,null,null,null,null,null,null,null,null,null,null,null,null,null,null,null,null,null,null,null,"R-2-1大小關係與遞移律：「>」與「<」符號在算式中的意義，大小的遞移關係。\n",null,null,null,null,null,null,null,null,null,null,null,null,null,null,"31辛 5-I-3 理解與欣賞美的多元形式與異同。C2","丁 F-I-2 不同解決問題方法或策略的提出與嘗試。",null,null,null,"Ha-Ⅰ-1 網/牆性相關的簡易拋、接、控、擊、持拍及拍、擲、 傳、滾之手眼動作協調、力量及準確的控制",null,null,null,null,null,null,null,null,null,null,null,"5-Ⅱ-9 覺察自己的閱讀理解情況，適時調整策略。A1/A2","◎Bb-Ⅱ-5 藉由敘述事件與描寫景物間接抒情。",null,13,null,null,"Cc精神文化 "]
[null,null,null,null,null,null,null,null,null,null,null,null,null,null,null,null,null,null,null,null,null,null,null,null,null,null,null,null,"R-2-2三數相加，順序改變不影響其和：加法交換律和結合 律的綜合。可併入其他教學 活動。\n",null,null,null,null,null,null,null,null,null,null,null,null,null,null,"32壬 2-I-3 探索生活中的人、事、物，並體會彼此之間會相互影響。C3","丁 F-I-3 時間分配及做事程序的規劃練習。",null,null,null,"Hb-Ⅰ-1 攻守入侵性運動相關的簡易拍、拋、接、擲、傳、滾 及踢、控、停之手眼、手腳動作協調、力量及準確的 控制",null,null,null,null,null,null,null,null,null,null,null,"5-Ⅱ-10  透過大量閱讀，體會閱讀的樂趣。A2/A1","Bb-Ⅱ-6 抒情文本的結構。",null,14,"A"]
[null,null,null,null,null,null,null,null,null,null,null,null,null,null,null,null,null,null,null,null,null,null,null,null,null,null,null,null,"R-2-3兩數相乘的順序不影響其積：乘法交換律。可併入其 他教學活動。\n",null,null,null,null,null,null,null,null,null,null,null,null,null,null,"33壬 5-I-3 理解與欣賞美的多元形式與異同。C3","丁 F-I-4 對自己做事方法或策略的省思與改善。",null,null,null,"Hc-Ⅰ-1 標的性相關的簡易拋、擲、滾之手眼動作協調、力量 及準確的控制",null,null,null,null,null,null,null,null,null,null,null,"5-Ⅱ-11  閱讀多元文本，以認識議題。A1/C3","Bc-Ⅱ-1 具邏輯、客觀、理性的說明，如科學知識、產品、環 境等文本。",null,15,"A"]
[null,null,null,null,null,null,null,null,null,null,null,null,null,null,null,null,null,null,null,null,null,null,null,null,null,null,null,null,"R-2-4加法與減法的關係：加減互逆。應用於驗算與解題。\n",null,null,null,null,null,null,null,null,null,null,null,null,null,null,null,"戊 C-I-2 媒材特性與符號表徵的使用。",null,null,null,"Hd-Ⅰ-1 守備/跑分性相關的簡易拋、接、擲、傳之手眼動作協 調、力量及準確的控制",null,null,null,null,null,null,null,null,null,null,null,"5-Ⅱ-12 主動參與班級、學校或社區的閱讀社群活動。A1/C2","Bc-Ⅱ-2 描述、列舉、因果等寫作手法。",null,16,"A"]
[null,null,null,null,null,null,null,null,null,null,null,null,null,null,null,null,null,null,null,null,null,null,null,null,null,null,null,null,"D-2-1分類與呈現：以操作活動為主。能蒐集、分類、記錄、 呈現資料、生活物件或幾何 形體。討論分類之中還可以再分類的情況。\n",null,null,null,null,null,null,null,null,null,null,null,null,null,null,null,"戊 C-I-4 事理的應用與實踐。",null,null,null,"Ia-Ⅰ-1 滾翻、支撐、平衡、懸垂遊戲",null,null,null,null,null,null,null,null,null,null,null,"6-Ⅱ-1 根據表達需要，使用各種標點符號。A2/B1","◎Bc-Ⅱ-3 數據、圖表、圖片、工具列等輔助說明。"]
[null,null,null,null,null,null,null,null,null,null,null,null,null,null,null,null,null,null,null,null,null,null,null,null,null,null,null,null,null,null,null,null,null,null,null,null,null,null,null,null,null,null,null,null,"戊 C-I-5 知識與方法的運用、組合與創新。",null,null,null,"Ib-Ⅰ-1 唱、跳與模仿性律動遊戲",null,null,null,null,null,null,null,null,null,null,null,"6-Ⅱ-2 培養感受力、想像力等寫作基本能力。A3/A2","Be-Ⅱ-1 在生活應用方面，以日記、海報的格式與寫作方法為主。\n"]
[null,null,null,null,null,null,null,null,null,null,null,null,null,null,null,null,null,null,null,null,null,null,null,null,null,null,null,null,null,null,null,null,null,null,null,null,null,null,null,null,null,null,null,null,"己 B-I-1 自然環境之美的感受。",null,null,null,"Ic-Ⅰ-1 民俗性運動基本動作與遊戲",null,null,null,null,null,null,null,null,null,null,null,"6-Ⅱ-3 學習審題、立意、選材、組織等寫作步驟。B1/A3","Be-Ⅱ-2 在人際溝通方面，以書信、卡片、便條、啟事等慣用語 彙及書寫格式為主。"]
[null,null,null,null,null,null,null,null,null,null,null,null,null,null,null,null,null,null,null,null,null,null,null,null,null,null,null,null,null,null,null,null,null,null,null,null,null,null,null,null,null,null,null,null,"己 B-I-2 社會環境之美的體認。",null,null,null,null,null,null,null,null,null,null,null,null,null,null,null,"6-Ⅱ-4 書寫記敘、應用、說明事物的作品。B1/A2","Be-Ⅱ-3 在學習應用方面，以心得報告的寫作方法為主。",null,null,"B","本土語文"]
[null,null,null,null,null,null,null,null,null,null,null,null,null,null,null,null,null,null,null,null,null,null,null,null,null,null,null,null,null,null,null,null,null,null,null,null,null,null,null,null,null,null,null,null,"己 C-I-2 媒材特性與符號表徵的使用。",null,null,null,null,null,null,null,null,null,null,null,null,null,null,null,"6-Ⅱ-5 仿寫童詩。A3/A2","Be-Ⅱ-4 應用文本的結構。",null,1,"學習表現 ","學習內容"]
[null,null,null,null,null,null,null,null,null,null,null,null,null,null,null,null,null,null,null,null,null,null,null,null,null,null,null,null,null,null,null,null,null,null,null,null,null,null,null,null,null,null,null,null,"己 C-I-4 事理的應用與實踐。",null,null,null,null,null,null,null,null,null,null,null,null,null,null,null,"6-Ⅱ-6 運用改寫、縮寫、擴寫等技巧寫作。A3/A2","Ca-Ⅱ-1 各類文本中的飲食、服飾、交通工具、名勝古蹟及休閒 娛樂等文化內涵。",null,2,"閩南語文科目分為四大類別","面向 ","主題 "]
[null,null,null,null,null,null,null,null,null,null,null,null,null,null,null,null,null,null,null,null,null,null,null,null,null,null,null,null,null,null,null,null,null,null,null,null,null,null,null,null,null,null,null,null,"己 C-I-5 知識與方法的運用、組合與創新。",null,null,null,null,null,null,null,null,null,null,null,null,null,null,null,"6-Ⅱ-7 找出作品的錯誤，並加以修改。A2/A3","Cb-Ⅱ-1 各類文本中的親屬關係、道德倫理、儀式風俗等文化內涵。\n",null,3,"1聆聽","A  語言與文學 ","Aa標音與書寫系統 "]
[null,null,null,null,null,null,null,null,null,null,null,null,null,null,null,null,null,null,null,null,null,null,null,null,null,null,null,null,null,null,null,null,null,null,null,null,null,null,null,null,null,null,null,null,"庚 A-I-3 自我省思。",null,null,null,null,null,null,null,null,null,null,null,null,null,null,null,"6-Ⅱ-8 養成寫作習慣。A3/A1","◎Cb-Ⅱ-2 各類文本中所反映的個人與家庭、鄉里、國族及其他社 群的關係。",null,4,"2說話",null,"Ab 語法語用 "]
[null,null,null,null,null,null,null,null,null,null,null,null,null,null,null,null,null,null,null,null,null,null,null,null,null,null,null,null,null,null,null,null,null,null,null,null,null,null,null,null,null,null,null,null,"庚 B-I-3 環境的探索與愛護。",null,null,null,null,null,null,null,null,null,null,null,null,null,null,null,null,"Cc-Ⅱ-1 各類文本中的藝術、信仰、思想等文化內涵。",null,5,"3閱讀",null,"Ac 文學篇章 ",null,null,null,null,null,null,null,null,null,null,null,"英-E-B2 具備使用各種資訊科技與媒材進行自我學習的能力，以增進英語文聽說讀寫綜合應用能力及文化習俗之理解。 "]
[null,null,null,null,null,null,null,null,null,null,null,null,null,null,null,null,null,null,null,null,null,null,null,null,null,null,null,null,null,null,null,null,null,null,null,null,null,null,null,null,null,null,null,null,"庚 D-I-1 自我與他人關係的認識。",null,null,null,null,null,null,null,null,null,null,null,null,null,null,null,null,null,null,6,"4寫作","B 社會與生活 ","Ba 自我理解 ","Bf 藝術人文 ",null,null,null,null,null,null,null,null,null,null," ","效果，同時養成 的能力。 "]
[null,null,null,null,null,null,null,null,null,null,null,null,null,null,null,null,null,null,null,null,null,null,null,null,null,null,null,null,null,null,null,null,null,null,null,null,null,null,null,null,null,null,null,null,"庚 D-I-2 情緒調整的學習。",null,null,null,null,null,null,null,null,null,null,null,null,null,null,null,null,null,null,7,null,null,"Bb 日常生活 ","Bg 人際溝通 "]
[null,null,null,null,null,null,null,null,null,null,null,null,null,null,null,null,null,null,null,null,null,null,null,null,null,null,null,null,null,null,null,null,null,null,null,null,null,null,null,null,null,null,null,null,"庚 D-I-3 聆聽與回應的表現。",null,null,null,null,null,null,null,null,null,null,null,null,null,null,null,null,null,null,8,null,null,"Bc 社區了解 ","Bh 在地特色 ",null,null,null,null,null,null,null,null,null,null,"閩-E-A1具備認識閩南語文對個人生活的重要性，並能主動學習，進而建立學習閩南語文的能力。 ","閩-E-A1"]
[null,null,null,null,null,null,null,null,null,null,null,null,null,null,null,null,null,null,null,null,null,null,null,null,null,null,null,null,null,null,null,null,null,null,null,null,null,null,null,null,null,null,null,null,"庚 F-I-1 工作任務理解與工作目標設定的練習。",null,null,null,null,null,null,null,null,null,null,null,null,null,null,null,null,null,null,9,null,null,"Bd 環境教育 ","Bi 國際認識 ",null,null,null,null,null,null,null,null,null,null,null,"具備認識閩南語文對個人生活的重要性，並能主動學習，進而建立學習閩南語文的能力。 "]
[null,null,null,null,null,null,null,null,null,null,null,null,null,null,null,null,null,null,null,null,null,null,null,null,null,null,null,null,null,30,31,null,null,null,null,null,null,null,null,null,null,null,null,null,"庚 F-I-2 不同解決問題方法或策略的提出與嘗試。",null,null,null,null,null,null,null,null,null,null,null,null,null,null,null,null,null,null,10,null,null,"Be科技運用 ",null,null,null,null,null,null,null,null,null,null,null,"閩- E -A2具備使用閩南語文進行思考的能力，並用之於日常生活中，以有效處理相關問題。 ","閩- E -A2"]
[null,null,null,null,null,null,null,null,null,null,null,null,null,null,null,null,null,null,null,null,null,null,null,null,null,null,null,null,null,null,null,null,null,null,null,null,null,null,null,null,null,null,null,null,"庚 F-I-3 時間分配及做事程序的規劃練習。",null,null,null,null,null,null,null,null,null,null,null,null,null,null,null,null,null,null,11,null,null,null,null,null,null,null,null,null,null,null,null,null,null,null,"具備使用閩南語文進行思考的能力，並用之於日常生活中，以有效處理相關問題。 "]
[null,null,null,null,null,null,null,null,null,null,null,null,null,null,null,null,null,null,null,null,null,null,null,null,null,null,null,null,null,null,null,null,null,null,null,null,null,null,null,null,null,null,null,null,"庚 F-I-4 對自己做事方法或策略的省思與改善。",null,null,null,null,null,null,null,null,null,null,null,null,null,null,null,null,null,null,12,null,null,null,null,null,null,null,null,null,null,null,null,null,null,"閩- E -A3具備運用閩南語文來擬訂、討論、執行與分享個人生活計畫，以充實自我生活經驗，增進個人適應社會的能力。 ","閩- E -A3"]
[null,null,null,null,null,null,null,null,null,null,null,null,null,null,null,null,null,null,null,null,null,null,null,null,null,null,null,null,null,null,null,null,null,null,null,null,null,null,null,null,null,null,null,null,"辛 D-I-1 自我與他人關係的認識。",null,null,null,null,null,null,null,null,null,null,null,null,null,null,null,null,null,null,13,null,null,null,null,null,null,null,null,null,null,null,null,null,null,null,"具備運用閩南語文來擬訂、討論、執行與分享個人生活計畫，以充實自我生活經驗，增進個人適應社會的能力。 "]
[null,null,null,null,null,null,null,null,null,null,null,null,null,null,null,null,null,null,null,null,null,null,null,null,null,null,null,null,null,null,null,null,null,null,null,null,null,null,null,null,null,null,null,null,"辛 D-I-2 情緒調整的學習。",null,null,null,null,null,null,null,null,null,null,null,null,null,null,null,null,null,null,14,null,null,null,null,null,null,null,null,null,null,null,null,null,null,"閩- E -B1具備理解與使用閩南語文的基本能力，並能從事表達、溝通，以運用於家庭與學校生活之中。 ","閩- E -B1"]
[null,null,null,null,null,null,null,null,null,null,null,null,null,null,null,null,null,null,null,null,null,null,null,null,null,null,null,null,null,null,null,null,null,null,null,null,null,null,null,null,null,null,null,null,"辛 D-I-3 聆聽與回應的表現。",null,null,null,null,null,null,null,null,null,null,null,null,null,null,null,null,null,null,15,null,null,null,null,null,null,null,null,null,null,null,null,null,null,null,"具備理解與使用閩南語文的基本能力，並能從事表達、溝通，以運用於家庭與學校生活之中。 "]
[null,null,null,null,null,null,null,null,null,null,null,null,null,null,null,null,null,null,null,null,null,null,null,null,null,null,null,null,null,null,null,null,null,null,null,null,null,null,null,null,null,null,null,null,"辛 D-I-4 共同工作並相互協助。",null,null,null,null,null,null,null,null,null,null,null,null,null,null,null,null,null,null,null,null,null,null,null,null,null,null,null,null,null,null,null,null,null,"閩- E -B2 具備透過科技、資訊與各類媒體，蒐集閩南語文相關資料，並能認識其正確性，進行整理與運用，以從事閩南語文的學習。 ","閩- E -B2 "]
[null,null,null,null,null,null,null,null,null,null,null,null,null,null,null,null,null,null,null,null,null,null,null,null,null,null,null,null,null,null,null,null,null,null,null,null,null,null,null,null,null,null,null,null,"辛 F-I-1 工作任務理解與工作目標設定的練習。",null,null,null,null,null,null,null,null,null,null,null,null,null,null,null,null,null,null,null,null,null,null,null,null,null,null,null,null,null,null,null,null,null,null,"具備透過科技、資訊與各類媒體，蒐集閩南語文相關資料，並能認識其正確性，進行整理與運用，以從事閩南語文的學習。 "]
[null,null,null,null,null,null,null,null,null,null,null,null,null,null,null,null,null,null,null,null,null,null,null,null,null,null,null,null,null,null,null,null,null,null,null,null,null,null,null,null,null,null,null,null,"辛 F-I-2 不同解決問題方法或策略的提出與嘗試。",null,null,null,null,null,null,null,null,null,null,null,null,null,null,null,null,null,null,null,null,null,null,null,null,null,null,null,null,null,null,null,null,null,"閩- E -B3具備感知與欣賞閩南語文藝術的美感素養，並能融入於日常生活中。 ","閩- E -B3"]
[null,null,"中",null,null,null,null,null,null,null,null,null,null,null,null,null,null,null,null,null,null,null,null,null,null,null,null,null,null,null,null,null,null,null,null,null,null,null,null,null,null,null,null,null,"辛 F-I-3 時間分配及做事程序的規劃練習。",null,null,null,null,null,null,null,null,null,null,null,null,null,null,null,null,null,null,null,null,null,null,null,null,null,null,null,null,null,null,null,null,null,null,"具備感知與欣賞閩南語文藝術的美感素養，並能融入於日常生活中。 "]
[null,null,null,"語文領域-國語文","語文領域-國語文",null,null,"語文領域-本土語文(閩南語)","語文領域-本土語文(閩南語)",null,null,"語文領域-英語文","語文領域-英語文",null,null,"C語文領域-本土語文(客家語文)","C語文領域-本土語文(客家語文)",null,null,"D語文領域-本土語文(原住民族語文)","D語文領域-本土語文(原住民族語文)",null,null,"E語文領域-新住民語文","E語文領域-新住民語文",null,null,"數學","數學",null,null,"自然科學","自然科學",null,null,"藝術","藝術",null,null,"綜合活動","綜合活動",null,null,null,"辛 F-I-4 對自己做事方法或策略的省思與改善。",null,null,"健康與體育","健康與體育",null,null,"科技","科技",null,null,null,null,null,null,null,null,null,null,null,"C","英語文",null,null,null,null,null,null,null,null,null,null,null,null,"閩- E -C1具備透過閩南語文的學習，增進與人友善相處的能力，並能主動參與學校及家庭各類活動，培養責任感，落實生活美德與公民意識。 ","閩- E -C1"]
[null,null,null,"三四年級","三四年級",null,null,"三四年級","三四年級",null,null,"三四年級","三四年級",null,null,"三四年級","三四年級",null,null,"三四年級","三四年級",null,null,"三四年級","三四年級",null,null,"三四年級","三年級",null,null,"三四年級","三四年級",null,null,"三四年級","三四年級",null,null,"三四年級","三四年級",null,null,null,"壬 C-I-1 事物特性與現象的探究。",null,null,"三四年級","三四年級",null,null,"三四年級","三四年級",null,null,null,null,null,null,null,null,null,null,null,"學習表現:分五類",null,"學習內容涵蓋四大主題：",null,null,null,null,null,null,null,null,null,null,null,null,"具備透過閩南語文的學習，增進與人友善相處的能力，並能主動參與學校及家庭各類活動，培養責任感，落實生活美德與公民意識。 "]
[null,null,null,"學習表現","學習內容",null,null,"學習表現","學習內容",null,null,"學習表現","學習內容",null,null,"學習表現","學習內容",null,null,"學習表現","學習內容",null,null,"學習表現","學習內容",null,null,"學習表現","學習內容",null,null,"學習表現","學習內容",null,null,"學習表現","學習內容",null,null,"學習表現","學習內容",null,null,null,"壬 C-I-3 探究生活事物的方法與技能。",null,null,"學習表現","學習內容",null,null,"學習表現","學習內容",null,null,null,null,null,null,null,null,null,null,null,"（一）語言能力","如 1-Ⅱ-9 第1個代碼1=聽","A.語言知識","B.溝通功能","C.文化理解","D.思考能力",null,null,null,null,null,null,null,null,"閩- E -C2具備運用閩南語文的溝通能力，珍愛自己、尊重別人，發揮團隊合作的精神。 ","閩- E -C2"]
[null,null,null,"1-Ⅱ-1 聆聽時能讓對方充分表達意見。C2/B1","Aa-Ⅱ-1 標注注音符號的各類文本。",null,34,"1.聆聽","◎Aa-Ⅱ-1 羅馬拼音。",null,34,"1-Ⅱ-1 能聽辨 26 個字母。A2/B1","Aa-Ⅱ-1 字母名稱。\n",null,null,"1.聆聽","Aa-Ⅱ-1 客家語聲韻調的認唸與拼讀。",null,null,"1-Ⅱ-1 能聽辨語詞的多音節及重音位置。B1","Aa-Ⅱ-1 多音節",null,null,"1-Ⅱ-1主動向他人提出新住民語文的學習問題。\n\nB1","◎Aa-Ⅱ-1 新住民語言的發音與語調。",null,null,"n-II-1理解一億以內數的位值結構，並據以作為各種運算與估算之基礎。A2/B1","N-3-1一萬以內的數：含位值積木操作活動。結合點數、位值表徵、位值表。位值單位「千」。位值單位換算。\n",null,null,"ti-Ⅱ-1能在指導下觀察日常生活現象的規律性，並運用想像力與好奇心，了解及描述自然環境的現象。B1/A1","INa-Ⅱ-1自然界（包含生物與非生物）是由不同物質所組成。",null,null,"1-Ⅱ-1能透過聽唱、聽奏及讀譜建立與展現歌唱及演奏的 基本技巧。A1/B1","音 E-Ⅱ-1多元形式歌曲，如：獨唱、齊唱等。基礎歌唱技巧， 如：聲音探索、姿勢等。",null,null,"1a-II-1展現自己能力、興趣與長處，並表達自己的想法和感受。A1/B1","Aa-II-1自己能做的事。",null,null,null,"壬 B-I-1 自然環境之美的感受。",null,null,"1a-Ⅱ-1 認識身心健康基本概念與意義。A2/A1","Aa-Ⅱ-1 生長發育的意義與成長個別差異的觀察",null,null,"(尚未建檔)","(尚未建檔)",null,null,null,null,null,null,null,null,null,null,null,"（二）學習興趣與態度」","1聽","Aa 為字母",null,null,null,null,null,null,null,null,null,null,null,null,"具備運用閩南語文的溝通能力，珍愛自己、尊重別人，發揮團隊合作的精神。 "]
[null,null,null,"1-Ⅱ-2 具備聆聽不同媒材的基本能力。C3/B1","Ab-Ⅱ-1 1,800 個常用字的字形、字音和字義。",null,null,"1-Ⅱ-1 能應用閩南語標音符號、羅馬字及漢字，協助聆聽理解。B1","◎Aa-Ⅱ-2 漢字書寫。",null,null,"1-Ⅱ-2 能聽辨英語的子音、母音及其基本的組合。A2/B1","Aa-Ⅱ-2 印刷體大小寫字母 的辨識及書 寫。\n",null,null,"1-Ⅱ-1能辨識日常生活對話的語句。B1","Ab-Ⅱ-1 客家語基礎漢字。",null,null,"1-Ⅱ-2 能聽辨日常生活語詞的意義。B1","Aa-Ⅱ-2 規律及移動的重音位置。",null,null,"1-Ⅱ-2 在生活中主動接觸新住民語言與文化。B1","◎Aa-Ⅱ-2 新住民語言的聲調標記。\n",null,null,"n-II-2熟練較大位數之加、減、乘計算或估算，並能應用於日常解題。B1/A1/A3","N-3-2加減直式計算：含加、減法多次進、退位。\n",null,null,"tr-Ⅱ-1能知道觀察、記錄所得自然現象的的結果是有其原因的，並依據習得的知識，說明自己的想法。B1/A3","INa-Ⅱ-2在地球上，物質具有重 量，佔有體積。",null,null,"1-Ⅱ-2能探索視覺元素，並表達自我感受與想像。B1/B3","音 E-Ⅱ-2簡易節奏樂器、曲調樂器的基礎演奏技巧。",null,null,"1b-II-1選擇合宜的學習方法，落實學習行動。A3/B1","Aa-II-2自己感興趣的人、事、物。",null,null,null,"壬 B-I-2社會環境之美的體認。",null,null,"1a-Ⅱ-2 了解促進健康生活的方法。A2/A1","Aa-Ⅱ-2 人生各階段發展的順序與感受",null,null,null,null,null,null,null,null,null,null,null,null,null,null,null,"（三）學習方法與策略」","2說","Ab 為語音",null,null,null,null,null,null,null,null,null,null,null,null," "]
[null,null,null,"1-Ⅱ-3 聽懂適合程度的詩歌、戲劇，並說出聆聽內容的要點。A2/B1","Ab-Ⅱ-2 1,200 個常用字的使用。",null,null,"1-Ⅱ-2 能聆聽與欣賞閩南語相關藝文活動。B1","◎Ab-Ⅱ-1 語詞運用。",null,null,"◎1-Ⅱ-3 能聽辨字詞是單音節或多音節，並辨識重音的音節。A2/B1","◎Ab-Ⅱ-1 子音、母音 及其 組 合。\n",null,null,"1-Ⅱ-2 能養成聆聽客家語文的習慣。B1","Ab-Ⅱ-2 客家語基礎語詞。",null,null,"1-Ⅱ-3 能聽懂簡易教室用語。B1","Ab-Ⅱ-1日常生活語詞。 ",null,null,"2a-Ⅱ-1 能聽辨所學習的新住民語言的簡單句子。\nB1","◎Aa-Ⅱ-3 新住民語言的字母與拼讀系統。",null,null,"n-II-3理解除法的意義，能做計算與估算，並能應用於日常解題。B1/A1/A3","N-3-3乘以一位數：乘法直式計算。教師用位值的概念說明直式計算的合理性。被乘數為二、三位數。\n",null,null,"tc-Ⅱ-1能簡單分辨或分類所觀察到的自然科學現象。A1/B1","INa-Ⅱ-3物質各有其特性，並可以依其特性與用途進行分類。",null,null,"1-Ⅱ-3能試探媒材特性與技法，進行創作。A3/B2","音 E-Ⅱ-3讀譜方式，如：五線譜、唱名法、拍號等。\n",null,null,"1c-II-1覺察工作的意義與重要性。C1/A1","Aa-II-3自我探索的想法與感受。",null,null,null,null,null,null,"1b-Ⅱ-1 認識健康技能和生活技能對健康維護的重要性。A2/A1","Ab-Ⅱ-1 體適能遊戲",null,null,null,null,null,null,null,null,null,null,null,null,null,null,null,"（四）文化與習俗」","3讀","Ac 為字詞",null,null,null,null,null,null,null,null,null,null,null,"閩- E -C3透過閩南語文的學習，培養尊重與包容各種語言與文化多元性的精神。 ","閩- E -C3"]
[null,null,null,"1-Ⅱ-4  根據話語情境，分辨內容是否切題，理解主要內容和情感，並與對方互動。A1/C2","◎Ab-Ⅱ-3 常用字部首及部件的表音及表義功能。",null,null,"1-Ⅱ-3 能聆聽並理解對方所說的閩南語。B1","◎Ab-Ⅱ-2 句型運用。",null,null,"◎1-Ⅱ-4 能聽辨句子的語調。A2/B1","◎ Ab-Ⅱ-2 單音 節、多音節，及重音音節。\n",null,null,"1-Ⅱ-3 能學會運用視聽媒材練習客家語文的聽力。B2/B1","Ac-Ⅱ-1 客家語基礎生活用語。",null,null,"1-Ⅱ-4 能聽辨所學句子語調表達的意義與情緒。B1","Ab-Ⅱ-2數字的多少。 ",null,null,"2a-Ⅱ-2能聽辨新住民語言簡易歌謠和韻文的主要內容。B1","Ab-Ⅱ-1 家庭及學校生活中的新住民語言常用詞彙。",null,null,"n-II-3理解除法的意義，能做計算與估算，並能應用於日常解題。\nB1/A1/A3","N-3-4除法：除法的意義與應用。基於 N-2-9 之學習，透過幾個一數的解題方法，理解如何用乘法解決除法問題。熟練十十乘法範圍的除法，做為估商的基礎。\n",null,null,"tm-Ⅱ-1能經由觀察自然界現象之間的關係，理解簡單的概念模型，進而與其生活經驗連結。A1/A2","INa-Ⅱ-4物質的形態會因溫度的不同而改變。",null,null,"1-Ⅱ-4能感知、探索與表現表演藝術的元素和形式。B3/A1","音 E-Ⅱ-4音樂元素，如：節奏、力度、速度等。",null,null,"1d-II-1覺察情緒的變化，培養正向思考的態度。A2/A1","Ab-II-1有效的學習方法。 ",null,null,null,null,null,null,"1b-Ⅱ-2 辨別生活情境中適用的健康技能和生活技能。A1/A2","Ab-Ⅱ-2 自我身心適能狀況的掌握",null,null,null,null,null,null,null,null,null,null,null,null,null,null,null,"（五）邏輯思考、判斷與創造力」","4寫","Ad 為句構",null,null,null,null,null,null,null,null,null,null,null,null,"透過閩南語文的學習，培養尊重與包容各種語言與文化多元性的精神。 "]
[null,null,null,"2-Ⅱ-1 用清晰語音、適當語速和音量說話。A1/B1","◎Ab-Ⅱ-4 多音字及多義字。",null,null,"2.說話","◎Ab-Ⅱ-3 方音差異。",null,null,"◎1-Ⅱ-5 能聽辨課堂中所學的片語、句子及其重音。A2/B1","◎Ab-Ⅱ-3 片語及 句子的重音。",null,null,"2.說話","Ac-Ⅱ-2 客家語淺易慣用熟語。",null,null,"1-Ⅱ-5 能聽懂簡易會話。B1","Ab-Ⅱ-3教室語詞。",null,null,"2b-Ⅱ-1 能說出所學習的新住民語言的簡單句子。B1","Ac-Ⅱ-1 家庭及學校生活中的新住民語言常用語句。",null,null,"n-II-5在具體情境中，解決兩步驟應用問題。C2/C1/A3","N-3-5除以一位數：除法直式計算。教師用位值的概念說明直式計算的合理性。被除數 為二、三位數。\n",null,null,"po-Ⅱ-1能從日常經驗、學習活動、自然環境，進行觀察，進而能察覺問題。A3/A2","INa-Ⅱ-5太陽照射、物質燃燒和摩擦等可以使溫度升高，運用測量的方法可知溫度高低。",null,null,"1-Ⅱ-5能依據引導，感知與探索音樂元素，嘗試簡易的即興，展現對創作的興趣。B1/A3/B3","音 E-Ⅱ-5簡易即興，如：肢體即興、節奏即興、曲調即興等。",null,null,"2a-II-1覺察自己的人際溝通方式，展現合宜的互動與溝通態度和技巧。C2/B1","Ab-II-2學習行動。",null,null,null,null,null,null,"1c-Ⅱ-1 認識身體活動的動作技能。A2/A1","Ba-Ⅱ-1 居家、交通及戶外環境潛在危機的警覺與安全須知",null,null,null,null,null,null,null,null,null,null,null,null,null,null,null,null,"5綜合應用","Ae 為篇章"]
[null,null,null,"2-Ⅱ-2 運用適當詞語、正確語法表達想法。A1/B1","Ab-Ⅱ-5 3,000 個常用語詞的認念。",null,null,"2-Ⅱ-1 能運用閩南語的標音符號、羅馬字及漢字，協助口語表達。B1","◎Ac-Ⅱ-1 生活故事。",null,null,"◎1-Ⅱ-6 能聽辨句子的節奏。A2/B1","◎Ab-Ⅱ-4 所學的 字母拼讀 規 則（含看字讀\n音、聽音拼 字）。\n",null,null,"2-Ⅱ-1能說明客家文化的組成元素。B1","Ad-Ⅱ-1 客家語簡短文章。",null,null,"2-Ⅱ-1 能正確發出語詞的多音節及重音位置。B1","Ac-Ⅱ-1 句子的重音。 ",null,null,"2b-Ⅱ-2 能複誦和吟唱所學習新住民語言的簡易韻文和 歌謠。B1","Ba-Ⅱ-1與友人互動時的問候規範。",null,null,"n-II-4解決四則估算之日常應用問題。C2/A2/A3","N-3-6解題：乘除應用問題。乘數、被乘數、除數、被除數 未知之應用解題。連結乘與除的關係（R-3-1）。\n",null,null,"po -Ⅱ-2能依據觀察、蒐集資料、閱讀、思考、討論 等，提出問題。B2/A2","INa-Ⅱ-6太陽是地球能量的主要來源，提供生物的生長需要，能量可以各種形式呈現。",null,null,"1-Ⅱ-6能使用視覺元素與想像力，豐富創作主題。A1/B3","視 E-Ⅱ-1色彩感知、造形與空間的探索。",null,null,"2b-II-1體會團隊合作的意義，並能關懷團隊的成員。B1/C2","Ac-II-1工作的意義。",null,null,null,null,null,null,"1c-Ⅱ-2 認識身體活動的傷害和防護概念。A2/A1","Ba-Ⅱ-2 灼燙傷、出血、扭傷的急救處理",null,null,null,null,null,null,null,null,null,null,null,null,null,null,null,null,"6學習興趣與態度"]
[null,null,null,"2-Ⅱ-3 把握說話的重點與順序，對談時能做適當的回應。A1/B1","Ab-Ⅱ-6 2,000 個常用語詞的使用。",null,null,"2-Ⅱ-2 能用閩南語簡單說出日常生活計畫。B1","◎Ac-Ⅱ-2 詵歌短文。",null,null,"◎1-Ⅱ-7 能聽懂課堂中所學的字詞。A2/B1","◎Ac-Ⅱ-1 簡易的教室用語。\n",null,null,"2-Ⅱ-2 能養成使用客家語的習慣。B1","Ad-Ⅱ-2 客家語簡短詵歌。",null,null,"2-Ⅱ-2 能說出所學語詞的意義。B1","Ad-Ⅱ-1 句子節奏（含強弱、停頓、速度等）。 ",null,null,"2c-Ⅱ-1 能閱讀新住民語言歌謠和韻文的主要內容。B1","Ba-Ⅱ-2與家中賓客相處的問候規範。",null,null,"n-II-6理解同分母分數的加、減、整數倍的意義、計算與應用。認識等值分數的意義，並應用於認識簡單異分母分數之比較與加減的意義。\nA1/C1/B1","N-3-6解題：乘除應用問題。乘數、被乘數、除數、被除數 未知之應用解題。連結乘與除的關係（R-3-1）。\n",null,null,"pe-Ⅱ-1能了解一個因素改變可能造成的影響，進而預測活動的大致結果。在教師或教科書的指導或說明下，能了解探究的計畫。B2/A3","INa-Ⅱ-7生物需要能量（養分）、 陽光、空氣、水和土壤，維持生命、生長與活動。",null,null,"1-Ⅱ-7能創作簡短的表演。B1/B3","視 E-Ⅱ-2 媒材、技法及工具知能。",null,null,"2b-II-2參加團體活動，遵守紀律、重視榮譽感，並展現負責的態度。A1/C2","Ac-II-2各種工作的甘苦。",null,null,null,null,null,null,"1d-Ⅱ-1 認識動作技能概念與動作練習的策略。A2/A1","Ba-Ⅱ-3 防火、防震、防颱措施及逃生避難基本技巧的認識",null,null,null,null,null,null,null,null,null,null,null,null,null,null,null,null,"7學習方法與策略"]
[null,null,null,"2-Ⅱ-4 樂於參加討論，提供個人的觀點和意見。A1/C2","Ab-Ⅱ-7 國字組成詞彙的構詞規則。",null,null,"3.閱讀","◎Ba-Ⅱ-1 社交稱謂。",null,null,"◎1-Ⅱ-8 能聽懂簡易的教室用語。A2/B1","◎Ac-Ⅱ-2 簡易的生活用語。\n",null,null,"2-Ⅱ-3 能以客家語回應日常生活對話。B1","Ad-Ⅱ-3 客家語簡短故事。",null,null,"2-Ⅱ-3 能正確模仿句子的語調及所表達的意義與情緒。B1","Ad-Ⅱ-2 自我介紹（含姓名、家族、部落名稱、鄰近部落名稱、 個人訊息等內容）。",null,null,"2d-Ⅱ-1 能書寫所學習新住民語言的簡單句子。B1","Bb-Ⅱ-1 與友人互動時的肢體語言與面部表情。",null,null,"n-II-7理解小數的意義與位值結構，並能做加、減、整數倍的直式計算與應用。C2/A1/B1","N-3-7解題：兩步驟應用問題（加減與除、連乘）。連乘、加與除、減與除之應用解題。 不含併式。\n",null,null,"pe-Ⅱ-2能正確安全操作適合學習階段的物品、器材儀器、科技設備及資源，並能觀察和記錄。A2/B2","INa-Ⅱ-8日常生活中常用的能源。",null,null,"1-Ⅱ-8能結合不同的媒材，以表演的形式表達想法。B1/B2","視 E-Ⅱ-3點線面創作體驗、平面與立體創作、聯想創作。",null,null,"2c-II-1蒐集與整理各類資源，處理個人日常生活問題。B1/A2","Ac-II-3各行業對社會的貢獻。",null,null,"社會","社會",null,null,"1d-Ⅱ-2 描述自己或他人動作技能的正確性。B1/A3/A2","Bb-Ⅱ-1 藥物對健康影響、安全用藥原則與社區藥局的認識",null,null,null,null,null,null,null,null,null,null,null,null,null,null,null,null,"8文化與習俗"]
[null,null,null,"2-Ⅱ-5 與他人溝通時能注重禮貌，並養成說話負責的態度。A1/C1","Ab-Ⅱ-8 詞類的分辨。",null,null,"3-Ⅱ-1 能閱讀日常生活中常見的閩南語文，並了解其意義。B1","◎Bb-Ⅱ-1 數字運用。",null,null,"◎1-Ⅱ-9 能聽懂簡易的日常生活用語。A2/B1","Ac-Ⅱ-3 第二學習 階段所學 字詞。",null,null,"3.閱讀","◎Ae-Ⅱ-1 客家語情意表達。",null,null,"2-Ⅱ-4 能說出簡易教室用語。B1","Ba-Ⅱ-1 身體內臟器官名稱（如：腸、胃）。 ",null,null,"3-Ⅱ-1 能以適當的禮儀與不同文化背景的人互動。\nB1","Bb-Ⅱ-2 新住民與友人互動時的適當手勢、坐姿、衣著等。",null,null,"n-II-8能在數線標示整數、分數、小數並做比較與加減，理解整數、分數、小數都是數。\nC3/C2/B1","N-3-8解題：四則估算。具體生活情境。較大位數之估算策略。能用估算檢驗計算結果的合理性。\n",null,null,"pa-Ⅱ-1能運用簡單分類、製作圖表等方法，整理已有的資訊或數據。B1","INb-Ⅱ-1物質或物體各有不同的功能或用途。",null,null,"2-Ⅱ-4能認識與描述樂曲創作背景，體會音樂與生活的關聯。B3/B1","表 E-Ⅱ-1人聲、動作與空間元素和 表現形式。",null,null,"2d-II-1體察並感知生活中美感的普遍性與多樣性。C3/B3","Ad-II-1情緒的辨識與調適。",null,null,"三四年級","三四年級",null,null,"2a-Ⅱ-1 覺察健康受到個人、家庭、學校等因素之影響。A3/A2","Bb-Ⅱ-2 吸菸、喝酒、嚼檳榔對健康危害的覺察與拒絕技巧",null,null,null,null,null,null,null,null,null,null,null,null,null,null,null,null,"9邏輯思考"]
[null,null,null,"3-Ⅱ-1 運用注音符號，理解生字新詞，提升閱讀效能。A2/B1","Ab-Ⅱ-9 量詞的運用。",null,null,"3-Ⅱ-2 能運用標音符號、羅馬字及漢字認讀日常生活中常見、簡單的閩南語文。B1","◎Bb-Ⅱ-2 交通運輸。",null,null,"◎1-Ⅱ-10 能聽懂簡易句型的句子。A2/B1","B-Ⅱ-1 第二學習階段所 學字 詞及句型的 生活溝通。\n",null,null,"3-Ⅱ-1能閱讀客家語文日常生活常用語句。B1","Ae-Ⅱ-2 客家語簡易說話技巧。",null,null,"2-Ⅱ-5 能正確念出所學的句子節奏。B1","Bb-Ⅱ-1 祖居地或原鄉的部落名稱。 ",null,null,"3-Ⅱ-2 能依循新住民的言語互動行為規範，與親近的新 住民進行生活溝通。B1","Bc-Ⅱ-1  新住民原生國具代表性的人、事、物。\nBc-Ⅱ-2  新住民原生國的都市與鄉村景觀及生活。",null,null,"n-II-9理解長度、角度、面積、容量、重量的常用單位與換算，培養量感與估測能力，並能做計算和應用解題。認識體積。\nA3/B3/A1","N-3-9簡單同分母分數：結合操作活動與整數經驗。簡單同分母分數比較、加、減的 義。牽涉之分數與運算結果皆不超過 2。以單位分數之點數為基礎，連結整數之比較、加、減。知道「和等於 1」的意義。\n",null,null,"pa-Ⅱ-2能從得到的資訊或數據，形成解釋、得到解答、解決問題。並能將自己的探究結果和他人的結果（例如：來自老師）相比較，檢查是否相近。C2/B1","INb-Ⅱ-2物質性質上的差異性可用來區分或分離物質。",null,null,"2-Ⅱ-5能觀察生活物件與藝術作品，並珍視自己與他人的創作。B1/B3","表 E-Ⅱ-2開始、中間與結束的舞蹈 或戲劇小品。",null,null,"2d-II-2分享自己運用創意解決生活問題的經驗與觀察。A2/B1","Ad-II-2正向思的策略。",null,null,"學習表現","學習內容",null,null,"2a-Ⅱ-2 注意健康問題所帶來的威脅感與嚴重性。A2/A3","Bb-Ⅱ-3 無菸家庭與校園健康信念的建立"]
[null,null,null,"3-Ⅱ-2 運用注音符號，檢索資訊，吸收新知。A2/B1","Ab-Ⅱ-10 字辭典的運用。",null,null,"3-Ⅱ-3 能透過閩南語文的閱讀，了解為人處事的道理。B1","◎Bc-Ⅱ-1 社區生活。",null,null,"2-Ⅱ-1 能說出 26 個字母。A2/B1","◎  C-Ⅱ-1 國 內（外）招呼方 式。\n",null,null,"3-Ⅱ-2 能展現閱讀客家日用語句的習慣。B1","Ba-Ⅱ-1 情緒用語。",null,null,"2-Ⅱ-6 能自我介紹。B1","Bb-Ⅱ-2 祖居地或部落的故事。 ",null,null,"3-Ⅱ-3 樂於邀請不同文化背景的人參與社區活動。B1","Bc-Ⅱ-2  新住民原生國的都市與鄉村景觀及生活。",null,null,"n-II-9理解長度、角度、面積、容量、重量的常用單位與換算，培養量感與估測能力，並能做計算和應用解題。認識體積。A3/B3/A1","N-3-10一位小數：認識小數與小數點。結合點數、位值表徵、 位值表。位值單位「十分 位」。位值單位換算。比較、 加減（含直式計算）與解題。\n",null,null,"pc-Ⅱ-1能專注聆聽同學報告，提出疑問或意見。並能對探究方法、過程或結果，進行檢討。A2/C2","INb-Ⅱ-3虹吸現象可用來將容器中的水吸出；連通管可測水平。",null,null,"2-Ⅱ-6能認識國內不同型態的表演藝術。B3/B1","表 E-Ⅱ-3聲音、動作與各種媒材的 組合。",null,null,"3a-II-1覺察生活中潛藏危機的情境，提出並演練減低或避免危險的方法。A3/B2","Ba-II-1自我表達的適切性。",null,null,"1a-Ⅱ-1  辨別社會生活中的事實與意見。C1/A1","Aa-Ⅱ-2  不同群體（可包括年齡、性別、族群、階層、職業、區域或身心特質等）應受到理解、尊重與保護，並避免偏見。",null,null,"2b-Ⅱ-1 遵守健康的生活規範。A2/C1","Bc-Ⅱ-1 暖身、活動部位伸展目的的理解"]
[null,null,null,"4-Ⅱ-1 認識常用國字至少 1,800 字，使用 1,200 字。A2/B1","Ab-Ⅱ-11 筆墨紙硯的使用方法。",null,null,"4.寫作","◎Bd-Ⅱ-1 環境保護。",null,null,"◎2-Ⅱ-2 能唸出英語的語音。A2/B1","◎ C-Ⅱ-2 國內外主要 節慶習 俗。\n",null,null,"3-Ⅱ-3 能認唸與拼讀客家語的聲韻調。B1","◎Ba-Ⅱ-2 社交稱謂。",null,null,"3-Ⅱ-1 能正確拼讀多音節語詞及其重音位置。B1","Bc-Ⅱ-1 文化祭儀活動的主題名稱。 ",null,null,null,"Bc-Ⅱ-3  新住民原生國的主要節慶、習俗、禁忌。",null,null,"n-II-10理解時間的加減運算，並應用於日常的時間加減問題。C2/B1","N-3-11整數數線：認識數線，含報讀與標示。連結數序、長度、 尺的經驗，理解在數線上做比較、加、減的意義。\n",null,null,"pc-Ⅱ-2能利用簡單形式的口語、文字或圖畫等，表達探究之過程、發現。A3/C2","INb-Ⅱ-4生物體的構造與功能是 互相配合的。",null,null,"2-Ⅱ-7能描述自己和他人作品的特徵。A3/A1","音 A-Ⅱ-1器樂曲與聲樂曲，如：獨奏曲、臺灣歌謠、藝術歌曲，以及樂曲之創作背景或歌詞內涵。",null,null,"3b-II-1參與學校或社區服務學習，並分享心得。B1/C1","Ba-II-2與家人、同儕及師長的互動。",null,null,"1a-Ⅱ-2  分辨社會事物的類別或先後順序。C1/A2/A1","Ab-Ⅱ-1   居民的生活方式與空間利用，和其居住地方的自然、人文環境相互影響。",null,null,"2b-Ⅱ-2 願意改善個人的健康習慣。A3/A1","Bc-Ⅱ-2 運動與身體適能相關保健知識"]
[null,null,null,"4-Ⅱ-2 利用共同部件，擴充識字量。A3/A2","Ab-Ⅱ-12 楷書基本筆畫運筆方法。 ",null,null,"4-Ⅱ-1 能運用閩南語文簡單寫出自己的感受與需求。A1/B1","◎Bd-Ⅱ-2 生態保育。",null,null,"◎2-Ⅱ-3 能說出課堂中所學的字詞。A2/B1","◎ D-Ⅱ-1 所學字詞的簡易歸 類。\n",null,null,"4.寫作","Bb-Ⅱ-1 意見表達。",null,null,"3-Ⅱ-2 能讀懂所學的語詞。B1","Bd-Ⅱ-1 祝福語。 ",null,null,null,"Bd-Ⅱ-1 新住民原生國的友人互動方式（包括語言與非語言）與我國的異同。",null,null,"s-II-1理解正方形和長方形的面積與周長公式與應用。A3/B2","N-3-12長度：「毫米」。實測、量感、估測與計算。單位換算。\n",null,null,"ai-Ⅱ-1保持對自然現象的好奇心，透過不斷的探尋和提問，常會有新發現。A2/B3","INb-Ⅱ-5常見動物的外部形態主要分為頭、軀幹和肢， 但不同類別動物之各部位特徵和名稱有差異。",null,null,"3-Ⅱ-1能樂於參與各類藝術活動，探索自己的藝術興趣與能力，並展現欣賞禮儀。A2/B3","音 A-Ⅱ-2 相關音樂語彙，如節奏、力度、速度等描述音樂元素之音樂術語，或相關之一般性用語。",null,null,"3c-II-1參與文化活動，體會文化與生活的關係，並認同與肯定自己的文化。A1/C2","Ba-II-3人際溝通的態度與技巧。",null,null,"1a-Ⅱ-3  舉例說明社會事物與環境的互動、差異或變遷現象。A3/A1","Ac-Ⅱ-2  遇到違反人權的事件，可尋求適當的救助管道。",null,null,"2c-Ⅱ-1 遵守上課規範和運動比賽規則。C2/C1","Bd-Ⅱ-1 武術基本動作"]
[null,null,null,"4-Ⅱ-3  會利用書面或數位方式查字辭典，並能利用字辭典，分辨字詞義。B2/A3","Ab-Ⅱ-13 書法名家故事。",null,null,"4-Ⅱ-2 能運用閩南語文寫出對他人的感謝、關懷與協助。C2/B1","◎Bd-Ⅱ-3 海洋保育。",null,null,"◎2-Ⅱ-4 能使用簡易的教室用語。A2/B1",null,null,null,"4-Ⅱ-1能識別客家語文和其他語文書寫的差異。B1","Bb-Ⅱ-2 簡易生活應對。",null,null,"3-Ⅱ-3 能讀出所學句子的語調及所表達的意義與情緒。B1","Be-Ⅱ-1 唸謠及傳統歌謠。 ",null,null,null,"Bd-Ⅱ-2 新住民原生國的城鄉景觀和生活方式與我國\n的異同。\n",null,null,"s-II-3透過平面圖形的構成要素，認識常見三角形、常見四邊形與圓。B3/A2/A1","N-3-13角與角度（同 S-3-1）：以具體操作為主。初步認識角 和角度。角度的直接比較與 間接比較。認識直角。\n",null,null,"ai-Ⅱ-2透過探討自然與物質世界的規律性，感受發現的樂趣。A2/C1","INb-Ⅱ-6常見植物的外部形態主要由根、莖、葉、花、 果實及種子所組成。",null,null,"3-Ⅱ-2能觀察並體會藝術與生活的關係。C3/B3","音 A-Ⅱ-3肢體動作、語文表述、繪畫、表演等回應方式。",null,null,"3d-II-1覺察生活中環境的問題，探討並執行對環境友善的行動。A3/C1","Bb-II-1團隊合作的意義與重要性。",null,null,"1b-Ⅱ-1  解釋社會事物與環境之間的關係。\nC2/B1","Ad-Ⅱ-1  個人透過參與各行各業的經濟活動，與他人形成分工合作的關係。",null,null,"2c-Ⅱ-2 表現增進團隊合作、友善的互動行為。B1/C2","Bd-Ⅱ-2 技擊基本動作"]
[null,null,null,"4-Ⅱ-4 能分辨形近、音近字詞，並正確使用。A3/A2","Ac-Ⅱ-1 各種標點符號的用法。",null,null,null,"◎Be-Ⅱ-1 數位資源。",null,null,"◎2-Ⅱ-5 能使用簡易的日常生活用語。A2/B1",null,null,null,"4-Ⅱ-2 能建立使用客家語文書寫的習慣。B1","Bc-Ⅱ-1 家務分工。",null,null,"3-Ⅱ-4 能正確朗讀所學的課文。B1","Bf-Ⅱ-1 漁獵獵具用途。 ",null,null,null,"Bd-Ⅱ-3 新住民原生國主要節慶、習俗、禁忌與我國的異同。",null,null,"s-II-4在活動中，認識幾何概念的應用，如旋轉角、展開圖與空間形體。C3/B3","N-3-14面積：「平方公分」。實測、量感、估測與計算。\n",null,null,"ai-Ⅱ-3透過動手實作，享受以成品來表現自己構想的樂趣。A2/B3","INb-Ⅱ-7動植物體的外部形態和內部構造，與其生長、 行為、繁衍後代和適應環境有關。",null,null,"3-Ⅱ-3能為不同對象、空間或情境，選擇音樂、色彩、布置、場景等，以豐富美感經驗。A2/B1/B3","視 A-Ⅱ-1 視覺元素、生活之美、視覺聯想。",null,null,null,"Bb-II-2關懷團隊成員的行動。",null,null,"1c-Ⅱ-1  判斷個人生活或民主社會中各項選擇的合宜性。B2","Ad-Ⅱ-2  人們透過儲蓄與消費，來滿足生活需求。",null,null,"2c-Ⅱ-3 表現主動參與、樂於嘗試的學習態度。A1/B1","Ca-Ⅱ-1 健康社區的意識、責任與維護行動"]
[null,null,null,"4-Ⅱ-5 利用字義推論詞義。A3/A2","Ac-Ⅱ-2 各種基本句型。",null,null,null,"◎Be-Ⅱ-2 影音媒材。",null,null,"◎2-Ⅱ-6 能以正確的發音及適切的語調說出簡易句型的句子。A2/B1",null,null,null,"4-Ⅱ-3 能組織客家語文常用的語句。B1","Bc-Ⅱ-2 同儕互動。",null,null,"3-Ⅱ-5 能讀懂所學的課文內容。B1","Bg-Ⅱ-1陷阱獵物的故事。 ",null,null,null,null,null,null,"r-II-1理解乘除互逆，並能應用與解題。C1/A3","N-3-15容量：「公升」、「毫升」。實測、量感、估測與計算。 單位換算。\n",null,null,"ah-Ⅱ-1透過各種感官了解生活週遭 事物的屬性。B2/A1","INc-Ⅱ-10天空中天體有東升西落的現象，月亮有盈虧的變化，星星則是有些亮有些暗。",null,null,"3-Ⅱ-4能透過物件蒐集或藝術創作，美化生活環境。B2","視 A-Ⅱ-2自然物與人造物、藝術作品與藝術家。",null,null,null,"Bb-II-3團體活動的參與態度。",null,null,"2a-Ⅱ-1  關注居住地方社會事物與環境的互動、差異與變遷等問題。C2/B2/B1","Ba-Ⅱ-1  人們對社會事物的認識、感受與意見有相同之處，亦有差異性。",null,null,"2d-Ⅱ-1 描述參與身體活動的感覺。B1/B3","Ca-Ⅱ-2 人為與自然汙染對健康的影響"]
[null,null,null,"4-Ⅱ-6 掌握偏旁變化和間架結構要領書寫正確及工整的硬筆字。A2/B1","Ac-Ⅱ-3 基礎複句的意義。",null,null,null,"◎Bf-Ⅱ-1 表演藝術。",null,null,"3-Ⅱ-1 能辨識 26 個印刷體大小寫字母。A2/B1",null,null,null,"4-Ⅱ-1能識別客家語文和其他語文書寫的差異。B1","Bc-Ⅱ-3 鄰里社區。",null,null,"4-Ⅱ-1 能正確拼寫單、雙音節語詞。B1"," Bg-Ⅱ-2 部落農人的故事 ",null,null,null,null,null,null,"r-II-2認識一維及二維之數量模式，並能說明與簡單推理。B1/C1","N-3-16重量：「公斤」、「公克」。實測、量感、估測與計算。 單位換算。\n",null,null,"ah-Ⅱ-2透過有系統的分類與表達方 式，與他人溝 通自己的想法與發現。B1/A1","INc-Ⅱ-1使用工具或自訂參考標準可量度與比較。",null,null,"3-Ⅱ-5能透過藝術表現形式，認識與探索群己關係及互動。B1","視 A-Ⅱ-3民俗活動。",null,null,null,"Bc-II-1各類資源的認識與彙整。",null,null,"2a-Ⅱ-2  表達對居住地方社會事物與環境的關懷。\nB3","Bb-Ⅱ-1  居民的生活空間與生活方式具有地區性的差異。",null,null,"2d-Ⅱ-2 表現觀賞者的角色和責任。C1/B3","Cb-Ⅱ-1 安全規則的遵守、運動促進發展的相關知識"]
[null,null,null,"4-Ⅱ-7 習寫以硬筆字為主，毛筆為輔，掌握楷書筆畫的書寫方法。A3/A2","Ac-Ⅱ-4 各類文句的語氣與意義。",null,null,null,"◎Bf-Ⅱ-2 藝術欣賞。",null,null,"◎3-Ⅱ-2 能辨識課堂中所學的字詞。A2/B1",null,null,null,"4-Ⅱ-2 能建立使用客家語文書寫的習慣。B1","Bd-Ⅱ-1 客家社區關懷。",null,null,"4-Ⅱ-2 能書寫教師指令的語詞。B1"," Bg-Ⅱ-3 農耕用具。",null,null,null,null,null,null,"d-II-1報讀與製作一維表格、二維表格與長條圖，報讀折線圖，並據以做簡單推論。C1/B2","N-3-17時間：「日」、「時」、「分」、「秒」。實測、量感、估測 與計算。時間單位的換算。 認識時間加減問題的類型。\n",null,null,"an -Ⅱ-1體會科學的探索都是由問題開始。B2/A2","INc-Ⅱ-2生活中常見的測量單位與度量。",null,null,null,"表 A-Ⅱ-1聲音、動作與劇情的基本元素。",null,null,null,"Bc-II-2個人日常生活問題所需的資源。",null,null,"2b-Ⅱ-1  體認人們對生活事物與環境有不同的感 受，並加以尊重。\nC2/C3/B3","Ca-Ⅱ-2  人口分布與自然、人文環境的變遷相互影響。",null,null,"2d-Ⅱ-3 參與並欣賞多元性身體活動。B3/C3","Cb-Ⅱ-2 學校性運動賽會的認識",null,null,null,null,null,null,null,null,null,null,null,null,null,null,null,"D","數學"]
[null,null,null,"4-Ⅱ-8 知道古今書法名家的故事。C3/A1","Ad-Ⅱ-1 意義段。",null,null,null,"◎Bg-Ⅱ-1生活應對。",null,null,"◎3-Ⅱ-3 能看懂課堂中所學的句子。A3/B1",null,null,null,"4-Ⅱ-3 能組織客家語文常用的語句。B1","Be-Ⅱ-1 時間與氣候。",null,null,"4-Ⅱ-3 能書寫基本句及簡易問候語。B1","Bh-Ⅱ-1 氣候用語（如：晴、雨、陰天等）。",null,null,null,null,null,null,"r-II-3理解兩步驟問題的併式計算與四則混合計算之約定。\nA2/B1","S-3-1角與角度（同 N-3-13）：以具體操作為主。初步認識角和角度。角度的直接比較與間接比較。認識直角。\n",null,null,"an-Ⅱ-2察覺科學家們是利用不同的方式探索自然與物質世界的形式與規律。A2/C2","INc-Ⅱ-3力的表示法，包括大小、方向與作用點等。",null,null,null,"表 A-Ⅱ-2國內表演藝術團體與代表人物。",null,null,null,"Bc-II-3運用資源處理日常生活問題的行動。",null,null,"2b-Ⅱ-2  感受與欣賞不同文化 的特色。C3/B3","Bc-Ⅱ-1  各個族群有不同的命名方式、節慶與風俗習慣。",null,null,"3a-Ⅱ-1 演練基本的健康技能。A2/A1","Cb-Ⅱ-3 奧林匹克運動會的起源知識與主要訴求",null,null,null,null,null,null,null,null,null,null,null,null,null,null,1,"學習表現編碼方式如後:","學習內容的編碼方式如下 "]
[null,null,null,"5-Ⅱ-1 以適切的速率朗讀文本，表現抑揚頓挫與情感。A3/B1","Ad-Ⅱ-2 篇章的大意、主旨與簡單結構。",null,null,null,"◎Bg-Ⅱ-2 口語表達。",null,null,"4-Ⅱ-1 能書寫 26 個印刷體大小寫字母。A2/B1",null,null,null,"4-Ⅱ-2 能建立使用客家語文書寫的習慣。B1","Be-Ⅱ-2 社區環境與景觀。",null,null,"4-Ⅱ-4 能書寫所學的句子。B1",null,null,null,null,null,null,null,"n-II-6理解同分母分數的加、減、整數倍的意義、計算與應用。認識等值分數的意\n義，並應用於認識簡單異分母分數之比較與加減的意義。\nA1/C1/B1","S-3-2正方形和長方形：以邊與角的特徵來定義正方形和長方形。\n",null,null,"an-Ⅱ-3發覺創造和想像是科學的重要元素。C1/C3","INc-Ⅱ-4方向、距離可用以表示物體位置。",null,null,null,"表 A-Ⅱ-3生活事件與動作歷程。",null,null,null,"Bd-II-1生活美感的普遍性與多樣性。",null,null,"2c-Ⅱ-1  省思個人的生活習慣與在群體中的角色扮 演，尊重人我差異，避 免對他人產生偏見。C3/C1","Af-Ⅱ-1不同文化的接觸和交流，可能產生衝突、合作 和創新，並影響在地的生活與文化。",null,null,"3a-Ⅱ-2 能於生活中獨立操作基本的健康技能。A3/A1","Cb-Ⅱ-4 運動活動空間、場域的分辨",null,null,null,null,null,null,null,null,null,null,null,null,null,null,2,"第 1 碼為「表現類別」","第 1 碼為「主題類別」","第 2 碼為「1~12年級階段」別","第 3 碼為流水號"]
[null,null,null,"5-Ⅱ-2 理解各種標點符號的用法。A1/B1","Ad-Ⅱ-3 故事、童詩、現代散文等。",null,null,null,"◎Bh-Ⅱ-1物產景觀。",null,null,"4-Ⅱ-2 能書寫自己的姓名。A2/B1",null,null,null,"4-Ⅱ-3 能組織客家語文常用的語句。B1","Ca-Ⅱ-1 客家祖先祭拜。",null,null,"4-Ⅱ-5 能書寫簡易問候語。B1",null,null,null,null,null,null,null,"n-II-8能在數線標示整數、分數、小數並做比較與加減，理解整數、分數、小數都是\n數。\nC3/C2/B1","S-3-3圓：「圓心」、「圓周」、「半徑」與「直徑」。能使用圓規畫指定半徑的圓。\n",null,null,null,"INc-Ⅱ-5水和空氣可以傳送動力讓物體移動。",null,null,null,"音 P-Ⅱ-1音樂活動、音樂會禮儀。",null,null,null,"Bd-II-2生活美感的體察與感知。",null,null,"1c-Ⅱ-2  澄清及珍視自己的角 色與權利，並具備責任感。C1/A1","Ac-Ⅱ-1  兒童在生活中擁有許多權利（可包括生存權、學習權、表意權、隱私權、身體自主權及不受歧視的權利等）與責任（可包括遵守規範、尊重他人或維護公共利益等）。",null,null,"3b-Ⅱ-1 透過模仿學習，表現基本的自我調適技能。B3/C2","Cc-Ⅱ-1 水域休閒運動基本技能",null,null,null,null,null,null,null,null,null,null,null,null,null,null,3,"以英文小寫字母編碼","分別以英文大寫字母編碼"]
[null,null,null,"◎5-Ⅱ-3 讀懂與學習階段相符的文本。B3/A2","Ba-Ⅱ-1 記敘文本的結構。",null,null,null,"◎Bh-Ⅱ-2 區域人文。",null,null,"4-Ⅱ-3 能臨摹抄寫課堂中所學的字詞。A2/B1",null,null,null,null,"Ca-Ⅱ-2 客家時令習俗。",null,null,"4-Ⅱ-6 能抄寫課文。B1",null,null,null,null,null,null,null,"s-II-2認識平面圖形全等的意義。B3/A2/A1","S-3-4幾何形體之操作：以操作活動為主。平面圖形的分割 與重組。初步體驗展開圖如何黏合成立體形體。知道不同之展開圖可能黏合成同 一形狀之立體形體。\n",null,null,null,"INc-Ⅱ-5水和空氣可以傳送動力讓物體移動。",null,null,null,"音 P-Ⅱ-2音樂與生活。",null,null,null,"Bd-II-3生活問題的創意解決。",null,null,"3c-Ⅱ-1  透過日常觀察與省思，對社會事物與環境提出感興趣的問題。A3/A2","Aa-Ⅱ-1  個人在家庭、學校與社會中有各種不同的角色，個人發展也會受其影響。",null,null,"3b-Ⅱ-2 能於引導下，表現基本的人際溝通互動技能。B1/C2","Cd-Ⅱ-1 戶外休閒運動基本技能",null,null,null,null,null,null,null,null,null,null,null,null,null,null,4," n（數與量）","N（數與量）"]
[null,null,null,"5-Ⅱ-4 掌握句子和段落的意義與主要概念。A3/B1","◎Ba-Ⅱ-2 順敘與倒敘法。",null,null,null,null,null,null,"4-Ⅱ-4 能臨摹抄寫課堂中所學的句子。A2/B1",null,null,null,null,"Cb-Ⅱ-1 客家源流故事。",null,null,"5-Ⅱ-1 能在生活中樂於並主動接觸原住民族語文與文化。B1",null,null,null,null,null,null,null,"r-II-3理解兩步驟問題的併式計算與四則混合計算之約定。A2/B1","R-3-1乘法與除法的關係：乘除互逆。應用於驗算與解題。\n",null,null,null,"INc-Ⅱ-6水有三態變化及毛細現 象。",null,null,null,"視 P-Ⅱ-1在地及各族群藝文活動、 參觀禮儀。",null,null,null,"Ca-II-1生活周遭潛藏危機的情境。",null,null,"3b-Ⅱ-1  透過適當的管道蒐集與學習主題相關的資 料，並判讀其正確性。C3/B2","Cb-Ⅱ-1  居住地方不同時代的重要人物、事件與文物古蹟，可以反映當地的歷史變遷。",null,null,"3b-Ⅱ-3 運用基本的生活技能，因應不同的生活情境。C3/A2","Ce-Ⅱ-1 其他休閒運動基本技能",null,null,null,null,null,null,null,null,null,null,null,null,null,null,5,"s（空間與形狀）","S（空間與形狀）"]
[null,null,null,"5-Ⅱ-5 認識記敘、抒情、說明及應用文本的特徵。A2/B1","◎Bb-Ⅱ-1 自我情感的表達。",null,null,null,null,null,null,"5-Ⅱ-1 能正確地認讀與聽寫 26 個字母。A2/B1",null,null,null,null,"Cc-Ⅱ-1 客家傳統飲食。",null,null,"5-Ⅱ-2 能理解並說出空間方位及時間用語。B1",null,null,null,null,null,null,null,"r-II-4認識兩步驟計算中加減與部分乘除計算的規則並能應用。B1/A2","R-3-2數量模式與推理（I）：以操作活動為主。一維變化模 式之觀察與推理，例如數 列、一維圖表等。\n",null,null,null,"INc-Ⅱ-7利用適當的工具觀察不同大小、距離位置的物體。",null,null,null,"視 P-Ⅱ-2藝術蒐藏、生活實作、環境布置。",null,null,null,"Ca-II-2生活周遭危機情境的辨識方法。",null,null,"3b-Ⅱ-2  摘取相關資料中的重點。C2/B1","Ae-Ⅱ-1 人類為了解決生活需求或滿足好奇心，進行科學和技術的研發，從而改變自然環境與人們的生活。",null,null,"3c-Ⅱ-1 表現聯合性動作技能。A3/A2","Da-Ⅱ-1 良好衛生習慣的建立",null,null,null,null,null,null,null,null,null,null,null,null,null,null,6,"g（坐標幾何）","G（坐標幾何）"]
[null,null,null,"5-Ⅱ-6 運用適合學習階段的摘要策略，擷取大意。A3/A2","◎Bb-Ⅱ-2 人際交流的情感。",null,null,null,null,null,null,"◎5-Ⅱ-2 在聽讀時，能辨識書本中相對應的書寫文字。A2/B1",null,null,null,null,"◎Cc-Ⅱ-2 客家展演藝術。",null,null,"5-Ⅱ-3 能喜愛書寫並理解「我是誰」、「我的性別」、「我的家人/家 族」、「我的部落/社區」「我的山川、河（湖、潭）海」等文 化脈絡。C3/B1",null,null,null,null,null,null,null,"r-II-5理解以文字表示之數學公式。C3/C1","D-3-1一維表格與二維表格：以操作活動為主。報讀、說明 與製作生活中的表格。二維 表格含列聯表。\n",null,null,null,"INc-Ⅱ-8不同的環境有不同的生物生存。",null,null,null,"表 P-Ⅱ-1展演分工與呈現、劇場禮儀。",null,null,null,"Ca-II-3生活周遭潛藏危機的處理與演練。",null,null,"3b-Ⅱ-3  整理資料，製作成簡易的圖表，並加以說明。C2/B1","Cc-Ⅱ-1  各地居民的生活與工作方式會隨著社會變遷而改變。",null,null,"3c-Ⅱ-2 透過身體活動，探索運動潛能與表現正確的身體活動。\nB3/A2","Da-Ⅱ-2 身體各部位的功能與衛生保健的技能",null,null,null,null,null,null,null,null,null,null,null,null,null,null,7,"r（關係）","R（關係）"]
[null,null,null,"5-Ⅱ-7 就文本的觀點，找出支持的理由。A3/A2","Bb-Ⅱ-3 對物或自然的情懷。",null,null,null,null,null,null,"◎5-Ⅱ-3 能以正確的發音及適切的速度朗讀簡易句型的句子。A2/B1",null,null,null,null,"Cd-Ⅱ-1社區人文景觀。",null,null,null,null,null,null,null,null,null,null,null,"N-4-1一億以內的數：位值單位「萬」、「十萬」、「百萬」、「千萬」。建立應用大數時 之計算習慣， 如「 30 萬 1200」與「21 萬 300」的加 減法。\n",null,null,null,"INc-Ⅱ-9地表具有岩石、砂、土壤等不同環境，各有特徵，可以分辨。",null,null,null,"表 P-Ⅱ-2各類形式的表演藝術活動。",null,null,null,"Cb-II-1服務對象的了解與適切服務。",null,null,"3c-Ⅱ-1  聆聽他人的意見，並表達自己的看法。C2","Da-Ⅱ-1  時間與資源有限，個人須在生活中學會做選擇。",null,null,"3d-Ⅱ-1 運用動作技能的練習策略。A2/A1","Db-Ⅱ-1 男女生殖器官的基本功能與差異",null,null,null,null,null,null,null,null,null,null,null,null,null,null,8,"a（代數）","A（代數）"]
[null,null,null,"5-Ⅱ-8 運用預測、推論、提問等策略，增進對文本的理解。B1/A2","◎Bb-Ⅱ-4 直接抒情。",null,null,null,null,null,null,"◎5-Ⅱ-4 能運用所學的字母拼讀規則讀出英文字詞。A2/B1",null,null,null,null,"Cd-Ⅱ-2 社區生態保育。",null,null,null,null,null,null,null,null,null,null,null,"N-4-2較大位數之乘除計算：處理乘數與除數為多位數之乘除直式計算。教師用位值的概念說明直式計算的合理性。\n",null,null,null,"INd -Ⅱ-5自然環境中有砂石及土壤，會因水流、風而發生改變。",null,null,null,"表 P-Ⅱ-3廣播、影視與舞臺等媒介。",null,null,null,"Cb-II-2服務行動的參與與分享。",null,null,"3c-Ⅱ-2  透過同儕合作進行體驗、探究與實作。\nC3/C2","Bc-Ⅱ-2  家庭有不同的成員組成方式；每個家庭所重視的價值有其異同。",null,null,"3d-Ⅱ-2 運用遊戲的合作和競爭策略。A3/C2","Db-Ⅱ-2 性別角色刻板現象的辨識並與不同性別者良好互動",null,null,null,null,null,null,null,null,null,null,null,null,null,null,9,"f（函數）","F（函數）"]
[null,null,null,"5-Ⅱ-9 覺察自己的閱讀理解情況，適時調整策略。A1/A2","◎Bb-Ⅱ-5 藉由敘述事件與描寫景物間接抒情。",null,null,null,null,null,null,"6-Ⅱ-1 能專注於教師的說明與演示。B1/A1",null,null,null,null,"Cd-Ⅱ-1社區人文景觀。",null,null,null,null,null,null,null,null,null,null,null,"N-4-2較大位數之乘除計算：處理乘數與除數為多位數之乘除直式計算。教師用位值的概念說明直式計算的合理性。\n",null,null,null,"INd-Ⅱ-1當受外在因素作用時，物質或自然現象可能會改變。改變有些較快、有些較慢；有些可以回復， 有些則不能。",null,null,null,"表 P-Ⅱ-4劇場遊戲、即興活動、角色扮演。",null,null,null,"Cc-II-1文化活動的參與。",null,null,"3d-Ⅱ-1  探究問題發生的原因與影響，並尋求解決 問題的可能做法。A3/A2","Da-Ⅱ-2  個人生活習慣和方式的選擇，對環境與社會價值觀有不同的影響。",null,null,"4a-Ⅱ-1 能於日常生活中，運用健康資訊、產品與服務。C1/B2","Db-Ⅱ-3 身體自主權的維護與尊重及其危害的防範與求助",null,null,null,null,null,null,null,null,null,null,null,null,null,null,10,"d（資料與不確定性）","D（資料與不確定性）"]
[null,null,null,"5-Ⅱ-10  透過大量閱讀，體會閱讀的樂趣。A2/A1","Bb-Ⅱ-6 抒情文本的結構。",null,null,null,null,null,null,"6-Ⅱ-2 積極參與各種課堂練習活動。A1/C2",null,null,null,null,"Cd-Ⅱ-2 社區生態保育。",null,null,null,null,null,null,null,null,null,null,null,"N-4-3解題：兩步驟應用問題（乘除，連除）。乘與除、連除之應用解題。\n",null,null,null,"INd-Ⅱ-2 物質或自然現象的改變情形，可以運用測量的工具和方法得知。",null,null,null,null,null,null,null,"Cc-II-2文化與生活的關係及省思。",null,null,"3d-Ⅱ-2  評估與選擇可能的做法，嘗試解決問題。A3/A2","Ca-Ⅱ-1  居住地方的環境隨著社會與經濟的發展而改變。",null,null,"4a-Ⅱ-2 展現促進健康的行為。A3/B3","Ea-Ⅱ-1 食物與營養的種類和需求",null,null,null,null,null,null,null,null,null,null,null,null,null,null,11]
[null,null,null,"5-Ⅱ-11  閱讀多元文本，以認識議題。A1/C3","Bc-Ⅱ-1 具邏輯、客觀、理性的說明，如科學知識、產品、環 境等文本。",null,null,null,null,null,null,"6-Ⅱ-3 樂於回答教師或同學所提的問題。A1/C2",null,null,null,null,null,null,null,null,null,null,null,null,null,null,null,null,"N-4-3解題：兩步驟應用問題（乘除，連除）。乘與除、連除之應用解題。\n",null,null,null,"INd-Ⅱ-3生物從出生、成長到死 亡有一定的壽命，透過生殖繁衍下一代。",null,null,null,null,null,null,null,"Cc-II-3對自己文化的認同與肯定。",null,null,"3d-Ⅱ-3  將問題解決的過程與結果，進行報告分享或實作展演。B1/A2","Db-Ⅱ-1  滿足需要的資源有限，在進行各項消費時要做評估再選擇。",null,null,"4b-Ⅱ-1 清楚說明個人對促進健康的立場。B1/A3","Ea-Ⅱ-2 飲食搭配、攝取量與家庭飲食型態",null,null,null,null,null,null,null,null,null,null,null,null,null,null,12]
[null,null,null,"5-Ⅱ-12 主動參與班級、學校或社區的閱讀社群活動。A1/C2","Bc-Ⅱ-2 描述、列舉、因果等寫作手法。",null,null,null,null,null,null,"6-Ⅱ-4 認真完成教師交待的作業。A2/A1",null,null,null,null,null,null,null,null,null,null,null,null,null,null,null,null,"N-4-4解題：對大數取概數。具體生活情境。四捨五入法、無條件進入、無條件捨去。含運用概數做估算。近似符號「≈」的使用。\n",null,null,null,"INd-Ⅱ-4空氣流動產生風。",null,null,null,null,null,null,null,"Cd-II-1生活中環境問題的覺察。",null,null,null,"Dc-Ⅱ-1班級與學校公共事務的安排，可以透過師生適切的討論歷程做出決定。",null,null,"4b-Ⅱ-2 使用事實證據來支持自己促進健康的立場。B2/B1","Ea-Ⅱ-3 飲食選擇的影響因素",null,null,null,null,null,null,null,null,null,null,null,null,null,null,13]
[null,null,null,"6-Ⅱ-1 根據表達需要，使用各種標點符號。A2/B1","◎Bc-Ⅱ-3 數據、圖表、圖片、工具列等輔助說明。",null,null,null,null,null,null,"7-Ⅱ-1 善用預習、複習強化學習效果。A2/A1",null,null,null,null,null,null,null,null,null,null,null,null,null,null,null,null,"N-4-5同分母分數：一般同分母分數教學（包括「真分數」、「假分數」、「帶分數」名 詞引入）。假分數和帶分數之變換。同分母分數的比較、加、減與整數倍。\n",null,null,null,"INd-Ⅱ-6一年四季氣溫會有所變化，天氣也會有所不同。氣象報告可以讓我們知道天氣的可能變化。",null,null,null,null,null,null,null,"Cd-II-2環境友善的行動與分享。",null,null,null,null,null,null,"4c-Ⅱ-1 了解影響運動參與的因素，選擇提高體適能的運動計畫與資源。\nB2/A3","Eb-Ⅱ-1 健康安全消費的原則與訊息覺察",null,null,null,null,null,null,null,null,null,null,null,null,null,null,14]
[null,null,null,"6-Ⅱ-2 培養感受力、想像力等寫作基本能力。A3/A2","Be-Ⅱ-1 在生活應用方面，以日記、海報的格式與寫作方法為主。\n",null,null,null,null,null,null,"7-Ⅱ-2 能妥善運用情境中的非語言訊息以幫助學習。B2/A1",null,null,null,null,null,null,null,null,null,null,null,null,null,null,null,null,"N-4-6等值分數：由操作活動中理解等值分數的意義。簡單異分母分數的比較、加、減的意義。簡單分數與小數的互換。\n",null,null,null,"INd-Ⅱ-7天氣預報常用雨量、溫度、風向、風速等資料來表達天氣狀態，這些資料可以使用適當儀器測得。",null,null,null,null,null,null,null,null,null,null,null,null,null,null,"4c-Ⅱ-2 了解個人體適能與基本運動能力表現。A2/A1","Fa-Ⅱ-1 個人價值感的建立",null,null,null,null,null,null,null,null,null,null,null,null,null,null,15]
[null,null,null,"6-Ⅱ-3 學習審題、立意、選材、組織等寫作步驟。B1/A3","Be-Ⅱ-2 在人際溝通方面，以書信、卡片、便條、啟事等慣用語 彙及書寫格式為主。",null,null,null,null,null,null,"◎8-Ⅱ-1 能了解國內外基本的招呼方式。B1/C3",null,null,null,null,null,null,null,null,null,null,null,null,null,null,null,null,"N-4-7二位小數：位值單位「百分位」。位值單位換算。比較、 計算與解題。用直式計算二 位小數的加、減與整數倍。\n",null,null,null,"INd-Ⅱ-8力有各種不同的形式。",null,null,null,null,null,null,null,null,null,null,null,null,null,null,"4d-Ⅱ-1 培養規律運動的習慣並分享身體活動的益處。C1/A3","Fa-Ⅱ-2 家人、朋友良好的溝通與相處技巧"]
[null,null,null,"6-Ⅱ-4 書寫記敘、應用、說明事物的作品。B1/A2","Be-Ⅱ-3 在學習應用方面，以心得報告的寫作方法為主。",null,null,null,null,null,null,"◎8-Ⅱ-2 能了解課堂中所介紹的國內主要節慶習俗。B1/C3",null,null,null,null,null,null,null,null,null,null,null,null,null,null,null,null,"N-4-8數線與分數、小數：連結分小數長度量的經驗。以標記 和簡單的比較與計算，建立 整數、分數、小數一體的認 識。\n",null,null,null,"INd-Ⅱ-9施力可能會使物體改變運動情形或形狀；當物體受力變形時，有的可恢復原狀，有的不能恢復原狀。",null,null,null,null,null,null,null,null,null,null,null,null,null,null,"4d-Ⅱ-2 參與提高體適能與基本運動能力的身體活動。C1/A3","Fa-Ⅱ-3 情緒的調適方法"]
[null,null,null,"6-Ⅱ-5 仿寫童詩。A3/A2","Be-Ⅱ-4 應用文本的結構。",null,null,null,null,null,null,"◎8-Ⅱ-3 能了解課堂中所介紹的國外主要節慶習俗。B1/C3",null,null,null,null,null,null,null,null,null,null,null,null,null,null,null,null,"N-4-9長度：「公里」。生活實例之應用。含其他長度單位的換算與計算。\n",null,null,null,"INe-Ⅱ-11環境的變化會影響植物生長。",null,null,null,null,null,null,null,null,null,null,null,null,null,null,null,"Fb-Ⅱ-1 自我健康狀態檢視及健康行為的維持"]
[null,null,null,"6-Ⅱ-6 運用改寫、縮寫、擴寫等技巧寫作。A3/A2","Ca-Ⅱ-1 各類文本中的飲食、服飾、交通工具、名勝古蹟及休閒 娛樂等文化內涵。",null,null,null,null,null,null,"◎9-Ⅱ-1 能夠將所學字詞做簡易歸類。B1/A2",null,null,null,null,null,null,null,null,null,null,null,null,null,null,null,null,"N-4-10角度：「度」（同 S-4-1）。量角器的操作。實測、估測 與計算。以角的合成認識 180 度到 360 度之間的角 度。「平角」、「周角」。 指定角度作圖。\n",null,null,null,"INe-Ⅱ-10動物的感覺器官接受外 界刺激會引起生理和行為反應。",null,null,null,null,null,null,null,null,null,null,null,null,null,null,null,"Fb-Ⅱ-2 常見傳染病預防原則與自我照護"]
[null,null,null,"6-Ⅱ-7 找出作品的錯誤，並加以修改。A2/A3","Cb-Ⅱ-1 各類文本中的親屬關係、道德倫理、儀式風俗等文化內涵。\n",null,null,null,null,null,null,null,null,null,null,null,null,null,null,null,null,null,null,null,null,null,null,null,"N-4-11面積：「平方公尺」。實測、量感、估測與計算。\n",null,null,null,"INe-Ⅱ-1自然界的物體、生物、環境間常會相互影響。",null,null,null,null,null,null,null,null,null,null,null,null,null,null,null,"Fb-Ⅱ-3 健保醫療服務與資源的正確運用",null,null,null,null,null,null,null,null,null,null,null,null,null,null,null,"E","社會"]
[null,null,null,"6-Ⅱ-8 養成寫作習慣。A3/A1","◎Cb-Ⅱ-2 各類文本中所反映的個人與家庭、鄉里、國族及其他社 群的關係。",null,null,null,null,null,null,null,null,null,null,null,null,null,null,null,null,null,null,null,null,null,null,null,"N-4-12體積與「立方公分」：以具體操作為主。體積認識基於 1 立方公分之正方體。\n",null,null,null,"INe-Ⅱ-2溫度會影響物質在水中 溶解的程度（定性）及物 質燃燒、生鏽、發酵等現 象。",null,null,null,null,null,null,null,null,null,null,null,null,null,null,null,"Ga-Ⅱ-1 跑、跳與行進間投擲的遊戲",null,null,null,null,null,null,null,null,null,null,null,null,null,null,1,"學習表現三面向","共同架構3項目",null,null,"學習內容","四個主題軸ABCBD為統整架構"]
[null,null,null,null,"Cc-Ⅱ-1 各類文本中的藝術、信仰、思想等文化內涵。",null,null,null,null,null,null,null,null,null,null,null,null,null,null,null,null,null,null,null,null,null,null,null,"N-4-13解題：日常生活的時間加減問題。跨時、跨午、跨日、24 小時制。含時間單位換算。\n",null,null,null,"INe-Ⅱ-3有些物質溶於水中，有些物質不容易溶於水中。",null,null,null,null,null,null,null,null,null,null,null,null,null,null,null,"Gb-Ⅱ-1 戶外戲水安全知識、離地蹬牆漂浮",null,null,null,null,null,null,null,null,null,null,null,null,null,null,2,"認知歷程","1.理解及思辨","2.態度及價值","3.技能、實作及參與","A互動與關聯","B差異與多元","C變遷與因果","D選擇與責任"]
[null,null,null,null,null,null,null,null,null,null,null,null,null,null,null,null,null,null,null,null,null,null,null,null,null,null,null,null,"S-4-1角度：「度」（同 N-4-10）。量角器的操作。實測、估測與計算。以角的合成認識 180 度到 360 度之間的角度。「平角」、「周角」。指定角度作圖。\n",null,null,null,"INe-Ⅱ-4常見食物的酸鹼性有時 可利用氣味、觸覺、味覺 簡單區分，花卉、菜葉會 因接觸到酸鹼而改變顏 色。",null,null,null,null,null,null,null,null,null,null,null,null,null,null,null,"Gb-Ⅱ-1 戶外戲水安全知識、離地蹬牆漂浮",null,null,null,null,null,null,null,null,null,null,null,null,null,null,3,"情意態度","1a.覺察說明","2a.敏覺關懷","3a.問題發現","Aa.個人與群體","Ba.個體差異","Ca.環境的變遷","Da.價值的選擇"]
[null,null,null,null,null,null,null,null,null,null,null,null,null,null,null,null,null,null,null,null,null,null,null,null,null,null,null,null,"S-4-2解題：旋轉角。以具體操作為主，並結合計算。以鐘面為模型討論從始邊轉到終邊所轉的角度。旋轉有兩個方向：「順時針」、「逆時 針」。「平角」、「周角」。\n",null,null,null,"INe-Ⅱ-5生活周遭有各種的聲 音；物體振動會產生聲 音，聲音可以透過固體、液體、氣體傳播。不同的動物會發出不同的聲音，並且作為溝通的方 式。",null,null,null,null,null,null,null,null,null,null,null,null,null,null,null,"Gb-Ⅱ-2 打水前進、簡易性游泳遊戲",null,null,null,null,null,null,null,null,null,null,null,null,null,null,4,"技能行動","1b.分析詮釋","2b.同理尊重","3b.資料蒐整與應用","Ab.人與環境","Bb.環境差","Cb.歷史的變遷","Db.經濟的選擇"]
[null,null,null,null,null,null,34,null,null,null,34,null,null,null,null,null,null,null,null,null,null,null,null,null,null,null,null,null,"S-4-3正方形與長方形的面積與周長：理解邊長與周長或面 積的關係，並能理解其公式 與應用。簡單複合圖形。\n",null,null,null,"INe-Ⅱ-6光線以直線前進，反射時有一定的方向。",null,null,null,null,null,null,null,null,null,null,null,null,null,null,null,"Ha-Ⅱ-1 網/牆性相關的拋接球、持拍控球、擊球及拍擊球、傳 接球之時間、空間及人與人、人與球關係攻防概念",null,null,null,null,null,null,null,null,null,null,null,null,null,null,5,null,"1c.判斷創新","2c.自省珍視","3c.溝通合作","Ac.權力、規則與人權","Bc.社會與文化的差異","Cc.社會的變遷","Dc.參與公共事務的選擇"]
[null,null,null,null,null,null,null,null,null,null,null,null,null,null,null,null,null,null,null,null,null,null,null,null,null,null,null,null,"S-4-4體積：以具體操作為主。在活動中認識體積的意義與 比較。認識 1 立方公分之正方體，能理解並計數正方體堆疊的體積。\n",null,null,null,"INe-Ⅱ-7磁鐵具有兩極，同極相 斥，異極相吸；磁鐵會吸 引含鐵的物體。磁力強 弱可由吸起含鐵物質數 量多寡得知。",null,null,null,null,null,null,null,null,null,null,null,null,null,null,null,null,null,null,null,null,null,null,null,null,null,null,null,null,null,null,6,null,null,null,"3d.規劃執行","Ad.生產與消費",null,"Cd.政治的變遷"]
[null,null,null,null,null,null,null,null,null,null,null,null,null,null,null,null,null,null,null,null,null,null,null,null,null,null,null,null,"S-4-5垂直與平行：以具體操作為主。直角是 90 度。直角 常用記號。垂直於一線的兩 線相互平行。平行線間距離處處相等。作垂直線；作平行線。\n",null,null,null,"INe-Ⅱ-8物質可分為電的良導體 和不良導體，將電池用電線或良導體接成通 路，可使燈泡發光、馬達 轉動。",null,null,null,null,null,null,null,null,null,null,null,null,null,null,null,null,null,null,null,null,null,null,null,null,null,null,null,null,null,null,7,null,null,null,null,"Ae.科技與社會",null,"Ce.經濟的變遷"]
[null,null,null,null,null,null,null,null,null,null,null,null,null,null,null,null,null,null,null,null,null,null,null,null,null,null,null,null,"S-4-6平面圖形的全等：以具體操作為主。形狀大小一樣的 兩圖形全等。能用平移、旋 轉、翻轉做全等疊合。全等 圖形之對應角相等、對應邊 相等。\n",null,null,null,"INe-Ⅱ-9電池或燈泡可以有串聯和並聯的接法，不同的接法會產生不同的效果。",null,null,null,null,null,null,null,null,null,null,null,null,null,null,null,null,null,null,null,null,null,null,null,null,null,null,null,null,null,null,8,null,null,null,null,"Af.全球關連"]
[null,null,null,null,null,null,null,null,null,null,null,null,null,null,null,null,null,null,null,null,null,null,null,null,null,null,null,null,"S-4-7三角形：以邊與角的特徵認識特殊三角形並能作圖。如正三角形、等腰三角形、直角三角形、銳角三角形、鈍角三角形。\n",null,null,null,"INf-Ⅱ-1日常生活中常見的科技產品。",null,null,null,null,null,null,null,null,null,null,null,null,null,null,null,null,null,null,null,null,null,null,null,null,null,null,null,null,null,null,9]
[null,null,null,null,null,null,null,null,null,null,null,null,null,null,null,null,null,null,null,null,null,null,null,null,null,null,null,null,"S-4-8四邊形：以邊與角的特徵（含平行）認識特殊四邊形 並能作圖。如正方形、長方 形、平行四邊形、菱形、梯 形。\n",null,null,null,"INf-Ⅱ-2不同的環境影響人類食物的種類、來源與飲食習慣。",null,null,null,null,null,null,null,null,null,null,null,null,null,null,null,null,null,null,null,null,null,null,null,null,null,null,null,null,null,null,10]
[null,null,null,null,null,null,null,null,null,null,null,null,null,null,null,null,null,null,null,null,null,null,null,null,null,null,null,null,"R-4-1兩步驟問題併式：併式是代數學習的重要基礎。含四 則混合計算的約定（由左往 右算、先乘除後加減、括號 先算）。學習逐次減項計算。\n",null,null,null,"INf-Ⅱ-3自然的規律與變化對人類生活應用與美感的啟發。",null,null,null,null,null,null,null,null,null,null,null,null,null,null,null,null,null,null,null,null,null,null,null,null,null,null,null,null,null,null,11]
[null,null,null,null,null,null,null,null,null,null,null,null,null,null,null,null,null,null,null,null,null,null,null,null,null,null,null,null,"R-4-2四則計算規律（I）：兩步驟計算規則。加減混合計算、乘除混合計算。在四則 混合計算中運用數的運算 性質。\n",null,null,null,"INf-Ⅱ-4季節的變化與人類生活的關係。",null,null,null,null,null,null,null,null,null,null,null,null,null,null,null,null,null,null,null,null,null,null,null,null,null,null,null,null,null,null,12]
[null,null,null,null,null,null,null,null,null,null,null,null,null,null,null,null,null,null,null,null,null,null,null,null,null,null,null,null,"R-4-3以文字表示數學公式：理解以文字和運算符號聯合 表示的數學公式，並能應用 公式。可併入其他教學活動（如 S-4-3）。\n",null,null,null,"INf-Ⅱ-5人類活動對環境造成影響。",null,null,null,null,null,null,null,null,null,null,null,null,null,null,null,null,null,null,null,null,null,null,null,null,null,null,null,null,null,null,13]
[null,null,null,null,null,null,null,null,null,null,null,null,null,null,null,null,null,null,null,null,null,null,null,null,null,null,null,null,"R-4-4數量模式與推理（II）：以操作活動為主。二維變化模式之觀察與推理，如二維數字圖之推理。奇數與偶數， 及其加、減、乘模式。\n",null,null,null,"INf-Ⅱ-6地震會造成嚴重的災害，平時的準備與防震能降低損害。",null,null,null,null,null,null,null,null,null,null,null,null,null,null,null,null,null,null,null,null,null,null,null,null,null,null,null,null,null,null,14]
[null,null,null,null,null,null,null,null,null,null,null,null,null,null,null,null,null,null,null,null,null,null,null,null,null,null,null,null,"D-4-1報讀長條圖與折線圖以及製作長條圖：報讀與說明生活中的長條圖與折線圖。 配合其他領域課程，學習製作長條圖。\n",null,null,null,"INf-Ⅱ-7水與空氣汙染會對生物 產生影響。",null,null,null,null,null,null,null,null,null,null,null,null,null,null,null,null,null,null,null,null,null,null,null,null,null,null,null,null,null,null,15]
[null,null,null,null,null,null,null,null,null,null,null,null,null,null,null,null,null,null,null,null,null,null,null,null,null,null,null,null,null,null,null,null,"INg-Ⅱ-1自然環境中有許多資源。人類生存與生活需依賴自然環境中的各種資源，但自然資源都是有限的，需要珍惜使用。"]
[null,null,null,null,null,null,null,null,null,null,null,null,null,null,null,null,null,null,null,null,null,null,null,null,null,null,null,null,null,null,null,null,"INg-Ⅱ-2地球資源永續可結合日常生活中低碳與節水方法做起。"]
[null,null,null,null,null,null,null,null,null,null,null,null,null,null,null,null,null,null,null,null,null,null,null,null,null,null,null,null,null,null,null,null,"INg-Ⅱ-3可利用垃圾減量、資源回收、節約能源等方法來保護環境。"]
[]
[null,null,null,null,null,null,null,null,null,null,null,null,null,null,null,null,null,null,null,null,null,null,null,null,null,null,null,null,null,null,null,null,null,null,null,null,null,null,null,null,null,null,null,null,null,null,null,null,null,null,null,null,null,null,null,null,null,null,null,null,null,null,null,null,"F","藝術","學習重點 ","學習構面(第1碼)","學習階段(第2碼):","流水號(第3碼):","Ⅱ、Ⅲ、Ⅳ、V","1.2.3…","Ⅱ中年級"]
[null,null,null,null,null,null,null,null,null,null,null,null,null,null,null,null,null,null,null,null,null,null,null,null,null,null,null,null,null,null,null,null,null,null,null,null,null,null,null,null,null,null,null,null,null,null,null,null,null,null,null,null,null,null,null,null,null,null,null,null,null,null,null,1]
[null,null,null,null,null,null,null,null,null,null,null,null,null,null,null,null,null,null,null,null,null,null,null,null,null,null,null,null,null,null,null,null,null,null,null,null,null,null,null,null,null,null,null,null,null,null,null,null,null,null,null,null,null,null,null,null,null,null,null,null,null,null,null,2,"科目縮寫：","學習表現 :","學習內容 :"]
[null,null,null,null,null,null,null,null,null,null,null,null,null,null,null,null,null,null,null,null,null,null,null,null,null,null,null,null,null,null,null,null,null,null,null,null,null,null,null,null,null,null,null,null,null,null,null,null,null,null,null,null,null,null,null,null,null,null,null,null,null,null,null,3,"「音」音樂","1表現","E 代表表現 Expression"]
[null,null,"高",null,null,null,null,null,null,null,null,null,null,null,null,null,null,null,null,null,null,null,null,null,null,null,null,null,null,null,null,null,null,null,null,null,null,null,null,null,null,null,null,null,null,null,null,null,null,null,null,null,null,null,null,null,null,null,null,null,null,null,null,4,"「視」視覺藝術","2鑑賞","A 代表鑑賞Ａppreciation"]
[null,null,null,"語文領域-國語文","語文領域-國語文",null,null,"語文領域-本土語文(閩南語)","語文領域-本土語文(閩南語)",null,null,"語文領域-英語文","語文領域-英語文",null,null,"C語文領域-本土語文(客家語文)","C語文領域-本土語文(客家語文)",null,null,"D語文領域-本土語文(原住民族語文)","D語文領域-本土語文(原住民族語文)",null,null,"E語文領域-新住民語文","E語文領域-新住民語文",null,null,"數學","數學",null,null,"自然科學","自然科學",null,null,"藝術","藝術",null,null,"綜合活動","綜合活動",null,null,null,null,null,null,"健康與體育","健康與體育",null,null,"科技","科技",null,null,null,null,null,null,null,null,null,null,5,"「表」表演藝術","3實踐","P 代表實踐 Practice"]
[null,null,null,"五六年級","五六年級",null,null,"五六年級","五六年級",null,null,"五六年級","五六年級",null,null,"五六年級","五六年級",null,null,"五六年級","五六年級",null,null,"五六年級","五六年級",null,null,"五六年級","五年級",null,null,"五六年級","五六年級",null,null,"五六年級","五六年級",null,null,"五六年級","五六年級",null,null,null,null,null,null,"五六年級","五六年級",null,null,"五六年級","五六年級",null,null,null,null,null,null,null,null,null,null,6,"「美」美術"]
[null,null,null,"學習表現","學習內容",null,null,"學習表現","學習內容",null,null,"學習表現","學習內容",null,null,"學習表現","學習內容",null,null,"學習表現","學習內容",null,null,"學習表現","學習內容",null,null,"學習表現","學習內容",null,null,"學習表現","學習內容",null,null,"學習表現","學習內容",null,null,"學習表現","學習內容",null,null,null,null,null,null,"學習表現","學習內容",null,null,"學習表現","學習內容",null,null,null,null,null,null,null,null,null,null,7,"「藝」藝術生活"]
[null,null,null,"1-Ⅲ-1 能夠聆聽他人的發言，並簡要記錄。B1/C2","Ab-Ⅲ-1-2,700 個常用字的字形、字音和字義。",null,56,"1.聆聽","◎Aa-Ⅲ-1 羅馬拼音。",null,56,"1-Ⅲ-1 能聽辨英語的子音、母音及其不同的組合。A2/B1","◎Ab-Ⅲ-1 子音、母音及其組合。\n",null,null,"1.聆聽","Aa-Ⅲ-1 客家語聲韻調的書寫。",null,null,"1-Ⅲ-1 能正確聽辨語詞的意義。B1","Aa-Ⅲ-1 日常生活對話語調所表達的意義與情緒。",null,null,"1-Ⅲ-1主動運用各類媒材認識新住民語言與文化。B1","◎Aa-Ⅲ-1 新住民語言的發音與語調。\n",null,null,"n-III-1理解數的十進位的位值結構，並能據以延伸認識更大與更小的數。C1/A2","N-5-1十進位的位值系統：「兆位」至「千分位」。整合整 數與小數。理解基於位值系 統可延伸表示更大的數和 更小的數。\n",null,null,"ti-Ⅲ-1能運用好奇心察覺日常生活 現象的規律性會因為某些改變而產生差異，並能依據已知的科學知識科學方法想像可能發生的事情，以察覺不同的方法， 也常能做出不同的成品。B1/A3","INa-Ⅲ-1物質是由微小的粒子所組成，而且粒子不斷的運動。",null,null,"1-Ⅲ-1能透過聽唱、聽奏及讀譜，進行歌唱及演奏，以表達情感。A1/B1","音 E-Ⅲ-1多元形式歌曲，如：輪唱、合唱等。基礎歌唱技巧，如：呼吸、共鳴等。",null,null,"1a-III-1欣賞並接納自己與他人。C2/A1","Aa-III-1自己與他人特質的欣賞及接納。",null,null,null,null,null,null,"1a-Ⅲ-1 認識生理、心理與社會各層面健康的概念。C1/A1","Aa-Ⅲ-1 生長發育的影響因素與促進方法A1",null,null,"生活科技","生活科技",null,null,null,null,null,null,null,null,null,null,8,"「演」表演創作"]
[null,null,null,"1-Ⅲ-2 根據演講、新聞話語情境及其情感，聽出不同語氣，理解對方傳達的情意，表現適切的回應。B1/C2","Ab-Ⅲ-2-2,200 個常用字的使用。",null,null,"1-Ⅲ-1 能正確聽辨並尊重閩南語方音與語詞的差異性。B1","◎Aa-Ⅲ-2 漢字書寫。",null,null,"◎1-Ⅲ-2 能聽辨字詞是單音節或多音節，並辨識重音的音節。A2/B1","◎ Ab- Ⅲ -2 單音 節、多音節， 及重音音節。",null,null,"1-Ⅲ-1能識別日常生活對話的訊息。B1","Ab-Ⅲ-1 客家語常用漢字。",null,null,"1-Ⅲ-2 能在聆聽過程中感受說話者的情緒，並思考其遭遇到的問 題。B1","Ab-Ⅲ-1 重疊詞。",null,null,"\n 1-Ⅲ-2 在生活情境中嘗詴使用新住民語文。B1","◎Aa-Ⅲ-2 新住民語言的聲調標記。",null,null,"n-III-2在具體情境中，解決三步驟以上之常見應用問題。C2/A3","N-5-2解題：多步驟應用問題。除「平均」之外，原則上為三 步驟解題應用。\n",null,null,"tr-Ⅲ-1能將自己及他人所觀察、記 錄的自然現象與習得的知識互相連結，察 覺彼此間的關係，並提出自己的想法及知道與他人的差異。A3/A2","INa-Ⅲ-2物質各有不同性質，有些性質會隨溫度而改變。",null,null,"1-Ⅲ-2能使用視覺元素和構成要素，探索創作歷程。B1/B3","音 E-Ⅲ-2樂器的分類、基礎演奏技巧，以及獨奏、齊奏與合奏等演奏形式。",null,null,"1b-III-1規劃與執行學習計畫，培養自律與負責的態度。C1/A3","Aa-III-2對自己與他人悅納的表現。",null,null,null,null,null,null,"1a-Ⅲ-2 描述生活行為對個人與群體健康的影響。C2/A2","Aa-Ⅲ-2 人生各階段成長與轉變的自我悅納B1",null,null,"生 k-III-1 能了解生活常見科技產品的用途與運作方式。_A2","生 N-III-1 科技與生活的關係 - 認識不同時代的科技及其特色。- 認識家庭常用的科技產品，如：傳播設備、交通工具、安全設備等。",null,null,null,null,null,null,null,null,null,null,9,"「設」基本設計"]
[null,null,null,"1-Ⅲ-3 判斷聆聽內容的合理性，並分辨事實或意見。A3/B1","Ab-Ⅲ-3常用字部首及部件的表音及表義功能。",null,null,"1-Ⅲ-2 能主動注意並理解科技、資訊及各類媒體的閩南語訊息。B2/B1","◎Ab-Ⅲ-1 語詞運用。",null,null,"◎1-Ⅲ-3 能聽辨句子的語調。A2/B1","◎ Ab-Ⅲ-3 片語及 句子的重音。",null,null,"1-Ⅲ-2 能展現聆聽客家語文的態度。B1","Ab-Ⅲ-2 客家語常用語詞。",null,null,"1-Ⅲ-3  能聽懂簡單句。B1","Ab-Ⅲ-2 相似語詞的意義。",null,null,"2a-Ⅲ-1 能聽辨新住民語言所使用的日常生活用語。\n。\nB1","Ab-Ⅲ-1 社區生活中的新住民語言常用詞彙。",null,null,"n-III-3認識因數、倍數、質數、最大公因數、最小公倍數的意義、計算與應用。A1/A2","N-5-3公因數和公倍數：因數、倍數、公因數、公倍數、最大 公因數、最小公倍數的意 義。\n",null,null,"tc-Ⅲ-1能就所蒐集的數據或資料，進行簡單的記錄與分類，並依據習得的知識，思考資料的正確性及辨別他人資訊與事實的差異。A2/B1","INa-Ⅲ-3混合物是由不同的物質所混合，物質混合前後重量不會改變，性質可能會改變。",null,null,"1-Ⅲ-3能學習多元媒材與技法，表現創作主題。B3/A3","音 E-Ⅲ-3音樂元素，如：曲調、調式等。",null,null,"1c-III-1運用生涯資訊，初探自己的生涯發展。A1/C1","Ab-III-1學習計畫的規劃與執行。",null,null,null,null,null,null,"1a-Ⅲ-3 理解促進健康生活的方法、資源與規範。C1/A2","Aa-Ⅲ-3 面對老化現象與死亡的健康態度C1",null,null,"生 k-III-2 能了解動手實作的重要性。_B2","生 P-III-1 基本的造形設計 - 基本造型種類與設計概念。 - 認識聯想、腦力激盪、概念圖等創意發想技巧。- 認識常見材料，如：木材、金屬、塑膠等。",null,null,null,null,null,null,null,null,null,null,10,"「多」多媒體音樂"]
[null,null,null,"1-Ⅲ-4 結合科技與資訊，提升聆聽的效能。A1/B2","Ab-Ⅲ-4多音字及多義字。",null,null,"2.說話","◎Ab-Ⅲ-2 句型運用。",null,null,"◎1-Ⅲ-4 能聽辨課堂中所學的片語、句子及其重音。A2/B1","*Ab-Ⅲ-4 句子的 語調及節奏。",null,null,"1-Ⅲ-3 能運用資訊科技聽懂客家語文。B1","Ab-Ⅲ-3 客家詞語簡易工具書及資訊媒體。",null,null,"1-Ⅲ-4 能聽辨日常生活對話的語調及所表達的意義與情緒。B1","Ab-Ⅲ-3 外來詞。",null,null,"2a-Ⅲ-2 能聽辨使用新住民語言所描述的個人狀況與感受。B1","Ac-Ⅲ-1 社區生活中的新住民語言常用語句。",null,null,"n-III-4理解約分、擴分、通分的意義，並應用於異分母分數的加減。A3/A2","N-5-4異分母分數：用約分、擴分處理等值分數並做比較。用 通分做異分母分數的加減。養成利用約分化簡分數計算習慣。\n\n",null,null,"tm-Ⅲ-1能經由提問、觀察及實驗等歷程，探索自然界現象之間的關係，建立簡單的概念模型，並理解到有不同模型的存在。A2/B1","INa-Ⅲ-4空氣由各種不同氣體所組成，空氣具有熱脹冷縮的性質。氣體無一定的形狀與體積。",null,null,"1-Ⅲ-4能感知、探索與表現表演藝術的元素、技巧。A1/B3","音 E-Ⅲ-4音樂符號與讀譜方式，如：音樂術語、唱名法等。記譜法，如：圖形譜、簡譜、五線譜等。",null,null,"1d-III-1覺察生命的變化與發展歷程，實踐尊重和珍惜生命。A1/C1","Ab-III-2自我管理策略。",null,null,null,null,null,null,"1b-Ⅲ-1 理解健康技能和生活技能對健康維護的重要性。A1/A2","Ab-Ⅲ-1 體適能促進策略與活動",null,null,"生 a-III-1 能主動體會科技與個人及家庭生活的互動關係。A1","生 P-III-2 日常手工具的使用 - 了解如何使用日常簡易手工具。",null,null,null,null,null,null,null,null,null,null,11,"「新」新媒體藝術。"]
[null,null,null,"2-Ⅲ-1  觀察生活情境的變化，培養個人感受和思維能力，積累說話材 料。A2/B1","Ab-Ⅲ-5-4,500 個常用語詞的認念。",null,null,"2-Ⅲ-1 能妥善運用科技媒材增進閩南語的口說能力。B1","◎Ab-Ⅲ-3 方音差異。",null,null,"◎1-Ⅲ-5 能聽辨句子的節奏。A2/B1","◎ Ab-Ⅲ-5 所學的字 母 拼 讀 規 則（含看字讀 音 、 聽 音 拼 字）。\n",null,null,"2.說話","Ac-Ⅲ-1 客家語慣用熟語。",null,null,"1-Ⅲ-5 能聽懂日常生活會話。\nB1","Ac-Ⅲ-1 簡單句（一個獨立的完整句子，包含主詞、動詞、受\n詞等）。",null,null,"2b-Ⅲ-1 能說出所學習新住民語言的日常生活用語。B1","Ba-Ⅲ-1 與陌生人互動時的言語規範。",null,null,"n-III-6理解分數乘法和除法的意義、計算與應用。A3/A2","N-5-5分數的乘法：整數乘以分數、分數乘以分數的意義。 知道用約分簡化乘法計算。 處理乘積一定比被乘數大 的錯誤類型。透過分數計算 的公式，知道乘法交換律在 分數也成立。\n",null,null,"po-Ⅲ-1能從學習活動、日常經驗及科技運用、自然環境、書刊及網路媒體等察覺問題。B2/A3","INa-Ⅲ-5不同形式的能量可以相互轉換，但總量不變。",null,null,"1-Ⅲ-5能探索並使用音樂元素，進行簡易創作，表達自我的思想與情感。B3/B1","音 E-Ⅲ-5簡易創作，如：節奏創作、曲調創作、曲式創作等。",null,null,"2a-III-1覺察多元性別的互動方式與情感表達，並運用同理心增進人際關係。B1/C2","Ac-III-1職業與能力。",null,null,null,null,null,null,"1b-Ⅲ-2 認識健康技能和生活技能的基本步驟。A2/A1","Ab-Ⅲ-2 自我身心適能掌控與簡易運動處方執行",null,null,"生 a-III-2 能體會動手實作的樂趣，並養成正向的科技態度。A2","生 A-III-1 日常科技產品的使用 - 知道如何使用日常生活科技產品，及其安全注意事項，如：用電安全等。",null,null,null,null,null,null,null,null,null,null,12]
[null,null,null,"2-Ⅲ-2 從聽聞內容進行判斷和提問，並做合理的應對。B1/C2","Ab-Ⅲ-6-3,700 個常用語詞的使用。",null,null,"2-Ⅲ-2 能運用閩南語進行對話、分享與討論。C2/B1","◎Ab-Ⅲ-4 文白異讀。",null,null,"◎1-Ⅲ-6 能聽懂課堂中所學的字詞。A2/B1","Ac-Ⅲ-1 校園內簡易的英文標示。\n",null,null,"2-Ⅲ-1能介紹客家文化的族群特徵。B1","Ac-Ⅲ-2 客家語日常用句。",null,null,"2-Ⅲ-1 能說出所學語詞的重疊詞。B1","Ad-Ⅲ-1 家人、年齡、生日。",null,null,"2b-Ⅲ-2 能使用新住民語言描述個人的狀況與感受。B1","Ba-Ⅲ-2  在宗教場所、政府機關等公共場合的言語規\n\n範。",null,null,"n-III-5理解整數相除的分數表示的意義。B1/A1","N-5-6整數相除之分數表示：從分裝（測量）和平分的觀點， 分別說明整數相除為分數 之意義與合理性。\n",null,null,"po -Ⅲ-2能初步辨別適合科學探究的問題，並能依據觀察、蒐集資料、閱讀、思考、討論等，提出適宜探究之問題。A2/B2","INa-Ⅲ-6能量可藉由電流傳遞、轉換而後為人類所應用。利用電池等設備可以儲存電能再轉換成其他能量。",null,null,"1-Ⅲ-6能學習設計思考，進行創意發想和實作。A2/A3","視 E-Ⅲ-1視覺元素、色彩與構成要素的辨識與溝通。",null,null,"2b-III-1參與各項活動，適切表現自己在團體中的角色，協同合作達成共同目標。A1/C2","Ac-III-2職業興趣。",null,null,null,null,null,null,"1b-Ⅲ-3 對照生活情境的健康需求，尋求適用的健康技能和生活技能。\nA2/A3","Ba-Ⅲ-1 冒險行為的原因與防制策略探討",null,null,"生 s-III-1 能繪製簡單草圖以呈現設計構想。","生 A-III-2 日常科技產品的基本運作原理 - 認識日常科技產品的基本運作原理，如：房屋主要結構、汽車、電器等。 - 知道如何應用簡單科學原理於玩具設計，如：簡易電路、簡單機械原理等。",null,null,null,null,null,null,null,null,null,null,13]
[null,null,null,"2-Ⅲ-3 靈活運用詞句和說話技巧，豐富表達內容。B1/C2","Ab-Ⅲ-7數位辭典的運用。",null,null,"2-Ⅲ-3 能運用閩南語對生活周遭事物進行有條理的口頭描述。B1","◎Ac-Ⅲ-1 生活故事。",null,null,"◎1-Ⅲ-7 能聽懂簡易的教室用語。A2/B1","◎Ac-Ⅲ-2 簡易的教室用語。\n",null,null,"2-Ⅲ-2 能積極或樂於使用客家語。B1","Ad-Ⅲ-1 客家語短文。",null,null,"2-Ⅲ-2 能說出簡單句。B1","Ad-Ⅲ-2 標點符號。",null,null,"2c-Ⅲ-1 能辨識日常生活中的新住民語言標示。B1","Bb-Ⅲ-1 與陌生人互動時的肢體語言與面部表情。",null,null,"n-III-7理解小數乘法和除法的意義，能做直式計算與應用。A3/A2","N-5-7分數除以整數：分數除以整數的意義。最後將問題轉 化為乘以單位分數。\n",null,null,"pe-Ⅲ-1能了解自變項、應變項並預測改變時可能的影響和進行適當次數測試的意義。在教師或教科書的指導或說明 下，能了解探 究的計畫，並 進而能根據問 題的特性、資 源（設備等）的 有無等因素， 規劃簡單的探 究活動。A3/A2","INa-Ⅲ-7運動的物體具有動能，對同一物體而言，速度越快動能越大。",null,null,"1-Ⅲ-7能構思表演的創作主題與內容。A3","視 E-Ⅲ-2多元的媒材技法與創作表現類型。",null,null,"2c-III-1分析與判讀各類資源，規劃策略以解決日常生活的問題。B1/A3","Ac-III-3未來職業想像。",null,null,null,null,null,null,"1b-Ⅲ-4 了解健康自主管理的原則與方法。A3/A2","Ba-Ⅲ-2 校園及休閒活動事故傷害預防與安全須知",null,null,"生 s-III-2 能操作家庭常見的手工具。","生 S-III-1 科技與個人和家庭的互動關係 - 體會科技與個人、家庭生活的關係，從科技選用的觀點，思考可能產生的優點及缺點。 - 認識國內、外的科技新發明與創新。",null,null,null,null,null,null,null,null,null,null,14]
[null,null,null,"2-Ⅲ-4 運用語調、表情和肢體等變化輔助口語表達。A3/B1","Ab-Ⅲ-8詞類的分辨。",null,null,"2-Ⅲ-4 能念唱閩南語藝文作品，並建立美感素養。B3/B1","◎Ac-Ⅲ-2 詵歌短文。",null,null,"◎1-Ⅲ-8 能聽懂簡易的日常生活用語。A2/B1","◎Ac-Ⅲ-3 簡易的生活用語。\n",null,null,"2-Ⅲ-3 能運用日常生活的客家語對話。B1","Ad-Ⅲ-2 客家語詵歌。",null,null,"2-Ⅲ-3 能正確說出句子的語調及所表達的意義與情緒。B1","Ad-Ⅲ-3 傳說故事。",null,null,"2d-Ⅲ-1 能書寫出簡單的新住民語言日常生活用語。B1","Bb-Ⅲ-2 新住民與陌生人互動時的適當手勢、坐姿、衣著等。",null,null,"n-III-9理解比例關係的意義，並能據以觀察、表述、計算與解題，如比率、比例尺、速度、基準量等。\nC3/B1/A2","N-5-8小數的乘法：整數乘以小數、小數乘以小數的意義。 乘數為小數的直式計算。教 師用位值的概念說明直式 計算的合理性。處理乘積一 定比被乘數大的錯誤類型。\n",null,null,"pe-Ⅲ-2能正確安全操作適合學習階段的物品、器材儀器、科技 設備及資源。 能進行客觀的質性觀察或數值量測並詳實記錄。B1/B2","INa-Ⅲ-8熱由高溫處往低溫處傳播，傳播的方式有傳導、對流和輻射，生活中可運用不同的方法保溫與散熱。",null,null,"1-Ⅲ-8能嘗試不同創作形式，從事展演活動。B3/A1","視 E-Ⅲ-3設計思考與實作。",null,null,"2d-III-1運用美感與創意，解決生活問題，豐富生活內涵。A3/B3","Ad-III-1自然界生命現象與人的關係。",null,null,"社會","社會",null,null,"1c-Ⅲ-1 了解運動技能要素和基本運動規範。A3/A2","Ba-Ⅲ-3 藥物中毒、一氧化碳中毒、異物梗塞急救處理",null,null,"生 c-III-1 能依據設計構想以規劃物品的製作步驟。_A2",null,null,null,null,null,null,null,null,null,null,null,15]
[null,null,null,"2-Ⅲ-5 把握說話內容的主題、重要細節與結構邏輯。A3/B1","Ab-Ⅲ-9楷書形體結構要領。",null,null,"2-Ⅲ-5 能以閩南語口語表達對多元文化的初步認識。C3/B1","◎Ba-Ⅲ-1 社交稱謂。",null,null,"◎1-Ⅲ-9 能聽懂簡易句型的句子。A2/B1","Ac-Ⅲ-4 國小階段 所 學 字 詞（能聽、讀、說 300 字\n詞，其中必須拼寫 180 字詞）。",null,null,"3.閱讀","Ad-Ⅲ-3 客家語故事。",null,null,"2-Ⅲ-4 能說出日常生活用語並進行簡易對話。B1","Ba-Ⅲ-1 數字及數數的意義。",null,null,"3-Ⅲ-1 能分辨新住民日常言語互動行為規範的特徵。\nB1","Bb-Ⅲ-3 在宗教場所、政府機關等公共場合的肢體語\n言、座位、衣著等。",null,null,"n-III-8理解以四捨五入取概數，並進行合理估算。A1/C1","N-5-9整數、小數除以整數（商為小數）：整數除以整數（商 為小數）、小數除以整數的 意義。教師用位值的概念說 明直式計算的合理性。能用 概數協助處理除不盡的情 況。熟悉分母為 2、4、5、 8 之真分數所對應的小數。\n",null,null,"pa -Ⅲ-1能分析比較、製作圖表、運用簡單數學等方法，整理已有的資訊或數據。A2/B1","INa-Ⅲ-9植物生長所需的養分是經由光合作用從太陽光獲得的。",null,null,"2-Ⅲ-1能使用適當的音樂語彙，描述各類音樂作品及唱奏表現，以分享美感經驗。B1","表 E-Ⅲ-1聲音與肢體表達、戲劇元素(主旨、情節、對話、人物、音韻、景觀)與動作\n元素(身體部位、動作/舞步、空間、動力/時間與關係)之運用。",null,null,"2d-III-2體察、分享並欣賞生活中美感與創意的多樣性表現。A3/B3","Ad-III-2兒童階段的發展歷程。",null,null,"五六年級","五六年級",null,null,"1c-Ⅲ-2 應用身體活動的防護知識，維護運動安全。B1/A3","Ba-Ⅲ-4 緊急救護系統資訊的取得與突發事故的處理",null,null,"生 c-III-2 能利用創意思考的技巧。A3"]
[null,null,null,"2-Ⅲ-6 結合科技與資訊，提升表達的效能。B1/B2","Ac-Ⅲ-1標點符號在文本中的作用。",null,null,"2-Ⅲ-6 能運用閩南語詢問與回答日常生活中的熟悉主題，並能說出在地C3/B1","◎Ba-Ⅲ-2 性別認識。",null,null,"1-Ⅲ-10 能聽懂簡易的日常生活對話。A2/B1","Ad-Ⅲ-1 簡易標點符號。",null,null,"3-Ⅲ-1能解讀客家常用詞句寫成的對話。B1","◎Ae-Ⅲ-1 客家語情意表達。",null,null,"2-Ⅲ-5 能正確說出課堂上所學的會話。B1","Ba-Ⅲ-2 方位、空間。",null,null,"3-Ⅲ-2 能依循新住民日常的言語互動行為規範，與陌生 的新住民進行溝通。B1","Bc-Ⅲ-1  新住民原生國的地理位置、氣候。",null,null,"n-III-11認識量的常用單位及其換算，並處理相關的應用問題。B1/A3","N-5-10解題：比率與應用。整數相除的應用。含「百分率」、\n「折」、「成」。\n",null,null,"pa -Ⅲ-2能從（所得的） 能從（所得的） 資訊或數據，形成解釋、發現新知、獲因果關係、解決問題或是發現新的問題。並能將自己的探究結果和他人的結果（例如：來自同學） 比較對照，檢查相近探究是否有相近的結果。A3/B1","INa-Ⅲ-10在生態系中，能量經由食物鏈在不同物種間流動與循環。",null,null,"2-Ⅲ-2能發現藝術作品中的構成要素與形式原理，並表達自己的想法。\nB3/A3","表 E-Ⅲ-2主題動作編創、故事表演。",null,null,"3a-III-1辨識周遭環境的潛藏危機，運用各項資源或策略化解危機。A3","Ad-III-3尊重生命的行動方案。",null,null,"學習表現","學習內容",null,null,"1c-Ⅲ-3 了解身體活動對身體發展的關係。A2/A1","Bb-Ⅲ-1 藥物種類、正確用藥核心能力與用藥諮詢的認識",null,null,"生 c-III-3 能具備與他人團隊合作的能力。C1"]
[null,null,null,"2-Ⅲ-7 與他人溝通時能尊重不同意見。B1/C2","Ac-Ⅲ-2基礎句型結構。",null,null,"3.閱讀","◎Ba-Ⅲ-3 情緒表達。",null,null,"*◎1-Ⅲ-11 能聽懂簡易歌謠和韻文的主要內容。C3/B2","Ad-Ⅲ-2 簡易、常 用 的 句 型結構。",null,null,"3-Ⅲ-2 能領會客家語文作品的文化意涵。B1","Ae-Ⅲ-2 客家語常用說話技巧及推論方式。",null,null,"2-Ⅲ-6 能看圖說話。B1","Ba-Ⅲ-3 時間。",null,null,"3-Ⅲ-3 欣賞新住民文化的特色。C3/B1","Bc-Ⅲ-2  新住民原生國的主要宗教信仰。",null,null,"n-III-12理解容量、容積和體積之間的關係，並做應用。A3/B1","N-5-10解題：比率與應用。整數相除的應用。含「百分率」、\n「折」、「成」。\n",null,null,"pc-Ⅲ-1能理解同學報告，提出合理的疑問或意見。並能對「所訂定的問題」、 「探究方法」、「獲得之證據」及「探究之發現」等之間的符應情形，進行檢核並提出優點和弱點。A3/C3","INb-Ⅲ-1物質有不同的結構與功能。",null,null,"2-Ⅲ-3能反思與回應表演和生活的關係。A3/B1","表 E-Ⅲ-3動作素材、視覺圖像和聲音效果等整合呈現。",null,null,"3b-III-1持續參與服務活動，省思服務學習的意義，展現感恩、利他的情懷。B1/C1","Ad-III-4珍惜生命的行動方案。",null,null,"1a-Ⅲ-1  舉例說明探究社會領域的意義及方法。A2/A1","Aa-Ⅲ-1  個人可以決定自我發展的特色，並具有參與群體社會發展的權利。",null,null,"1d-Ⅲ-1 了解運動技能的要素和要領。A2/A1","Bb-Ⅲ-2 成癮性物質的特性及其危害",null,null,"資訊科技_","資訊科技"]
[null,null,null,"4-Ⅲ-1 認識常用國字至少 2,700 字，使用 2,200 字。A2/B1","Ac-Ⅲ-3各種複句的意義。",null,null,"3-Ⅲ-1 能初步運用字、辭典及其他工具書，輔助閩南語文的閱讀。B1","◎Ba-Ⅲ-4 性別尊重。",null,null,"*◎1-Ⅲ-12 能聽懂簡易故事及短劇的主要內容。A2/B2","*◎Ae-Ⅲ-1 簡易歌\n謠、韻文、短 文、故事及短劇。\n",null,null,"3-Ⅲ-3 能掌握客家文字的書寫系統。B2","Ae-Ⅲ-3 客家語與其他語文的簡易對譯。",null,null,"3-Ⅲ-1 能讀懂重疊詞及其意義。B1","Ba-Ⅲ-4 生活作息。",null,null,"3-Ⅲ-4 能認識新住民語言與文化中的性別規範。B1","Bd-Ⅲ-1 新住民原生國的陌生人互動方式（包括語言與非語言）與我國的異同。",null,null,"s-III-5以簡單推理，理解幾何形體的性質。C2/B1/C1","N-5-11解題：對小數取概數。具體生活情境。四捨五入法。知 道商除不盡的處理。理解近 似的意義。\n",null,null,"pc-Ⅲ-2能利用簡單形式的口語、文 字、影像（例 如：攝影、錄 影）、繪圖或實物、科學名詞、數學公式、模 型等，表達探 究之過程、發現或成果。A3/B1","INb-Ⅲ-2應用性質的不同可分離物質或鑑別物質。",null,null,"2-Ⅲ-4能探索樂曲創作背景與生活的關聯，並表達自我觀點，以體認音樂的藝術價值。B1/B3","音 A-Ⅲ-1器樂曲與聲樂曲，如：各國民謠、本土與傳統音樂、古典與流行音樂等，以及樂曲之作曲家、演奏者、傳統藝師與創作背景。",null,null,"3c-III-1尊重與關懷不同的族群，理解並欣賞多元文化。B1/C2","Ba-III-1多元性別的人際互動與情感表達。",null,null,"1a-Ⅲ-2  舉例說明在個人生活或民主社會中對各項議題做選擇的理由及其影響。B2/C2","Aa-Ⅲ-2  規範（可包括習俗、道德、宗教或法律等）能導引個人與群體行為，並維持社會秩序與運作。",null,null,"1d-Ⅲ-2 比較自己或他人運動技能的正確性。B3/A2","Bb-Ⅲ-3 媒體訊息對吸菸、喝酒的影響與健康的抉擇",null,null,"資 E1 認識常見的資訊系統。B2"]
[null,null,null,"4-Ⅲ-2 認識文字的字形結構，運用字的部件了解文字的字音與字義。A3/B1","Ac-Ⅲ-4各類文句表達的情感與意義。",null,null,"3-Ⅲ-2 能透過閱讀了解閩南語文學作品的主題及內涵。B1","◎Bb-Ⅲ-1 數字運用。",null,null,"*1-Ⅲ-13 能辨識簡易句子語調所表達的情緒和態度。A2/B2","*Ae-Ⅲ-2 繪本故 事 、 兒 童 短 劇。",null,null,"4.寫作","Ba-Ⅲ-1 性別認識與尊重。",null,null,"3-Ⅲ-2 能讀懂簡單句。B1","Ba-Ⅲ-5 職業。",null,null,null,"Bd-Ⅲ-2 新住民原生國語言文化中之性別規範與我國異同。",null,null,"s-III-1理解三角形、平行四邊形與梯形的面積計算。A2/A1","N-5-12面積：「公畝」、「公頃」、「平方公里」。生活實例之 應用。含與「平方公尺」的 換算與計算。使用概數。\n",null,null,"ai-Ⅲ-1透過科學探索了解現象發生的原因或機制，滿足好奇心。A2/A1","INb-Ⅲ-3物質表面的結構與性質不同，其可產生的摩擦力不同；摩擦力會影響物體運動的情形。",null,null,"2-Ⅲ-5能表達對生活物件及藝術能表達對生活物件及藝術作品的看法，並欣賞不同的 藝術與文化。B1","音 A-Ⅲ-2相關音樂語彙，如曲調、調式等描述音樂元素之音樂術語，或相關之一般性用語。\n",null,null,"3d-III-1實踐環境友善行動，珍惜生態資源與環境。B1/C3","Ba-III-2同理心的增進與實踐。",null,null,"1b-Ⅲ-1  檢視社會現象中不同的意見，分析其觀點與立場。B2","Aa-Ⅲ-3  個人的價值觀會影響其行為，也可能會影響人際關係。",null,null,"1d-Ⅲ-3 了解比賽的進攻和防守策略。C2/A3","Bb-Ⅲ-4 拒絕成癮物質的策略與健康生活倡議",null,null,"資 E2 使用資訊科技解決生活中簡單的問題。A2","資 A-III-1 程序性的問題解決方法簡介",null,null,null,null,null,null,null,null,null,null,null,"G","自然與科技"]
[null,null,null,"4-Ⅲ-3 運用字辭典、成語辭典等，擴充詞彙，分辨詞義。A2/B1","Ad-Ⅲ-1意義段與篇章結構。",null,null,"3-Ⅲ-3 能從閱讀閩南語文過程中認識在地的文化特色。C3/A3","◎Bb-Ⅲ-2 交通運輸。",null,null,"*1-Ⅲ-14 能了解簡易歌謠、韻文的節奏與音韻。C3/B2","B-Ⅲ-1 自己、家人及朋友的簡 易介紹。\n",null,null,"4-Ⅲ-1能區別客家語文書寫的特徵。B1","◎Ba-Ⅲ-2 社交稱謂。",null,null,"3-Ⅲ-3 能讀出日常生活及對話的語調及所表達的意義與情緒。B1","Ba-Ⅲ-6 民族傳統名制。",null,null,null,"Bd-Ⅲ-3 當前社會對新住民的看法與文化差異之間的\n關聯。",null,null,"s-III-2認識圓周率的意義，理解圓面積、圓周長、扇形面積與弧長之計算方式。A2/A1","N-5-13重量：「公噸」。生活實例之應用。含與「公斤」的換 算與計算。使用概數。\n",null,null,"ai-Ⅲ-2透過成功的科學探索經驗，感受自然科學學習的樂趣。A3/A1","INb-Ⅲ-4力可藉由簡單機械傳遞。",null,null,"2-Ⅲ-6能區分表演藝術類型與特色。B3/A2","音 A-Ⅲ-3音樂美感原則，如：反覆對比等。",null,null,null,"Ba-III-3正向人際關係與衝突解決能力的建立。",null,null,"1b-Ⅲ-2  理解各種事實或社會現象的關係，並歸納出其間的關係或規律性。A2","Aa-Ⅲ-4  在民主社會個人須遵守社會規範，理性溝通、理解包容與相互尊重。",null,null,"2a-Ⅲ-1 關注健康議題受到個人、家庭、學校與社區等因素的交互作用之影響。\nC1/C3","Bc-Ⅲ-1 適當伸展動作、傷害預防與處理的選擇",null,null,"資 E3 應用運算思維描述問題解決的方法。A2","資 A-III-2 簡單的問題解決表示方法",null,null,null,null,null,null,null,null,null,null,1,"學習表現3個項目:","  學習表現子項   ","學習內容:"]
[null,null,null,"4-Ⅲ-4 精熟偏旁變化和間架結構要領書寫正確及工整的硬筆字。A1/B1","Ad-Ⅲ-2篇章的大意、主旨、結構與寓意。",null,null,"3-Ⅲ-4 能主動利用資訊科技和媒體，進行閩南語文的閱讀。B2/B1","Bb-Ⅲ-3 體育休閒。",null,null,"◎2-Ⅲ-1 能唸出英語的語音。A2/B1","B-Ⅲ-2 國小階段 所學字詞及句型的生活溝 通。\n",null,null,"4-Ⅲ-2 能展現使用客家語文書寫的態度。B1","◎Ba-Ⅲ-3 情緒管理。",null,null,"3-Ⅲ-4 能流暢朗讀所學的課文或短文。B1","Bb-Ⅲ-1 部落及發源地的名稱。\n \nBb-Ⅲ-2 地名/山川、河（湖、潭）海等傳統領域。\n \n",null,null,null,null,null,null,"s-III-6認識線對稱的意義與其推論。C1/A1","N-5-14體積：「立方公尺」。簡單實測、量感、估測與計算。\n",null,null,"ai-Ⅲ-3參與合作學習並與同儕有良好的互動經驗，享受學習 科學的樂趣。A3/C2","INb-Ⅲ-5生物體是由細胞所組成，具有由細胞、器官到個體等不同層次的構造。",null,null,"2-Ⅲ-7能理解與詮釋表演藝術的 構成要素，並表達意見。B3/A1","視 A-Ⅲ-1藝術語彙、形式原理與視覺美感。\n",null,null,null,"Bb-III-1團體中的角色探索。",null,null,"1b-Ⅲ-3  解析特定人物、族群 與事件在所處時間、空間脈絡中的位置與意義。A2","Ae-Ⅲ-2  科學和技術的發展與人類的價值、信仰與態度會相互影響。",null,null,"2a-Ⅲ-2 覺知健康問題所造成的威脅感與嚴重性。C1/A2","Bc-Ⅲ-2 運動與疾病保健、終身運動相關知識",null,null,"資 E4 認識常見的資訊科技共創工具的使用方法。B2","資 P-III-1 程式設計工具之功能與操作",null,null,null,null,null,null,null,null,null,null,2,"t思考智能 ","ti 想像創造","1.自然界的 組成與特性 ",null,null,"2.自然界的現象、規律與作用 ",null,null,null,"3.自然界的永續發展 "]
[null,null,null,"4-Ⅲ-5  習寫以硬筆字為主，毛筆為輔，掌握楷書形體結構的書寫方法。A1/B3","Ad-Ⅲ-3故事、童詩、現代散文、少年小說、兒童劇等。",null,null,"4.寫作","◎Bc-Ⅲ-1 社區生活。",null,null,"◎2-Ⅲ-2 能說出課堂中所學的字詞。A2/B1","◎ C- Ⅲ -1 國內 （外）招呼 方式。\n",null,null,"4-Ⅲ-3 能使用客家語文敘寫短文。B1","Bb-Ⅲ-1 意見與情感表達。",null,null,"3-Ⅲ-5 能正確了解所學的課文內容重點。B1","Bb-Ⅲ-2 地名/山川、河（湖、潭）海等傳統領域。\n ",null,null,null,null,null,null,"s-III-4理解角柱（含正方體、長方體）與圓柱的體積與表面積的計算方式。B1/A2","N-5-15解題：容積。容量、容積和體積間的關係。知道液體體 積的意義。\n",null,null,"ah-Ⅲ-1利用科學知識理解日常生活觀察到的現象。A3/A2","INb-Ⅲ-6動物的形態特徵與行為相關，動物身體的構造不同，有不同的運動方式。",null,null,"3-Ⅲ-1能參與、記錄各類藝術活動，進而覺察在地及全球藝術文化。C2/B1/B3","視 A-Ⅲ-2生活物品、藝術作品與流 行文化的特質。",null,null,null,"Bb-III-2團隊運作的問題與解決。",null,null,"1c-Ⅲ-1  評論社會議題處理方案的優缺點，並提出 個人的看法。A3","Ae-Ⅲ-3  科學和技術的研究與運用，應受到道德與法律的規範；政府的政策或法令會因新科技的出現而增修。",null,null,"2a-Ⅲ-3 體察健康行動的自覺利益與障礙。C1/A2","Bd-Ⅲ-1 武術組合動作與套路",null,null,"資 E5 使用資訊科技與他人合作產出想法與作品。C2","資 P-III-2 程式設計之基本應用",null,null,null,null,null,null,null,null,null,null,3,"p問題解決 ","tr 推理論證","（INa） 物質與能量 ","（INb） 構造與功能","（INc） 系統與尺度","（INd） 改變與穩定 ",null,"（INe）交互作用 ",null,"（INf）科學與生活"]
[null,null,null,"5-Ⅲ-1流暢朗讀各類文本，並表現抑揚頓挫的變化。A1/B1","Ad-Ⅲ-4古典詩文。",null,null,"4-Ⅲ-1 能以簡單的閩南語文寫出日常生活相關的短文。B1","◎Bd-Ⅲ-1 環境保護。",null,null,"2-Ⅲ-3 能以簡易的英語介紹自己。A2/B1","◎ C-Ⅲ-2 國內外 主要節慶習 俗。",null,null,null,"Bb-Ⅲ-2 常用生活應對。",null,null,"3-Ⅲ-6 能使用辭典等工具書及數位媒體教材，俾利閱讀繪本。B1","Bb-Ⅲ-3 祖先及部落發源地的傳說故事。",null,null,null,null,null,null,"s-III-3從操作活動，理解空間中面與面的關係與簡單立體形體的性質。B3/B1","N-5-16解題：時間的乘除問題。在分數和小數學習的範圍內， 解決與時間相關的乘除問 題。\n",null,null,"ah-Ⅲ-2透過科學探究活動解決一部分生活週遭的問題。B2/A2","INb-Ⅲ-7植物各部位的構造和所具有的功能有關，有些植物產生特化的構造以適應環境。",null,null,"3-Ⅲ-2能了解藝術展演流程，並表現尊重、協調、溝通等能力。A2/B3","視 A-Ⅲ-3 民俗藝術。",null,null,null,"Bb-III-3團隊合作的技巧。",null,null,"1c-Ⅲ-2  檢視社會現象或事件 之間的關係，並想像 在不同的條件下，推 測其可能的發展。A3","Ab-Ⅲ-1  臺灣的地理位置、自然環境，與歷史文化的發展有關聯性。",null,null,"2b-Ⅲ-1 認同健康的生活規範、態度與價值觀。A2/C1","Bd-Ⅲ-2 技擊組合動作與應用",null,null,"資 E6 認識與使用資訊科技以表達想法。B1","資 S-III-1 常見系統平台之基本功能操作",null,null,null,null,null,null,null,null,null,null,4,"a科學的態度與本質 ","tc 批判思辨","（A） 物質的組成與特性 ","（C） 物質的構造與功能 ","（E）物質系統 ","（G） 演化與延續","（I）變動的地球 ","（J）物質的反應、平衡與製造 ","（L）生物與環境 ","（M）科學、科技、社會與人文 "]
[null,null,null,"5-Ⅲ-2理解各種標點符號的用法與表達效果。A2/B1","Ba-Ⅲ-1 順敘與倒敘法。",null,null,"4-Ⅲ-2 能運用閩南語文媒材、工具書或線上字、辭典檢索系統以輔助書B1","◎Bd-Ⅲ-2 生態保育。",null,null,"2-Ⅲ-4 能以簡易的英語介紹家人和朋友。A2/B1","◎ D-Ⅲ-1 所學字詞的簡易歸 類。\n",null,null,null,"Bc-Ⅲ-1 衣食健康。",null,null,"4-Ⅲ-1 能正確書寫多音節語詞。B1","Bb-Ⅲ-4 族名名稱的意義與由來。",null,null,null,null,null,null,"r-III-1理解各種計算規則（含分配律），並協助四則混合計算與應用解題。B1/A3","S-5-1三角形與四邊形的性質：操作活動與簡單推理。含三 角形三內角和為 180 度。三 角形任意兩邊和大於第三 邊。平行四邊形的對邊相 等、對角相等。\n",null,null,"an-Ⅲ-1透過科學探究活動，了解科學知識的基礎是來自於真實的經驗和證據。A3/B1","INb-Ⅲ-8生物可依其形態特徵進行分類。",null,null,"3-Ⅲ-3能應用各種媒體蒐集藝文資訊與展演內容。B1/B3","表 A-Ⅲ-1家庭與社區的文化背景和 歷史故事。",null,null,null,"Bc-III-1各類資源的分析與判讀。",null,null,"2a-Ⅲ-1  關注社會、自然、人文環境與生活方式的互動關係。A2","Ab-Ⅲ-3 自然環境、自然災害及經濟活動，和生活空間的使用有關聯性。",null,null,"2b-Ⅲ-2 願意培養健康促進的生活型態。A3/A2","Ca-Ⅲ-1 健康環境的交互影響因素",null,null,"資 E7 使用資訊科技與他人建立良好的互動關係。B1","資 S-III-2 常見系統平台之使用與維護",null,null,null,null,null,null,null,null,null,null,5,null,"tm 建立模型","Aa物質組成與元素的週期性","Ca物質的分離與鑑定","Ea自然界的尺度與單位","Ga生殖與遺傳","Ia地表與地殼的變動","Ja物質反應規律","La生物間的交互作用","Ma科學、技術與社會的互動關係"]
[null,null,null,"5-Ⅲ-3讀懂與學習階段相符的文本。A2/A1","Bb-Ⅲ-1自我情感的表達。",null,null,null,"◎Be-Ⅲ-1 數位資源。",null,null,"◎2-Ⅲ-5 能使用簡易的教室用語。A2/B1","D-Ⅲ-2 故事發 展的排序。",null,null,null,"◎Bc-Ⅲ-2 學習活動。",null,null,"4-Ⅲ-2 能書寫所學的日常生活語詞。B1","Bc-Ⅲ-1 文化祭儀活動的用語。",null,null,null,null,null,null,"r-III-3觀察情境或模式中的數量關係，並用文字或符號正確表述，協助推理與解題。C1/B1","S-5-2三角形與四邊形的面積：操作活動與推理。利用切割 重組，建立面積公式，並能 應用。\n",null,null,"an-Ⅲ-2發覺許多科學的主張與結論，會隨著新證據的出現而改變。A2/B2","INc-Ⅲ-1生活及探究中常用的測量工具和方法。",null,null,"3-Ⅲ-4能與他人合作規劃藝術創作或展演，並扼要說明其中的美感。C3","表 A-Ⅲ-2國內外表演藝術團體與代 表人物。\n",null,null,null,"Bc-III-2媒體對日常生活的影響。",null,null,"2a-Ⅲ-2  表達對在地與全球議題的關懷。C1/B3","Ac-Ⅲ-1 憲法規範人民的基本權利與義務。",null,null,"2b-Ⅲ-3 擁有執行健康生活行動的信心與效能感。A2/A3","Ca-Ⅲ-2 環境污染的來源與形式",null,null,"資 E8 認識基本的數位資源整理方法。A3","資 S-III-3 常見網路設備與行動裝置之功能簡介",null,null,null,null,null,null,null,null,null,null,6,null,"po 觀察與定題","Ab物質的形態、性質及分類","Cb物質結構與功用","Eb力與運動","Gb演化","Ib天氣與氣候變化","Jb水溶液中的變化","Lb生物與環境的交互作用","Mb科學發展的歷史"]
[null,null,null,"5-Ⅲ-4區分文本中的客觀事實與主觀判斷之間的差別。B1/A2","◎Bb-Ⅲ-2人際交流的情感。",null,null,null,"◎Be-Ⅲ-2 影音媒材。",null,null,"◎2-Ⅲ-6 能使用簡易的日常生活用語。A2/B1","D-Ⅲ-3 依綜合資訊作簡易猜測。\n",null,null,null,"Bc-Ⅲ-3 城鄉社會。",null,null,"4-Ⅲ-3 能書寫所學的句子。B1","Bd-Ⅲ-1 訓勉語與家庭倫理觀。",null,null,null,null,null,null,"d-III-1報讀圓形圖，製作折線圖與圓形圖，並據以做簡單推論。C1/B2","S-5-3扇形：扇形的定義。「圓心角」。扇形可視為圓的一部 分。將扇形與分數結合（幾 分之幾圓）。能畫出指定扇 形。\n",null,null,"an -Ⅲ-3體認不同性別、族群等文 化背景的人， 都可成為科學 家。B3/C1","INc-Ⅲ-2自然界或生活中有趣的最大或最小的事物（量），事物大小宜用適當的單位來表示。",null,null,"3-Ⅲ-5能透過藝術創作或展演覺察議題，表現人文關懷。B3/A3","表 A-Ⅲ-3 創作類別、形式、內容、技 巧和元素的組合。",null,null,null,"Bc-III-3運用各類資源解決問題的規劃。",null,null,"2b-Ⅲ-1  體認人們對社會事物與環境有不同的認 知、感受、意見與表現 方式，並加以尊重。C3/C1","Ac-Ⅲ-3  我國政府組織可區分為中央及地方政府，各具有不同的功能，並依公權力管理公共事務。",null,null,"2c-Ⅲ-1 表現基本運動精神和道德規範。B1/C1","Ca-Ⅲ-3 環保行動的參與及綠色消費概念",null,null,"資 E9 利用資訊科技分享學習資源與心得。B1","資 D-III-1 常見的數位資料類型與儲存架構",null,null,null,null,null,null,null,null,null,null,7,null,"pe 計劃與執行","（B） 能量的形態與流動","（D） 生物的構造與功能 ","Ec氣體","Gc生物多樣性","Ic海水的運動","Jc氧化與還原反應","（K） 自然界的現象與交互作用","Mc科學在生活中的應用"]
[null,null,null,"5-Ⅲ-5認識議論文本的特徵。B1/A3","Bb-Ⅲ-3對物或自然的感悟。",null,null,null,"◎Bf-Ⅲ-1 表演藝術。",null,null,"2-Ⅲ-7 能作簡易的回答和描述。A2/B1",null,null,null,null,"Bd-Ⅲ-1 客家社會關懷。",null,null,"4-Ⅲ-4 能寫出簡易自我介紹的句子（至少 3 句）。B1","Be-Ⅲ-1 傳統歌謠與傳統器樂。",null,null,null,null,null,null,"r-III-2熟練數（含分數、小數）的四則混合計算。B1/A2","S-5-4線對稱：線對稱的意義。「對稱軸」、「對稱點」、「對 稱邊」、「對稱角」。由操 作活動知道特殊平面圖形 的線對稱性質。利用線對稱 做簡單幾何推理。製作或繪 製線對稱圖形。\n",null,null,null,"INc-Ⅲ-3本量與改變量不同，由兩者的比例可評估變化的程度。",null,null,null,"音 P-Ⅲ-1音樂相關藝文活動。\n",null,null,null,"Bd-III-1生活美感的運用與創意實踐。",null,null,"2b-Ⅲ-2  理解不同文化的 特色，欣賞並尊重文化的多樣性。C3","Ab-Ⅱ-2  自然環境會影響經濟的發展，經濟的發展也會改變自然環境。",null,null,"2c-Ⅲ-2 表現同理心、正向溝通的團隊精神。C2/B1","Cb-Ⅲ-1 安全規則的推展、運動精神的展現、運動時所需營養 素的補給知識",null,null,"資 E10 了解資訊科技 於日常生活之重要性。C1","資 D-III-2 數位資料的表示方法",null,null,null,null,null,null,null,null,null,null,8,null,"pa 分析與發現","Ba能量的形態與轉換","Da細胞的構造與功能","Ed宇宙與天體","（H）地球的歷史 ","Id晝夜與季節","Jd酸鹼反應","Ka波動、光與聲音","Me環境污染與防治"]
[null,null,null,"5-Ⅲ-6熟習適合學習階段的摘要策略，擷取大意。B1/A2","◎Bb-Ⅲ-4直接抒情。",null,null,null,"◎Bf-Ⅲ-2 藝術欣賞。",null,null,"2-Ⅲ-8 能作簡易的提問。A2/B1",null,null,null,null,"◎Bd-Ⅲ-2 客家公共事務。",null,null,"4-Ⅲ-5 能依照課文造句並寫出句子。B1","Bf-Ⅲ-1漁獵用語。\n \n",null,null,null,null,null,null,"n-III-9理解比例關係的意義，並能據以觀察、表述、計算與解題，如比率、比例尺、\n速度、基準量等。\nC3/B1/A2","S-5-5正方體和長方體：計算正方體和長方體的體積與表 面積。正方體與長方體的體 積公式。\n",null,null,null,"INc-Ⅲ-4對相同事物做多次測量，其結果間可能有差異，差異越大表示測量越不精確。",null,null,null,"音 P-Ⅲ-2音樂與群體活動。",null,null,null,"Bd-III-2正向面對生活美感與創意的多樣性表現。",null,null,"2c-Ⅲ-1  反省自己或社會的價值觀、偏見與歧視，並 探究其緣由。A1","Ab-Ⅲ-2  交通運輸與產業發展會影響城鄉與區域間的人口遷移及連結互動。",null,null,"2c-Ⅲ-3 表現積極參與、接受挑戰的學習態度。A1/A2","Cb-Ⅲ-2 區域性運動賽會與現代奧林匹克運動會的認識",null,null,"資 E1 1建立康健的數位使用習慣與態度。C3","資 D-III-3 系統化數位資料管理方法",null,null,null,null,null,null,null,null,null,null,9,null,"pc 討論與傳達","Bb溫度與熱量","Db動植物的構造與功能","（F）地球環境 ","Ha地球的起源與演變",null,"Je化學反應速率與平衡","Kb萬有引力","（INg）資源與永續性"]
[null,null,null,"5-Ⅲ-7連結相關的知識和經驗，提出自己的觀點，評述文本的內容。B1/A3","◎Bb-Ⅲ-5藉由敘述事件與描寫景物間接抒情。",null,null,null,"◎Bg-Ⅲ-1",null,null,"◎2-Ⅲ-9 能以正確的發音及適切的語調說出簡易句型的句子。A2/B1",null,null,null,null,"Be-Ⅲ-1 時間與節氣。",null,null,"4-Ⅲ-6  能正確使用標點符號。B1","Bf-Ⅲ-2 漁獵的禁忌故事。",null,null,null,null,null,null,"n-III-10嘗試將較複雜的情境或模式中的數量關係以算式正確表述，並據以推理或解題。\n\nB1/B2","S-5-6空間中面與面的關係：以操作活動為主。生活中面與 面平行或垂直的現象。正方 體（長方體）中面與面的平 行或垂直關係。用正方體（長方體）檢查面與面的平 行與垂直。\n",null,null,null,"INc-Ⅲ-5力的大小可由物體的形變或運動狀態的改變程度得知。",null,null,null,"視 P-Ⅲ-1在地及全球藝文展演、藝術檔案。\n",null,null,null,"Ca-III-1環境潛藏的危機。",null,null,"2c-Ⅲ-2  體認並願意維護公民價值與生活方式。A1","Ac-Ⅲ-4  國家權力的運用會維護國家安全及社會秩序，也可能會增進或傷害個人與群體的權益。",null,null,"2d-Ⅲ-1 分享運動欣賞與創作的美感體驗。A2/B3","Cb-Ⅲ-3 運動活動空間、場域的選擇\n",null,null,"資 E1 2了解並遵守資訊倫理與使用資訊科技的相關規範。C1","資 T-III-1 繪圖軟體的使用",null,null,null,null,null,null,null,null,null,null,10,null,"ai 培養科學探究的興趣","Bc生物體內的能量與代謝","Dc生物體內的恆定性與調節","Fa組成地球的物質","Hb地層與化石",null,"Jf有機化合物的性質、製備與反應","Kc電磁現象","（N）資源與永續發展"]
[null,null,null,"5-Ⅲ-8運用自我提問、推論等策略，推論文本隱含的因果訊息或觀點。A3/A1","Bc-Ⅲ-1具邏輯、客觀、理性的說明，如科學知識、產品、環境等。",null,null,null,"◎Bg-Ⅲ-2 口語表達。",null,null,"2-Ⅲ-10 能複誦和吟唱簡易的歌謠韻文。C3/B2",null,null,null,null,"Be-Ⅲ-2 家鄉景觀。",null,null,"5-Ⅲ-1 能專注操作及應用數數。B1","Bg-Ⅲ-1 農耕用語。",null,null,null,null,null,null,"s-III-7認識平面圖形縮放的意義與應用。A1/A2","S-5-7球、柱體與錐體：以操作活動為主。認識球、（直）圓 柱、（直）角柱、（直）角 錐、（直）圓錐。認識柱體 和錐體之構成要素與展開 圖。檢查柱體兩底面平行； 檢查柱體側面和底面垂直， 錐體側面和底面不垂直。\n",null,null,null,"INc-Ⅲ-6運用時間與距離可描述物體的速度與的變化。",null,null,null,"視 P-Ⅲ-2生活設計、公共藝術、環境藝術。\n",null,null,null,"Ca-III-2辨識環境潛藏危機的方法。",null,null,"2c-Ⅲ-3  澄清及珍視自己的公民身分，並具備對國家及文化的認同感。C3","Ae-Ⅲ-1  科學和技術發展對自然與人文環境具有不同層面的影響。",null,null,"2d-Ⅲ-2 分辨運動賽事中選手和觀眾的角色與責任。B3/C1","Cc-Ⅲ-1 水域休閒運動進階技能",null,null,"資 E1 3具備學習資訊科技的興趣。A1","資 T-III-2 文書處理軟體的使用",null,null,null,null,null,null,null,null,null,null,11,null,"ah 養成應用科學思考與探究的習慣 ","Bd生態系中能量的流動與轉換",null,"Fb地球和太空",null,null,null,"Kd量子現象","Na永續發展與資源的利用"]
[null,null,null,"5-Ⅲ-9因應不同的目的，運用不同的閱讀策略。A3/A2","Bc-Ⅲ-2描述、列舉、因果、問題解決、比較等寫作手法。",null,null,null,"Bg-Ⅲ-3 人權觀念。",null,null,"*◎2-Ⅲ-11 能進行簡易的角色扮演。B1/C2",null,null,null,null,"Ca-Ⅲ-1 客家生命禮俗。",null,null,"5-Ⅲ-2 能正確寫出並說出空間方位及時間用語。B1","Bg-Ⅲ-2 農耕的故事。",null,null,null,null,null,null,"s-III-7認識平面圖形縮放的意義與應用。A3/A2","R-5-1三步驟問題併式：建立將計算步驟併式的習慣，以三 步驟為主。介紹「平均」。 與分配律連結。\n",null,null,null,"INc-Ⅲ-7動物體內的器官系統是由數個器官共同組合，以執行某種特定的生理作用。",null,null,null,"表P-Ⅲ1各類形式的表演藝術活動。\n",null,null,null,"Ca-III-3化解危機的資源或策略。",null,null,"3a-Ⅲ-1  透過對時事的理解與省思，提出感興趣或令人困惑的現象及社會議題。C3/C1","Cb-Ⅲ-2  臺灣史前文化、原住民族文化、中華文化及世界其他文化隨著時代變遷，都在臺灣留下有形與無形的文化資產，並於生活中展現特色。",null,null,"2d-Ⅲ-3 分析並解釋多元性身體活動的特色。A2/B1","Cd-Ⅲ-1 戶外休閒運動進階技能",null,null,null,"資 T-III-3 瀏覽器的使用",null,null,null,null,null,null,null,null,null,null,12,null,"an 認識科學本質",null,null,"Fc生物圈的組成",null,null,null,"Ke基本交互作用","Nb氣候變遷之影響與調適"]
[null,null,null,"5-Ⅲ-10結合自己的特長和興趣，主動尋找閱讀材料。C1/A1","◎Bc-Ⅲ-3數據、圖表、圖片、工具列等輔助說明。",null,null,null,"◎Bh-Ⅲ-1",null,null,"◎3-Ⅲ-1 能辨識課堂中所學的字詞。A2/B1",null,null,null,null,"Ca-Ⅲ-2 客家地方慶典。",null,null,"5-Ⅲ-3 能樂於了解並說出傳統歌謠、傳說故事的主旨及其語言文化 的美感。C3/B1","Bh-Ⅲ-3 季節名稱。",null,null,null,null,null,null,"n-III-10嘗試將較複雜的情境或模式中的數量關係以算式正確表述，並據以推理或解題。\nB1/B2","R-5-2四則計算規律（II）：乘除混合計算。「乘法對加法或 減法的分配律」。將計算規 律應用於簡化混合計算。熟 練整數四則混合計算。\n",null,null,null,"INc-Ⅲ-8在同一時期，特定區域上，相同物種所組成的群體稱為「族」，而在特定區域由多個族群結合而組成「群集」。",null,null,null,"表P-Ⅲ-2表演團隊職掌、表演內容、時程與空間規劃。\n",null,null,null,"Cb-III-1對周遭人事物的關懷。",null,null,"3b-Ⅲ-1  透過適當的管道蒐集社會議題的相關資料，並兼顧不同觀點或意見。B1/C2","Ac-Ⅲ-2  法律是由立法機關所制 定，其功能在保障人民權利、維護社會秩序和促進社會進步。",null,null,"3a-Ⅲ-1 流暢地操作基礎健康技能。A2/A1","Ce-Ⅲ-1 其他休閒運動進階技能",null,null,null,"資 T-III-4 資料搜尋的基本方法",null,null,null,null,null,null,null,null,null,null,13,null,null,null,null,null,null,null,null,null,"Nc能源的開發與利用"]
[null,null,null,"5-Ⅲ-11大量閱讀多元文本，辨識文本中議題的訊息或觀點。B1/A2","Bc-Ⅲ-4說明文本的結構。",null,null,null,"◎Bh-Ⅲ-2 區域人文。",null,null,"3-Ⅲ-2 能看懂校園內簡易的英文標示。B2/B1",null,null,null,null,"Cb-Ⅲ-1 客家歷史源流。",null,null,"5-Ⅲ-4 能正確介紹家人、家庭、家族、年齡、生日。B1","Bh-Ⅲ-1 自然災害用語（如：颱風、土石流等）。",null,null,null,null,null,null,"d-III-2能從資料或圖表的資料數據，解決關於「可能性」的簡單問題。C1/C2/B2","R-5-3以符號表示數學公式：國中代數的前置經驗。初步體 驗符號之使用，隱含「符號 代表數」、「符號與運算符 號的結合」的經驗。應併入 其他教學活動。\n",null,null,null,"INc-Ⅲ-9不同的環境條件影響生物的種類和分布，以及生物間的食關係，因而形成不同的生態系。",null,null,null,"表 P-Ⅲ-3展演訊息、評論、影音資料。",null,null,null,"Cb-III-2服務學習的歷程。",null,null,"3b-Ⅲ-2  摘取及整理社會議題相關資料的重點，判讀其正確性及價值，並加以描述和解釋。C1/B1","Af-Ⅲ-1  為了確保基本人權、維護生態環境的永續發展，全球須共同關心許多議題。",null,null,"3a-Ⅲ-2 能於不同的生活情境中，主動表現基礎健康技能。A1/A2","Da-Ⅲ-1 衛生保健習慣的檢視與改進",null,null,null,"資 T-III-5 數位學習網站與資源的使用",null,null,null,null,null,null,null,null,null,null,14]
[null,null,null,"5-Ⅲ-12運用圖書館(室)、科技與網路，進行資料蒐集、解讀與判斷， 提升多元文本的閱讀和應用能力。A3/B2","Bd-Ⅲ-1以事實、理論為論據，達到說服、建構、批判等目的。",null,null,null,null,null,null,"3-Ⅲ-3 能看懂教室用語。A2/B2",null,null,null,null,"Cb-Ⅲ-2 客家族群特色。",null,null,"5-Ⅲ-5 能使用工具書及數位媒體教材，俾利解決族語學習上所面臨 的問題。A2/B1",null,null,null,null,null,null,null,null,"D-5-1製作折線圖：製作生活中的折線圖。\n",null,null,null,"INc-Ⅲ-10地球是由空氣、陸地、海洋及生存於其中的生物所組成的。",null,null,null,"表 P-Ⅲ-4議題融入表演、故事劇場、舞蹈劇場、社區劇場、兒童劇場。",null,null,null,"Cb-III-3感恩、利他情懷。",null,null,"3c-Ⅲ-1  聆聽他人意見，表達自我觀點，並能與他人討論。C2/C1/B3","Af-Ⅲ-2  國際間因利益競爭而造 成衝突、對立與結盟。",null,null,"3b-Ⅲ-1 獨立演練大部份的自我調適技能。A3/A1","Da-Ⅲ-2 身體主要器官的構造功能",null,null,null,"資 T-III-6 簡報軟體的使用",null,null,null,null,null,null,null,null,null,null,15]
[null,null,null,"6-Ⅲ-1根據表達需要，使用適切的標點符號。A3/B1","Bd-Ⅲ-2論證方式如舉例、正證、反證等。",null,null,null,null,null,null,"◎3-Ⅲ-4 能看懂課堂中所學的句子。A2/B1",null,null,null,null,"Cb-Ⅲ-3 客家文化意涵。",null,null,"5-Ⅲ-6 能透過部落踏查，樂於了解進而認同「我的家人/家族」、「我 的部落/社區」、「我的山川、河（湖、潭）海」等的文化脈 絡。\nⅣC3/B1",null,null,null,null,null,null,null,null,"N-6-1  20 以內的質數和質因數分解：小於 20 的質數與合數。 2、3、5 的質因數判別法。 以短除法做質因數的分解。\n",null,null,null,"INc-Ⅲ-11岩石由礦物組成，岩石和礦物有不同特徵，各有不同用途。",null,null,null,null,null,null,null,"Cc-III-1不同族群的優勢與困境。",null,null,"3c-Ⅲ-2  發揮各人不同的專長，透過分工進行團隊合作。\nC2","Ba-Ⅲ-1  每個人不同的生活背景與經驗，會使其對社會事務的觀點與感受產生差異。",null,null,"3b-Ⅲ-2 獨立演練大部分的人際溝通互動技能。B1/C2","Da-Ⅲ-3 視力與口腔衛生促進的保健行動",null,null,null,"資 T-III-7 影音編輯軟體的操作與應用"]
[null,null,null,"6-Ⅲ-2培養思考力、聯想力等寫作基本能力。A2/A3","Bd-Ⅲ-3議論文本的結構。",null,null,null,null,null,null,"3-Ⅲ-5 能看懂課堂中所學的簡易對話。A2/B1",null,null,null,null,"Cc-Ⅲ-1 客家飲食服飾。",null,null,null,null,null,null,null,null,null,null,null,"N-6-2最大公因數與最小公倍數：質因數分解法與短除法。兩數互質。運用到分數 的約分與通分。\n",null,null,null,"INc-Ⅲ-12地球上的水存在於大氣、海洋、湖泊與地下中。",null,null,null,null,null,null,null,"Cc-III-2與不同族群相處的態度和禮儀。",null,null,"3c-Ⅲ-3  主動分擔群體的事務，並與他人合作。C2","Cc-Ⅲ-1  個人在團體中的角色會隨著社會變遷產生改變。",null,null,"3b-Ⅲ-3 能於引導下，表現基本的決策與批判技能。C1/A2","Db-Ⅲ-1 青春期的探討與常見保健問題的處理",null,null,null,"資 T-III-8 網路通訊軟體的使用"]
[null,null,null,"6-Ⅲ-3掌握寫作步驟，寫出表達清楚、段落分明、符合主題的作品。A2/A3","Be-Ⅲ-1在生活應用方面，以說明書、廣告、標語、告示、公約等格式與寫作方法為主。",null,null,null,null,null,null,"3-Ⅲ-6 能看懂課堂中所學的簡易短文之主要內容。A2/B1",null,null,null,null,"◎Cc-Ⅲ-2 客家展演藝術。",null,null,null,null,null,null,null,null,null,null,null,"N-6-3分數的除法：整數除以分數、分數除以分數的意義。 最後理解除以一數等於乘 以其倒數之公式。\n",null,null,null,"INc-Ⅲ-13日出落時間與位置，在不同季節會不同。",null,null,null,null,null,null,null,"Cc-III-3生活在不同文化中的經驗和感受。",null,null,"3d-Ⅲ-1  選定學習主題或社會議題，進行探究與實作。A2","Ad-Ⅲ-1  消費者權益的保障，需要消費者、業者與政府 共同努力。",null,null,"3b-Ⅲ-4 能於不同的生活情境中，運用生活技能。A3/B1","Db-Ⅲ-2 不同性傾向的認識與性別刻板印象的影響及因應",null,null,null,"資 T-III-9 雲端服務或工具的使用"]
[null,null,null,"6-Ⅲ-4創作童詩及故事。A2/A3","Be-Ⅲ-2在人際溝通方面，以通知、電子郵件便條等慣用語彙及書寫格式為主。",null,null,null,null,null,null,"*3-Ⅲ-7 能看懂繪本故事的主要內容。B1/B2",null,null,null,null,"Cc-Ⅲ-3 客家生活工藝。",null,null,null,null,null,null,null,null,null,null,null,"N-6-4小數的除法：整數除以小數、小數除以小數的意義。 直式計算。教師用位值的概 念說明直式計算的合理性。 處理商一定比被除數小的 錯誤類型。\n",null,null,null,"INc-Ⅲ-14四季星空會有所不同。",null,null,null,null,null,null,null,"Cc-III-4對不同族群的尊重、欣賞與關懷。",null,null,"3d-Ⅲ-2  探究社會議題發生的原因與影響，評估與選擇合適的解決方案。A3/A2","Af-Ⅲ-3  個人、政府與民間組織可透過各種方式積極參與國際組織與事務，善盡世界公民責任。",null,null,"3c-Ⅲ-1 表現穩定的身體控制和協調能力。A2/A1","Db-Ⅲ-3 性騷擾與性侵害的自我防護",null,null,null,"資 H-III-1 康健的數位使用習慣"]
[null,null,null,"6-Ⅲ-5書寫說明事理、議論的作品。B1/A3","Be-Ⅲ-3在學習應用方面，以簡報、讀書報告、演講稿等格式與寫作方法為主。",null,null,null,null,null,null,"*3-Ⅲ-8 能看懂兒童短劇中的主要內容。B1/B2",null,null,null,null,"Cd-Ⅲ-1家鄉人文景觀。",null,null,null,null,null,null,null,null,null,null,null,"N-6-5解題：整數、分數、小數的四則應用問題。二到三步驟的應用解題。含使用概數協助解題。\n",null,null,null,"INc-Ⅲ-15除了地球外，還有其他除了地球外，還有其他除了地球外，還有其他行星環繞著太陽運行。",null,null,null,null,null,null,null,"Cd-III-1生態資源及其與環境的相關。",null,null,"3d-Ⅲ-3  分享學習主題、社會議題探究的發現或執行經驗，並運用回饋資訊進行省思，尋求調整與創新。C1/C2","Bb-Ⅲ-1  自然與人文環境的交互影響，造成生活空間型態的差異與多元。",null,null,"3c-Ⅲ-2 在身體活動中表現各項運動技能，發展個人運動潛能。\nA2/A1","Db-Ⅲ-4 愛滋病傳染途徑的認識與愛滋關懷",null,null,null,"資 H-III-2 資訊科技之使用原則",null,null,null,null,null,null,null,null,null,null,null,"H","健康與體育"]
[null,null,null,"6-Ⅲ-6練習各種寫作技巧。B1/A3","Ca-Ⅲ-1各類文本中的飲食、服飾、建築形式、交通工具、名勝古蹟及休閒娛樂等文化內涵。",null,null,null,null,null,null,"*3-Ⅲ-9 能藉圖畫、標題、書名等作簡易的猜測。A2/B1",null,null,null,null,"Cd-Ⅲ-2 家鄉生態保育。",null,null,null,null,null,null,null,null,null,null,null,"N-6-5解題：整數、分數、小數的四則應用問題。二到三步驟的應用解題。含使用概數協助解題。\n",null,null,null,"INd-Ⅲ-1自然界中存在著各種的穩定狀態；當有新的外加因素時，可能造成改變，再達到新的穩定狀態。",null,null,null,null,null,null,null,"Cd-III-2人類對環境及態資源的影響。",null,null,"3d-Ⅲ-1  選定學習主題或社會議題，進行探究與實作。A2","Bc-Ⅲ-2  權力不平等與資源分配不均，會造成個人或群體間的差別待遇。",null,null,"3c-Ⅲ-3 表現動作創作和展演的能力。A3/B3","Db-Ⅲ-5 友誼關係的維繫與情感的合宜表達",null,null,null,"資 H-III-3 資訊安全基本概念及相關議題",null,null,null,null,null,null,null,null,null,null,1,"學習表現："]
[null,null,null,"6-Ⅲ-7修改、潤飾作品內容。A2/A3","Ca-Ⅲ-2各類文本中表現科技演進、環境發展的文化內涵。",null,null,null,null,null,null,"4-Ⅲ-1 能抄寫課堂中所學的字詞。A1/B1",null,null,null,null,"Ce-Ⅲ-1客家族群的遷徙。\n",null,null,null,null,null,null,null,null,null,null,null,"N-6-6比與比值：異類量的比與同類量的比之比值的意義。 理解相等的比中牽涉到的兩種倍數關係（比例思考的 基礎）。解決比的應用問題。\n",null,null,null,"INd-Ⅲ-2人類可以控制各種因素來影響物質或自然現象的改變，改變前後的差異可以被觀察，改變的快慢可以被測量與了解。",null,null,null,null,null,null,null,"Cd-III-3生態資源與環境保 護行動的執行。",null,null,"3d-Ⅲ-2  探究社會議題發生的原因與影響，評估與選擇合適的解決方案。A3/A2","Cb-Ⅲ-1  不同時期臺灣、世界的重要事件與人物，影響臺灣的歷史變遷。",null,null,"3d-Ⅲ-1 應用學習策略，提高運動技能學習效能。A2/A3","Ea-Ⅲ-1 個人的營養需求與熱量攝取消耗",null,null,null,null,null,null,null,null,null,null,null,null,null,null,2,"1.認知 ","2.情意 ","3.技能","4.行為 "]
[null,null,null,"6-Ⅲ-8建立適切的寫作態度。A2/A3","Cb-Ⅲ-1各類文本中的親屬關係、道德倫理、儀式風俗、典章制度等文化內涵。",null,null,null,null,null,null,"4-Ⅲ-2 能抄寫課堂中所學的句子。A1/B1",null,null,null,null,"Ce-Ⅲ-2 客家人在全球的分布。",null,null,null,null,null,null,null,null,null,null,null,"N-6-7解題：速度。比和比值的應用。速度的意義。能做單位換算（大單位到小單位）。 含不同時間區段的平均速度。含「距離＝速度×時間」公式。用比例思考協助解 題。\n",null,null,null,"INd-Ⅲ-3地球上的物體（含生地球上的物體（含生和非生物）均會受地球引力的作用，地球對物體的引力就是物重量。",null,null,null,null,null,null,null,"Cd-III-4珍惜生態資源與環境保護情懷的展現。",null,null,"3d-Ⅲ-3  分享學習主題、社會議題探究的發現或執行經驗，並運用回饋資訊進行省思，尋求調整與創新。C1/C2","Cc-Ⅲ-2  族群的遷徙、通婚及交流，與社會變遷互為因果。",null,null,"3d-Ⅲ-2 演練比賽中的進攻和防守策略。A3/C2","Ea-Ⅲ-2 兒童及青少年飲食問題與健康影響",null,null,null,null,null,null,null,null,null,null,null,null,null,null,3,"1a.健康知識 ","2a.健康覺察 ","3a.健康技能 ","4a.自我管理 "]
[null,null,null,null,"◎Cb-Ⅲ-2各類文本中所反映的個人與家庭、鄉里、國族及其他社 群的關係。",null,null,null,null,null,null,"4-Ⅲ-3 能拼寫國小階段基本常用字詞。A1/B1",null,null,null,null,null,null,null,null,null,null,null,null,null,null,null,null,"N-6-8解題：基準量與比較量。比和比值的應用。含交換基準時之關係。\n",null,null,null,"INd-Ⅲ-4生物個體間的性狀具有差異性；子代與親代的性狀具有相似和相異性。",null,null,null,null,null,null,null,null,null,null,null,"Cd-Ⅲ-1  不同時空環境下，臺灣人民透過爭取權利與政治改革，使得政治逐漸走向民主。",null,null,"3d-Ⅲ-3 透過體驗或實踐，解決練習或比賽的問題。C2/A2","Ea-Ⅲ-3 每日飲食指南與多元飲食文化",null,null,null,null,null,null,null,null,null,null,null,null,null,null,4,"1b.技能概念 ","2b.正向態度 ","3b.生活技能 ","4b.倡議宣導 "]
[null,null,null,null,"Cc-Ⅲ-1 各類文本中的藝術、信仰、思想等文化內涵。",null,null,null,null,null,null,"4-Ⅲ-4 能依圖畫、圖示填寫簡單字詞。A2/B1",null,null,null,null,null,null,null,null,null,null,null,null,null,null,null,null,"N-6-9解題：由問題中的數量關係，列出恰當的算式解題（同 R-6-4）。可包含（1） 較複雜的模式（如座位排列 模式）；（2）較複雜的計 數：乘法原理、加法原理或 其混合；（3）較複雜之情 境：如年齡問題、流水問題、 和差問題、雞兔問題。連結R-6-2、R-6-3。\n",null,null,null,"INd-Ⅲ-5生物體接受環境刺激會產生適當的反應，並自動調節生理作用以維持恆定。",null,null,null,null,null,null,null,null,null,null,null,"Cd-Ⅲ-2  臺灣人民的政治參與及公民團體的發展，為臺灣的民主政治奠定基 礎。",null,null,"4a-Ⅲ-1 運用多元的健康資訊、產品與服務。B2/B1","Ea-Ⅲ-4 食品生產、加工、保存與衛生安全",null,null,null,null,null,null,null,null,null,null,null,null,null,null,5,"1c.運動知識 ","2c.學習態度 ","3c.技能表現 ","4c.運動計畫 "]
[null,null,null,null,null,null,null,null,null,null,null,"4-Ⅲ-5 能正確使用大小寫及簡易的標點符號。A2/B1",null,null,null,null,null,null,null,null,null,null,null,null,null,null,null,null,"N-6-9解題：由問題中的數量關係，列出恰當的算式解題（同 R-6-4）。可包含（1） 較複雜的模式（如座位排列 模式）；（2）較複雜的計 數：乘法原理、加法原理或 其混合；（3）較複雜之情 境：如年齡問題、流水問題、 和差問題、雞兔問題。連結R-6-2、R-6-3。\n",null,null,null,"INd-Ⅲ-6生物種類具有多樣性；生物存的環境亦具有多樣性。",null,null,null,null,null,null,null,null,null,null,null,"Bc-Ⅲ-1  族群或地區的文化 特色，各有其產生的背景因素，因而形塑臺灣多元豐富的文化內涵。",null,null,"4a-Ⅲ-2 自我反省與修正促進健康的行動。C1/A3","Eb-Ⅲ-1 健康消費資訊來源與媒體影響",null,null,null,null,null,null,null,null,null,null,null,null,null,null,6,"1d.技能原理 ","2d.運動欣賞 ","3d.策略運用 ","4d.運動實踐 "]
[null,null,null,null,null,null,null,null,null,null,null,"*4-Ⅲ-6 能書寫課堂中所學的句子。A2/B1",null,null,null,null,null,null,null,null,null,null,null,null,null,null,null,null,"S-6-1放大與縮小：比例思考的應用。「幾倍放大圖」、「幾倍縮小圖」。知道縮放時， 對應角相等，對應邊成比 例。\n",null,null,null,"INd-Ⅲ-7天氣圖上用高、低壓、鋒面颱風等符號來表示天氣現象，並認識其天氣變化。",null,null,null,null,null,null,null,null,null,null,null,"Ce-Ⅲ-1  經濟型態的變遷會影響人們的生活。",null,null,"4a-Ⅲ-3 主動地表現促進健康的行動。A2/A1","Eb-Ⅲ-2 健康消費經驗與透過合宜管道選擇相關服務與產品",null,null,null,null,null,null,null,null,null,null,null,null,null,null,7,"學習內容："]
[null,null,null,null,null,null,null,null,null,null,null,"5-Ⅲ-1 認讀與聽寫國小階段字詞。A2/B1",null,null,null,null,null,null,null,null,null,null,null,null,null,null,null,null,"S-6-2解題：地圖比例尺。地圖比例尺之意義、記號與應用。地圖上兩邊長的比和實際兩邊長的比相等。\n",null,null,null,"INd-Ⅲ-8土壤是由岩石風化成的碎屑及生物遺骸所組成。化石是地層中古代生物的遺骸。",null,null,null,null,null,null,null,null,null,null,null,"Ce-Ⅲ-2  在經濟發展過程中，資源的使用會產生意義與價值的轉變，但也可能引發爭議。",null,null,"4b-Ⅲ-1 公開表達個人對促進健康的觀點與立場。B1/C1","Fa-Ⅲ-1 自我悅納與潛能探索",null,null,null,null,null,null,null,null,null,null,null,null,null,null,8,"A 生長 、 發展與 體適能","B 安全生活與 運動防護 ","C 群體健康與 運動參與","D 個人衛生與性教育 ","E 人、食物與健康消費","F 身心健康與 疾病預防","G 挑戰型運動","H 競爭型運動 ","I 表現型運動"]
[null,null,null,null,null,null,null,null,null,null,null,"◎5-Ⅲ-2 在聽讀時，能辨識書本中相對應的書寫文字。A2/B1",null,null,null,null,null,null,null,null,null,null,null,null,null,null,null,null,"S-6-2解題：地圖比例尺。地圖比例尺之意義、記號與應用。地圖上兩邊長的比和實際兩邊長的比相等。\n",null,null,null,"INd-Ⅲ-9流水、風和波浪對砂石和土壤產生侵蝕、風化、搬運及堆積等作用，河流是改變地表最重要的力量。",null,null,null,null,null,null,null,null,null,null,null,"Da-Ⅲ-1  依據需求與價值觀做選擇時，須評估風險、結果及承擔責任，且不應侵 害他人 福祉或正當 權益。",null,null,"4b-Ⅲ-2 使用適切的事證來支持自己健康促進的立場。A3/B1","Fa-Ⅲ-2 家庭成員的角色與責任",null,null,null,null,null,null,null,null,null,null,null,null,null,null,9,"Aa.生長、發育、老化與死亡","Ba.安全教育與急救","Ca.健康環境","Da.個人衛生與保健","Ea.人與食物","Fa.健康心理","Ga.田徑","Ha.網/牆性球類運動 ","Ia.體操"]
[null,null,null,null,null,null,null,null,null,null,null,"5-Ⅲ-3 能聽懂、讀懂國小階段基本字詞及句型，並使用於簡易日常溝通。B1/A2",null,null,null,null,null,null,null,null,null,null,null,null,null,null,null,null,"S-6-3圓周率、圓周長、圓面積、扇形面積：用分割說明圓 面積公式。求扇形弧長與面 積。知道以下三個比相等：（1）圓心角：360；（2） 扇形弧長：圓周長；（3） 扇形面積：圓面積，但應用問題只處理用（1）求弧長或面積。\n",null,null,null,"INd-Ⅲ-10流水及生物活動，對地表的改變會產生不同的影響。",null,null,null,null,null,null,null,null,null,null,null,"Db-Ⅲ-1  選擇合適的理財規劃，可以增加個人的財富並 調節自身的消費力。",null,null,"4b-Ⅲ-3 公開提倡促進健康的信念或行為。B1/C1","Fa-Ⅲ-3 人際關係良好的溝通技巧與方法",null,null,null,null,null,null,null,null,null,null,null,null,null,null,10,"Ab.體適能","Bb.藥物教育","Cb.運動知識","Db.性教育","Eb.消費者健康","Fb.健康促進與疾病預防","Gb.游泳","Hb.攻守入侵性球類運動","Ib.舞蹈"]
[null,null,null,null,null,null,null,null,null,null,null,"◎5-Ⅲ-4 能聽懂日常生活應對中常用語句，並能作適當的回應。A2/B1",null,null,null,null,null,null,null,null,null,null,null,null,null,null,null,null,"S-6-4柱體體積與表面積：含角柱和圓柱。利用簡單柱體， 理解「柱體體積＝底面積× 高」的公式。簡單複合形體 體積。\n",null,null,null,"INd-Ⅲ-11海水的流動會影響天氣與氣候的變化。氣溫下降時水氣凝結為雲和霧或昇華為霜、雪。",null,null,null,null,null,null,null,null,null,null,null,"Ca-Ⅲ-1  都市化與工業化會改變環境，也會引發環境問題。",null,null,"4c-Ⅲ-1 選擇及應用與運動相關的科技、資訊、媒體、產品與服務。\nC1/B2","Fa-Ⅲ-4 正向態度的建立、情緒與壓力管理技巧",null,null,null,null,null,null,null,null,null,null,null,null,null,null,11,null,"Bc.運動傷害與防護 ","Cc.水域休閒運動",null,null,null,null,"Hc.標的性球類運動","Ic.民俗性運動"]
[null,null,null,null,null,null,null,null,null,null,null,"◎5-Ⅲ-5 能以正確的發音及適切的速度朗讀簡易句型的句子。A2/B1",null,null,null,null,null,null,null,null,null,null,null,null,null,null,null,null,"R-6-1數的計算規律：小學最後應認識（1）整數、小數、分數都是數，享有一樣的計 算規律。（2）整數乘除計 算及規律，因分數運算更容易理解。（3）逐漸體會乘 法和除法的計算實為一體。 併入其他教學活動。\n",null,null,null,"INd-Ⅲ-12自然界的水循環主要由海洋或湖泊表面水的蒸發，經凝結降水，再透過地表水與下水等傳送回海洋或湖泊。",null,null,null,null,null,null,null,null,null,null,null,"Ca-Ⅲ-2  土地利用反映過去和現在的環境變遷，以及對未來的展望。",null,null,"4c-Ⅲ-2 比較與檢視個人的體適能與運動技能表現。B3/A3","Fb-Ⅲ-1 健康各面向平衡安適的促進與日常健康行為的實現",null,null,null,null,null,null,null,null,null,null,null,null,null,null,12,null,"Bd.防衛性運動","Cd.戶外休閒運動",null,null,null,null,"Hd.守備∕跑分性球類運動"]
[null,null,null,null,null,null,null,null,null,null,null,"5-Ⅲ-6 能以正確的發音及適切的速度朗讀或吟唱簡易歌謠韻文。A2/B1",null,null,null,null,null,null,null,null,null,null,null,null,null,null,null,null,"R-6-2數量關係：代數與函數的前置經驗。從具體情境或數 量模式之活動出發，做觀察、推理、說明。\n",null,null,null,"INd-Ⅲ-13施力可使物體的運動速度改變，物體受多個力的作用，仍可能保持平衡靜止不動，物體不接觸也可以有力的作用。",null,null,null,null,null,null,null,null,null,null,null,"Dc-Ⅲ-1  團體或會議的運作可以透過成員適切的討論歷程做出決定。",null,null,"4c-Ⅲ-3 擬定簡易的體適能與運動技能的運動計畫。A2/A3","Fb-Ⅲ-2 臺灣地區常見傳染病預防方法與流行期的自我防護",null,null,null,null,null,null,null,null,null,null,null,null,null,null,13,null,null,"Ce.其他休閒運動"]
[null,null,null,null,null,null,null,null,null,null,null,"5-Ⅲ-7 能以正確的發音及適切的速度朗讀簡易對話。A2/B1",null,null,null,null,null,null,null,null,null,null,null,null,null,null,null,null,"R-6-3數量關係的表示：代數與函數的前置經驗。將具體情境或模式中的數量關係，學習以文字或符號列出數量 關係的關係式。\n",null,null,null,"INe-Ⅲ-1自然界的物體、生物與環境間的交互作用，常具有規則性。",null,null,null,null,null,null,null,null,null,null,null,null,null,null,"4d-Ⅲ-1 養成規律運動習慣，維持動態生活。A2/A1","Fb-Ⅲ-3 預防性健康自我照護的意義與重要性",null,null,null,null,null,null,null,null,null,null,null,null,null,null,14]
[null,null,null,null,null,null,null,null,null,null,null,"5-Ⅲ-8 能以正確的發音及適切的速度朗讀簡易故事及短劇。A2/B1",null,null,null,null,null,null,null,null,null,null,null,null,null,null,null,null,"R-6-4解題：由問題中的數量關係，列出恰當的算式解題（同 N-6-9）。可包含（1） 較複雜的模式（如座位排列模式）；（2）較複雜的計數：乘法原理、加法原理或 其混合；（3）較複雜之情境：如年齡問題、流水問題、 和差問題、雞兔問題。連結R-6-2、R-6-3。\n",null,null,null,"INe-Ⅲ-2物質的形態與性質可因燃燒、生鏽、發酵、酸鹼作用等而改變或形成新物質，這些改變有些會和溫度、水、空氣、光等有關。改變要能發生，常需要具備一些條件。",null,null,null,null,null,null,null,null,null,null,null,null,null,null,"4d-Ⅲ-2 執行運動計畫，解決運動參與的阻礙。C1/A3","Fb-Ⅲ-4 正確的就醫行為與健保醫療資源使用",null,null,null,null,null,null,null,null,null,null,null,null,null,null,15]
[null,null,null,null,null,null,null,null,null,null,null,"◎5-Ⅲ-9 能運用所學的字母拼讀規則讀出英文字詞。A2/B1",null,null,null,null,null,null,null,null,null,null,null,null,null,null,null,null,"R-6-4解題：由問題中的數量關係，列出恰當的算式解題（同 N-6-9）。可包含（1） 較複雜的模式（如座位排列模式）；（2）較複雜的計數：乘法原理、加法原理或 其混合；（3）較複雜之情境：如年齡問題、流水問題、 和差問題、雞兔問題。連結R-6-2、R-6-3。\n",null,null,null,"INe-Ⅲ-3燃燒是物質與氧劇烈作用的現象，燃燒必須同時具備可燃物、助燃物，並達到燃點等三個要素。",null,null,null,null,null,null,null,null,null,null,null,null,null,null,"4d-Ⅲ-3 宣導身體活動促進身心健康的效益。B1/C1","Ga-Ⅲ-1 跑、跳與投擲的基本動作"]
[null,null,null,null,null,null,null,null,null,null,null,"*5-Ⅲ-10 能運用所學的字母拼讀規則拼寫英文字詞。A2/B1",null,null,null,null,null,null,null,null,null,null,null,null,null,null,null,null,"D-6-1圓形圖：報讀、說明與製作生活中的圓形圖。包含以百分率分配之圓形圖（製作時應提供學生已分成百格的圓形圖。）\n",null,null,null,"INe-Ⅲ-4物質溶解、反應前後總重量不變。",null,null,null,null,null,null,null,null,null,null,null,null,null,null,null,"Gb-Ⅲ-1 水中自救方法、仰漂 15 秒"]
[null,null,null,null,null,null,null,null,null,null,null,"6-Ⅲ-1 具有好奇心，主動向教師或同學提出問題。C2/A1",null,null,null,null,null,null,null,null,null,null,null,null,null,null,null,null,"D-6-2解題：可能性。從統計圖表資料，回答可能性問題。機率前置經驗。「很有可能」、「很不可能」、「Ａ比Ｂ可能」。\n",null,null,null,"INe-Ⅲ-5常用酸鹼物質的特性，水溶液的酸鹼性質及其生活上的運用。",null,null,null,null,null,null,null,null,null,null,null,null,null,null,null,"Gb-Ⅲ-2 手腳聯合動作、藉物游泳前進、游泳前進 15 公尺（需 換氣三次以上）與簡易性游泳比賽"]
[null,null,null,null,null,null,null,null,null,null,null,"◎6-Ⅲ-2 樂於參與課堂中各類練習活動，不畏犯錯。C2/A1",null,null,null,null,null,null,null,null,null,null,null,null,null,null,null,null,null,null,null,null,"INe-Ⅲ-6聲音有大小、高低與音色等不同性質，生活中聲音有樂音與噪音之分，噪音可以防治。",null,null,null,null,null,null,null,null,null,null,null,null,null,null,null,"Ha-Ⅲ-1 網/牆性運動基本動作及基礎戰術"]
[null,null,null,null,null,null,null,null,null,null,null,"6-Ⅲ-3 主動預習、溫習功課。A2/A1",null,null,null,null,null,null,null,null,null,null,null,null,null,null,null,null,null,null,null,null,"INe-Ⅲ-7陽光是由不同色光組成。",null,null,null,null,null,null,null,null,null,null,null,null,null,null,null,"Hb-Ⅲ-1 攻守入侵性運動基本動作及基礎戰術",null,null,null,null,null,null,null,null,null,null,null,null,null,null,null,"I","綜合活動"]
[null,null,null,null,null,null,null,null,null,null,null,"6-Ⅲ-4 會在生活中或媒體上注意到學過的英語。B1/B2",null,null,null,null,null,null,null,null,null,null,null,null,null,null,null,null,null,null,null,null,"INe-Ⅲ-8光會有折射現象，放大鏡可聚光和成像。",null,null,null,null,null,null,null,null,null,null,null,null,null,null,null,"Hc-Ⅲ-1 標的性運動基本動作及基礎戰術",null,null,null,null,null,null,null,null,null,null,null,null,null,null,1,"學習表現:","主題軸123/ 項目a.b.c.d. ",null,"學習內容:","主題軸A.B.C/ 項目a.b.c.d. "]
[null,null,null,null,null,null,null,null,null,null,null,"6-Ⅲ-5 樂於接觸課外英語學習素材。B2/A1",null,null,null,null,null,null,null,null,null,null,null,null,null,null,null,null,null,null,null,null,"INe-Ⅲ-9地球有磁場，會使指北針指向固定方向。",null,null,null,null,null,null,null,null,null,null,null,null,null,null,null,"Hd-Ⅲ-1 守備/跑分性運動基本動作及基礎戰術",null,null,null,null,null,null,null,null,null,null,null,null,null,null,2,"1.自我與生涯發展 ","2.生活經營與創新 ","3.社會與環境關懷 ","A.自我與生涯發展 ","B.生活經營與創新 ","C.社會與環境關懷 "]
[null,null,null,null,null,null,null,null,null,null,null,"6-Ⅲ-6 在生活中接觸英語時，樂於探究其意涵並嘗試使用。B1/A2",null,null,null,null,null,null,null,null,null,null,null,null,null,null,null,null,null,null,null,null,"INe-Ⅲ-10磁鐵與通電的導線皆可產生磁力，使附近指北針偏轉。改變電流方向或大小，可以調控電磁鐵的磁極方向或磁力大小。",null,null,null,null,null,null,null,null,null,null,null,null,null,null,null,"Ia-Ⅲ-1 滾翻、支撐、跳躍、旋轉與騰躍動作",null,null,null,null,null,null,null,null,null,null,null,null,null,null,3,"1a.自我探索與成長 ","2a.人際互動與經營 ","3a.危機辨識與處理 ","Aa.自我探索與成長 ","Ba.人際互動與經營 ","Ca.危機辨識與處理 "]
[null,null,null,null,null,null,null,null,null,null,null,"6-Ⅲ-7 樂於參與有助提升英語能力的活動（如英語營、歌唱、朗讀、說 故事、讀者劇場等活動）。B2/C2",null,null,null,null,null,null,null,null,null,null,null,null,null,null,null,null,null,null,null,null,"INe-Ⅲ-11動物有覓食、生殖、保護、訊息傳遞以及社會性的行為。",null,null,null,null,null,null,null,null,null,null,null,null,null,null,null,"Ib-Ⅲ-1 模仿性與主題式創作舞",null,null,null,null,null,null,null,null,null,null,null,null,null,null,4,"1b.自主學習與管理 ","2b.團體合作與領導 ","3b.社會關懷與服務 ","Ab.自主學習與管理 ","Bb.團體合作與領導 ","Cb.社會關懷與服務 "]
[null,null,null,null,null,null,null,null,null,null,null,"7-Ⅲ-1 運用已學過字詞之聯想以學習新的字詞。B1/A2",null,null,null,null,null,null,null,null,null,null,null,null,null,null,null,null,null,null,null,null,"INe-Ⅲ-12生物的分布和習性，會受環境因素的影響；環境改變也會影響生存於其中的生物種類。",null,null,null,null,null,null,null,null,null,null,null,null,null,null,null,"Ib-Ⅲ-2 各國土風舞",null,null,null,null,null,null,null,null,null,null,null,null,null,null,5,"1c.生涯規劃與發展 ","2c.資源運用與開發 ","3c.文化理解與尊重 ","Ac.生涯規劃與發展 ","Bc.資源運用與開發 ","Cc.文化理解與尊重 "]
[null,null,null,null,null,null,null,null,null,null,null,"7-Ⅲ-2 能用字典查閱字詞的發音及意義。B2/A1",null,null,null,null,null,null,null,null,null,null,null,null,null,null,null,null,null,null,null,null,null,null,null,null,null,null,null,null,null,null,null,null,null,null,null,null,"Ic-Ⅲ-1 民俗性運動組合動作與遊戲",null,null,null,null,null,null,null,null,null,null,null,null,null,null,6,"1d.尊重與珍惜生命 ","2d.生活美感與創新 ","3d.環境保育與永續 ","Ad.尊重與珍惜生命 ","Bd.生活美感與創新 ","Cd.環境保育與永續 "]
[null,null,null,null,null,null,null,null,null,null,null,"7-Ⅲ-3 在生活中能把握機會，勇於嘗試使用英語。A2/A1",null,null,null,null,null,null,null,null,null,null,null,null,null,null,null,null,null,null,null,null,null,null,null,null,null,null,null,null,null,null,null,null,null,null,null,null,"Ic-Ⅲ-2 民俗性運動簡易性表演",null,null,null,null,null,null,null,null,null,null,null,null,null,null,7]
[null,null,null,null,null,null,null,null,"本土語文",null,null,"*7-Ⅲ-4 對教師或同學討論的內容能舉出示例或反例。A2/C2",null,null,null,null,null,null,null,null,null,null,null,null,null,null,null,null,null,null,null,null,null,null,null,null,null,null,null,null,null,null,null,null,null,null,null,null,null,null,null,null,null,null,null,null,null,null,null,null,null,null,null,8]
[null,null,null,null,null,null,null,null,"七八九年級",null,null,"◎8-Ⅲ-1 能了解國內外基本的招呼方式。B1/C3",null,null,null,null,null,null,null,null,null,null,null,null,null,null,null,null,null,null,null,null,null,null,null,null,null,null,null,null,null,null,null,null,null,null,null,null,null,null,null,null,null,null,null,null,null,null,null,null,null,null,null,9]
[null,null,null,null,null,null,null,null,"學習內容",null,null,"◎8-Ⅲ-2 能了解課堂中所介紹的國內主要節慶習俗。B1/C3",null,null,null,null,null,null,null,null,null,null,null,null,null,null,null,null,null,null,null,null,null,null,null,null,null,null,null,null,null,null,null,null,null,null,null,null,null,null,null,null,null,null,null,null,null,null,null,null,null,null,null,10]
[null,null,null,null,null,null,null,null,"◎Aa-Ⅳ-1 羅馬拼音。",null,null,"◎8-Ⅲ-3 能了解課堂中所介紹的國外主要節慶習俗。B1/C3",null,null,null,null,null,null,null,null,null,null,null,null,null,null,null,null,null,null,null,null,null,null,null,"藝術","藝術",null,null,"綜合活動","綜合活動",null,null,null,null,null,null,"健康與體育",null,null,null,null,null,null,null,null,null,null,null,null,null,null,null,11]
[null,null,null,null,null,null,null,null,"◎Aa-Ⅳ-2 漢字書寫。",null,null,"8-Ⅲ-4 能了解外國風土民情。B1/C3",null,null,null,null,null,null,null,null,null,null,null,null,null,null,null,null,null,null,null,null,null,null,null,"七八九年級","七八九年級",null,null,"七八九年級","七八九年級",null,null,null,null,null,null,"七八九年級",null,null,null,null,null,null,null,null,null,null,null,null,null,null,null,12]
[null,null,null,null,null,null,null,null,"◎Ab-Ⅳ-1 語詞運用。",null,null,"◎9-Ⅲ-1 能夠將所學字詞做簡易歸類。B1/A2",null,null,null,null,null,null,null,null,null,null,null,null,null,null,null,null,null,null,null,null,null,null,null,"學習表現","學習內容",null,null,"學習表現","學習內容",null,null,null,null,null,null,"學習表現",null,null,null,null,null,null,null,null,null,null,null,null,null,null,null,13]
[null,null,null,null,null,null,null,null,"◎Ab-Ⅳ-2 句型運用。",null,null,"9-Ⅲ-2 能將事件依故事的發展加以排序。B1/A2",null,null,null,null,null,null,null,null,null,null,null,null,null,null,null,null,null,null,null,null,null,null,null,"音 1-Ⅳ-1能理解音樂符號並回應指揮，進行歌唱及演奏，展現音樂美感意識。B3/B1","音 E-Ⅳ-1多元形式歌曲。基礎歌唱技巧，如：發聲技巧、表情等。",null,null,"1a-IV-1探索自我與家庭發展的過程，覺察並分析影響個人成長因素及調適法。C1/A1","家 Db-IV-1家庭組成及文化多元性對自我發展的影響 ， 以及少子女化、高齡化與家庭結構變遷的關聯。",null,null,null,null,null,null,"1a-Ⅳ-1 理解生理、心理與社會各層面健康的概念。C1/A1",null,null,null,null,null,null,null,null,null,null,null,null,null,null,null,14]
[null,null,null,null,null,null,null,null,"◎Ab-Ⅳ-3 方音差異。",null,null,"9-Ⅲ-3 能綜合相關資訊作簡易的猜測。B1/A2",null,null,null,null,null,null,null,null,null,null,null,null,null,null,null,null,null,null,null,null,null,null,null,"音 1-Ⅳ-2能融入傳統、當代或流行音樂的風格，改編樂曲，以表達觀點。C3/B3","音 E-Ⅳ-2樂器的構造、發音原理、演奏技巧，以及不同的演奏形式。",null,null,"1a-IV-2展現自己的興趣與多元能力，接納自我，以促進個人成長。C1/A1","輔 Aa-IV-1自我探索的方法、經驗與態度。",null,null,null,null,null,null,"1a-Ⅳ-2 分析個人與群體健康的影響因素。C1/A2",null,null,null,null,null,null,null,null,null,null,null,null,null,null,null,15]
[null,null,null,null,null,null,null,null,"◎Ab-Ⅳ-4 文白異讀。",null,null,null,null,null,null,null,null,null,null,null,null,null,null,null,null,null,null,null,null,null,null,null,null,null,null,"音 2-Ⅳ-1能使用適當的音樂語彙，賞析各類音樂作品，體會藝術文化之美。B2/B1","音 E-Ⅳ-3音樂符號與術語、記譜法或簡易音樂軟體。",null,null,"1b-IV-1培養主動積極的學習態度，掌握學習方法，養成自主學習與自我管理的能力。A3/A2","輔 Ab-IV-1青少年身心發展歷程與調適。",null,null,null,null,null,null,"1a-Ⅳ-3 評估內在與外在的行為對健康造成的衝擊與風險。C1/A2"]
[null,null,null,null,null,null,null,null,"◎Ac-Ⅳ-1 生活故事。",null,null,null,null,null,null,null,null,null,null,null,null,null,null,null,null,null,null,null,null,null,null,null,null,null,null,"音 2-Ⅳ-2能透過討論，以探究樂曲創作背景與社會文化的關聯及其意義，表達多元觀點。B1","音 E-Ⅳ-4 音樂元素，如：音色、調式、 和聲等。",null,null,"1b-IV-2運用問題解決策略，處理生活議題，進而克服生活逆境。C1/A3","家 Ab-IV-2飲食的製備與創意運用。",null,null,null,null,null,null,"1a-Ⅳ-4 理解促進健康生活的策略、資源與規範。A2/A1"]
[null,null,null,null,null,null,null,null,"◎Ac-Ⅳ-2 詵歌短文。",null,null,null,null,null,null,null,null,null,null,null,null,null,null,null,null,null,null,null,null,null,null,null,null,null,null,"音 3-Ⅳ-1能透過多元音樂活動，探索音樂及其他藝術之共通性，關懷在地及全球藝術文化。B1","音 E-Ⅳ-5 基礎指揮。",null,null,"1c-IV-1澄清個人價值觀，並統整個人能力、特質、家人期許及相關生涯與升學資訊。C1/A1","家 Cc-IV-2生活用品的創意設計與製作，以及個人興趣與能力的覺察。",null,null,null,null,null,null,"1b-Ⅳ-1 分析健康技能和生活技能對健康維護的重要性。A3/A2"]
[null,null,null,null,null,null,null,null,"Ac-Ⅳ-3 詵歌選讀。",null,null,null,null,null,null,null,null,null,null,null,null,null,null,null,null,null,null,null,null,null,null,null,null,null,null,"音 3-Ⅳ-2能運用科技媒體蒐集藝文資訊或聆賞音樂，以培養自主學習音樂的興趣與發展。B3/B1","音A-Ⅳ-1器樂曲與聲樂曲，如：傳統戲曲、音樂劇、世界音樂、電影配樂等多元風格之樂曲。各種音樂展演形式，以及樂曲之作曲家、音樂表演團體與創作背景。",null,null,"1c-IV-2探索工作世界與未來發展，提升個人價值與生命意義。C3/A1","童 Aa-IV-2小隊制度的分工、團隊合作與團體動力 的提升。",null,null,null,null,null,null,"1b-Ⅳ-2 認識健康技能和生活技能的實施程序概念。A2/A1"]
[null,null,null,null,null,null,null,null,"Ac-Ⅳ-4 散文選讀。",null,null,"英語文","英語文",null,null,null,null,null,null,null,null,null,null,null,null,null,null,null,null,null,null,null,null,null,null,"視 1-Ⅳ-1能使用構成要素和形式原理，表達情感與想法。C1/C3","音 A-Ⅳ-2 相關音樂語彙，如音色、和聲等描述音樂元素之音樂術 語，或相關之一般性用語。",null,null,"1c-IV-3運用生涯規劃方法與資源，培養生涯抉擇能力，以發展個人生涯進路。C3/A1","輔 Aa-IV-2自我悅納、尊重差異 與自我成長。",null,null,null,null,null,null,"1b-Ⅳ-3 因應生活情境的健康需求，尋求解決的健康技能和生活技能。\nA2/A3",null,null,null,null,null,null,null,null,null,null,null,null,null,null,null,null,"J"," 生活"]
[null,null,null,null,null,null,null,null,"Ac-Ⅳ-5 應用文體。",null,null,"七八九年級","七八九年級",null,null,null,null,null,null,null,null,null,null,null,null,null,null,null,null,null,null,null,null,null,null,"視 1-Ⅳ-2能使用多元媒材與技法，表現個人或社群的觀點。B3","音 A-Ⅳ-3 音樂美感原則，如：均衡、漸 層等。",null,null,"1d-IV-1覺察個人的心理困擾與影響因素，運用適當策略或資源，促進心理健康。C1/A1","輔 Bc-IV-2多元能力的學習展現與經驗統整。",null,null,null,null,null,null,"1b-Ⅳ-4 提出健康自主管理的行動策略。A2/A3",null,null,null,null,null,null,null,null,null,null,null,null,null,null,null,1,"學習表現的編碼方式:","學習內容6主題 :編碼代號如A-I-1"]
[null,null,null,null,null,null,null,null,"Ac-Ⅳ-6 劇本選讀。",null,null,"學習表現","學習內容",null,null,null,null,null,null,null,null,null,null,null,null,null,null,null,null,null,null,null,null,null,null,"視 1-Ⅳ-3能使用數位及影音媒體，表達創作意念。A3/C3","音 P-Ⅳ-1音樂與跨領域藝術文化活動。",null,null,"1d-IV-2探索生命的意義與價值，尊重及珍惜自己與他人生命，並協助他 人。A2/C1","輔 Dd-IV-1尊重多元性別差異。",null,null,null,null,null,null,"1c-Ⅳ-1 了解各項運動基礎原理和規則。A2/A1",null,null,null,null,null,null,null,null,null,null,null,null,null,null,null,2,"第 1 碼為_生活課程:","A.事物變化及生命成長現象的觀察與省思 ","B.環境之美的探索與愛護 ","C.生活事物特性的探究與創新應用 "]
[null,null,null,null,null,null,null,null,"◎Ba-Ⅳ-1 社交稱謂。",null,null,"◎1-Ⅳ-1 能聽懂課堂中所學的字詞。A2/B1","Aa-Ⅳ-1 連續體大小寫字母 的辨識及書 寫。\n",null,null,null,null,null,null,null,null,null,null,null,null,null,null,null,null,null,null,null,null,null,null,"視 1-Ⅳ-4能透過議題創作，表達對生活環境及社會文化的理解。A3/B2","音 P-Ⅳ-2在地人文關懷與全球藝術文化相關議題。",null,null,"2a-IV-1體認人際關係的重要性，學習人際溝通技巧，以正向的態度經營人際關係。A2/C2","家 Ca-IV-1個人與家庭生活的金錢及時間管理。",null,null,null,null,null,null,"1c-Ⅳ-2 評估運動風險，維護安全的運動情境。C1/A2",null,null,null,null,null,null,null,null,null,null,null,null,null,null,null,3,"7大核心素養","D.人際關係的建立與溝通合作 ","E.生活規範的實踐與省思 ","F.自主學習策略的練習與覺察 "]
[null,null,null,null,null,null,null,null,"◎Ba-Ⅳ-2 性別認識。",null,null,"1-Ⅳ-2 能聽懂常用的教室用語及日常生活用語。A2/B1","Ab-Ⅳ-1 句子的發音、重音及 語調。\n",null,null,null,null,null,null,null,null,null,null,null,null,null,null,null,null,null,null,null,null,null,null,"視 2-Ⅳ-1能體驗藝術作品，並接受 多元的觀點。A3","音 P-Ⅳ-3音樂相關工作的特性與種類。",null,null,"2a-IV-2培養親密關係的表達與處理知能。B1/C2","輔 Ba-IV-1學習意義的探究與終身學習態度的培養。",null,null,null,null,null,null,"1c-Ⅳ-3 了解身體發展與動作發展的關係。A2/A1",null,null,null,null,null,null,null,null,null,null,null,null,null,null,null,4,"第 2 碼為「學習階段別」"]
[null,null,null,null,null,null,null,null,"◎Ba-Ⅳ-3 情緒表達。",null,null,"1-Ⅳ-3 能聽懂基本或重要句型的句子。A2/B1","* ◎ Ab- Ⅳ -2 歌 謠、韻文的節奏與音韻。\n",null,null,null,null,null,null,null,null,null,null,null,null,null,null,null,null,null,null,null,null,null,null,"視 2-Ⅳ-2能理解視覺符號的意義， 並表達多元的觀點。B1","視 E-Ⅳ-1色彩理論、造形表現、符號 意涵。",null,null,"2a-IV-3覺察自己與家人溝通的方式，增進經營家庭生活能力。A2/A1","輔 Ba-IV-2自我管理與學習效能的提升。",null,null,null,null,null,null,"1c-Ⅳ-4 了解身體發展、運動和營養的關係。A2/A1",null,null,null,null,null,null,null,null,null,null,null,null,null,null,null,5,"如 I 代表第一學習階段"]
[null,null,null,null,null,null,null,null,"◎Ba-Ⅳ-4 性別尊重。",null,null,"1-Ⅳ-4 能聽懂日常生活對話的主要內容。A2/B1","*Ab-Ⅳ-3 字母 拼讀規則（含 字母拼讀的 精熟能力、字彙拼寫的輔 助）。\n",null,null,null,null,null,null,null,null,null,null,null,null,null,null,null,null,null,null,null,null,null,null,"視 2-Ⅳ-3能理解藝術產物的功能 與價值，以拓展多元視 野。B3/B1","視 E-Ⅳ-2平面、立體及複合媒材的 表現技法。",null,null,"2b-IV-1參與各項團體活動，與他人有效溝通與合作，並負責完成分內工作。B1/C2","輔 Bb-IV-1學習方法的運用與調整。",null,null,null,null,null,null,"1d-Ⅳ-1 了解各項運動技能原理。A2/A1",null,null,null,null,null,null,null,null,null,null,null,null,null,null,null,6,"第 3 碼為「學習表現」"]
[null,null,null,null,null,null,null,null,"Ba-Ⅳ-5 性格特質。",null,null,"◎1-Ⅳ-5 能聽懂簡易歌謠和韻文的主要內容。C3/B2","Ac-Ⅳ-1 簡易的英文標示。\n",null,null,null,null,null,null,null,null,null,null,null,null,null,null,null,null,null,null,null,null,null,null,"視 3-Ⅳ-1\n能透過多元藝文活動的 參與，培養對在地藝文環 境的關注態度。B3/B2","視 E-Ⅳ-3數位影像、數位媒材。",null,null,"2b-IV-2體會參與團體活動的歷程，發揮個人正向影響，並提升團體效能。A3/C2","家 Db-IV-2家庭的發展、變化與逆境調適，以及家人衝突的因應。",null,null,null,null,null,null,"1d-Ⅳ-2 反思自己的運動技能。B1/A2",null,null,null,null,null,null,null,null,null,null,null,null,null,null,null,7,"流水號_以數字表示"]
[null,null,null,null,null,null,null,null,"Ba-Ⅳ-6 性向探索。",null,null,"◎1-Ⅳ-6 能聽懂簡易故事及短劇的主要內容。C2/B2","Ac-Ⅳ-2 常見的教室用語。\n",null,null,null,null,null,null,null,null,null,null,null,null,null,null,null,null,null,null,null,null,null,null,"視 3-Ⅳ-2 能規劃或報導藝術活動， 展現對自然環境與社會 議題的關懷。C3/C1","視 E-Ⅳ-4 環境藝術、社區藝術。",null,null,"2c-IV-1善用各項資源，妥善計畫與執行個人生活中重要事務。C1/A2","童 Cc-IV-1戶外休閒活動的安全、風險管理與緊急事件的處理。",null,null,null,null,null,null,"1d-Ⅳ-3 應用運動比賽的各項策略。C2/A3",null,null,null,null,null,null,null,null,null,null,null,null,null,null,null,8]
[null,null,null,null,null,null,null,null,"◎Bb-Ⅳ-1 數字運用。",null,null,"1-Ⅳ-7 能辨識簡短說明或敘述的情境及主旨。A2/B2","Ac-Ⅳ-3 常見的生活用語。\n",null,null,null,null,null,null,null,null,null,null,null,null,null,null,null,null,null,null,null,null,null,null,"視 3-Ⅳ-3能應用設計思考及藝術 知能，因應生活情境尋求 解決方案。B3/C3/A1","視 A-Ⅳ-1藝術常識、藝術鑑賞方法。",null,null,"2c-IV-2有效蒐集、分析及開發各項資源，做出合宜的決定與運用。C1/A3","輔 Ca-IV-1生涯發展、生涯轉折與生命意義的探索。",null,null,null,null,null,null,"2a-Ⅳ-1 關注健康議題本土、國際現況與趨勢。C3/B2",null,null,null,null,null,null,null,null,null,null,null,null,null,null,null,9]
[null,null,null,null,null,null,null,null,"◎Bb-Ⅳ-2 交通運輸。",null,null,"1-Ⅳ-8 能聽懂簡易影片的主要內容。A2/B2","Ac-Ⅳ-4 國中階段所學字詞（能聽、讀、說、寫最基本的 1,200 字詞）。",null,null,null,null,null,null,null,null,null,null,null,null,null,null,null,null,null,null,null,null,null,null,"表 1-Ⅳ-1能運用特定元素、形式、技巧與肢體語彙表現想法，發展多元能力，並在劇場\n中呈現。A3/B1","視 A-Ⅳ-2 傳統藝術、當代藝術、視覺 文化。",null,null,"2d-IV-1運用創新能力，規劃合宜的活動，豐富個人及家庭生活。C1/A3","輔 Db-IV-1生活議題的問題解決、危機因應與克服困境的方法。",null,null,null,null,null,null,"2a-Ⅳ-2 自主思考健康問題所造成的威脅感與嚴重性。C1/A2",null,null,null,null,null,null,null,null,null,null,null,null,null,null,null,10]
[null,null,null,null,null,null,null,null,"Bc-Ⅳ-1 社區活動。",null,null,"*◎1-Ⅳ-9 能辨識句子語調所表達的情緒和態度。A2/B2","Ad-Ⅳ-1 國中階段所學的文法句型。\n",null,null,null,null,null,null,null,null,null,null,null,null,null,null,null,null,null,null,null,null,null,null,"表 1-Ⅳ-2能理解表演的形式、文本與表現技巧並創作發表。A3/A2","視 A-Ⅳ-3在地及各族群藝術、全球 藝術。",null,null,"2d-IV-2欣賞多元的生活文化，運用美學於日常生活中，展現美感。C3/B3","家 Dd-IV-2家庭文化傳承與對個人的意義。",null,null,null,null,null,null,"2a-Ⅳ-3 深切體會健康行動的自覺利益與障礙。C1/A2",null,null,null,null,null,null,null,null,null,null,null,null,null,null,null,11]
[null,null,null,null,null,null,null,null,"Bc-Ⅳ-2 公民素養。",null,null,"*◎1-Ⅳ-10 能了解歌謠、韻文的節奏與音韻。C3/B2","◎ Ae-Ⅳ-1 簡易歌謠、韻 文、短文、故事 及 短\n劇。\n",null,null,null,null,null,null,null,null,null,null,null,null,null,null,null,null,null,null,null,null,null,null,"表 1-Ⅳ-3能連結其他藝術並創作。C1/A1","視 P-Ⅳ-1公共藝術、在地及各族群 藝文活動、藝術薪傳。",null,null,"3a-IV-1覺察人為或自然環境的危險情境，評估並運用最佳處理策略，以保護自己或他人。C1/A3","家 Dd-IV-3家人期許與自我發展之思辨。",null,null,null,null,null,null,"2b-Ⅳ-1 堅守健康的生活規範、態度與價值觀。A1/C1",null,null,null,null,null,null,null,null,null,null,null,null,null,null,null,12]
[null,null,null,null,null,null,null,null,"◎Bd-Ⅳ-1 環境保護。",null,null,"*◎1-Ⅳ-11 能聽懂公共場所廣播的內容，如捷運、車站、機場廣播。C3/B2","◎ Ae-Ⅳ-2 常見 的圖表。",null,null,null,null,null,null,null,null,null,null,null,null,null,null,null,null,null,null,null,null,null,null,"表 2-Ⅳ-1能覺察並感受創作與美感經驗的關聯。\nC3/A3","視 P-Ⅳ-2 展覽策劃與執行。",null,null,"3a-IV-2具備野外生活技能，提升野外生存能力，並與環境做合宜的互動。A3/C2","輔 Ca-IV-2自我生涯探索與統整。",null,null,null,null,null,null,"2b-Ⅳ-2 樂於實踐健康促進的生活型態。A2/C1",null,null,null,null,null,null,null,null,null,null,null,null,null,null,null,13]
[null,null,null,null,null,null,null,null,"◎Bd-Ⅳ-2 生態保育。",null,null,"◎2-Ⅳ-1 能說出課堂中所學的字詞。A2/B1","*◎ Ae-Ⅳ-3 公共 場所廣播（如 捷運、車站、機場廣播）。",null,null,null,null,null,null,null,null,null,null,null,null,null,null,null,null,null,null,null,null,null,null,"表 2-Ⅳ-2能體認各種表演藝術發展脈絡、文化內涵及代表人物。A2/A3","視 P-Ⅳ-3設計思考、生活美感。",null,null,"3b-IV-1落實社會服務的關懷行動，以深化服務情懷。A2/C1","輔 Cb-IV-1適性教育的試探與資訊統整。",null,null,null,null,null,null,"2b-Ⅳ-3 充分地肯定自我健康行動的信心與效能感。A1/A2",null,null,null,null,null,null,null,null,null,null,null,null,null,null,null,14]
[null,null,null,null,null,null,null,null,"◎Bd-Ⅳ-3 海洋保育。",null,null,"2-Ⅳ-2 能依情境使用日常生活用語。A2/B1","Ae-Ⅳ-4 簡易賀 卡、書信、電子郵件。\n",null,null,null,null,null,null,null,null,null,null,null,null,null,null,null,null,null,null,null,null,null,null,"表 2-Ⅳ-3能運用適當的語彙，明確表達、解析及評價自己與他人的作品。B3","視 P-Ⅳ-4視覺藝術相關工作的特性 與種類。",null,null,"3c-IV-1探索世界各地的生活方式，展現自己對國際文化的理解與尊重。A3/C3","家 Bb-IV-1服飾的選搭、美感展現與個人形象管理。",null,null,null,null,null,null,"2c-Ⅳ-1 展現運動禮節，具備運動的道德思辨和實踐能力。B3/C1",null,null,null,null,null,null,null,null,null,null,null,null,null,null,null,15]
[null,null,null,null,null,null,null,null,"◎Be-Ⅳ-1 數位資源。",null,null,"2-Ⅳ-3 能依情境使用教室用語。A2/B1","*Ae-Ⅳ-5 不同體 裁、不同主題 之 簡 易 文 章。",null,null,null,null,null,null,null,null,null,null,null,null,null,null,null,null,null,null,null,null,null,null,"表 3-Ⅳ-1能運用劇場相關技術，有計畫地排練與展演。\nA3/B1","表 E-Ⅳ-1聲音、身體、情感、時間、空間、勁力、即興、動作等戲劇或舞蹈元素。\n",null,null,"3c-IV-2展現多元社會生活中所應具備的能力。B1/C1","家 Cc-IV-2生活用品的創意設計與製作，以及個人興趣與能力的覺察。",null,null,null,null,null,null,"2c-Ⅳ-2 表現利他合群的態度，與他人理性溝通與和諧互動。C2/B1"]
[null,null,null,null,null,null,null,null,"◎Be-Ⅳ-2 影音媒材。",null,null,"2-Ⅳ-4 能以簡易的英語描述自己、家人及朋友。A2/B1","Ae-Ⅳ-6 簡易故 事的背景、人 物、事件和結 局。",null,null,null,null,null,null,null,null,null,null,null,null,null,null,null,null,null,null,null,null,null,null,"表 3-Ⅳ-2能運用多元創作探討公共議題，展現人文關懷與獨立思考能力。B3/A2","表 E-Ⅳ-2肢體動作與語彙、角色建立與表演、各類型文本分析與創作。",null,null,"3d-IV-1探索、體驗個人與環境的關係，規劃並執行合宜的戶外活動。A2/C1","童 Bb-IV-3服務活動的反思與多元能力的展現。",null,null,null,null,null,null,"2c-Ⅳ-3 表現自信樂觀、勇於挑戰的學習態度。A1/A2"]
[null,"P",null,null,null,null,null,null,"◎Bf-Ⅳ-1 表演藝術。",null,null,"2-Ⅳ-5 能以簡易的英語表達個人的需求、意願和感受。A2/B1","*◎ Ae-Ⅳ-7 敘述 者的觀點、態 度、及寫作目 的。",null,null,null,null,null,null,null,null,null,null,null,null,null,null,null,null,null,null,null,null,null,null,"表 3-Ⅳ-3能結合科技媒體傳達訊息，展現多元表演形式的作品。B3","表E-Ⅳ-3\n戲劇、舞蹈與其他藝術元素的結合演出。",null,null,"3d-IV-2分析環境與個人行為的關係，運用策略與行動，促進環境永續發展。A3/C1","輔 Ca-IV-1生涯發展、生涯轉折與生命意義的探索。",null,null,null,null,null,null,"2d-Ⅳ-1 了解運動在美學上的特質與表現方式。A3/B3"]
[null,"Q ",null,null,null,null,null,null,"◎Bf-Ⅳ-2 藝術欣賞。",null,null,"2-Ⅳ-6 能依人、事、時、地、物作簡易的描述或回答。A2/B1","*Ae-Ⅳ-8 簡易故事及短文的 大意。\n",null,null,null,null,null,null,null,null,null,null,null,null,null,null,null,null,null,null,null,null,null,null,"表 3-Ⅳ-4能養成鑑賞表演藝術的習慣，並能適性發展。A3/B3","表 A-Ⅳ-1表演藝術與生活美學、在地文化及特定場域的演出連結。",null,null,null,"輔 Cb-IV-2工作意義、工作態度、工作世界，突破傳統的性別職業框架，勇於探索未來的發展。",null,null,null,null,null,null,"2d-Ⅳ-2 展現運動欣賞的技巧，體驗生活的美感。A3/B3"]
[null,"R",null,null,null,null,null,null,"◎Bg-Ⅳ-1",null,null,"2-Ⅳ-7 能依人、事、時、地、物作簡易的提問。A2/B1","B-Ⅳ-1 自己、家人及朋友的 簡易描述。\n",null,null,null,null,null,null,null,null,null,null,null,null,null,null,null,null,null,null,null,null,null,null,null,"表 A-Ⅳ-2在地及各族群、東西方、傳統 與 當 代 表 演 藝 術 之 類型、代表作品與人物。",null,null,null,"家 Ca-IV-1個人與家庭生活的金錢及時間管理。",null,null,null,null,null,null,"2d-Ⅳ-3 鑑賞本土與世界運動的文化價值。B3/C3",null,null,null,null,null,null,null,null,null,null,null,null,null,null,null,null,"R","科技"]
[null,"S",null,null,null,null,null,null,"◎Bg-Ⅳ-2 口語表達。",null,null,"2-Ⅳ-8 能以正確的發音、適切的重音及語調說出基本或重要句型的句子。A2/B1","B-Ⅳ-2 國中階段所學字詞及 句型的生活 溝通。\n",null,null,null,null,null,null,null,null,null,null,null,null,null,null,null,null,null,null,null,null,null,null,null,"表 A-Ⅳ-3表演形式分析、文本分析。",null,null,null,"輔 Cc-IV-1生涯進路的規劃與資源運用。",null,null,null,null,null,null,"3a-Ⅳ-1 精熟地操作健康技能。A2/A1",null,null,null,null,null,null,null,null,null,null,null,null,null,null,null,1,"一、資訊科技",null,"二、生活科技"]
[null,"T",null,null,null,null,null,null,"Bg-Ⅳ-3 書面表達。",null,null,"◎2-Ⅳ-9 能進行簡易的角色扮演。B1/C2","B-Ⅳ-3 語言與非語言的溝通 策略（如請求 重述、手勢、 表情等）。\n",null,null,null,null,null,null,null,null,null,null,null,null,null,null,null,null,null,null,null,null,null,null,null,"表 P-Ⅳ-1表演團隊組織與架構、劇場基礎設計和製作。\n",null,null,null,"輔 Cc-IV-2生涯決策、行動與調適。",null,null,null,null,null,null,"3a-Ⅳ-2 因應不同的生活情境進行調適並修正，持續表現健康技能。B1/A2",null,null,null,null,null,null,null,null,null,null,null,null,null,null,null,2,"學習表現 ","學習內容 ","學習表現 ","學習內容 "]
[null,"U",null,null,null,null,null,null,"◎Bh-Ⅳ-1",null,null,"2-Ⅳ-10 能以簡易的英語描述圖片。A2/B1","B-Ⅳ-4 個人的 需求、意願和 感 受 的 表 達。",null,null,null,null,null,null,null,null,null,null,null,null,null,null,null,null,null,null,null,null,null,null,null,"表 P-Ⅳ-2應用戲劇、應用劇場與應用舞蹈等多元形式。",null,null,null,"家 Db-IV-2家庭的發展、變化與逆境調適，以及家人衝突的因應。",null,null,null,null,null,null,"3b-Ⅳ-1 熟悉各種自我調適技能。A2/A1",null,null,null,null,null,null,null,null,null,null,null,null,null,null,null,3,"運算思維與問題解決(t)","系統平台(S)","科技知識(k)","科技的本質(N)"]
[null,"V",null,null,null,null,null,null,"◎Bh-Ⅳ-2 區域人文。",null,null,"*◎2-Ⅳ-11 能參與簡易的英語短劇表演。B2/C2","B-Ⅳ-5 人、事、 時、地、物的 描 述 及 問 答。",null,null,null,null,null,null,null,null,null,null,null,null,null,null,null,null,null,null,null,null,null,null,null,"表 P-Ⅳ-3影片製作、媒體應用、電腦與 行 動 裝 置 相 關 應 用 程式。",null,null,null,"輔 Da-IV-1正向思考模式、生活習慣與態度的培養。",null,null,null,null,null,null,"3b-Ⅳ-2 熟悉各種人際溝通互動技能。C2/B1",null,null,null,null,null,null,null,null,null,null,null,null,null,null,null,4,"資訊科技與合作共創(c)","資料表示、處理及分析(D)","科技態度(a)","設計與製作(P)"]
[null,"W",null,null,null,null,null,null,"Bh-Ⅳ-3 人文特色。",null,null,"*2-Ⅳ-12 能以簡易的英語參與引導式討論。B1/C2","◎ B-Ⅳ-6 圖片描 述。",null,null,null,null,null,null,null,null,null,null,null,null,null,null,null,null,null,null,null,null,null,null,null,"表 P-Ⅳ-4表演藝術活動與展演、表演藝術相關工作的特性與種類。",null,null,null,"輔 Da-IV-2情緒與壓力的成因、影響與調適。",null,null,null,null,null,null,"3b-Ⅳ-3 熟悉大部份的決策與批判技能。C1/A3",null,null,null,null,null,null,null,null,null,null,null,null,null,null,null,5,"資訊科技與溝通表達(p)","演算法(A)","操作技能(s)","科技的應用(A)"]
[null,"X",null,null,null,null,null,null,"Bh-Ⅳ-4 海洋文化。",null,null,"*2-Ⅳ-13 能依主題或情境以簡易英語進行日常生活溝通。C2/B1","B-Ⅳ-7 角色扮 演。",null,null,null,null,null,null,null,null,null,null,null,null,null,null,null,null,null,null,null,null,null,null,null,null,null,null,null,"輔 Db-IV-2重大心理困擾與失落經驗的因應。",null,null,null,null,null,null,"3b-Ⅳ-4 因應不同的生活情境，善用各種生活技能，解決健康問題。\nC1/A3",null,null,null,null,null,null,null,null,null,null,null,null,null,null,null,6,"資訊科技的使用態度(a) ","程式設計(P)","統合能力(c) ","科技與社會(S)"]
[null,"Y",null,null,null,null,null,null,null,null,null,"*2-Ⅳ-14 能以簡易的英語介紹國內外風土民情。B1/C3","*◎ B-Ⅳ-8 引導式討論。\n",null,null,null,null,null,null,null,null,null,null,null,null,null,null,null,null,null,null,null,null,null,null,null,null,null,null,null,"家 Db-IV-1家庭組成及文化多元性對自我發展的影 響，以及少子女化、高齡化與家庭結構變遷的關聯。",null,null,null,null,null,null,"3c-Ⅳ-1 表現局部或全身性的身體控制能力，發展專項運動技能。\nA2/A3",null,null,null,null,null,null,null,null,null,null,null,null,null,null,null,7,null,"資訊科技應用(T)"]
[null,"Z",null,null,null,null,null,null,null,null,null,"3-Ⅳ-1 能辨識連續書寫體大小寫字母。A2/B1","C-Ⅳ-1 國內外節慶習俗。",null,null,null,null,null,null,null,null,null,null,null,null,null,null,null,null,null,null,null,null,null,null,null,null,null,null,null,"家 Dd-IV-2家庭文化傳承與對個人的意義。",null,null,null,null,null,null,"3c-Ⅳ-2 發展動作創作和展演的技巧，展現個人運動潛能。A3/A2",null,null,null,null,null,null,null,null,null,null,null,null,null,null,null,8,null,"資訊科技與人類社會(H)"]
[null,null,null,null,null,null,null,null,null,null,null,"◎3-Ⅳ-2 能辨識課堂中所學的字詞。A2/B1","C-Ⅳ-2 國內外風土民情。",null,null,null,null,null,null,null,null,null,null,null,null,null,null,null,null,null,null,null,null,null,null,null,null,null,null,null,"童 Bb-IV-1多元族群服務需求的評估。",null,null,null,null,null,null,"3d-Ⅳ-1 運用運動技術的學習策略。A2/A3",null,null,null,null,null,null,null,null,null,null,null,null,null,null,null,9]
[null,null,null,null,null,null,null,null,null,null,null,"3-Ⅳ-3 能看懂簡易的英文標示。A2/B1","C-Ⅳ-3 文化習俗的了解及 尊重。\n",null,null,null,null,null,null,null,null,null,null,null,null,null,null,null,null,null,null,null,null,null,null,null,null,null,null,null,"輔 Ac-IV-1生命歷程、生命意義與價值的探索。",null,null,null,null,null,null,"3d-Ⅳ-2 運用運動比賽中的各種策略。C2/A3",null,null,null,null,null,null,null,null,null,null,null,null,null,null,null,10]
[null,null,null,null,null,null,null,null,null,null,null,"3-Ⅳ-4 能看懂簡易的圖表。B2/B1","C-Ⅳ-4 基本的 世界觀。",null,null,null,null,null,null,null,null,null,null,null,null,null,null,null,null,null,null,null,null,null,null,null,null,null,null,null,"家Db-IV-3合宜的交友行為與態度，及親密關係的發展歷程。",null,null,null,null,null,null,"3d-Ⅳ-3 應用思考與分析能力，解決運動情境的問題。B1/A2",null,null,null,null,null,null,null,null,null,null,null,null,null,null,null,11]
["週次","評量",null,null,null,null,null,null,null,null,null,"3-Ⅳ-5 能看懂簡易的生活用語。A2/B1","*C-Ⅳ-5 國際生 活禮儀。",null,null,null,null,null,null,null,null,null,null,null,null,null,null,null,null,null,null,null,null,null,null,null,null,null,null,null,"輔Dd-IV-2合宜的性別互動與態度的培養。",null,null,null,null,null,null,"4a-Ⅳ-1 運用適切的健康資訊、產品與服務，擬定健康行動策略。\nA3/B2",null,null,null,null,null,null,null,null,null,null,null,null,null,null,null,12]
["第1週","1.口試",null,null,null,null,null,null,null,null,null,"3-Ⅳ-6 能看懂基本的句型。A2/B1","D-Ⅳ-1 依綜合資訊作合理猜 測。\n",null,null,null,null,null,null,null,null,null,null,null,null,null,null,null,null,null,null,null,null,null,null,null,null,null,null,null,"家Da-IV-1家人溝通與情感表達。",null,null,null,null,null,null,"4a-Ⅳ-2 自我監督、增強個人促進健康的行動，並反省修正。A3/A2",null,null,null,null,null,null,null,null,null,null,null,null,null,null,null,13]
["第2週","2.作業",null,null,null,null,null,null,null,null,null,"3-Ⅳ-7 能了解對話的主要內容。A2/B1","D- Ⅳ -2 二 至 三 項訊息的比 較、歸類、排序的方法。\n",null,null,null,null,null,null,null,null,null,null,null,null,null,null,null,null,null,null,null,null,null,null,null,null,null,null,null,"家Da-IV-2家庭中不同角色的需求與合宜的家人互動。",null,null,null,null,null,null,"4a-Ⅳ-3 持續地執行促進健康及減少健康風險的行動。A3/C1",null,null,null,null,null,null,null,null,null,null,null,null,null,null,null,14]
["第3週","3.筆試",null,null,null,null,null,null,null,null,null,"3-Ⅳ-8 能了解短文、簡訊、書信的主要內容。A2/B1","D-Ⅳ-3 訊息因果 關 係 的 釐 清。",null,null,null,null,null,null,null,null,null,null,null,null,null,null,null,null,null,null,null,null,null,null,null,null,null,null,null,"輔Dc-IV-1同理心、人際溝通、衝突管理能力的培養 與正向經營人際關係。",null,null,null,null,null,null,"4b-Ⅳ-1 主動並公開表明個人對促進健康的觀點與立場。C1/B3",null,null,null,null,null,null,null,null,null,null,null,null,null,null,null,15]
["第4週","4.報告",null,null,null,null,null,null,null,null,null,"3-Ⅳ-9 能了解故事的主要內容與情節。C2/B1","*◎ D-Ⅳ-4 藉文字 線索，對客觀 事實及主觀 意 見 的 分 辨。",null,null,null,null,null,null,null,null,null,null,null,null,null,null,null,null,null,null,null,null,null,null,null,null,null,null,null,"家 Dc-IV-1家庭活動策劃 與參 與，以互相尊重與同理為基礎的家人關係維繫。",null,null,null,null,null,null,"4b-Ⅳ-2 使用精確的資訊來支持自己健康促進的立場。B1/B2"]
["第5週",null,null,null,null,null,null,null,null,null,null,"3-Ⅳ-10 能辨識簡易故事的要素，如背景、人物、事件和結局。A2/B1",null,null,null,null,null,null,null,null,null,null,null,null,null,null,null,null,null,null,null,null,null,null,null,null,null,null,null,null,"童 Aa-IV-1童軍諾言、規律、銘言的品德實踐與團隊目標的達成。",null,null,null,null,null,null,"4b-Ⅳ-3 公開進行健康倡導，展現對他人促進健康的信念或行為的影響力。\nC1/C2"]
["第6週",null,null,null,null,null,null,null,null,null,null,"3-Ⅳ-11 能藉圖畫、標題、書名等作合理的猜測。B1/A2",null,null,null,null,null,null,null,null,null,null,null,null,null,null,null,null,null,null,null,null,null,null,null,null,null,null,null,null,"童 Aa-IV-3童軍禮節與團隊規範的建立及執行。",null,null,null,null,null,null,"4c-Ⅳ-1 分析並善用運動相關之科技、資訊、媒體、產品與服務。\nC1/B2"]
["第7週",null,null,null,null,null,null,null,null,null,null,"*3-Ⅳ-12 能熟悉重要的閱讀技巧，如擷取大意、猜測字義、推敲文意、預 測後續文意及情節發展等。B1/A2",null,null,null,null,null,null,null,null,null,null,null,null,null,null,null,null,null,null,null,null,null,null,null,null,null,null,null,null,"童 Cb-IV-2露營活動組織分工、計畫、執行、檢討與反思。",null,null,null,null,null,null,"4c-Ⅳ-2 分析並評估個人的體適能與運動技能，修正個人的運動計畫。\nA2/A3"]
["第8週",null,null,null,null,null,null,null,null,null,null,"*3-Ⅳ-13 能了解短劇的主要內容與情節。C2/B2",null,null,null,null,null,null,null,null,null,null,null,null,null,null,null,null,null,null,null,null,null,null,null,null,null,null,null,null,"童 Cb-IV-3露營中的活動領導、溝通與問題解決。",null,null,null,null,null,null,"4c-Ⅳ-3 規劃提升體適能與運動技能的運動計畫。A2/A3"]
["第9週",null,null,null,null,null,null,null,null,null,null,"*3-Ⅳ-14 能快速閱讀了解文章重點，並有效應用於廣泛閱讀中。B1/A2",null,null,null,null,null,null,null,null,null,null,null,null,null,null,null,null,null,null,null,null,null,null,null,null,null,null,null,null,"輔 Dc-IV-2團體溝通、互動與工作效能的提升。",null,null,null,null,null,null,"4d-Ⅳ-1 發展適合個人之專項運動技能。A2/A3"]
["第10週",null,null,null,null,null,null,null,null,null,null,"*◎3-Ⅳ-15 能分析及判斷文章內容，了解敘述者的觀點、態度及寫作目的。B1/A2",null,null,null,null,null,null,null,null,null,null,null,null,null,null,null,null,null,null,null,null,null,null,null,null,null,null,null,null,"童Aa-IV-2小隊制度的分工、團隊合作與團體動力的提升。",null,null,null,null,null,null,"4d-Ⅳ-2 執行個人運動計畫，實際參與身體活動。A3/A1"]
["第11週",null,null,null,null,null,null,null,null,null,null,"*3-Ⅳ-16 能閱讀不同體裁、不同主題的簡易文章。B1/A1",null,null,null,null,null,null,null,null,null,null,null,null,null,null,null,null,null,null,null,null,null,null,null,null,null,null,null,null,"童Bb-IV-2服務活動方案的規劃與執行。",null,null,null,null,null,null,"4d-Ⅳ-3 執行提升體適能的身體活動。A3/A1"]
["第12週",null,null,null,null,null,null,null,null,null,null,"4-Ⅳ-1 能拼寫國中階段基本常用字詞。A2/B1",null,null,null,null,null,null,null,null,null,null,null,null,null,null,null,null,null,null,null,null,null,null,null,null,null,null,null,null,"童Cb-IV-3露營中的活動領導、溝通與問題解決。"]
["第13週",null,null,null,null,null,null,null,null,null,null,"4-Ⅳ-2 能依圖畫、圖示書寫英文句子。A2/B1",null,null,null,null,null,null,null,null,null,null,null,null,null,null,null,null,null,null,null,null,null,null,null,null,null,null,null,null,"輔Dc-IV-2團體溝通、互動與工 作效能的提升。"]
["第14週",null,null,null,null,null,null,null,null,null,null,"4-Ⅳ-3 能掌握正確書寫格式寫出英文句子。A2/B1",null,null,null,null,null,null,null,null,null,null,null,null,null,null,null,null,null,null,null,null,null,null,null,null,null,null,null,null,"輔 Ac-IV-2珍惜、尊重與善待各種生命。"]
["第15週",null,null,null,null,null,null,null,null,null,null,"4-Ⅳ-4 能依提示填寫簡單的表格。A2/B1",null,null,null,null,null,null,null,null,null,null,null,null,null,null,null,null,null,null,null,null,null,null,null,null,null,null,null,null,"輔 Db-IV-2重大心理困擾與失落經驗的因應。"]
["第16週",null,null,null,null,null,null,null,null,null,null,"4-Ⅳ-5 能依提示寫出正確達意的簡單句子。A2/B1",null,null,null,null,null,null,null,null,null,null,null,null,null,null,null,null,null,null,null,null,null,null,null,null,null,null,null,null,"家 Dc-IV-1家庭活動策劃與參與，以互相尊重與同理 為基礎的家人關係維繫。"]
["第17週",null,null,null,null,null,null,null,null,null,null,"4-Ⅳ-6 能將簡易的中文句子譯成英文。A2/B1",null,null,null,null,null,null,null,null,null,null,null,null,null,null,null,null,null,null,null,null,null,null,null,null,null,null,null,null,"童 Aa-IV-3童軍禮節與團隊規範的建立及執行。"]
["第18週",null,null,null,null,null,null,null,null,null,null,"*4-Ⅳ-7 能寫簡單的賀卡、簡訊、書信、電子郵件等。B1/B2",null,null,null,null,null,null,null,null,null,null,null,null,null,null,null,null,null,null,null,null,null,null,null,null,null,null,null,null,"童 Cb-IV-3露營中的活動領導、溝通與問題解決。"]
["第19週",null,null,null,null,null,null,null,null,null,null,"*4-Ⅳ-8 能依提示書寫簡短的段落。A2/B1",null,null,null,null,null,null,null,null,null,null,null,null,null,null,null,null,null,null,null,null,null,null,null,null,null,null,null,null,"輔 Dc-IV-1同理心、人際溝通、衝突管理能力的培養 與正向經營人際關係。"]
["第20週",null,null,null,null,null,null,null,null,null,null,"5-Ⅳ-1 能聽懂、讀懂國中階段基本字詞，並使用於簡易日常溝通。C2/B1",null,null,null,null,null,null,null,null,null,null,null,null,null,null,null,null,null,null,null,null,null,null,null,null,null,null,null,null,"家 Aa-IV-1個 人與家庭飲食行為之影響因素與青少 年合宜的飲食行為。"]
["第21週",null,null,null,null,null,null,null,null,null,null,"5-Ⅳ-2 能掌握國中階段所學字詞及句型，適當地使用於日常生活之溝通。C2/B2",null,null,null,null,null,null,null,null,null,null,null,null,null,null,null,null,null,null,null,null,null,null,null,null,null,null,null,null,"家 Ab-IV-2飲食的製備與創意運用。"]
["第22週",null,null,null,null,null,null,null,null,null,null,"◎5-Ⅳ-3 能聽懂日常生活應對中常用語句，並能作適當的回應。A2/B1",null,null,null,null,null,null,null,null,null,null,null,null,null,null,null,null,null,null,null,null,null,null,null,null,null,null,null,null,"家 Ba-IV-1服飾的清潔、收納與管理。"]
[null,null,null,null,null,null,null,null,null,null,null,"5-Ⅳ-4 能以正確的發音及適切的語調及速度朗讀短文及短劇。A2/B1",null,null,null,null,null,null,null,null,null,null,null,null,null,null,null,null,null,null,null,null,null,null,null,null,null,null,null,null,"家 Bc-IV-1常見織品的認識與手縫技巧應用。"]
[null,null,null,null,null,null,null,null,null,null,null,"*5-Ⅳ-5 能運用字母拼讀規則讀出及拼寫英文字詞。A2/B1",null,null,null,null,null,null,null,null,null,null,null,null,null,null,null,null,null,null,null,null,null,null,null,null,null,null,null,null,"童 Da-IV-2人類與生活環境互動關係的理解，及永續 發展策略的實踐與省思。"]
[null,null,null,null,null,null,null,null,null,null,null,"5-Ⅳ-6 能轉述所聽到的簡短談話。A2/B1",null,null,null,null,null,null,null,null,null,null,null,null,null,null,null,null,null,null,null,null,null,null,null,null,null,null,null,null,"輔 Bb-IV-2學習資源探索與資訊整合運用。"]
["A1",null,null,null,null,null,null,null,null,null,null,"5-Ⅳ-7 能聽懂日常生活對話，並能以簡單的字詞、句子記下要點。A2/B1",null,null,null,null,null,null,null,null,null,null,null,null,null,null,null,null,null,null,null,null,null,null,null,null,null,null,null,null,"家 Aa-IV-2青少年飲食的消費決策與行為。"]
["A2",null,null,null,null,null,null,null,null,null,null,"5-Ⅳ-8 能聽懂簡易故事，並能以簡單的字詞、句子記下要點。A2/B1",null,null,null,null,null,null,null,null,null,null,null,null,null,null,null,null,null,null,null,null,null,null,null,null,null,null,null,null,"家 Ab-IV-1食物的選購、保存與有效運用。"]
["A3",null,null,null,null,null,null,null,null,null,null,"5-Ⅳ-9 能聽懂簡易廣播，並能以簡單的字詞、句子記下要點。A2/B2",null,null,null,null,null,null,null,null,null,null,null,null,null,null,null,null,null,null,null,null,null,null,null,null,null,null,null,null,"家 Ba-IV-2服飾消費的影響因素與青少年的服飾消費決策及行為。"]
["B1",null,null,null,null,null,null,null,null,null,null,"5-Ⅳ-10 能讀懂簡易故事及短文，並能以簡短的句子說出或寫出其內容大 意。A2/B1",null,null,null,null,null,null,null,null,null,null,null,null,null,null,null,null,null,null,null,null,null,null,null,null,null,null,null,null,"家 Ca-IV-1個人與家庭生活的金錢及時間管理。"]
["B2",null,null,null,null,null,null,null,null,null,null,"5-Ⅳ-11 能看懂並能填寫簡單的表格及資料等。A2/B1",null,null,null,null,null,null,null,null,null,null,null,null,null,null,null,null,null,null,null,null,null,null,null,null,null,null,null,null,"家 Ca-IV-2消費管道的分析比較、資源運用與風險評估，以及合宜的消費行為。"]
["B3",null,null,null,null,null,null,null,null,null,null,"*5-Ⅳ-12 能看懂日常溝通中簡易的書信、簡訊、留言、賀卡、邀請卡等， 並能以口語或書面作簡短的回應。A2/B2",null,null,null,null,null,null,null,null,null,null,null,null,null,null,null,null,null,null,null,null,null,null,null,null,null,null,null,null,"童 Cb-IV-2露營活動組織分工、計畫、執行、檢討與反思。"]
["C1",null,null,null,null,null,null,null,null,null,null,"◎6-Ⅳ-1 樂於參與課堂中各類練習活動，不畏犯錯。B1/C2",null,null,null,null,null,null,null,null,null,null,null,null,null,null,null,null,null,null,null,null,null,null,null,null,null,null,null,null,"童 Cc-IV-2戶外休閒活動知能的整合與運用。"]
["C2",null,null,null,null,null,null,null,null,null,null,"6-Ⅳ-2 主動預習、複習並將學習內容作基本的整理歸納。A2/A1",null,null,null,null,null,null,null,null,null,null,null,null,null,null,null,null,null,null,null,null,null,null,null,null,null,null,null,null,"輔 Bb-IV-2學習資源探索與資訊整合運用。"]
["C3",null,null,null,null,null,null,null,null,null,null,"6-Ⅳ-3 樂於參與有助提升英語能力的活動（如英語營、歌唱、朗讀、演 講、段落寫作、讀者劇場等活動）。B2/C2",null,null,null,null,null,null,null,null,null,null,null,null,null,null,null,null,null,null,null,null,null,null,null,null,null,null,null,null,"家Ab-IV-2飲 食 的 製 備 與 創 意運用。"]
[null,null,null,null,null,null,null,null,null,null,null,"6-Ⅳ-4 樂於接觸課外的英語文多元素材，如歌曲、英語學習雜誌、漫畫、短片、廣播、網路等。C3/B2",null,null,null,null,null,null,null,null,null,null,null,null,null,null,null,null,null,null,null,null,null,null,null,null,null,null,null,null,"家Cc-IV-1生活空間的規劃與美化，以及創意的展 現。"]
[null,null,null,null,null,null,null,null,null,null,null,"*6-Ⅳ-5 主動利用各種查詢工具，以了解所接觸的英語文資訊。B1/B2",null,null,null,null,null,null,null,null,null,null,null,null,null,null,null,null,null,null,null,null,null,null,null,null,null,null,null,null,"家Cc-IV-2 生活用品的創意設計與製作，以及個人 興趣與能力的覺察。"]
[null,null,null,null,null,null,null,null,null,null,null,"*6-Ⅳ-6 主動從網路或其他課外材料，搜尋相關英語文資源，並與教師及 同學分享。C2/B2",null,null,null,null,null,null,null,null,null,null,null,null,null,null,null,null,null,null,null,null,null,null,null,null,null,null,null,null,"家Dc-IV-1家庭活動策劃與參與，以互相尊重與同理 為基礎的家人關係維繫。"]
[null,null,null,null,null,null,null,null,null,null,null,"7-Ⅳ-1 能使用英文字典，配合上下文找出適當的字義。B1/A1",null,null,null,null,null,null,null,null,null,null,null,null,null,null,null,null,null,null,null,null,null,null,null,null,null,null,null,null,"童Ca-IV-3各種童軍旅行的規劃、執行並體驗其樂 趣。 "]
[null,null,null,null,null,null,null,null,null,null,null,"7-Ⅳ-2 善用相關主題之背景知識，以利閱讀或聽力理解。B1/A2",null,null,null,null,null,null,null,null,null,null,null,null,null,null,null,null,null,null,null,null,null,null,null,null,null,null,null,null,"輔Bc-IV-1主動探究問題、高層 次思考的培養與創新 能力的運用。"]
[null,null,null,null,null,null,null,null,null,null,null,"7-Ⅳ-3 利用語言及非語言溝通策略（如請求重述、手勢、表情等）提升 溝通效能。B1/A1",null,null,null,null,null,null,null,null,null,null,null,null,null,null,null,null,null,null,null,null,null,null,null,null,null,null,null,null,"輔Da-IV-1正向思考模式、生活習慣與態度的培養。"]
[null,null,null,null,null,null,null,null,null,null,null,"7-Ⅳ-4 能對教師或同學討論的內容觸類旁通、舉一反三。B1/A2",null,null,null,null,null,null,null,null,null,null,null,null,null,null,null,null,null,null,null,null,null,null,null,null,null,null,null,null,"家 Bb-IV-1服飾的選搭、美感展現與個人形象管理。"]
[null,null,null,null,null,null,null,null,null,null,null,"7-Ⅳ-5 能訂定英文學習計畫，檢視自我學習過程，並隨時改進。A1/A3",null,null,null,null,null,null,null,null,null,null,null,null,null,null,null,null,null,null,null,null,null,null,null,null,null,null,null,null,"家 Cc-IV-1生活空間的規劃與美化，以及創意的展 現。 "]
[null,null,null,null,null,null,null,null,null,null,null,"8-Ⅳ-1 能以簡易英語介紹國內主要節慶習俗。B1/C3",null,null,null,null,null,null,null,null,null,null,null,null,null,null,null,null,null,null,null,null,null,null,null,null,null,null,null,null,"童 Db-IV-1 自然景觀的欣賞、維護與保護。"]
[null,null,null,null,null,null,null,null,null,null,null,"8-Ⅳ-2 能以簡易英語介紹國外主要節慶習俗。B1/C3",null,null,null,null,null,null,null,null,null,null,null,null,null,null,null,null,null,null,null,null,null,null,null,null,null,null,null,null,"童 Db-IV-2人文環境之美的欣賞、維護與保護。 "]
[null,null,null,null,null,null,null,null,null,null,null,"8-Ⅳ-3 能了解國內外風土民情及主要節慶習俗，並加以比較。C3/A2",null,null,null,null,null,null,null,null,null,null,null,null,null,null,null,null,null,null,null,null,null,null,null,null,null,null,null,null,"輔 Dd-IV-3多元文化社會的互動與關懷。"]
[null,null,null,null,null,null,null,null,null,null,null,"8-Ⅳ-4 能了解、尊重不同之文化習俗。A2/C3",null,null,null,null,null,null,null,null,null,null,null,null,null,null,null,null,null,null,null,null,null,null,null,null,null,null,null,null,"家 Ac-IV-1食品標示與加工食品之認識、利用，維 護飲食安全的實踐策略及行動。"]
[null,null,null,null,null,null,null,null,null,null,null,"8-Ⅳ-5 能具有基本的世界觀。A2/C3",null,null,null,null,null,null,null,null,null,null,null,null,null,null,null,null,null,null,null,null,null,null,null,null,null,null,null,null,"家 Ca-IV-2消費管道的分析比較、資源運用與風險 評估，以及合宜的消費行為。"]
[null,null,null,null,null,null,null,null,null,null,null,"*8-Ⅳ-6 能了解並遵循基本的國際生活禮儀。A2/C3",null,null,null,null,null,null,null,null,null,null,null,null,null,null,null,null,null,null,null,null,null,null,null,null,null,null,null,null,"童 Ca-IV-1 戶外觀察、追蹤、推理基本能力的培養 與運用。"]
[null,null,null,null,null,null,null,null,null,null,null,"9-Ⅳ-1 能綜合相關資訊作合理的猜測。B1/A2",null,null,null,null,null,null,null,null,null,null,null,null,null,null,null,null,null,null,null,null,null,null,null,null,null,null,null,null,"童 Cb-IV-1露營知識與技能的學習，以提升野外生存能力。"]
[null,null,null,null,null,null,null,null,null,null,null,"9-Ⅳ-2 能把二至三項訊息加以比較、歸類、排序。B1/A2",null,null,null,null,null,null,null,null,null,null,null,null,null,null,null,null,null,null,null,null,null,null,null,null,null,null,null,null,"童 Cc-IV-1戶外休閒活動的安全、風險管理與緊急 事件的處理。"]
[null,null,null,null,null,null,null,null,null,null,null,"9-Ⅳ-3 能根據上下文語境釐清不同訊息間的因果關係。B1/A2",null,null,null,null,null,null,null,null,null,null,null,null,null,null,null,null,null,null,null,null,null,null,null,null,null,null,null,null,"童 Da-IV-2人類與生活環境互動關係的理解，及永 續發展策略的實踐與省思。"]
[null,null,null,null,null,null,null,null,null,null,null,"9-Ⅳ-4 能依上下文所提供的文字線索（如 in my opinion、maybe）分辨 客觀事實與主觀意見。B1/A2",null,null,null,null,null,null,null,null,null,null,null,null,null,null,null,null,null,null,null,null,null,null,null,null,null,null,null,null,"輔 Db-IV-1生活議題的問題解決、危機因應與克服 困境的方法。"]
[null,null,null,null,null,null,null,null,null,null,null,null,null,null,null,null,null,null,null,null,null,null,null,null,null,null,null,null,null,null,null,null,null,null,null,null,null,null,null,null,"家 Ab-IV-1食物的選購、保存與有效運用。"]
[null,null,null,null,null,null,null,null,null,null,null,null,null,null,null,null,null,null,null,null,null,null,null,null,null,null,null,null,null,null,null,null,null,null,null,null,null,null,null,null,"家 Bc-IV-1常見織品的認識與手縫技巧應用。童 Ca-IV-1戶外觀察、追蹤、推理基本能力的培養與運用。"]
[null,null,null,null,null,null,null,null,null,null,null,null,null,null,null,null,null,null,null,null,null,null,null,null,null,null,null,null,null,null,null,null,null,null,null,null,null,null,null,null,"童 Ca-IV-2地圖判讀、旅行裝備使用及安全知能的 培養。"]
[null,null,null,null,null,null,null,null,null,null,null,null,null,null,null,null,null,null,null,null,null,null,null,null,null,null,null,null,null,null,null,null,null,null,null,null,null,null,null,null,"童 Cb-IV-1露營知識與技能的學習，以提升野外生存能力。"]
[null,null,null,null,null,null,null,null,null,null,null,null,null,null,null,null,null,null,null,null,null,null,null,null,null,null,null,null,null,null,null,null,null,null,null,null,null,null,null,null,"童 Cc-IV-2戶外休閒活動知能的整合與運用。"]
[null,null,null,null,null,null,null,null,null,null,null,null,null,null,null,null,null,null,null,null,null,null,null,null,null,null,null,null,null,null,null,null,null,null,null,null,null,null,null,null,"童 Cc-IV-1戶外休閒活動的安全、風險管理與緊急 事件的處理。"]
[null,null,null,null,null,null,null,null,null,null,null,null,null,null,null,null,null,null,null,null,null,null,null,null,null,null,null,null,null,null,null,null,null,null,null,null,null,null,null,null,"童 Ba-IV-1服務學習的意義、價值與信念的理解及落實。"]
[null,null,null,null,null,null,null,null,null,null,null,null,null,null,null,null,null,null,null,null,null,null,null,null,null,null,null,null,null,null,null,null,null,null,null,null,null,null,null,null,"童 Ba-IV-2校園關懷服務活動的參與及分享。"]
[null,null,null,null,null,null,null,null,null,null,null,null,null,null,null,null,null,null,null,null,null,null,null,null,null,null,null,null,null,null,null,null,null,null,null,null,null,null,null,null,"童 Bb-IV-1多元族群服務需求的評估。"]
[null,null,null,null,null,null,null,null,null,null,null,null,null,null,null,null,null,null,null,null,null,null,null,null,null,null,null,null,null,null,null,null,null,null,null,null,null,null,null,null,"童 Bb-IV-2服務活動方案的規劃與執行。"]
[null,null,null,null,null,null,null,null,null,null,null,null,null,null,null,null,null,null,null,null,null,null,null,null,null,null,null,null,null,null,null,null,null,null,null,null,null,null,null,null,"童 Bb-IV-3服務活動的反思與多元能力的展現。"]
[null,null,null,null,null,null,null,null,null,null,null,null,null,null,null,null,null,null,null,null,null,null,null,null,null,null,null,null,null,null,null,null,null,null,null,null,null,null,null,null,"童 Bb-IV-4國際服務活動的參與及文化交流。"]
[null,null,null,null,null,null,null,null,null,null,null,null,null,null,null,null,null,null,null,null,null,null,null,null,null,null,null,null,null,null,null,null,null,null,null,null,null,null,null,null,"輔 Dd-IV-3多元文化社會的互動與關懷。"]
[null,null,null,null,null,null,null,null,null,null,null,null,null,null,null,null,null,null,null,null,null,null,null,null,null,null,null,null,null,null,null,null,null,null,null,null,null,null,null,null,"家 Bb-IV-2服飾的社會文化意義與理解，並能展現 合宜的穿著禮儀。"]
[null,null,null,null,null,null,null,null,null,null,null,null,null,null,null,null,null,null,null,null,null,null,null,null,null,null,null,null,null,null,null,null,null,null,null,null,null,null,null,null,"家 Cb-IV-1多元的生活文化與合宜的禮儀展現。"]
[null,null,null,null,null,null,null,null,null,null,null,null,null,null,null,null,null,null,null,null,null,null,null,null,null,null,null,null,null,null,null,null,null,null,null,null,null,null,null,null,"童 Ab-IV-2世界童軍活動資訊的蒐集與分享，以培 養國際觀與全球關懷。"]
[null,null,null,null,null,null,null,null,null,null,null,null,null,null,null,null,null,null,null,null,null,null,null,null,null,null,null,null,null,null,null,null,null,null,null,null,null,null,null,null,"童 Ab-IV-3童軍國際交流活動的認識與理解，並能 選擇適合的參與方式。"]
[null,null,null,null,null,null,null,null,null,null,null,null,null,null,null,null,null,null,null,null,null,null,null,null,null,null,null,null,null,null,null,null,null,null,null,null,null,null,null,null,"童 Bb-IV-4國際服務活動的參與及文化交流。"]
[null,null,null,null,null,null,null,null,null,null,null,null,null,null,null,null,null,null,null,null,null,null,null,null,null,null,null,null,null,null,null,null,null,null,null,null,null,null,null,null,"家 Bb-IV-2服飾的社會文化意義與理解，並能展現合 宜的穿著禮儀。"]
[null,null,null,null,null,null,null,null,null,null,null,null,null,null,null,null,null,null,null,null,null,null,null,null,null,null,null,null,null,null,null,null,null,null,null,null,null,null,null,null,"家 Dd-IV-1家庭生活方式及多元族群文化的尊重與悅 納。 "]
[null,null,null,null,null,null,null,null,null,null,null,null,null,null,null,null,null,null,null,null,null,null,null,null,null,null,null,null,null,null,null,null,null,null,null,null,null,null,null,null,"童 Ab-IV-1國內童軍與青少年活動的認識及參與，以 增進生活能力。"]
[null,null,null,null,null,null,null,null,null,null,null,null,null,null,null,null,null,null,null,null,null,null,null,null,null,null,null,null,null,null,null,null,null,null,null,null,null,null,null,null,"輔 Dd-IV-1尊重多元性別差異。"]
[null,null,null,null,null,null,null,null,null,null,null,null,null,null,null,null,null,null,null,null,null,null,null,null,null,null,null,null,null,null,null,null,null,null,null,null,null,null,null,null,"輔 Dd-IV-3多元文化社會的互動與關懷。"]
[null,null,null,null,null,null,null,null,null,null,null,null,null,null,null,null,null,null,null,null,null,null,null,null,null,null,null,null,null,null,null,null,null,null,null,null,null,null,null,null,"童 Ca-IV-3各種童軍旅行的規劃、執行並體驗其樂趣。"]
[null,null,null,null,null,null,null,null,null,null,null,null,null,null,null,null,null,null,null,null,null,null,null,null,null,null,null,null,null,null,null,null,null,null,null,null,null,null,null,null,"童 Da-IV-1露營活動中永續環保的探究、執行與省思。"]
[null,null,null,null,null,null,null,null,null,null,null,null,null,null,null,null,null,null,null,null,null,null,null,null,null,null,null,null,null,null,null,null,null,null,null,null,null,null,null,null,"童 Db-IV-3友善環境的樂活旅行與遊憩活動。"]
[null,null,null,null,null,null,null,null,null,null,null,null,null,null,null,null,null,null,null,null,null,null,null,null,null,null,null,null,null,null,null,null,null,null,null,null,null,null,null,null,"童 Cc-IV-2戶外休閒活動知能的整合與運用。"]
[null,null,null,null,null,null,null,null,null,null,null,null,null,null,null,null,null,null,null,null,null,null,null,null,null,null,null,null,null,null,null,null,null,null,null,null,null,null,null,null,"童 Dc-IV-1戶外休閒活動中的環保策略與行動。"]
[null,null,null,null,null,null,null,null,null,null,null,null,null,null,null,null,null,null,null,null,null,null,null,null,null,null,null,null,null,null,null,null,null,null,null,null,null,null,null,null,"家 Aa-IV-2青少年飲食的消費決策與行為。"]
[null,null,null,null,null,null,null,null,null,null,null,null,null,null,null,null,null,null,null,null,null,null,null,null,null,null,null,null,null,null,null,null,null,null,null,null,null,null,null,null,"家 Aa-IV-3飲食行為與環境永續之關聯、實踐策略及行動。"]
[null,null,null,null,null,null,null,null,null,null,null,null,null,null,null,null,null,null,null,null,null,null,null,null,null,null,null,null,null,null,null,null,null,null,null,null,null,null,null,null,"童 Da-IV-1露營活動中永續環保的探究、執行與省思。"]
[null,null,null,null,null,null,null,null,null,null,null,null,null,null,null,null,null,null,null,null,null,null,null,null,null,null,null,null,null,null,null,null,null,null,null,null,null,null,null,null,"童 Da-IV-2人類與生活環境互動關係的理解，及永續 發展策略的實踐與省思。"]
[null,null,null,null,null,null,null,null,null,null,null,null,null,null,null,null,null,null,null,null,null,null,null,null,null,null,null,null,null,null,null,null,null,null,null,null,null,null,null,null,"童 Dc-IV-1戶外休閒活動中的環保策略與行動。"]
[null,null,null,null,null,null,null,null,null,null,null,null,null,null,null,null,null,null,null,null,null,null,null,null,null,null,null,null,null,null,null,null,null,null,null,null,null,null,null,null,"童 Dc-IV-2國際環境議題的理解、參與及省思。"]
[]
[]
[]
[]
[]
[]
[]
[]
[]
[]
[]
[]
[]
[]
[]
[]
[]
[]
[]
[]
[]
[]
[]
[]
[]
[]
[]
[]
[]
[]
[]
[]
[]
[]
[]
[]
[]
[]
[]
[]
[]
[]
[]
[]
[]
[]
[]
[]
[]
[]
[]
[]
[]
[]
[]
[]
[]
[]
[]
[]
[]
[]
[]
[]
[]
[]
[]
[]
[]
[]
[]
[]
[]
[]
[]
[]
[]
[]
[]
[null,"1.【性別平等教育】 "]
[null,"A.生理性別、性傾向、性別特質與性別認同多樣性的尊重 "]
[null,"    性 E1認識生理性別、性傾向、性別特質與性別認同的多元面貌。 "]
[null,"    性 E2 覺知身體意象對 身 心 的 影響。 "]
[null,"B.性別角色的突破與性別歧視的消除 "]
[null,"    性 E3 覺察性別角色的刻板印象，了解家庭、學校與職業的分工，不應受性別的限制。 "]
[null,"C.身體自主權的尊重與維護 "]
[null,"    性 E4 認識身體界限與尊重他人的身體自主權。 "]
[null,"D.性騷擾、性侵害與性霸凌的防治 "]
[null,"    性 E5 認識性騷擾、性侵害、性霸凌 的 概 念 及其求助管道。 "]
[null,"E.語言、文字與符號的性別意涵分析 "]
[null,"    性 E6 了解圖像、語言與文字的性別意涵，使用性別平等的語言與文字進行溝通。 "]
[null,"F.科技、資訊與媒體的性別識讀性別權益與公共參與 "]
[null,"    性 E7 解讀各種媒體所傳遞的性別刻板印象。 "]
[null,"    性 E8 了解不同性別者的成就與貢獻。 "]
[null,"    性 E9 檢視校園中空間與資源分配的性別落差，並提出改善建議。 "]
[null,"G.性別權力關係與互動 "]
[null,"    性 E10 辨識性別刻板 的 情 感表 達 與 人際互動。"]
[null,"    性 E11 培養性別間合 宜 表 達情 感 的 能力。 "]
[null,"H.性別與多元文化 "]
[null,"    *性 E12 了解與尊重家庭型態的多樣性。 "]
[null,"    性 E13 了解不同社會 中 的 性別 文 化 差異。 "]
[]
[]
[null,"2.【人權教育】"]
[null,"A.人權的基本概念 "]
[null,"    *人 E1 認識人權是與生俱有的、普遍的、不容剝奪的。 "]
[null,"B.人權與責任 "]
[null,"    *人 E2 關心周遭不公平的事件，並提出改善的想法。 "]
[null,"C.人權與民主法治 "]
[null,"    人 E3 了解每個人需求的不同，並討 論 與 遵 守團體的規則。 "]
[null,"D.人權與生活實踐 "]
[null,"    人 E4 表達自己對一個 美 好 世 界的想法，並聆聽 他 人 的 想法。 "]
[null,"    人 E5 欣賞、包容個別差異並尊重自己與他人的權利。 "]
[null,"    人 E6 覺察個人的偏見，並避免歧視 行 為 的 產生。 "]
[null,"E.人權違反與救濟 "]
[null,"    人 E7 認識生活中不公 平 、 不 合理、違反規則和 健 康 受 到傷害等經驗，並 知 道 如 何尋 求 救 助 的管道。 "]
[null,"F.人權重要主題 "]
[null,"    人 E8 了解兒童對遊戲 權 利 的 需求。 "]
[null,"    人 E9 認識生存權、身分權的剝奪與個人尊嚴的關係。 "]
[null,"    人E10認識隱私權與日 常 生 活 的關係。 "]
[null,"    人E11了解兒童權利宣 言 的 內 涵及 兒 童 權 利公 約 對 兒 童基 本 需 求 的維護與支持。"]
[]
[]
[null,"3.【環境教育】 "]
[null,"A.環境倫理 "]
[null,"    環 E1 參與戶外學習與自然體驗，覺知自然環境的美、平衡、與完整性。 "]
[null,"    *環E2 覺知生物生命的美與價值，關懷動、植物的生命。 "]
[null,"    *環E3 了解人與自然和諧共生，進而保護重要棲地。 "]
[null,"B.永續發展 "]
[null,"    環 E4 覺知經濟發展與工 業 發 展 對 環境的衝擊。 "]
[null,"    環 E5 覺知人類的生活型 態 對 其 他 生物 與 生 態 系 的衝擊。 "]
[null,"    *環 E6 覺知人類過度的物質需求會對未來世代造成衝擊。 "]
[null,"    環 E7 覺知人類社會有糧食分配不均與貧富差異太大的問題。 "]
[null,"C.氣候變遷 "]
[null,"    環 E8 認識天氣的溫度、雨量要素與覺察氣候的趨勢及極端氣候的現象。 "]
[null,"    環 E9 覺知氣候變遷會對生活、社會及環境造成衝擊。 "]
[null,"    環 E10 覺知人類的行為是導致氣候變遷的原因。 "]
[null,"D.災害防救 "]
[null,"    環 E11 認識臺灣曾經發生的重大災害。 "]
[null,"    環 E12 養成對災害的警 覺 心 及 敏感度，對災害有 基 本 的 了解，並能避免災害的發生。 "]
[null,"    環 E13 覺知天然災害的 頻 率 增 加且衝擊擴大。 "]
[null,"E.能源資源永續利用 "]
[null,"    環 E14 覺知人類生存與 發 展 需 要利 用 能 源 及資源，學習在生 活 中 直 接利 用 自 然 能源 或 自 然 形式的物質。 "]
[null,"    *環 E15 覺知能資源過度 利 用 會 導致 環 境 汙 染與 資 源 耗 竭的問題。 "]
[null,"    *環 E16 了解物質循環與資源回收利用的原理。 "]
[null,"    環 E17 養成日常生活節約用水、用電、物質的行為，減少資源的消耗。 "]
[]
[]
[null,"4.【海洋教育】"]
[null,"A.海洋休閒 "]
[null,"    海 E1喜歡親水活動，重視水域安全。"]
[null,"    海 E2學會游泳技巧，熟悉自救知能。"]
[null,"    海 E3具備從事多元水域休閒活動的 知 識 與 技能。 "]
[null,"B.海洋社會 "]
[null,"    *海 E4認識家鄉或鄰近的水域環境與產業。 "]
[null,"    海 E5探討臺灣開拓史與海洋的關係。 "]
[null,"    海 E6了解我國是海洋國家，強化臺灣海洋主權意識。 "]
[null,"C.海洋文化 "]
[null,"    海 E7閱讀、分享及創作與海洋有關的故事。 "]
[null,"    海 E8了解海洋民俗活動、宗教信仰與生活的關係。 "]
[null,"    海 E9透過肢體、聲音、圖像及道具等，進行以海 洋 為 主 題之藝術表現。 "]
[null,"D.海洋科學與技術 "]
[null,"    海 E10 認識水與海洋的特性及其與生活的應用。 "]
[null,"    海 E11 認識海洋生物與生態。 "]
[null,"    海 E12 認識海上交通工具和科技發展的關係。 "]
[null,"E.海洋資源與永續 "]
[null,"    *海 E13 認識生活中常見的水產品。 "]
[null,"    海 E14 了解海水中含有鹽等成份，體認海洋資源與生活的關聯性。 "]
[null,"    海 E15 認識家鄉常見的河流與海洋資源，並珍惜自然資源。 "]
[null,"    海 E16 認識家鄉的水域或海洋的汙染、過漁等環境問題。 "]
[]
[]
[null,"5. 【科技教育】"]
[null,"A.科技知識 "]
[null,"    科 E1 了解平日常見科技產品的用途與運作方式。 "]
[null,"    科 E2 了解動手實作的重要性。 "]
[null,"B.科技態度 "]
[null,"    科 E3 體會科技與個人及家庭生活的互動關係。 "]
[null,"    科 E4 體會動手實作的樂趣，並養成正向的科技態度。 "]
[null,"C.操作技能 "]
[null,"    科 E5 繪製簡單草圖以呈現設計構想。 "]
[null,"    科 E6 操作家庭常見的手工具。 "]
[null,"D.統合能力 "]
[null,"    科 E7 依據設計構想以規劃物品的製作步驟。 "]
[null,"    科 E8 利用創意思考的技巧。 "]
[null,"    科 E9 具備與他人團隊合作的能力。 "]
[]
[]
[null,"6.【能源教育】"]
[null,"A.能源意識 "]
[null,"    能 E1認識並了解能源與日常生活的關連。 "]
[null,"    能 E2了解節約能源的重要。 "]
[null,"B.能源概念 "]
[null,"    能 E3認識能源的種類與形式。 "]
[null,"    能 E4了解能源的日常應用。 "]
[null,"C.能源使用 "]
[null,"    能 E5認識能源於生活 中 的 使 用與安全。 "]
[null,"D.能源發展 "]
[null,"    能 E6 認識我國能源供需現況及發展情形。 "]
[null,"E.行動參與 "]
[null,"    能 E7 蒐集相關資料、與他人討論、分析、分享能源議題。 "]
[null,"    能 E8 於家庭、校園生活實踐節能減碳的行動。 "]
[]
[]
[null,"7.【 家庭教育】"]
[null,"A.家庭的組成、發展與變化 "]
[null,"    家 E1 了解家庭的意義與功能。 "]
[null,"    家 E2 了解家庭組成與型態的多樣性。 "]
[null,"B.人際互動與親密關係發展 "]
[null,"    家 E3 察覺家庭中不同角色，並反思個人在家庭中 扮演 的角色。 "]
[null,"    家 E4 覺察個人情緒並適切表達，與家人及同儕適切互動。 "]
[null,"C.家人關係與互動 "]
[null,"    家 E5 了解家庭中各種關係的互動(親子、手足、祖孫及其他親屬等)。 "]
[null,"    家 E6 覺察與實踐兒童在家庭中 的角 色責任。 "]
[null,"    家 E7 表達對家庭成員的關心與情感。 "]
[null,"D.家庭資源管理與消費決策 "]
[null,"    家 E8 了解家庭資源的意涵。 "]
[null,"    家 E9 參與家庭消費行動，澄清金錢與物品的價值。 "]
[null,"    家 E10 了解影響家庭消費的傳播媒體等各種因素。 "]
[null,"E.家庭活動與 "]
[null,"    家 E11 養成良好家庭生活習慣，熟悉家務技巧，並參與家務工作。 "]
[null,"F.社區參與 "]
[null,"    家 E12 規劃個人與家庭的生活作息。 "]
[null,"    家 E13 熟悉與家庭生活相 關 的 社 區 資源。 "]
[]
[]
[null,"8.【原住民族教育】 "]
[null,"A.原住民族語言文字的保存及傳承 "]
[null,"    原 E1 學習原住民族語言文字的基本生活溝通。 "]
[null,"    原 E2 了解原住民族語文書寫符號的特色。 "]
[null,"    原 E3 認識原住民族語文的地位與活力。 "]
[null,"B.認識部落與原住民族的歷史經驗 "]
[null,"    原 E4 認識所在部落 /社區民族分佈的概況。 "]
[null,"    原 E5 認識臺灣原住民 族 整 體 概況。 "]
[null,"    原 E6 了解並尊重不同族群的歷史文化經驗。 "]
[null,"C.原住民族的名制、傳統制度組織運作及其現代轉化 "]
[null,"    原 E7 認識原住民族氏族/家族及命名體系。"]
[null,"    原 E8 參與部落或社區活動，體驗族 群 內 部 運作。 "]
[null,"    原 E9 提升原住民族人 的 自 我 認同，增進主體民族對原住民族 文 化 的 理解。 "]
[null,"D.原住民族文化內涵與文化資產 "]
[null,"    原 E10 原住民族音樂、舞蹈、服飾、建築與各種工藝技藝實作。 "]
[null,"    原 E11 參與部落活動 或 社 區活 動 認 識原 住 民 族文化。 "]
[null,"E.原住民族土地與生態智慧 "]
[null,"    原 E12 了解原住民族部落山川傳統名稱與土地利用的生態智慧。 "]
[null,"    原 E13 了解所在地區原住民族部落的自然生態環境，包括各種動植物生態。 "]
[null,"F.原住民族營生模式 "]
[null,"    原 E14 學習或實作原住民族傳統採集、漁獵、農耕知識。 "]
[]
[]
[null,"9.【品德教育】"]
[null,"A.品德發展層面 "]
[null,"    品 E1 良好生活習慣與德行。 "]
[null,"    品 E2 自尊尊人與自愛愛人。 "]
[null,"    品 E3 溝通合作與和諧人際關係。 "]
[null,"B.品德核心價值 "]
[null,"    品 EJU1 尊重生命。  品 EJU4 自律負責。  品 EJU7 關懷行善。品 EJU2 孝悌仁愛。  品 EJU5 謙遜包容。  品 EJU8 公平正義。 "]
[null,"    品 EJU3 誠實信用。  品 EJU6 欣賞感恩。 "]
[null,"C.品德關鍵議題 "]
[null,"    品 E4 生命倫理的意涵、重要原則、以及生與死的道德議題。 "]
[null,"    品 E5 家庭倫理的意涵、變遷與私領域民主化的道德議題。 "]
[null,"D.品德實踐能力與行動 "]
[null,"    品 E6 同理分享。品 E7 知行合一。 "]
[]
[]
[null,"10 【生命教育】"]
[null,"A.哲學思考 "]
[null,"    生 E1 探討生活議題，培養思考的適當情意與態度。 "]
[null,"B.人學探索 "]
[null,"    生 E2 理解人的身體與心理面向。 "]
[null,"    生 E3 理解人是會思考、有情緒、能進行自主決定的個體。 "]
[null,"C.終極關懷 "]
[null,"    生 E4 觀察日常生活中生老病死的現象，思考生命的價值。 "]
[null,"    生 E5 探索快樂與幸福的異同。 "]
[null,"D.價值思辨 "]
[null,"    生 E6 從日常生活中培養道德感以及美感，練習做出道德判斷以及審美判斷，分辨事實和價值的不同。 "]
[null,"E.靈性修養 "]
[null,"    生 E7 發展設身處地、感同身受的同理心及主動去愛的能力，察覺自己從他者接受的各種幫助，培養感恩之心。 "]
[]
[]
[null,"11. 【法治教育】"]
[null,"A.公平正義之理念 "]
[null,"    法 E1 認識公平。 "]
[null,"B.法律與法治的意義 "]
[null,"    法 E2 認識偏見。"]
[null,"    法 E3 利用規則來避免衝突。 "]
[null,"C.人權保障之憲政原理與原則 "]
[null,"    法 E4 參與規則的制定並遵守之。 "]
[null,"    法 E5 認識恣意與濫權的問題。 "]
[null,"D.法律之實體與程序的知識與技能 "]
[null,"    法 E6 理解權力的必要與限制。 "]
[null,"    法 E7 認識責任。 "]
[null,"    法 E8 認識兒少保護。 "]
[]
[]
[null,"12. 【資訊教育】"]
[null,"A.運算思維與問題解決 "]
[null,"    資 E1 認識常見的資訊系統。 "]
[null,"    資 E2 使用資訊科技解決生活中簡單的問題。 "]
[null,"    資 E3 應用運算思維描述問題解決的方法。 "]
[null,"B.資訊科技與合作共創 "]
[null,"    資 E4 認識常見的資訊科技共創工具的使用方法。資 E5 使用資訊科技與他人合作產出想法與作品。 "]
[null,"C.資訊科技與溝通表達 "]
[null,"    資 E6 認識與使用資訊科技以表達想法。 "]
[null,"    資 E7 使用資訊科技與他人建立良好的互動關係。 "]
[null,"    資 E8 認識基本的數位資源整理方法。 "]
[null,"    資 E9 利用資訊科技分享學習資源與心得。 "]
[null,"D.資訊科技的使用態度 "]
[null,"    資 E10 了解資訊科技於日常生活之重要性。 "]
[null,"    資 E11 建立康健的數位使用習慣與態度。 "]
[null,"    資 E12 了解並遵守資訊倫理與使用資訊科技的相關規範。 "]
[null,"    資 E13 具備學習資訊科技的興趣。 "]
[]
[]
[null,"13. 【安全教育】"]
[null,"A.安全教育概論 "]
[null,"    安 E1 了解安全教育。 "]
[null,"    安 E2 了解危機與安全。 "]
[null,"    安 E3 知道常見事故傷害。 "]
[null,"B.日常生活安全 "]
[null,"    安 E4 探討日常生活應該注意的安全。 "]
[null,"    安 E5 了解日常生活危害安全的事件。 "]
[null,"C.運動安全 "]
[null,"    安 E6 了解自己的身體。 "]
[null,"    安 E7 探究運動基本的保健。 "]
[null,"D.校園安全 "]
[null,"    安 E8 了解校園安全的意義。"]
[null,"    安 E9 學習相互尊重的精神。"]
[null,"    安 E10關注校園安全的事件。"]
[null,"E.急救教育 "]
[null,"    安 E11 了解急救的重要性。 "]
[null,"    安 E12 操作簡單的急救項目。 "]
[null,"    安 E13 了解學校內緊急救護設備的位置。 "]
[null,"    安 E14 知道通報緊急事件的方式。 "]
[null,"14 【防災教育】"]
[null,"A.災害風險與衝擊 "]
[null,"    防 E1 災害的種類包含洪水、颱風、土石流、乾旱…。 "]
[null,"    防 E2 臺灣地理位置、地質狀況、與生態環境 與 災 害 緊 密 相關。 "]
[null,"    防 E3 臺灣曾經發生的重大災害及其影響。 "]
[null,"B.災害風險的管理 "]
[null,"    防 E4 防災學校、防災社區、防災地圖、災害潛勢、及災害預警的內涵。 "]
[null,"    防E5不同災害發生時的適當避難行為。 "]
[null,"    防 E6 藉由媒體災難即時訊息，判斷嚴重性，及通報請求救護。 "]
[null,"C.災害防救的演練 "]
[null,"    防 E7 認識校園的防災地圖。 "]
[null,"    防 E8 參與學校的防災疏散演練。"]
[null,"    防E9協助家人定期檢查急救包及防災器材的期限。"]
[]
[]
[null,"15. 【生涯規劃教育】"]
[null,"A.生涯規劃教育之基本概念 "]
[null,"    涯 E1 了解個人的自我概念。 "]
[null,"    涯 E2 認識不同的生活角色。 "]
[null,"    涯 E3 認識生涯規劃的意涵。 "]
[null,"B.生涯教育與自我探索  "]
[null,"    涯 E4 認識自己的特質與興趣。 "]
[null,"    涯 E5 探索自己的價值觀。 "]
[null,"    涯 E6 覺察個人的優勢能力。 "]
[null,"    涯 E7 培養良好的人際互動能力。 "]
[null,"C.生涯規劃與工作/教育環境探索 "]
[null,"    涯 E8 對工作/教育環境的好奇心。 "]
[null,"    涯 E9 認識不同類型工作/教育環境。"]
[null,"    涯 E10 培養對不同工作教育環境的態度。 "]
[null,"D.生涯決定與行動計畫 "]
[null,"    涯 E11 培養規劃與運用時間的能力。 "]
[null,"    涯 E12 學習解決問題與做決定的能力。 "]
[null,"    涯 E13 認識職業倫理及相關法律概念。 "]
[]
[]
[null,"16. 【多元文化教育 】"]
[null,"A.我族文化的認同 "]
[null,"    多 E1 了解自己的文化特質。 "]
[null,"    多 E2 建立自己的文化 認 同 與 意識。 "]
[null,"B.文化差異與理解 "]
[null,"    多 E3 認識不同的文化概念，如族群、階級、性別、宗教等。 "]
[null,"    多 E4 理解到不同文化 共 存 的 事實。 "]
[null,"C.跨文化的能力 "]
[null,"    多 E5 願意與不同文化背景的人相處，並發展群際關係。"]
[null,"    多 E6 了解各文化間的多樣性與差異性。 "]
[null,"    多 E7 減低或消除對他族文化的刻板 印 象 或 偏見，不以特定標準或成見去框限不同文化的 意 義 與 價值。 "]
[null,"    多 E8 認識及維護不同文化群體的尊嚴、權利、人權與自由。 "]
[]
[]
[null,"17.【 閱讀素養教育】 "]
[null,"A.閱讀的歷程 "]
[null,"    閱 E1 認識一般生活情境中需要使用的，以及學習學科基礎知識所應具備的字詞彙。 "]
[null,"    閱 E2 認識與領域相關的文本類型與寫作題材。 "]
[null,"    閱 E3 熟悉與學科學習相關的文本閱讀策略。 "]
[null,"    閱 E4 中高年級後需發展長篇文本的閱讀理解能力。 "]
[null,"    閱 E5 發展檢索資訊、獲得資訊、整合資訊的數位閱讀能力。 "]
[null,"    閱 E6 發展向文本提問的能力。 "]
[null,"    閱 E7 發展詮釋、反思、評鑑文本的能力。 "]
[null,"B.閱讀的媒材 "]
[null,"    閱 E8 低、中年級以紙本閱讀為主。 "]
[null,"    閱 E9 高年級後可適當介紹數位文本及混合文本作為閱讀的媒材。 "]
[null,"    閱 E10 中、高年級：能從報章雜誌及其他閱讀媒材中汲取與學科相關的知識。 "]
[null,"C.閱讀的情境脈絡 "]
[null,"    閱 E11 低年級：能在一般生活情境中，懂得運用文本習得的知識解決問題。 "]
[null,"D.閱讀的態度 "]
[null,"    閱 E12 培養喜愛閱讀的態度。 "]
[null,"    閱 E13 願意廣泛接觸不同類型及不同學科主題的文本。 "]
[null,"    閱 E14 喜歡與他人討論、分享自己閱讀的文本。 "]
[]
[]
[null,"18 【戶外教育】 "]
[null,"A.有意義的學習健康的身心  "]
[null,"    戶 E1 善用教室外、戶外及校外教學，認識生活環境（ 自 然 或 人為）。 "]
[null,"    戶 E2 豐富自身與環境 的 互 動 經驗，培養對生活環境的覺知與敏感，體驗與珍惜環境的好。 "]
[null,"    戶 E3善用五官的感知，培養眼、耳、鼻、舌、觸覺及心靈對環境 感 受 的 能力。 "]
[null,"B.尊重與關懷他人 "]
[null,"    戶 E4覺知自身的生活方式會對自然環境產生影響與衝擊。 "]
[null,"    戶 E5理解他人對環境 的 不 同 感受，並且樂於分 享 自 身 經驗。 "]
[null,"C.友善環境 "]
[null,"    戶 E6學生參與校園的環境服務、處室的服務。 "]
[null,"    戶 E7 參加學校校外教學活動，認識地方環境，如生態、環保、地質、文化等戶外學習。"]
[]
[]
[]
[null,"19. 【國際教育】 "]
[null,"A.國家認同 "]
[null,"    國 E1 了解我國與世界其他國家的文化特質。 "]
[null,"    國 E2 表現具國際視野的 本 土 文 化 認同。 "]
[null,"    國 E3 具備表達我國文化特色的能力。 "]
[null,"B.國際素養 "]
[null,"    國 E4 認識全球化與相關重要議題。 "]
[null,"    國 E5 體認國際文化的多樣性。 "]
[null,"    國 E6 具備學習不同文化 的 意 願 與 能力。 "]
[null,"C.全球競合力 "]
[null,"    國 E7 認識全球競爭與合作的現象。 "]
[null,"    國 E8 探究全球競爭與合作關係的能力並 體 認 其 重 要性。 "]
[null,"D.全球責任感 "]
[null,"    國 E9 認識世界基本人權與道德責任。 "]
[null,"    國 E10 了解並體會國際弱勢者的現象與處境。 "]
[]
[]
[]
[]
[]
[]
[]
[null,"1.【性別平等教育】 "]
[null,"A.生理性別、性傾向、性別特質與性別認同多樣性的尊重 "]
[null,"    性 E1認識生理性別、性傾向、性別特質與性別認同的多元面貌。 "]
[null,"    性 E2 覺知身體意象對 身 心 的 影響。 "]
[null,"B.性別角色的突破與性別歧視的消除 "]
[null,"    性 E3 覺察性別角色的刻板印象，了解家庭、學校與職業的分工，不應受性別的限制。 "]
[null,"C.身體自主權的尊重與維護 "]
[null,"    性 E4 認識身體界限與尊重他人的身體自主權。 "]
[null,"D.性騷擾、性侵害與性霸凌的防治 "]
[null,"    性 E5 認識性騷擾、性侵害、性霸凌 的 概 念 及其求助管道。 "]
[null,"E.語言、文字與符號的性別意涵分析 "]
[null,"    性 E6 了解圖像、語言與文字的性別意涵，使用性別平等的語言與文字進行溝通。 "]
[null,"F.科技、資訊與媒體的性別識讀性別權益與公共參與 "]
[null,"    性 E7 解讀各種媒體所傳遞的性別刻板印象。 "]
[null,"    性 E8 了解不同性別者的成就與貢獻。 "]
[null,"    性 E9 檢視校園中空間與資源分配的性別落差，並提出改善建議。 "]
[null,"G.性別權力關係與互動 "]
[null,"    性 E10 辨識性別刻板 的 情 感表 達 與 人際互動。"]
[null,"    性 E11 培養性別間合 宜 表 達情 感 的 能力。 "]
[null,"H.性別與多元文化 "]
[null,"    *性 E12 了解與尊重家庭型態的多樣性。 "]
[null,"    性 E13 了解不同社會 中 的 性別 文 化 差異。 "]